{"text_format":"1","workbook":"xlsx","n_sheets":37,"sheets":["Summary of Points","Export Data","blank character sheet","Analyst template","Chameleon template","Chronal expert template","Diplomat template","Explorer template","Gadgeteer template","Hacker template","Historian template","Marksman template","Physician template","Pilot template","Scientist template","Soldier template","Spy Template","Thief template","Thug template","Iconic - Mace Hunter","Iconic - Uurrk","Iconic - Vid","Iconic - Dr Leah Breen","Iconic - Altani","Iconic - Skegg","Iconic - Kelfala","History - Rasputin","History - Henry Hudson","History - Amelia Earhart","History - Lucrezia Borgia","History - Garnissa","History - Spartacus","History - Julia Aggripina","History - King Edward V","History - Juan Ponce de Leon","History - Pine Leaf of the Crow","blank character sheet (12)"],"not_rendered":{"charts":0,"images":0,"macros":1,"external_links":0,"defined_names":37,"comments":0,"pivot_tables":0},"unopened":[],"bounds":{"document_bytes":16777216,"sheet_cells":100000,"rows_first":2000,"rows_last":500,"rows_between":2000,"halvings":0,"cell_chars":16384,"cell_head_chars":4096},"cells_cut":0,"cells_raw":0,"read":"whole","date_system":"1900"}

{"sheet":"Summary of Points","index":0,"n_rows":76,"n_cols":29,"rows_kept":76,"cut":false,"hidden":false,"merged":[[11,13,11,18],[11,0,11,11],[7,15,7,18],[7,10,7,13],[10,0,10,11],[10,13,10,18]]}
[null,null,null,null,null,null,null,null,null,null,null,null,null,null,null,null,null,null,null,null,null,null,"Mace","Uurrk","Altani","Skegg","Kelfala","Vid","Breen"]
[null,null,null,null,null,null,null,null,null,null,null,null,null,null,null,null,null,null,null,null,null,null,"PC #1","PC #2","PC #3","PC #4","PC #5","PC #6","PC #7"]
[]
[null,"# of Players?",null,null,"5+",{"$f":"IF(E4<2,\"N/A\",IF(E4=2,23,IF(E4=3,20,IF(E4=4,18,16))))","v":16},"Investigative points, +1 bonus",null,null,null,null,null,null,null,null,null,null,null,null,null,"Extra Investigative Points?",null,{"$f":"'Iconic - Mace Hunter'!C29","v":0},{"$f":"'Iconic - Uurrk'!C29","v":5},{"$f":"'Iconic - Altani'!C29","v":0},{"$f":"'Iconic - Skegg'!C29","v":0},{"$f":"'Iconic - Kelfala'!C29","v":0},{"$f":"'Iconic - Vid'!C29","v":0},{"$f":"'Iconic - Dr Leah Breen'!C29","v":0}]
[null,null,null,null,50,{"$f":"E5","v":50},"# of General Ability Points?",null,null,null,null,null,null,null,null,null,null,null,null,null,"Extra General Points?",null,{"$f":"'Iconic - Mace Hunter'!C33","v":0},{"$f":"'Iconic - Uurrk'!C33","v":0},{"$f":"'Iconic - Altani'!C33","v":0},{"$f":"'Iconic - Skegg'!C33","v":0},{"$f":"'Iconic - Kelfala'!C33","v":0},{"$f":"'Iconic - Vid'!C33","v":0},{"$f":"'Iconic - Dr Leah Breen'!C33","v":0}]
[]
[null,null,null,null,null,null,null,null,null,null,null,null,null,null,null,null,null,null,null,null,"Academic Abilities"]
[null,null,null,null,null,null,null,null,null,null,"Chronal Stability",null,null,null,null,"Health",null,null,null,null,null,{"$f":"A15","v":"Anthropology"},{"$f":"'Iconic - Mace Hunter'!E15","v":1},{"$f":"'Iconic - Uurrk'!E15","v":1},{"$f":"'Iconic - Altani'!E15","v":1},{"$f":"'Iconic - Skegg'!E15","v":1},{"$f":"'Iconic - Kelfala'!E15","v":0},{"$f":"'Iconic - Vid'!E15","v":0},{"$f":"'Iconic - Dr Leah Breen'!E15","v":0}]
[null,null,null,null,null,null,null,null,null,null,null,"Total:",null,{"$f":"S17","v":65},null,null,"Total:",null,{"$f":"S19","v":32},null,null,{"$f":"A16","v":"Architecture "},{"$f":"'Iconic - Mace Hunter'!E16","v":0},{"$f":"'Iconic - Uurrk'!E16","v":0},{"$f":"'Iconic - Altani'!E16","v":0},{"$f":"'Iconic - Skegg'!E16","v":0},{"$f":"'Iconic - Kelfala'!E16","v":1},{"$f":"'Iconic - Vid'!E16","v":0},{"$f":"'Iconic - Dr Leah Breen'!E16","v":0}]
[null,null,null,null,null,null,null,null,null,null,null,null,null,null,null,null,null,null,null,null,null,"History (Ancient)",{"$f":"'Iconic - Mace Hunter'!E17","v":1},{"$f":"'Iconic - Uurrk'!E17","v":1},{"$f":"'Iconic - Altani'!E17","v":1},{"$f":"'Iconic - Skegg'!E17","v":1},{"$f":"'Iconic - Kelfala'!E17","v":0},{"$f":"'Iconic - Vid'!E17","v":0},{"$f":"'Iconic - Dr Leah Breen'!E17","v":0}]
["TOTAL INVESTIGATIVE ABILITIES",null,null,null,null,null,null,null,null,null,null,null,null,"TOTAL GENERAL ABILITIES",null,null,null,null,null,null,null,"History (Contemporary)",{"$f":"'Iconic - Mace Hunter'!E18","v":1},{"$f":"'Iconic - Uurrk'!E18","v":0},{"$f":"'Iconic - Altani'!E18","v":1},{"$f":"'Iconic - Skegg'!E18","v":0},{"$f":"'Iconic - Kelfala'!E18","v":1},{"$f":"'Iconic - Vid'!E18","v":1},{"$f":"'Iconic - Dr Leah Breen'!E18","v":1}]
["5 players: 16 points, +1 bonus)",null,null,null,null,null,null,null,null,null,null,null,null,"50 points each, +12 bonus",null,null,null,null,null,null,null,"History (Future)",{"$f":"'Iconic - Mace Hunter'!E19","v":0},{"$f":"'Iconic - Uurrk'!E19","v":0},{"$f":"'Iconic - Altani'!E19","v":0},{"$f":"'Iconic - Skegg'!E19","v":0},{"$f":"'Iconic - Kelfala'!E19","v":1},{"$f":"'Iconic - Vid'!E19","v":1},{"$f":"'Iconic - Dr Leah Breen'!E19","v":1}]
["Academic Abilities",null,null,null,null,null,"Interpersonal Abilities ",null,null,null,null,null,null,{"$f":"'blank character sheet'!N13","v":"Athletics"},null,null,null,null,{"$f":"SUM(W42:AC42)","v":53},null,null,"Military Tactics",{"$f":"'Iconic - Mace Hunter'!E20","v":1},{"$f":"'Iconic - Uurrk'!E20","v":0},{"$f":"'Iconic - Altani'!E20","v":2},{"$f":"'Iconic - Skegg'!E20","v":1},{"$f":"'Iconic - Kelfala'!E20","v":1},{"$f":"'Iconic - Vid'!E20","v":1},{"$f":"'Iconic - Dr Leah Breen'!E20","v":0}]
[null,null,null,null,null,null,null,null,null,null,null,null,null,{"$f":"'blank character sheet'!N14","v":"Burglary"},null,null,null,null,{"$f":"SUM(W43:AC43)","v":8},null,null,"Research",{"$f":"'Iconic - Mace Hunter'!E21","v":1},{"$f":"'Iconic - Uurrk'!E21","v":0},{"$f":"'Iconic - Altani'!E21","v":0},{"$f":"'Iconic - Skegg'!E21","v":1},{"$f":"'Iconic - Kelfala'!E21","v":1},{"$f":"'Iconic - Vid'!E21","v":1},{"$f":"'Iconic - Dr Leah Breen'!E21","v":1}]
[{"$f":"'blank character sheet'!A15","v":"Anthropology"},null,null,null,{"$f":"SUM(W8:AC8)","v":4},null,{"$f":"'blank character sheet'!G15","v":"Authority"},null,null,null,null,{"$f":"SUM(W20:AC20)","v":6},null,{"$f":"'blank character sheet'!N15","v":"Chronal Stability**"},null,null,null,null,{"$f":"SUM(W44:AC44)","v":51},null,null,"Timecraft*",{"$f":"'Iconic - Mace Hunter'!E22","v":1},{"$f":"'Iconic - Uurrk'!E22","v":1},{"$f":"'Iconic - Altani'!E22","v":1},{"$f":"'Iconic - Skegg'!E22","v":1},{"$f":"'Iconic - Kelfala'!E22","v":1},{"$f":"'Iconic - Vid'!E22","v":1},{"$f":"'Iconic - Dr Leah Breen'!E22","v":2}]
[{"$f":"'blank character sheet'!A16","v":"Architecture "},null,null,null,{"$f":"SUM(W9:AC9)","v":1},null,{"$f":"'blank character sheet'!G16","v":"Bureaucracy"},null,null,null,null,{"$f":"SUM(W21:AC21)","v":2},null,{"$f":"'blank character sheet'!N16","v":"Disguise"},null,null,null,null,29,null,null,"Trivia",{"$f":"'Iconic - Mace Hunter'!E23","v":0},{"$f":"'Iconic - Uurrk'!E23","v":0},{"$f":"'Iconic - Altani'!E23","v":0},{"$f":"'Iconic - Skegg'!E23","v":0},{"$f":"'Iconic - Kelfala'!E23","v":1},{"$f":"'Iconic - Vid'!E23","v":1},{"$f":"'Iconic - Dr Leah Breen'!E23","v":0}]
[{"$f":"'blank character sheet'!A17","v":"History (Ancient)"},null,null,null,{"$f":"SUM(W10:AC10)","v":4},null,{"$f":"'blank character sheet'!G17","v":"Charm"},null,null,null,null,{"$f":"SUM(W22:AC22)","v":3},null,{"$f":"'blank character sheet'!N17","v":"Health**"},null,null,null,null,65]
[{"$f":"'blank character sheet'!A18","v":"History (Contemporary)"},null,null,null,5,null,{"$f":"'blank character sheet'!G18","v":"Falsehood Detection"},null,null,null,null,5,null,{"$f":"'blank character sheet'!N18","v":"Medic"},null,null,null,null,14]
[{"$f":"'blank character sheet'!A19","v":"History (Future)"},null,null,null,3,null,{"$f":"'blank character sheet'!G19","v":"High Society "},null,null,null,null,3,null,{"$f":"'blank character sheet'!N19","v":"Preparedness"},null,null,null,null,32,null,"Interpersonal Abilities "]
[{"$f":"'blank character sheet'!A20","v":"Military Tactics"},null,null,null,6,null,{"$f":"'blank character sheet'!G20","v":"Intimidation"},null,null,null,null,6,null,{"$f":"'blank character sheet'!N20","v":"Reality Anchor"},null,null,null,null,21,null,null,{"$f":"G15","v":"Authority"},{"$f":"'Iconic - Mace Hunter'!L15","v":1},{"$f":"'Iconic - Uurrk'!L15","v":0},{"$f":"'Iconic - Altani'!L15","v":1},{"$f":"'Iconic - Skegg'!L15","v":1},{"$f":"'Iconic - Kelfala'!L15","v":1},{"$f":"'Iconic - Vid'!L15","v":1},{"$f":"'Iconic - Dr Leah Breen'!L15","v":1}]
[{"$f":"'blank character sheet'!A21","v":"Research"},null,null,null,5,null,{"$f":"'blank character sheet'!G21","v":"Reassurance"},null,null,null,null,4,null,{"$f":"'blank character sheet'!N21","v":"Scuffling"},null,null,null,null,47,null,null,{"$f":"G16","v":"Bureaucracy"},{"$f":"'Iconic - Mace Hunter'!L16","v":0},{"$f":"'Iconic - Uurrk'!L16","v":0},{"$f":"'Iconic - Altani'!L16","v":0},{"$f":"'Iconic - Skegg'!L16","v":0},{"$f":"'Iconic - Kelfala'!L16","v":1},{"$f":"'Iconic - Vid'!L16","v":0},{"$f":"'Iconic - Dr Leah Breen'!L16","v":1}]
[{"$f":"'blank character sheet'!A22","v":"Timecraft*"},null,null,null,8,null,{"$f":"'blank character sheet'!G22","v":"Streetwise "},null,null,null,null,3,null,{"$f":"'blank character sheet'!N22","v":"Shooting"},null,null,null,null,40,null,null,"Charm",{"$f":"'Iconic - Mace Hunter'!L17","v":1},{"$f":"'Iconic - Uurrk'!L17","v":0},{"$f":"'Iconic - Altani'!L17","v":1},{"$f":"'Iconic - Skegg'!L17","v":0},{"$f":"'Iconic - Kelfala'!L17","v":1},{"$f":"'Iconic - Vid'!L17","v":0},{"$f":"'Iconic - Dr Leah Breen'!L17","v":0}]
[{"$f":"'blank character sheet'!A23","v":"Trivia"},null,null,null,{"$f":"SUM(W16:AC16)","v":2},null,{"$f":"'blank character sheet'!G23","v":"Taunt"},null,null,null,null,{"$f":"SUM(W28:AC28)","v":5},null,{"$f":"'blank character sheet'!N23","v":"Tinkering"},null,null,null,null,18,null,null,"Falsehood Detection",{"$f":"'Iconic - Mace Hunter'!L18","v":1},{"$f":"'Iconic - Uurrk'!L18","v":0},{"$f":"'Iconic - Altani'!L18","v":1},{"$f":"'Iconic - Skegg'!L18","v":1},{"$f":"'Iconic - Kelfala'!L18","v":1},{"$f":"'Iconic - Vid'!L18","v":1},{"$f":"'Iconic - Dr Leah Breen'!L18","v":0}]
[null,null,null,null,null,null,null,null,null,null,null,null,null,{"$f":"'blank character sheet'!N24","v":"Unobtrusiveness"},null,null,null,null,29,null,null,"High Society ",{"$f":"'Iconic - Mace Hunter'!L19","v":0},{"$f":"'Iconic - Uurrk'!L19","v":0},{"$f":"'Iconic - Altani'!L19","v":1},{"$f":"'Iconic - Skegg'!L19","v":1},{"$f":"'Iconic - Kelfala'!L19","v":1},{"$f":"'Iconic - Vid'!L19","v":0},{"$f":"'Iconic - Dr Leah Breen'!L19","v":0}]
[null,null,null,null,null,null,"Technical Abilities",null,null,null,null,null,null,{"$f":"'blank character sheet'!N25","v":"Vehicles"},null,null,null,null,{"$f":"SUM(W54:AC54)","v":27},null,null,"Intimidation",{"$f":"'Iconic - Mace Hunter'!L20","v":1},{"$f":"'Iconic - Uurrk'!L20","v":1},{"$f":"'Iconic - Altani'!L20","v":1},{"$f":"'Iconic - Skegg'!L20","v":1},{"$f":"'Iconic - Kelfala'!L20","v":0},{"$f":"'Iconic - Vid'!L20","v":1},{"$f":"'Iconic - Dr Leah Breen'!L20","v":1}]
[null,null,null,null,null,null,null,null,null,null,null,null,null,null,null,null,null,null,null,null,null,"Reassurance",{"$f":"'Iconic - Mace Hunter'!L21","v":1},{"$f":"'Iconic - Uurrk'!L21","v":1},{"$f":"'Iconic - Altani'!L21","v":0},{"$f":"'Iconic - Skegg'!L21","v":0},{"$f":"'Iconic - Kelfala'!L21","v":1},{"$f":"'Iconic - Vid'!L21","v":0},{"$f":"'Iconic - Dr Leah Breen'!L21","v":1}]
[null,null,null,null,null,null,{"$f":"'blank character sheet'!G27","v":"Forgery"},null,null,null,null,{"$f":"SUM(W32:AC32)","v":1},null,null,null,null,null,null,null,null,null,"Streetwise ",{"$f":"'Iconic - Mace Hunter'!L22","v":0},{"$f":"'Iconic - Uurrk'!L22","v":1},{"$f":"'Iconic - Altani'!L22","v":1},{"$f":"'Iconic - Skegg'!L22","v":0},{"$f":"'Iconic - Kelfala'!L22","v":0},{"$f":"'Iconic - Vid'!L22","v":1},{"$f":"'Iconic - Dr Leah Breen'!L22","v":0}]
[null,null,null,null,null,null,{"$f":"'blank character sheet'!G28","v":"Hacking"},null,null,null,null,4,null,"Special Boosters:",null,null,null,null,null,null,null,"Taunt",{"$f":"'Iconic - Mace Hunter'!L23","v":1},{"$f":"'Iconic - Uurrk'!L23","v":1},{"$f":"'Iconic - Altani'!L23","v":1},{"$f":"'Iconic - Skegg'!L23","v":1},{"$f":"'Iconic - Kelfala'!L23","v":0},{"$f":"'Iconic - Vid'!L23","v":0},{"$f":"'Iconic - Dr Leah Breen'!L23","v":1}]
[null,null,null,null,null,null,{"$f":"'blank character sheet'!G29","v":"Medical Expertise"},null,null,null,null,1]
[null,null,2,null,null,null,{"$f":"'blank character sheet'!G30","v":"Notice"},null,null,null,null,8,null,"Hard to Hit (Athletics):"]
[null,null,3,null,null,null,{"$f":"'blank character sheet'!G31","v":"Outdoor Survival "},null,null,null,null,6,null,"Hit Threshold = 4, not 3",null,null,null,null,null,null,"Technical Abilities"]
[null,null,4,null,null,null,{"$f":"'blank character sheet'!G32","v":"Paradox Prevention"},null,null,null,null,8,null,"Open Sesame (Burglary):",null,null,null,null,null,null,null,{"$f":"G27","v":"Forgery"},{"$f":"'Iconic - Mace Hunter'!L27","v":0},{"$f":"'Iconic - Uurrk'!L27","v":0},{"$f":"'Iconic - Altani'!L27","v":0},{"$f":"'Iconic - Skegg'!L27","v":0},{"$f":"'Iconic - Kelfala'!L27","v":0},{"$f":"'Iconic - Vid'!L27","v":1},{"$f":"'Iconic - Dr Leah Breen'!L27","v":0}]
[null,null,"5+",null,null,null,{"$f":"'blank character sheet'!G33","v":"Science!"},null,null,null,null,6,null,"Easily open simple locks",null,null,null,null,null,null,null,{"$f":"G28","v":"Hacking"},{"$f":"'Iconic - Mace Hunter'!L28","v":0},{"$f":"'Iconic - Uurrk'!L28","v":0},{"$f":"'Iconic - Altani'!L28","v":0},{"$f":"'Iconic - Skegg'!L28","v":0},{"$f":"'Iconic - Kelfala'!L28","v":1},{"$f":"'Iconic - Vid'!L28","v":2},{"$f":"'Iconic - Dr Leah Breen'!L28","v":1}]
[null,null,null,null,null,null,{"$f":"'blank character sheet'!G34","v":"Spying"},null,null,null,null,5,null,"Don't I Know You? (Disguise):",null,null,null,null,null,null,null,"Medical Expertise",{"$f":"'Iconic - Mace Hunter'!L29","v":0},{"$f":"'Iconic - Uurrk'!L29","v":0},{"$f":"'Iconic - Altani'!L29","v":0},{"$f":"'Iconic - Skegg'!L29","v":0},{"$f":"'Iconic - Kelfala'!L29","v":0},{"$f":"'Iconic - Vid'!L29","v":0},{"$f":"'Iconic - Dr Leah Breen'!L29","v":1}]
[null,null,null,null,null,null,null,null,null,null,null,null,null,"Fool someone into thinking you've met",null,null,null,null,null,null,null,"Notice",{"$f":"'Iconic - Mace Hunter'!L30","v":1},{"$f":"'Iconic - Uurrk'!L30","v":1},{"$f":"'Iconic - Altani'!L30","v":1},{"$f":"'Iconic - Skegg'!L30","v":2},{"$f":"'Iconic - Kelfala'!L30","v":1},{"$f":"'Iconic - Vid'!L30","v":1},{"$f":"'Iconic - Dr Leah Breen'!L30","v":1}]
[null,null,null,null,null,null,null,null,null,null,null,null,null,"Heal Thyself (Medic):",null,null,null,null,null,null,null,"Outdoor Survival ",{"$f":"'Iconic - Mace Hunter'!L31","v":2},{"$f":"'Iconic - Uurrk'!L31","v":2},{"$f":"'Iconic - Altani'!L31","v":1},{"$f":"'Iconic - Skegg'!L31","v":1},{"$f":"'Iconic - Kelfala'!L31","v":0},{"$f":"'Iconic - Vid'!L31","v":0},{"$f":"'Iconic - Dr Leah Breen'!L31","v":0}]
[null,null,null,null,null,null,null,null,null,null,null,null,null,"Heal yourself more efficiently",null,null,null,null,null,null,null,"Paradox Prevention",{"$f":"'Iconic - Mace Hunter'!L32","v":1},{"$f":"'Iconic - Uurrk'!L32","v":1},{"$f":"'Iconic - Altani'!L32","v":1},{"$f":"'Iconic - Skegg'!L32","v":2},{"$f":"'Iconic - Kelfala'!L32","v":1},{"$f":"'Iconic - Vid'!L32","v":1},{"$f":"'Iconic - Dr Leah Breen'!L32","v":1}]
[null,null,null,null,null,null,null,null,null,null,null,null,null,"Flashback (Preparedness):",null,null,null,null,null,null,null,"Science!",{"$f":"'Iconic - Mace Hunter'!L33","v":0},{"$f":"'Iconic - Uurrk'!L33","v":0},{"$f":"'Iconic - Altani'!L33","v":0},{"$f":"'Iconic - Skegg'!L33","v":1},{"$f":"'Iconic - Kelfala'!L33","v":1},{"$f":"'Iconic - Vid'!L33","v":1},{"$f":"'Iconic - Dr Leah Breen'!L33","v":3}]
[null,null,null,null,null,null,null,null,null,null,null,null,null,"Retroactively prepare actions",null,null,null,null,null,null,null,"Spying",{"$f":"'Iconic - Mace Hunter'!L34","v":1},{"$f":"'Iconic - Uurrk'!L34","v":1},{"$f":"'Iconic - Altani'!L34","v":1},{"$f":"'Iconic - Skegg'!L34","v":1},{"$f":"'Iconic - Kelfala'!L34","v":0},{"$f":"'Iconic - Vid'!L34","v":1},{"$f":"'Iconic - Dr Leah Breen'!L34","v":0}]
[null,null,null,null,null,null,null,null,null,null,null,null,null,"Team Focus (Reality Anchor):"]
[null,null,null,null,null,null,null,null,null,null,null,null,null,"Use Reality Anchor on multiple allies",null,null,null,null,null,null,"General Abilities"]
["Gear:",null,"Autochron (portable 1-man time machine)",null,null,null,null,null,null,null,null,null,null,"That's Gotta Hurt (Scuffling):",null,null,null,null,null,null,null,{"$f":"N13","v":"Athletics"},{"$f":"'Iconic - Mace Hunter'!S13","v":8},{"$f":"'Iconic - Uurrk'!S13","v":10},{"$f":"'Iconic - Altani'!S13","v":8},{"$f":"'Iconic - Skegg'!S13","v":8},{"$f":"'Iconic - Kelfala'!S13","v":8},{"$f":"'Iconic - Vid'!S13","v":8},{"$f":"'Iconic - Dr Leah Breen'!S13","v":3}]
[null,null,"Impersonator mesh (+3 Unobtrusiveness until drawing notice)",null,null,null,null,null,null,null,null,null,null,"Scuffling Pool spend = min base dmg",null,null,null,null,null,null,null,{"$f":"N14","v":"Burglary"},{"$f":"'Iconic - Mace Hunter'!S14","v":1},{"$f":"'Iconic - Uurrk'!S14","v":0},{"$f":"'Iconic - Altani'!S14","v":0},{"$f":"'Iconic - Skegg'!S14","v":1},{"$f":"'Iconic - Kelfala'!S14","v":0},{"$f":"'Iconic - Vid'!S14","v":3},{"$f":"'Iconic - Dr Leah Breen'!S14","v":3}]
[null,null,"MedKit (lets you use Medic skill effectively)",null,null,null,null,null,null,null,null,null,null,"Double Tap (Shooting):",null,null,null,null,null,null,null,"Chronal Stability**",{"$f":"'Iconic - Mace Hunter'!S15","v":6},{"$f":"'Iconic - Uurrk'!S15","v":8},{"$f":"'Iconic - Altani'!S15","v":7},{"$f":"'Iconic - Skegg'!S15","v":8},{"$f":"'Iconic - Kelfala'!S15","v":7},{"$f":"'Iconic - Vid'!S15","v":6},{"$f":"'Iconic - Dr Leah Breen'!S15","v":9}]
[null,null,"MEM-tags (for memory modification of unconscious subjects)",null,null,null,null,null,null,null,null,null,null,"Shoot 2nd foe at +2 Difficulty",null,null,null,null,null,null,null,"Disguise",{"$f":"'Iconic - Mace Hunter'!S16","v":3},{"$f":"'Iconic - Uurrk'!S16","v":8},{"$f":"'Iconic - Altani'!S16","v":3},{"$f":"'Iconic - Skegg'!S16","v":6},{"$f":"'Iconic - Kelfala'!S16","v":3},{"$f":"'Iconic - Vid'!S16","v":3},{"$f":"'Iconic - Dr Leah Breen'!S16","v":3}]
[null,null,"PaciFist disruptor (Close range, Stun 5, subtle)",null,null,null,null,null,null,null,null,null,null,"Rapid Deployment (Tinkering):",null,null,null,null,null,null,null,"Health**",{"$f":"'Iconic - Mace Hunter'!S17","v":8},{"$f":"'Iconic - Uurrk'!S17","v":10},{"$f":"'Iconic - Altani'!S17","v":10},{"$f":"'Iconic - Skegg'!S17","v":10},{"$f":"'Iconic - Kelfala'!S17","v":8},{"$f":"'Iconic - Vid'!S17","v":12},{"$f":"'Iconic - Dr Leah Breen'!S17","v":7}]
[null,null,"Tether (holographic PDA linked to subdermal earbud)",null,null,null,null,null,null,null,null,null,null,"Complete Tinkering tasks in 1/2 the time",null,null,null,null,null,null,null,"Medic",{"$f":"'Iconic - Mace Hunter'!S18","v":0},{"$f":"'Iconic - Uurrk'!S18","v":0},{"$f":"'Iconic - Altani'!S18","v":3},{"$f":"'Iconic - Skegg'!S18","v":1},{"$f":"'Iconic - Kelfala'!S18","v":0},{"$f":"'Iconic - Vid'!S18","v":4},{"$f":"'Iconic - Dr Leah Breen'!S18","v":6}]
[null,null,"TimeWatch Uniform (chronomorphic, armor 1)",null,null,null,null,null,null,null,null,null,null,"Nothing to See Here (Unobtr.):",null,null,null,null,null,null,null,"Preparedness",{"$f":"'Iconic - Mace Hunter'!S19","v":5},{"$f":"'Iconic - Uurrk'!S19","v":5},{"$f":"'Iconic - Altani'!S19","v":4},{"$f":"'Iconic - Skegg'!S19","v":4},{"$f":"'Iconic - Kelfala'!S19","v":8},{"$f":"'Iconic - Vid'!S19","v":5},{"$f":"'Iconic - Dr Leah Breen'!S19","v":1}]
[null,null,"Translator (instant, 2-way, unnoticeable)",null,null,null,null,null,null,null,null,null,null,"Helps the whole group hide/sneak",null,null,null,null,null,null,null,"Reality Anchor",{"$f":"'Iconic - Mace Hunter'!S20","v":2},{"$f":"'Iconic - Uurrk'!S20","v":4},{"$f":"'Iconic - Altani'!S20","v":3},{"$f":"'Iconic - Skegg'!S20","v":3},{"$f":"'Iconic - Kelfala'!S20","v":3},{"$f":"'Iconic - Vid'!S20","v":0},{"$f":"'Iconic - Dr Leah Breen'!S20","v":6}]
[null,null,null,null,null,null,null,null,null,null,null,null,null,"Keep Up (Vehicles):",null,null,null,null,null,null,null,"Scuffling",{"$f":"'Iconic - Mace Hunter'!S21","v":8},{"$f":"'Iconic - Uurrk'!S21","v":10},{"$f":"'Iconic - Altani'!S21","v":8},{"$f":"'Iconic - Skegg'!S21","v":8},{"$f":"'Iconic - Kelfala'!S21","v":3},{"$f":"'Iconic - Vid'!S21","v":8},{"$f":"'Iconic - Dr Leah Breen'!S21","v":2}]
[null,null,null,null,null,null,null,null,null,null,null,null,null,"Improved piggyback of Vehicle tests",null,null,null,null,null,null,null,"Shooting",{"$f":"'Iconic - Mace Hunter'!S22","v":8},{"$f":"'Iconic - Uurrk'!S22","v":1},{"$f":"'Iconic - Altani'!S22","v":8},{"$f":"'Iconic - Skegg'!S22","v":6},{"$f":"'Iconic - Kelfala'!S22","v":8},{"$f":"'Iconic - Vid'!S22","v":4},{"$f":"'Iconic - Dr Leah Breen'!S22","v":5}]
[null,null,null,null,null,null,null,null,null,null,null,null,null,null,null,null,null,null,null,null,null,"Tinkering",{"$f":"'Iconic - Mace Hunter'!S23","v":3},{"$f":"'Iconic - Uurrk'!S23","v":0},{"$f":"'Iconic - Altani'!S23","v":0},{"$f":"'Iconic - Skegg'!S23","v":1},{"$f":"'Iconic - Kelfala'!S23","v":3},{"$f":"'Iconic - Vid'!S23","v":3},{"$f":"'Iconic - Dr Leah Breen'!S23","v":8}]
[null,null,null,null,null,null,null,null,null,null,null,null,null,null,null,null,null,null,null,null,null,"Unobtrusiveness",{"$f":"'Iconic - Mace Hunter'!S24","v":8},{"$f":"'Iconic - Uurrk'!S24","v":3},{"$f":"'Iconic - Altani'!S24","v":3},{"$f":"'Iconic - Skegg'!S24","v":5},{"$f":"'Iconic - Kelfala'!S24","v":3},{"$f":"'Iconic - Vid'!S24","v":3},{"$f":"'Iconic - Dr Leah Breen'!S24","v":4}]
[null,null,null,null,null,null,null,null,null,null,null,null,null,null,null,null,null,null,null,null,null,"Vehicles",{"$f":"'Iconic - Mace Hunter'!S25","v":2},{"$f":"'Iconic - Uurrk'!S25","v":3},{"$f":"'Iconic - Altani'!S25","v":5},{"$f":"'Iconic - Skegg'!S25","v":1},{"$f":"'Iconic - Kelfala'!S25","v":8},{"$f":"'Iconic - Vid'!S25","v":3},{"$f":"'Iconic - Dr Leah Breen'!S25","v":5}]
[]
[]
[]
[null,null,"Altruism"]
[null,null,"Ambition"]
[null,null,"Atonement"]
[null,null,"Curiosity"]
[null,null,"Duty"]
[null,null,"Experimenter"]
[null,null,"Exploration"]
[null,null,"Former Enemy"]
[null,null,"Hubris"]
[null,null,"Lovestruck"]
[null,null,"Nowhere Else to Go"]
[null,null,"Risk-taker"]
[null,null,"Thrill-Seeker"]
[null,null,"Vengeance"]
[]
[]
[]
[null,null,"© 2014 by Kevin Kulp."]
[null,null,"v.",0.53800000000000003]

{"sheet":"Export Data","index":1,"n_rows":5,"n_cols":11,"rows_kept":5,"cut":false,"hidden":false,"merged":[]}
["a"]
["b"]
["c"]
["d",null,null,null,null,null,null,null,null,null,"h"]
[null,null,null,null,null,null,null,null,null,null,"dfsdhsd"]

{"sheet":"blank character sheet","index":2,"n_rows":52,"n_cols":27,"rows_kept":52,"cut":false,"hidden":false,"merged":[[49,13,49,18],[50,13,50,18],[51,13,51,18],[52,13,52,18],[45,13,45,18],[46,13,46,18],[47,13,47,18],[48,13,48,18],[41,13,41,18],[42,13,42,18],[43,13,43,18],[44,13,44,18],[37,13,37,18],[38,13,38,18],[39,13,39,18],[40,13,40,18],[33,13,33,18],[34,13,34,18],[35,13,35,18],[36,13,36,18],[29,13,29,18],[30,13,30,18],[31,13,31,18],[32,13,32,18],[27,13,27,18],[0,15,0,18],[0,10,0,13],[10,0,10,11],[10,13,10,18],[38,2,38,12],[39,2,39,12],[0,3,0,8],[2,3,2,8],[3,3,3,8],[4,3,4,8],[5,3,5,8],[6,3,6,8],[37,2,37,12],[36,2,36,12],[48,2,48,12],[49,2,49,12],[40,2,40,12],[44,2,44,12],[45,2,45,12],[46,2,46,12],[43,2,43,12],[42,2,42,12],[41,2,41,12],[47,2,47,12]]}
["Name:",null,null,null,null,null,null,null,null,null,"Chronal Stability",null,null,null,null,"Health"]
[null,null,null,null,null,null,null,null,null,null,{"$f":"IF($N$9>=15,15,\"\")","v":""},{"$f":"IF($N$9>=14,14,\"\")","v":""},{"$f":"IF($N$9>=13,13,\"\")","v":""},{"$f":"IF($N$9>=12,12,\"\")","v":""},null,{"$f":"IF($S$9>=15,15,\"\")","v":""},{"$f":"IF($S$9>=14,14,\"\")","v":""},{"$f":"IF($S$9>=13,13,\"\")","v":""},{"$f":"IF($S$9>=12,12,\"\")","v":""}]
["Nationality:",null,null,null,null,null,null,null,null,null,{"$f":"IF($N$9>=11,11,\"\")","v":""},{"$f":"IF($N$9>=10,10,\"\")","v":""},{"$f":"IF($N$9>=9,9,\"\")","v":""},{"$f":"IF($N$9>=8,8,\"\")","v":""},null,{"$f":"IF($S$9>=11,11,\"\")","v":""},{"$f":"IF($S$9>=10,10,\"\")","v":""},{"$f":"IF($S$9>=9,9,\"\")","v":""},{"$f":"IF($S$9>=8,8,\"\")","v":""}]
["Origin Time:",null,null,null,null,null,null,null,null,null,{"$f":"IF($N$9>=7,7,\"\")","v":""},6,5,4,null,{"$f":"IF($S$9>=7,7,\"\")","v":""},6,5,4]
["Profession: ",null,null,null,null,null,null,null,null,null,3,2,1,0,null,3,2,1,0]
["Age:",null,null,null,null,null,null,null,null,null,-1,-2,-3,-4,null,-1,-2,-3,-4]
["Drive:",null,null,null,null,null,null,null,null,null,-5,-6,-7,-8,null,-5,-6,-7,-8,null,null,null,null,null,"XP - "]
[null,null,null,null,null,null,null,null,null,null,-9,-10,-11,-12,null,-9,-10,-11,-12,null,null,null,null,null,"Extra"]
["Hit Threshold:",null,null,{"$f":"IF(S13>7,4,3)","v":3},null,"Armor:",null,{"$f":"IF(C43='Summary of Points'!C48,1,0)","v":1},null,null,"Max: ",null,null,{"$f":"S15","v":6},null,"Max: ",null,null,{"$f":"S17","v":6},null,null,null,null,null,"Points?"]
[]
["INVESTIGATIVE ABILITIES",null,null,null,null,null,null,null,null,null,null,null,null,"GENERAL ABILITIES",null,null,null,null,null,null,null,"Investigative:",null,null,0,{"$f":"'Summary of Points'!F4+Y11","v":16},{"$f":"SUM(E15:E24)+SUM(L14:L36)-1","v":0}]
[null,null,null,null,null,null,null,null,null,null,null,null,null,null,null,null,null,null,null,null,null,"General:",null,null,0,{"$f":"'Summary of Points'!E5+Y12","v":50},{"$f":"SUM(S12:S28)-12","v":0}]
["Academic Abilities",null,null,null,null,null,"Interpersonal Abilities ",null,null,null,null,null,null,"Athletics"]
[null,null,null,null,null,null,null,null,null,null,null,null,null,"Burglary"]
["Anthropology",null,null,null,null,null,"Authority",null,null,null,null,null,null,"Chronal Stability**",null,null,null,null,6]
["Architecture ",null,null,null,null,null,"Bureaucracy",null,null,null,null,null,null,"Disguise"]
["History (Ancient)",null,null,null,null,null,"Charm",null,null,null,null,null,null,"Health**",null,null,null,null,6]
["History (Contemporary)",null,null,null,null,null,"Falsehood Detection",null,null,null,null,null,null,"Medic"]
["History (Future)",null,null,null,null,null,"High Society ",null,null,null,null,null,null,"Preparedness"]
["Military Tactics",null,null,null,null,null,"Intimidation",null,null,null,null,null,null,"Reality Anchor"]
["Research",null,null,null,null,null,"Reassurance",null,null,null,null,null,null,"Scuffling"]
["Timecraft*",null,null,null,1,null,"Streetwise ",null,null,null,null,null,null,"Shooting"]
["Trivia",null,null,null,null,null,"Taunt",null,null,null,null,null,null,"Tinkering"]
[null,null,null,null,null,null,null,null,null,null,null,null,null,"Unobtrusiveness"]
[null,null,null,null,null,null,"Technical Abilities",null,null,null,null,null,null,"Vehicles"]
[]
["Extra Investigative points?",null,null,null,null,null,"Forgery"]
[null,null,null,null,null,null,"Hacking",null,null,null,null,null,null,"Special Boosters:"]
[null,null,{"$f":"Z11-AA11","v":16},null,null,null,"Medical Expertise"]
[null,null,null,null,null,null,"Notice",null,null,null,null,null,null,{"$f":"IF(S13>7,'Summary of Points'!N30,\"\")","v":""}]
["Extra General points?",null,null,null,null,null,"Outdoor Survival ",null,null,null,null,null,null,{"$f":"IF(S13>7,'Summary of Points'!N31,\"\")","v":""}]
[null,null,null,null,null,null,"Paradox Prevention",null,null,null,null,null,null,{"$f":"IF(S14>7,'Summary of Points'!N32,\"\")","v":""}]
[null,null,{"$f":"Z12-AA12","v":50},null,null,null,"Science!",null,null,null,null,null,null,{"$f":"IF(S14>7,'Summary of Points'!N33,\"\")","v":""}]
[null,null,null,null,null,null,"Spying",null,null,null,null,null,null,{"$f":"IF(S16>7,'Summary of Points'!N34,\"\")","v":""}]
[null,null,null,null,null,null,null,null,null,null,null,null,null,{"$f":"IF(S16>7,'Summary of Points'!N35,\"\")","v":""}]
[null,null,null,null,null,null,null,null,null,null,null,null,null,{"$f":"IF(S18>7,'Summary of Points'!N36,\"\")","v":""}]
["Gear:",null,{"$f":"'Summary of Points'!C42","v":"Autochron (portable 1-man time machine)"},null,null,null,null,null,null,null,null,null,null,{"$f":"IF(S18>7,'Summary of Points'!N37,\"\")","v":""}]
[null,null,{"$f":"'Summary of Points'!C43","v":"Impersonator mesh (+3 Unobtrusiveness until drawing notice)"},null,null,null,null,null,null,null,null,null,null,{"$f":"IF(S19>7,'Summary of Points'!N38,\"\")","v":""}]
[null,null,{"$f":"'Summary of Points'!C44","v":"MedKit (lets you use Medic skill effectively)"},null,null,null,null,null,null,null,null,null,null,{"$f":"IF(S19>7,'Summary of Points'!N39,\"\")","v":""}]
[null,null,{"$f":"'Summary of Points'!C45","v":"MEM-tags (for memory modification of unconscious subjects)"},null,null,null,null,null,null,null,null,null,null,{"$f":"IF(S20>7,'Summary of Points'!N40,\"\")","v":""}]
[null,null,{"$f":"'Summary of Points'!C46","v":"PaciFist disruptor (Close range, Stun 5, subtle)"},null,null,null,null,null,null,null,null,null,null,{"$f":"IF(S20>7,'Summary of Points'!N41,\"\")","v":""}]
[null,null,{"$f":"'Summary of Points'!C47","v":"Tether (holographic PDA linked to subdermal earbud)"},null,null,null,null,null,null,null,null,null,null,{"$f":"IF(S21>7,'Summary of Points'!N42,\"\")","v":""}]
[null,null,{"$f":"'Summary of Points'!C48","v":"TimeWatch Uniform (chronomorphic, armor 1)"},null,null,null,null,null,null,null,null,null,null,{"$f":"IF(S21>7,'Summary of Points'!N43,\"\")","v":""}]
[null,null,{"$f":"'Summary of Points'!C49","v":"Translator (instant, 2-way, unnoticeable)"},null,null,null,null,null,null,null,null,null,null,{"$f":"IF(S22>7,'Summary of Points'!N44,\"\")","v":""}]
[null,null,null,null,null,null,null,null,null,null,null,null,null,{"$f":"IF(S22>7,'Summary of Points'!N45,\"\")","v":""}]
[null,null,null,null,null,null,null,null,null,null,null,null,null,{"$f":"IF(S23>7,'Summary of Points'!N46,\"\")","v":""}]
[null,null,null,null,null,null,null,null,null,null,null,null,null,{"$f":"IF(S23>7,'Summary of Points'!N47,\"\")","v":""}]
[null,null,null,null,null,null,null,null,null,null,null,null,null,{"$f":"IF(S24>7,'Summary of Points'!N48,\"\")","v":""}]
[null,null,null,null,null,null,null,null,null,null,null,null,null,{"$f":"IF(S24>7,'Summary of Points'!N49,\"\")","v":""}]
[null,null,null,null,null,null,null,null,null,null,null,null,null,{"$f":"IF(S25>7,'Summary of Points'!N50,\"\")","v":""}]
["* Start with 1 point free",null,null,null,null,null,"Each spent stitch refreshes 2 pts from 1 pool",null,null,null,null,null,null,{"$f":"IF(S25>7,'Summary of Points'!N51,\"\")","v":""}]
["** Start with 6 points free",null,null,null,null,null,"Do cool stuff, earn more stitches! (max 3)"]

{"sheet":"Analyst template","index":3,"n_rows":52,"n_cols":27,"rows_kept":52,"cut":false,"hidden":false,"merged":[[48,2,48,12],[49,2,49,12],[40,2,40,12],[44,2,44,12],[45,2,45,12],[46,2,46,12],[43,2,43,12],[42,2,42,12],[41,2,41,12],[47,2,47,12],[36,2,36,12],[38,2,38,12],[39,2,39,12],[0,3,0,8],[2,3,2,8],[3,3,3,8],[4,3,4,8],[5,3,5,8],[6,3,6,8],[37,2,37,12],[35,13,35,18],[27,13,27,18],[0,15,0,18],[0,10,0,13],[10,0,10,11],[10,13,10,18],[29,13,29,18],[30,13,30,18],[31,13,31,18],[32,13,32,18],[33,13,33,18],[34,13,34,18],[47,13,47,18],[36,13,36,18],[37,13,37,18],[38,13,38,18],[39,13,39,18],[40,13,40,18],[41,13,41,18],[42,13,42,18],[43,13,43,18],[44,13,44,18],[45,13,45,18],[46,13,46,18],[48,13,48,18],[49,13,49,18],[50,13,50,18],[51,13,51,18],[52,13,52,18]]}
["Name:",null,null,"Analyst",null,null,null,null,null,null,"Chronal Stability",null,null,null,null,"Health"]
[null,null,null,null,null,null,null,null,null,null,{"$f":"IF($N$9>=15,15,\"\")","v":""},{"$f":"IF($N$9>=14,14,\"\")","v":""},{"$f":"IF($N$9>=13,13,\"\")","v":""},{"$f":"IF($N$9>=12,12,\"\")","v":""},null,{"$f":"IF($S$9>=15,15,\"\")","v":""},{"$f":"IF($S$9>=14,14,\"\")","v":""},{"$f":"IF($S$9>=13,13,\"\")","v":""},{"$f":"IF($S$9>=12,12,\"\")","v":""}]
["Nationality:",null,null,null,null,null,null,null,null,null,{"$f":"IF($N$9>=11,11,\"\")","v":""},{"$f":"IF($N$9>=10,10,\"\")","v":""},{"$f":"IF($N$9>=9,9,\"\")","v":""},{"$f":"IF($N$9>=8,8,\"\")","v":8},null,{"$f":"IF($S$9>=11,11,\"\")","v":""},{"$f":"IF($S$9>=10,10,\"\")","v":""},{"$f":"IF($S$9>=9,9,\"\")","v":""},{"$f":"IF($S$9>=8,8,\"\")","v":8}]
["Origin Time:",null,null,null,null,null,null,null,null,null,{"$f":"IF($N$9>=7,7,\"\")","v":7},6,5,4,null,{"$f":"IF($S$9>=7,7,\"\")","v":7},6,5,4]
["Profession: ",null,null,"Intelligence Analyst",null,null,null,null,null,null,3,2,1,0,null,3,2,1,0]
["Age:",null,null,null,null,null,null,null,null,null,-1,-2,-3,-4,null,-1,-2,-3,-4]
["Drive:",null,null,null,null,null,null,null,null,null,-5,-6,-7,-8,null,-5,-6,-7,-8,null,null,null,null,null,"XP - "]
[null,null,null,null,null,null,null,null,null,null,-9,-10,-11,-12,null,-9,-10,-11,-12,null,null,null,null,null,"Extra"]
["Hit Threshold:",null,null,{"$f":"IF(S13>7,4,3)","v":3},null,"Armor:",null,{"$f":"IF(C43='Summary of Points'!C48,1,0)","v":1},null,null,"Max: ",null,null,{"$f":"S15","v":8},null,"Max: ",null,null,{"$f":"S17","v":8},null,null,null,null,null,"Points?"]
[]
["INVESTIGATIVE ABILITIES",null,null,null,null,null,null,null,null,null,null,null,null,"GENERAL ABILITIES",null,null,null,null,null,null,null,"Investigative:",null,null,0,{"$f":"'Summary of Points'!F4+Y11","v":16},{"$f":"SUM(E15:E24)+SUM(L14:L36)-1","v":14}]
[null,null,null,null,null,null,null,null,null,null,null,null,null,null,null,null,null,null,null,null,null,"General:",null,null,0,{"$f":"'Summary of Points'!E5+Y12","v":50},{"$f":"SUM(S12:S28)-12","v":50}]
["Academic Abilities",null,null,null,null,null,"Interpersonal Abilities ",null,null,null,null,null,null,"Athletics",null,null,null,null,5]
[null,null,null,null,null,null,null,null,null,null,null,null,null,"Burglary",null,null,null,null,3]
["Anthropology",null,null,null,1,null,"Authority",null,null,null,null,null,null,"Chronal Stability**",null,null,null,null,8]
["Architecture ",null,null,null,null,null,"Bureaucracy",null,null,null,null,1,null,"Disguise",null,null,null,null,5]
["History (Ancient)",null,null,null,1,null,"Charm",null,null,null,null,1,null,"Health**",null,null,null,null,8]
["History (Contemporary)",null,null,null,1,null,"Falsehood Detection",null,null,null,null,1,null,"Medic",null,null,null,null,2]
["History (Future)",null,null,null,1,null,"High Society ",null,null,null,null,null,null,"Preparedness",null,null,null,null,8]
["Military Tactics",null,null,null,1,null,"Intimidation",null,null,null,null,null,null,"Reality Anchor",null,null,null,null,6]
["Research",null,null,null,2,null,"Reassurance",null,null,null,null,1,null,"Scuffling"]
["Timecraft*",null,null,null,1,null,"Streetwise ",null,null,null,null,null,null,"Shooting",null,null,null,null,4]
["Trivia",null,null,null,null,null,"Taunt",null,null,null,null,null,null,"Tinkering",null,null,null,null,3]
[null,null,null,null,null,null,null,null,null,null,null,null,null,"Unobtrusiveness",null,null,null,null,5]
[null,null,null,null,null,null,"Technical Abilities",null,null,null,null,null,null,"Vehicles",null,null,null,null,5]
[]
["Extra Investigative points?",null,null,null,null,null,"Forgery",null,null,null,null,1]
[null,null,null,null,null,null,"Hacking",null,null,null,null,null,null,"Special Boosters:"]
[null,null,{"$f":"Z11-AA11","v":2},null,null,null,"Medical Expertise"]
[null,null,null,null,null,null,"Notice",null,null,null,null,1,null,{"$f":"IF(S13>7,'Summary of Points'!N30,\"\")","v":""}]
["Extra General points?",null,null,null,null,null,"Outdoor Survival ",null,null,null,null,null,null,{"$f":"IF(S13>7,'Summary of Points'!N31,\"\")","v":""}]
[null,null,null,null,null,null,"Paradox Prevention",null,null,null,null,1,null,{"$f":"IF(S14>7,'Summary of Points'!N32,\"\")","v":""}]
[null,null,{"$f":"Z12-AA12","v":0},null,null,null,"Science!",null,null,null,null,null,null,{"$f":"IF(S14>7,'Summary of Points'!N33,\"\")","v":""}]
[null,null,null,null,null,null,"Spying",null,null,null,null,null,null,{"$f":"IF(S16>7,'Summary of Points'!N34,\"\")","v":""}]
[null,null,null,null,null,null,null,null,null,null,null,null,null,{"$f":"IF(S16>7,'Summary of Points'!N35,\"\")","v":""}]
[null,null,null,null,null,null,null,null,null,null,null,null,null,{"$f":"IF(S18>7,'Summary of Points'!N36,\"\")","v":""}]
["Gear:",null,{"$f":"'Summary of Points'!C42","v":"Autochron (portable 1-man time machine)"},null,null,null,null,null,null,null,null,null,null,{"$f":"IF(S18>7,'Summary of Points'!N37,\"\")","v":""}]
[null,null,{"$f":"'Summary of Points'!C43","v":"Impersonator mesh (+3 Unobtrusiveness until drawing notice)"},null,null,null,null,null,null,null,null,null,null,{"$f":"IF(S19>7,'Summary of Points'!N38,\"\")","v":"Flashback (Preparedness):"}]
[null,null,{"$f":"'Summary of Points'!C44","v":"MedKit (lets you use Medic skill effectively)"},null,null,null,null,null,null,null,null,null,null,{"$f":"IF(S19>7,'Summary of Points'!N39,\"\")","v":"Retroactively prepare actions"}]
[null,null,{"$f":"'Summary of Points'!C45","v":"MEM-tags (for memory modification of unconscious subjects)"},null,null,null,null,null,null,null,null,null,null,{"$f":"IF(S20>7,'Summary of Points'!N40,\"\")","v":""}]
[null,null,{"$f":"'Summary of Points'!C46","v":"PaciFist disruptor (Close range, Stun 5, subtle)"},null,null,null,null,null,null,null,null,null,null,{"$f":"IF(S20>7,'Summary of Points'!N41,\"\")","v":""}]
[null,null,{"$f":"'Summary of Points'!C47","v":"Tether (holographic PDA linked to subdermal earbud)"},null,null,null,null,null,null,null,null,null,null,{"$f":"IF(S21>7,'Summary of Points'!N42,\"\")","v":""}]
[null,null,{"$f":"'Summary of Points'!C48","v":"TimeWatch Uniform (chronomorphic, armor 1)"},null,null,null,null,null,null,null,null,null,null,{"$f":"IF(S21>7,'Summary of Points'!N43,\"\")","v":""}]
[null,null,{"$f":"'Summary of Points'!C49","v":"Translator (instant, 2-way, unnoticeable)"},null,null,null,null,null,null,null,null,null,null,{"$f":"IF(S22>7,'Summary of Points'!N44,\"\")","v":""}]
[null,null,null,null,null,null,null,null,null,null,null,null,null,{"$f":"IF(S22>7,'Summary of Points'!N45,\"\")","v":""}]
[null,null,null,null,null,null,null,null,null,null,null,null,null,{"$f":"IF(S23>7,'Summary of Points'!N46,\"\")","v":""}]
[null,null,null,null,null,null,null,null,null,null,null,null,null,{"$f":"IF(S23>7,'Summary of Points'!N47,\"\")","v":""}]
[null,null,null,null,null,null,null,null,null,null,null,null,null,{"$f":"IF(S24>7,'Summary of Points'!N48,\"\")","v":""}]
[null,null,null,null,null,null,null,null,null,null,null,null,null,{"$f":"IF(S24>7,'Summary of Points'!N49,\"\")","v":""}]
[null,null,null,null,null,null,null,null,null,null,null,null,null,{"$f":"IF(S25>7,'Summary of Points'!N50,\"\")","v":""}]
["* Start with 1 point free",null,null,null,null,null,"Each spent stitch refreshes 2 pts from 1 pool",null,null,null,null,null,null,{"$f":"IF(S25>7,'Summary of Points'!N51,\"\")","v":""}]
["** Start with 6 points free",null,null,null,null,null,"Do cool stuff, earn more stitches! (max 3)"]

{"sheet":"Chameleon template","index":4,"n_rows":52,"n_cols":27,"rows_kept":52,"cut":false,"hidden":false,"merged":[[48,2,48,12],[49,2,49,12],[40,2,40,12],[44,2,44,12],[45,2,45,12],[46,2,46,12],[43,2,43,12],[42,2,42,12],[41,2,41,12],[47,2,47,12],[36,2,36,12],[38,2,38,12],[39,2,39,12],[0,3,0,8],[2,3,2,8],[3,3,3,8],[4,3,4,8],[5,3,5,8],[6,3,6,8],[37,2,37,12],[35,13,35,18],[27,13,27,18],[0,15,0,18],[0,10,0,13],[10,0,10,11],[10,13,10,18],[29,13,29,18],[30,13,30,18],[31,13,31,18],[32,13,32,18],[33,13,33,18],[34,13,34,18],[47,13,47,18],[36,13,36,18],[37,13,37,18],[38,13,38,18],[39,13,39,18],[40,13,40,18],[41,13,41,18],[42,13,42,18],[43,13,43,18],[44,13,44,18],[45,13,45,18],[46,13,46,18],[48,13,48,18],[49,13,49,18],[50,13,50,18],[51,13,51,18],[52,13,52,18]]}
["Name:",null,null,"Chameleon",null,null,null,null,null,null,"Chronal Stability",null,null,null,null,"Health"]
[null,null,null,null,null,null,null,null,null,null,{"$f":"IF($N$9>=15,15,\"\")","v":""},{"$f":"IF($N$9>=14,14,\"\")","v":""},{"$f":"IF($N$9>=13,13,\"\")","v":""},{"$f":"IF($N$9>=12,12,\"\")","v":""},null,{"$f":"IF($S$9>=15,15,\"\")","v":""},{"$f":"IF($S$9>=14,14,\"\")","v":""},{"$f":"IF($S$9>=13,13,\"\")","v":""},{"$f":"IF($S$9>=12,12,\"\")","v":""}]
["Nationality:",null,null,null,null,null,null,null,null,null,{"$f":"IF($N$9>=11,11,\"\")","v":""},{"$f":"IF($N$9>=10,10,\"\")","v":""},{"$f":"IF($N$9>=9,9,\"\")","v":""},{"$f":"IF($N$9>=8,8,\"\")","v":""},null,{"$f":"IF($S$9>=11,11,\"\")","v":""},{"$f":"IF($S$9>=10,10,\"\")","v":""},{"$f":"IF($S$9>=9,9,\"\")","v":9},{"$f":"IF($S$9>=8,8,\"\")","v":8}]
["Origin Time:",null,null,null,null,null,null,null,null,null,{"$f":"IF($N$9>=7,7,\"\")","v":""},6,5,4,null,{"$f":"IF($S$9>=7,7,\"\")","v":7},6,5,4]
["Profession: ",null,null,"Infiltration & Disguise expert",null,null,null,null,null,null,3,2,1,0,null,3,2,1,0]
["Age:",null,null,null,null,null,null,null,null,null,-1,-2,-3,-4,null,-1,-2,-3,-4]
["Drive:",null,null,null,null,null,null,null,null,null,-5,-6,-7,-8,null,-5,-6,-7,-8,null,null,null,null,null,"XP - "]
[null,null,null,null,null,null,null,null,null,null,-9,-10,-11,-12,null,-9,-10,-11,-12,null,null,null,null,null,"Extra"]
["Hit Threshold:",null,null,{"$f":"IF(S13>7,4,3)","v":4},null,"Armor:",null,{"$f":"IF(C43='Summary of Points'!C48,1,0)","v":1},null,null,"Max: ",null,null,{"$f":"S15","v":6},null,"Max: ",null,null,{"$f":"S17","v":9},null,null,null,null,null,"Points?"]
[]
["INVESTIGATIVE ABILITIES",null,null,null,null,null,null,null,null,null,null,null,null,"GENERAL ABILITIES",null,null,null,null,null,null,null,"Investigative:",null,null,0,{"$f":"'Summary of Points'!F4+Y11","v":16},{"$f":"SUM(E15:E24)+SUM(L14:L36)-1","v":14}]
[null,null,null,null,null,null,null,null,null,null,null,null,null,null,null,null,null,null,null,null,null,"General:",null,null,0,{"$f":"'Summary of Points'!E5+Y12","v":50},{"$f":"SUM(S12:S28)-12","v":50}]
["Academic Abilities",null,null,null,null,null,"Interpersonal Abilities ",null,null,null,null,null,null,"Athletics",null,null,null,null,8]
[null,null,null,null,null,null,null,null,null,null,null,null,null,"Burglary",null,null,null,null,8]
["Anthropology",null,null,null,1,null,"Authority",null,null,null,null,1,null,"Chronal Stability**",null,null,null,null,6]
["Architecture ",null,null,null,1,null,"Bureaucracy",null,null,null,null,null,null,"Disguise",null,null,null,null,8]
["History (Ancient)",null,null,null,null,null,"Charm",null,null,null,null,1,null,"Health**",null,null,null,null,9]
["History (Contemporary)",null,null,null,1,null,"Falsehood Detection",null,null,null,null,1,null,"Medic",null,null,null,null,1]
["History (Future)",null,null,null,null,null,"High Society ",null,null,null,null,1,null,"Preparedness",null,null,null,null,4]
["Military Tactics",null,null,null,null,null,"Intimidation",null,null,null,null,null,null,"Reality Anchor",null,null,null,null,2]
["Research",null,null,null,null,null,"Reassurance",null,null,null,null,1,null,"Scuffling",null,null,null,null,3]
["Timecraft*",null,null,null,1,null,"Streetwise ",null,null,null,null,1,null,"Shooting",null,null,null,null,6]
["Trivia",null,null,null,1,null,"Taunt",null,null,null,null,null,null,"Tinkering",null,null,null,null,1]
[null,null,null,null,null,null,null,null,null,null,null,null,null,"Unobtrusiveness",null,null,null,null,3]
[null,null,null,null,null,null,"Technical Abilities",null,null,null,null,null,null,"Vehicles",null,null,null,null,3]
[]
["Extra Investigative points?",null,null,null,null,null,"Forgery",null,null,null,null,1]
[null,null,null,null,null,null,"Hacking",null,null,null,null,null,null,"Special Boosters:"]
[null,null,{"$f":"Z11-AA11","v":2},null,null,null,"Medical Expertise"]
[null,null,null,null,null,null,"Notice",null,null,null,null,1,null,{"$f":"IF(S13>7,'Summary of Points'!N30,\"\")","v":"Hard to Hit (Athletics):"}]
["Extra General points?",null,null,null,null,null,"Outdoor Survival ",null,null,null,null,null,null,{"$f":"IF(S13>7,'Summary of Points'!N31,\"\")","v":"Hit Threshold = 4, not 3"}]
[null,null,null,null,null,null,"Paradox Prevention",null,null,null,null,1,null,{"$f":"IF(S14>7,'Summary of Points'!N32,\"\")","v":"Open Sesame (Burglary):"}]
[null,null,{"$f":"Z12-AA12","v":0},null,null,null,"Science!",null,null,null,null,null,null,{"$f":"IF(S14>7,'Summary of Points'!N33,\"\")","v":"Easily open simple locks"}]
[null,null,null,null,null,null,"Spying",null,null,null,null,1,null,{"$f":"IF(S16>7,'Summary of Points'!N34,\"\")","v":"Don't I Know You? (Disguise):"}]
[null,null,null,null,null,null,null,null,null,null,null,null,null,{"$f":"IF(S16>7,'Summary of Points'!N35,\"\")","v":"Fool someone into thinking you've met"}]
[null,null,null,null,null,null,null,null,null,null,null,null,null,{"$f":"IF(S18>7,'Summary of Points'!N36,\"\")","v":""}]
["Gear:",null,{"$f":"'Summary of Points'!C42","v":"Autochron (portable 1-man time machine)"},null,null,null,null,null,null,null,null,null,null,{"$f":"IF(S18>7,'Summary of Points'!N37,\"\")","v":""}]
[null,null,{"$f":"'Summary of Points'!C43","v":"Impersonator mesh (+3 Unobtrusiveness until drawing notice)"},null,null,null,null,null,null,null,null,null,null,{"$f":"IF(S19>7,'Summary of Points'!N38,\"\")","v":""}]
[null,null,{"$f":"'Summary of Points'!C44","v":"MedKit (lets you use Medic skill effectively)"},null,null,null,null,null,null,null,null,null,null,{"$f":"IF(S19>7,'Summary of Points'!N39,\"\")","v":""}]
[null,null,{"$f":"'Summary of Points'!C45","v":"MEM-tags (for memory modification of unconscious subjects)"},null,null,null,null,null,null,null,null,null,null,{"$f":"IF(S20>7,'Summary of Points'!N40,\"\")","v":""}]
[null,null,{"$f":"'Summary of Points'!C46","v":"PaciFist disruptor (Close range, Stun 5, subtle)"},null,null,null,null,null,null,null,null,null,null,{"$f":"IF(S20>7,'Summary of Points'!N41,\"\")","v":""}]
[null,null,{"$f":"'Summary of Points'!C47","v":"Tether (holographic PDA linked to subdermal earbud)"},null,null,null,null,null,null,null,null,null,null,{"$f":"IF(S21>7,'Summary of Points'!N42,\"\")","v":""}]
[null,null,{"$f":"'Summary of Points'!C48","v":"TimeWatch Uniform (chronomorphic, armor 1)"},null,null,null,null,null,null,null,null,null,null,{"$f":"IF(S21>7,'Summary of Points'!N43,\"\")","v":""}]
[null,null,{"$f":"'Summary of Points'!C49","v":"Translator (instant, 2-way, unnoticeable)"},null,null,null,null,null,null,null,null,null,null,{"$f":"IF(S22>7,'Summary of Points'!N44,\"\")","v":""}]
[null,null,null,null,null,null,null,null,null,null,null,null,null,{"$f":"IF(S22>7,'Summary of Points'!N45,\"\")","v":""}]
[null,null,null,null,null,null,null,null,null,null,null,null,null,{"$f":"IF(S23>7,'Summary of Points'!N46,\"\")","v":""}]
[null,null,null,null,null,null,null,null,null,null,null,null,null,{"$f":"IF(S23>7,'Summary of Points'!N47,\"\")","v":""}]
[null,null,null,null,null,null,null,null,null,null,null,null,null,{"$f":"IF(S24>7,'Summary of Points'!N48,\"\")","v":""}]
[null,null,null,null,null,null,null,null,null,null,null,null,null,{"$f":"IF(S24>7,'Summary of Points'!N49,\"\")","v":""}]
[null,null,null,null,null,null,null,null,null,null,null,null,null,{"$f":"IF(S25>7,'Summary of Points'!N50,\"\")","v":""}]
["* Start with 1 point free",null,null,null,null,null,"Each spent stitch refreshes 2 pts from 1 pool",null,null,null,null,null,null,{"$f":"IF(S25>7,'Summary of Points'!N51,\"\")","v":""}]
["** Start with 6 points free",null,null,null,null,null,"Do cool stuff, earn more stitches! (max 3)"]

{"sheet":"Chronal expert template","index":5,"n_rows":52,"n_cols":27,"rows_kept":52,"cut":false,"hidden":false,"merged":[[49,13,49,18],[50,13,50,18],[51,13,51,18],[52,13,52,18],[45,13,45,18],[46,13,46,18],[47,13,47,18],[48,13,48,18],[41,13,41,18],[42,13,42,18],[43,13,43,18],[44,13,44,18],[37,13,37,18],[38,13,38,18],[39,13,39,18],[40,13,40,18],[33,13,33,18],[34,13,34,18],[35,13,35,18],[36,13,36,18],[29,13,29,18],[30,13,30,18],[31,13,31,18],[32,13,32,18],[27,13,27,18],[0,15,0,18],[0,10,0,13],[10,0,10,11],[10,13,10,18],[38,2,38,12],[39,2,39,12],[0,3,0,8],[2,3,2,8],[3,3,3,8],[4,3,4,8],[5,3,5,8],[6,3,6,8],[37,2,37,12],[36,2,36,12],[48,2,48,12],[49,2,49,12],[40,2,40,12],[44,2,44,12],[45,2,45,12],[46,2,46,12],[43,2,43,12],[42,2,42,12],[41,2,41,12],[47,2,47,12]]}
["Name:",null,null,"Chronal Expert",null,null,null,null,null,null,"Chronal Stability",null,null,null,null,"Health"]
[null,null,null,null,null,null,null,null,null,null,{"$f":"IF($N$9>=15,15,\"\")","v":""},{"$f":"IF($N$9>=14,14,\"\")","v":""},{"$f":"IF($N$9>=13,13,\"\")","v":""},{"$f":"IF($N$9>=12,12,\"\")","v":""},null,{"$f":"IF($S$9>=15,15,\"\")","v":""},{"$f":"IF($S$9>=14,14,\"\")","v":""},{"$f":"IF($S$9>=13,13,\"\")","v":""},{"$f":"IF($S$9>=12,12,\"\")","v":""}]
["Nationality:",null,null,null,null,null,null,null,null,null,{"$f":"IF($N$9>=11,11,\"\")","v":""},{"$f":"IF($N$9>=10,10,\"\")","v":""},{"$f":"IF($N$9>=9,9,\"\")","v":""},{"$f":"IF($N$9>=8,8,\"\")","v":8},null,{"$f":"IF($S$9>=11,11,\"\")","v":""},{"$f":"IF($S$9>=10,10,\"\")","v":""},{"$f":"IF($S$9>=9,9,\"\")","v":""},{"$f":"IF($S$9>=8,8,\"\")","v":8}]
["Origin Time:",null,null,null,null,null,null,null,null,null,{"$f":"IF($N$9>=7,7,\"\")","v":7},6,5,4,null,{"$f":"IF($S$9>=7,7,\"\")","v":7},6,5,4]
["Profession: ",null,null,"Chronal Expert",null,null,null,null,null,null,3,2,1,0,null,3,2,1,0]
["Age:",null,null,null,null,null,null,null,null,null,-1,-2,-3,-4,null,-1,-2,-3,-4]
["Drive:",null,null,null,null,null,null,null,null,null,-5,-6,-7,-8,null,-5,-6,-7,-8,null,null,null,null,null,"XP - "]
[null,null,null,null,null,null,null,null,null,null,-9,-10,-11,-12,null,-9,-10,-11,-12,null,null,null,null,null,"Extra"]
["Hit Threshold:",null,null,{"$f":"IF(S13>7,4,3)","v":3},null,"Armor:",null,{"$f":"IF(C43='Summary of Points'!C48,1,0)","v":1},null,null,"Max: ",null,null,{"$f":"S15","v":8},null,"Max: ",null,null,{"$f":"S17","v":8},null,null,null,null,null,"Points?"]
[]
["INVESTIGATIVE ABILITIES",null,null,null,null,null,null,null,null,null,null,null,null,"GENERAL ABILITIES",null,null,null,null,null,null,null,"Investigative:",null,null,0,{"$f":"'Summary of Points'!F4+Y11","v":16},{"$f":"SUM(E15:E24)+SUM(L14:L36)-1","v":14}]
[null,null,null,null,null,null,null,null,null,null,null,null,null,null,null,null,null,null,null,null,null,"General:",null,null,0,{"$f":"'Summary of Points'!E5+Y12","v":50},{"$f":"SUM(S12:S28)-12","v":50}]
["Academic Abilities",null,null,null,null,null,"Interpersonal Abilities ",null,null,null,null,null,null,"Athletics",null,null,null,null,5]
[null,null,null,null,null,null,null,null,null,null,null,null,null,"Burglary",null,null,null,null,1]
["Anthropology",null,null,null,1,null,"Authority",null,null,null,null,1,null,"Chronal Stability**",null,null,null,null,8]
["Architecture ",null,null,null,null,null,"Bureaucracy",null,null,null,null,1,null,"Disguise",null,null,null,null,3]
["History (Ancient)",null,null,null,null,null,"Charm",null,null,null,null,null,null,"Health**",null,null,null,null,8]
["History (Contemporary)",null,null,null,1,null,"Falsehood Detection",null,null,null,null,1,null,"Medic"]
["History (Future)",null,null,null,2,null,"High Society ",null,null,null,null,null,null,"Preparedness",null,null,null,null,3]
["Military Tactics",null,null,null,null,null,"Intimidation",null,null,null,null,null,null,"Reality Anchor",null,null,null,null,8]
["Research",null,null,null,1,null,"Reassurance",null,null,null,null,1,null,"Scuffling",null,null,null,null,1]
["Timecraft*",null,null,null,2,null,"Streetwise ",null,null,null,null,null,null,"Shooting",null,null,null,null,6]
["Trivia",null,null,null,null,null,"Taunt",null,null,null,null,null,null,"Tinkering",null,null,null,null,8]
[null,null,null,null,null,null,null,null,null,null,null,null,null,"Unobtrusiveness",null,null,null,null,5]
[null,null,null,null,null,null,"Technical Abilities",null,null,null,null,null,null,"Vehicles",null,null,null,null,6]
[]
["Extra Investigative points?",null,null,null,null,null,"Forgery"]
[null,null,null,null,null,null,"Hacking",null,null,null,null,1,null,"Special Boosters:"]
[null,null,{"$f":"Z11-AA11","v":2},null,null,null,"Medical Expertise"]
[null,null,null,null,null,null,"Notice",null,null,null,null,null,null,{"$f":"IF(S13>7,'Summary of Points'!N30,\"\")","v":""}]
["Extra General points?",null,null,null,null,null,"Outdoor Survival ",null,null,null,null,null,null,{"$f":"IF(S13>7,'Summary of Points'!N31,\"\")","v":""}]
[null,null,null,null,null,null,"Paradox Prevention",null,null,null,null,1,null,{"$f":"IF(S14>7,'Summary of Points'!N32,\"\")","v":""}]
[null,null,{"$f":"Z12-AA12","v":0},null,null,null,"Science!",null,null,null,null,2,null,{"$f":"IF(S14>7,'Summary of Points'!N33,\"\")","v":""}]
[null,null,null,null,null,null,"Spying",null,null,null,null,null,null,{"$f":"IF(S16>7,'Summary of Points'!N34,\"\")","v":""}]
[null,null,null,null,null,null,null,null,null,null,null,null,null,{"$f":"IF(S16>7,'Summary of Points'!N35,\"\")","v":""}]
[null,null,null,null,null,null,null,null,null,null,null,null,null,{"$f":"IF(S18>7,'Summary of Points'!N36,\"\")","v":""}]
["Gear:",null,{"$f":"'Summary of Points'!C42","v":"Autochron (portable 1-man time machine)"},null,null,null,null,null,null,null,null,null,null,{"$f":"IF(S18>7,'Summary of Points'!N37,\"\")","v":""}]
[null,null,{"$f":"'Summary of Points'!C43","v":"Impersonator mesh (+3 Unobtrusiveness until drawing notice)"},null,null,null,null,null,null,null,null,null,null,{"$f":"IF(S19>7,'Summary of Points'!N38,\"\")","v":""}]
[null,null,{"$f":"'Summary of Points'!C44","v":"MedKit (lets you use Medic skill effectively)"},null,null,null,null,null,null,null,null,null,null,{"$f":"IF(S19>7,'Summary of Points'!N39,\"\")","v":""}]
[null,null,{"$f":"'Summary of Points'!C45","v":"MEM-tags (for memory modification of unconscious subjects)"},null,null,null,null,null,null,null,null,null,null,{"$f":"IF(S20>7,'Summary of Points'!N40,\"\")","v":"Team Focus (Reality Anchor):"}]
[null,null,{"$f":"'Summary of Points'!C46","v":"PaciFist disruptor (Close range, Stun 5, subtle)"},null,null,null,null,null,null,null,null,null,null,{"$f":"IF(S20>7,'Summary of Points'!N41,\"\")","v":"Use Reality Anchor on multiple allies"}]
[null,null,{"$f":"'Summary of Points'!C47","v":"Tether (holographic PDA linked to subdermal earbud)"},null,null,null,null,null,null,null,null,null,null,{"$f":"IF(S21>7,'Summary of Points'!N42,\"\")","v":""}]
[null,null,{"$f":"'Summary of Points'!C48","v":"TimeWatch Uniform (chronomorphic, armor 1)"},null,null,null,null,null,null,null,null,null,null,{"$f":"IF(S21>7,'Summary of Points'!N43,\"\")","v":""}]
[null,null,{"$f":"'Summary of Points'!C49","v":"Translator (instant, 2-way, unnoticeable)"},null,null,null,null,null,null,null,null,null,null,{"$f":"IF(S22>7,'Summary of Points'!N44,\"\")","v":""}]
[null,null,null,null,null,null,null,null,null,null,null,null,null,{"$f":"IF(S22>7,'Summary of Points'!N45,\"\")","v":""}]
[null,null,null,null,null,null,null,null,null,null,null,null,null,{"$f":"IF(S23>7,'Summary of Points'!N46,\"\")","v":"Rapid Deployment (Tinkering):"}]
[null,null,null,null,null,null,null,null,null,null,null,null,null,{"$f":"IF(S23>7,'Summary of Points'!N47,\"\")","v":"Complete Tinkering tasks in 1/2 the time"}]
[null,null,null,null,null,null,null,null,null,null,null,null,null,{"$f":"IF(S24>7,'Summary of Points'!N48,\"\")","v":""}]
[null,null,null,null,null,null,null,null,null,null,null,null,null,{"$f":"IF(S24>7,'Summary of Points'!N49,\"\")","v":""}]
[null,null,null,null,null,null,null,null,null,null,null,null,null,{"$f":"IF(S25>7,'Summary of Points'!N50,\"\")","v":""}]
["* Start with 1 point free",null,null,null,null,null,"Each spent stitch refreshes 2 pts from 1 pool",null,null,null,null,null,null,{"$f":"IF(S25>7,'Summary of Points'!N51,\"\")","v":""}]
["** Start with 6 points free",null,null,null,null,null,"Do cool stuff, earn more stitches! (max 3)"]

{"sheet":"Diplomat template","index":6,"n_rows":52,"n_cols":27,"rows_kept":52,"cut":false,"hidden":false,"merged":[[48,2,48,12],[49,2,49,12],[40,2,40,12],[44,2,44,12],[45,2,45,12],[46,2,46,12],[43,2,43,12],[42,2,42,12],[41,2,41,12],[47,2,47,12],[36,2,36,12],[38,2,38,12],[39,2,39,12],[0,3,0,8],[2,3,2,8],[3,3,3,8],[4,3,4,8],[5,3,5,8],[6,3,6,8],[37,2,37,12],[35,13,35,18],[27,13,27,18],[0,15,0,18],[0,10,0,13],[10,0,10,11],[10,13,10,18],[29,13,29,18],[30,13,30,18],[31,13,31,18],[32,13,32,18],[33,13,33,18],[34,13,34,18],[47,13,47,18],[36,13,36,18],[37,13,37,18],[38,13,38,18],[39,13,39,18],[40,13,40,18],[41,13,41,18],[42,13,42,18],[43,13,43,18],[44,13,44,18],[45,13,45,18],[46,13,46,18],[48,13,48,18],[49,13,49,18],[50,13,50,18],[51,13,51,18],[52,13,52,18]]}
["Name:",null,null,"Diplomat",null,null,null,null,null,null,"Chronal Stability",null,null,null,null,"Health"]
[null,null,null,null,null,null,null,null,null,null,{"$f":"IF($N$9>=15,15,\"\")","v":""},{"$f":"IF($N$9>=14,14,\"\")","v":""},{"$f":"IF($N$9>=13,13,\"\")","v":""},{"$f":"IF($N$9>=12,12,\"\")","v":""},null,{"$f":"IF($S$9>=15,15,\"\")","v":""},{"$f":"IF($S$9>=14,14,\"\")","v":""},{"$f":"IF($S$9>=13,13,\"\")","v":""},{"$f":"IF($S$9>=12,12,\"\")","v":""}]
["Nationality:",null,null,null,null,null,null,null,null,null,{"$f":"IF($N$9>=11,11,\"\")","v":""},{"$f":"IF($N$9>=10,10,\"\")","v":""},{"$f":"IF($N$9>=9,9,\"\")","v":""},{"$f":"IF($N$9>=8,8,\"\")","v":""},null,{"$f":"IF($S$9>=11,11,\"\")","v":""},{"$f":"IF($S$9>=10,10,\"\")","v":""},{"$f":"IF($S$9>=9,9,\"\")","v":""},{"$f":"IF($S$9>=8,8,\"\")","v":""}]
["Origin Time:",null,null,null,null,null,null,null,null,null,{"$f":"IF($N$9>=7,7,\"\")","v":7},6,5,4,null,{"$f":"IF($S$9>=7,7,\"\")","v":7},6,5,4]
["Profession: ",null,null,"Diplomat",null,null,null,null,null,null,3,2,1,0,null,3,2,1,0]
["Age:",null,null,null,null,null,null,null,null,null,-1,-2,-3,-4,null,-1,-2,-3,-4]
["Drive:",null,null,null,null,null,null,null,null,null,-5,-6,-7,-8,null,-5,-6,-7,-8,null,null,null,null,null,"XP - "]
[null,null,null,null,null,null,null,null,null,null,-9,-10,-11,-12,null,-9,-10,-11,-12,null,null,null,null,null,"Extra"]
["Hit Threshold:",null,null,{"$f":"IF(S13>7,4,3)","v":4},null,"Armor:",null,{"$f":"IF(C43='Summary of Points'!C48,1,0)","v":1},null,null,"Max: ",null,null,{"$f":"S15","v":7},null,"Max: ",null,null,{"$f":"S17","v":7},null,null,null,null,null,"Points?"]
[]
["INVESTIGATIVE ABILITIES",null,null,null,null,null,null,null,null,null,null,null,null,"GENERAL ABILITIES",null,null,null,null,null,null,null,"Investigative:",null,null,0,{"$f":"'Summary of Points'!F4+Y11","v":16},{"$f":"SUM(E15:E24)+SUM(L14:L36)-1","v":14}]
[null,null,null,null,null,null,null,null,null,null,null,null,null,null,null,null,null,null,null,null,null,"General:",null,null,0,{"$f":"'Summary of Points'!E5+Y12","v":50},{"$f":"SUM(S12:S28)-12","v":50}]
["Academic Abilities",null,null,null,null,null,"Interpersonal Abilities ",null,null,null,null,null,null,"Athletics",null,null,null,null,8]
[null,null,null,null,null,null,null,null,null,null,null,null,null,"Burglary",null,null,null,null,1]
["Anthropology",null,null,null,null,null,"Authority",null,null,null,null,null,null,"Chronal Stability**",null,null,null,null,7]
["Architecture ",null,null,null,null,null,"Bureaucracy",null,null,null,null,null,null,"Disguise",null,null,null,null,3]
["History (Ancient)",null,null,null,1,null,"Charm",null,null,null,null,2,null,"Health**",null,null,null,null,7]
["History (Contemporary)",null,null,null,1,null,"Falsehood Detection",null,null,null,null,1,null,"Medic",null,null,null,null,2]
["History (Future)",null,null,null,null,null,"High Society ",null,null,null,null,1,null,"Preparedness",null,null,null,null,8]
["Military Tactics",null,null,null,null,null,"Intimidation",null,null,null,null,null,null,"Reality Anchor",null,null,null,null,4]
["Research",null,null,null,1,null,"Reassurance",null,null,null,null,2,null,"Scuffling",null,null,null,null,3]
["Timecraft*",null,null,null,1,null,"Streetwise ",null,null,null,null,null,null,"Shooting",null,null,null,null,8]
["Trivia",null,null,null,null,null,"Taunt",null,null,null,null,1,null,"Tinkering"]
[null,null,null,null,null,null,null,null,null,null,null,null,null,"Unobtrusiveness",null,null,null,null,8]
[null,null,null,null,null,null,"Technical Abilities",null,null,null,null,null,null,"Vehicles",null,null,null,null,3]
[]
["Extra Investigative points?",null,null,null,null,null,"Forgery",null,null,null,null,1]
[null,null,null,null,null,null,"Hacking",null,null,null,null,null,null,"Special Boosters:"]
[null,null,{"$f":"Z11-AA11","v":2},null,null,null,"Medical Expertise"]
[null,null,null,null,null,null,"Notice",null,null,null,null,1,null,{"$f":"IF(S13>7,'Summary of Points'!N30,\"\")","v":"Hard to Hit (Athletics):"}]
["Extra General points?",null,null,null,null,null,"Outdoor Survival ",null,null,null,null,null,null,{"$f":"IF(S13>7,'Summary of Points'!N31,\"\")","v":"Hit Threshold = 4, not 3"}]
[null,null,null,null,null,null,"Paradox Prevention",null,null,null,null,1,null,{"$f":"IF(S14>7,'Summary of Points'!N32,\"\")","v":""}]
[null,null,{"$f":"Z12-AA12","v":0},null,null,null,"Science!",null,null,null,null,null,null,{"$f":"IF(S14>7,'Summary of Points'!N33,\"\")","v":""}]
[null,null,null,null,null,null,"Spying",null,null,null,null,1,null,{"$f":"IF(S16>7,'Summary of Points'!N34,\"\")","v":""}]
[null,null,null,null,null,null,null,null,null,null,null,null,null,{"$f":"IF(S16>7,'Summary of Points'!N35,\"\")","v":""}]
[null,null,null,null,null,null,null,null,null,null,null,null,null,{"$f":"IF(S18>7,'Summary of Points'!N36,\"\")","v":""}]
["Gear:",null,{"$f":"'Summary of Points'!C42","v":"Autochron (portable 1-man time machine)"},null,null,null,null,null,null,null,null,null,null,{"$f":"IF(S18>7,'Summary of Points'!N37,\"\")","v":""}]
[null,null,{"$f":"'Summary of Points'!C43","v":"Impersonator mesh (+3 Unobtrusiveness until drawing notice)"},null,null,null,null,null,null,null,null,null,null,{"$f":"IF(S19>7,'Summary of Points'!N38,\"\")","v":"Flashback (Preparedness):"}]
[null,null,{"$f":"'Summary of Points'!C44","v":"MedKit (lets you use Medic skill effectively)"},null,null,null,null,null,null,null,null,null,null,{"$f":"IF(S19>7,'Summary of Points'!N39,\"\")","v":"Retroactively prepare actions"}]
[null,null,{"$f":"'Summary of Points'!C45","v":"MEM-tags (for memory modification of unconscious subjects)"},null,null,null,null,null,null,null,null,null,null,{"$f":"IF(S20>7,'Summary of Points'!N40,\"\")","v":""}]
[null,null,{"$f":"'Summary of Points'!C46","v":"PaciFist disruptor (Close range, Stun 5, subtle)"},null,null,null,null,null,null,null,null,null,null,{"$f":"IF(S20>7,'Summary of Points'!N41,\"\")","v":""}]
[null,null,{"$f":"'Summary of Points'!C47","v":"Tether (holographic PDA linked to subdermal earbud)"},null,null,null,null,null,null,null,null,null,null,{"$f":"IF(S21>7,'Summary of Points'!N42,\"\")","v":""}]
[null,null,{"$f":"'Summary of Points'!C48","v":"TimeWatch Uniform (chronomorphic, armor 1)"},null,null,null,null,null,null,null,null,null,null,{"$f":"IF(S21>7,'Summary of Points'!N43,\"\")","v":""}]
[null,null,{"$f":"'Summary of Points'!C49","v":"Translator (instant, 2-way, unnoticeable)"},null,null,null,null,null,null,null,null,null,null,{"$f":"IF(S22>7,'Summary of Points'!N44,\"\")","v":"Double Tap (Shooting):"}]
[null,null,null,null,null,null,null,null,null,null,null,null,null,{"$f":"IF(S22>7,'Summary of Points'!N45,\"\")","v":"Shoot 2nd foe at +2 Difficulty"}]
[null,null,null,null,null,null,null,null,null,null,null,null,null,{"$f":"IF(S23>7,'Summary of Points'!N46,\"\")","v":""}]
[null,null,null,null,null,null,null,null,null,null,null,null,null,{"$f":"IF(S23>7,'Summary of Points'!N47,\"\")","v":""}]
[null,null,null,null,null,null,null,null,null,null,null,null,null,{"$f":"IF(S24>7,'Summary of Points'!N48,\"\")","v":"Nothing to See Here (Unobtr.):"}]
[null,null,null,null,null,null,null,null,null,null,null,null,null,{"$f":"IF(S24>7,'Summary of Points'!N49,\"\")","v":"Helps the whole group hide/sneak"}]
[null,null,null,null,null,null,null,null,null,null,null,null,null,{"$f":"IF(S25>7,'Summary of Points'!N50,\"\")","v":""}]
["* Start with 1 point free",null,null,null,null,null,"Each spent stitch refreshes 2 pts from 1 pool",null,null,null,null,null,null,{"$f":"IF(S25>7,'Summary of Points'!N51,\"\")","v":""}]
["** Start with 6 points free",null,null,null,null,null,"Do cool stuff, earn more stitches! (max 3)"]

{"sheet":"Explorer template","index":7,"n_rows":52,"n_cols":27,"rows_kept":52,"cut":false,"hidden":false,"merged":[[49,13,49,18],[50,13,50,18],[51,13,51,18],[52,13,52,18],[45,13,45,18],[46,13,46,18],[47,13,47,18],[48,13,48,18],[41,13,41,18],[42,13,42,18],[43,13,43,18],[44,13,44,18],[37,13,37,18],[38,13,38,18],[39,13,39,18],[40,13,40,18],[33,13,33,18],[34,13,34,18],[35,13,35,18],[36,13,36,18],[29,13,29,18],[30,13,30,18],[31,13,31,18],[32,13,32,18],[27,13,27,18],[0,15,0,18],[0,10,0,13],[10,0,10,11],[10,13,10,18],[38,2,38,12],[39,2,39,12],[0,3,0,8],[2,3,2,8],[3,3,3,8],[4,3,4,8],[5,3,5,8],[6,3,6,8],[37,2,37,12],[36,2,36,12],[48,2,48,12],[49,2,49,12],[40,2,40,12],[44,2,44,12],[45,2,45,12],[46,2,46,12],[43,2,43,12],[42,2,42,12],[41,2,41,12],[47,2,47,12]]}
["Name:",null,null,"Explorer",null,null,null,null,null,null,"Chronal Stability",null,null,null,null,"Health"]
[null,null,null,null,null,null,null,null,null,null,{"$f":"IF($N$9>=15,15,\"\")","v":""},{"$f":"IF($N$9>=14,14,\"\")","v":""},{"$f":"IF($N$9>=13,13,\"\")","v":""},{"$f":"IF($N$9>=12,12,\"\")","v":""},null,{"$f":"IF($S$9>=15,15,\"\")","v":""},{"$f":"IF($S$9>=14,14,\"\")","v":""},{"$f":"IF($S$9>=13,13,\"\")","v":""},{"$f":"IF($S$9>=12,12,\"\")","v":""}]
["Nationality:",null,null,null,null,null,null,null,null,null,{"$f":"IF($N$9>=11,11,\"\")","v":""},{"$f":"IF($N$9>=10,10,\"\")","v":""},{"$f":"IF($N$9>=9,9,\"\")","v":""},{"$f":"IF($N$9>=8,8,\"\")","v":""},null,{"$f":"IF($S$9>=11,11,\"\")","v":""},{"$f":"IF($S$9>=10,10,\"\")","v":""},{"$f":"IF($S$9>=9,9,\"\")","v":""},{"$f":"IF($S$9>=8,8,\"\")","v":8}]
["Origin Time:",null,null,null,null,null,null,null,null,null,{"$f":"IF($N$9>=7,7,\"\")","v":7},6,5,4,null,{"$f":"IF($S$9>=7,7,\"\")","v":7},6,5,4]
["Profession: ",null,null,"Explorer",null,null,null,null,null,null,3,2,1,0,null,3,2,1,0]
["Age:",null,null,null,null,null,null,null,null,null,-1,-2,-3,-4,null,-1,-2,-3,-4]
["Drive:",null,null,null,null,null,null,null,null,null,-5,-6,-7,-8,null,-5,-6,-7,-8,null,null,null,null,null,"XP - "]
[null,null,null,null,null,null,null,null,null,null,-9,-10,-11,-12,null,-9,-10,-11,-12,null,null,null,null,null,"Extra"]
["Hit Threshold:",null,null,{"$f":"IF(S13>7,4,3)","v":4},null,"Armor:",null,{"$f":"IF(C43='Summary of Points'!C48,1,0)","v":1},null,null,"Max: ",null,null,{"$f":"S15","v":7},null,"Max: ",null,null,{"$f":"S17","v":8},null,null,null,null,null,"Points?"]
[]
["INVESTIGATIVE ABILITIES",null,null,null,null,null,null,null,null,null,null,null,null,"GENERAL ABILITIES",null,null,null,null,null,null,null,"Investigative:",null,null,0,{"$f":"'Summary of Points'!F4+Y11","v":16},{"$f":"SUM(E15:E24)+SUM(L14:L36)-1","v":14}]
[null,null,null,null,null,null,null,null,null,null,null,null,null,null,null,null,null,null,null,null,null,"General:",null,null,0,{"$f":"'Summary of Points'!E5+Y12","v":50},{"$f":"SUM(S12:S28)-12","v":50}]
["Academic Abilities",null,null,null,null,null,"Interpersonal Abilities ",null,null,null,null,null,null,"Athletics",null,null,null,null,8]
[null,null,null,null,null,null,null,null,null,null,null,null,null,"Burglary",null,null,null,null,4]
["Anthropology",null,null,null,1,null,"Authority",null,null,null,null,1,null,"Chronal Stability**",null,null,null,null,7]
["Architecture ",null,null,null,1,null,"Bureaucracy",null,null,null,null,null,null,"Disguise",null,null,null,null,3]
["History (Ancient)",null,null,null,1,null,"Charm",null,null,null,null,null,null,"Health**",null,null,null,null,8]
["History (Contemporary)",null,null,null,null,null,"Falsehood Detection",null,null,null,null,null,null,"Medic"]
["History (Future)",null,null,null,null,null,"High Society ",null,null,null,null,null,null,"Preparedness",null,null,null,null,4]
["Military Tactics",null,null,null,1,null,"Intimidation",null,null,null,null,1,null,"Reality Anchor",null,null,null,null,1]
["Research",null,null,null,1,null,"Reassurance",null,null,null,null,null,null,"Scuffling",null,null,null,null,6]
["Timecraft*",null,null,null,1,null,"Streetwise ",null,null,null,null,1,null,"Shooting",null,null,null,null,8]
["Trivia",null,null,null,1,null,"Taunt",null,null,null,null,1,null,"Tinkering",null,null,null,null,4]
[null,null,null,null,null,null,null,null,null,null,null,null,null,"Unobtrusiveness",null,null,null,null,3]
[null,null,null,null,null,null,"Technical Abilities",null,null,null,null,null,null,"Vehicles",null,null,null,null,6]
[]
["Extra Investigative points?",null,null,null,null,null,"Forgery"]
[null,null,null,null,null,null,"Hacking",null,null,null,null,null,null,"Special Boosters:"]
[null,null,{"$f":"Z11-AA11","v":2},null,null,null,"Medical Expertise"]
[null,null,null,null,null,null,"Notice",null,null,null,null,1,null,{"$f":"IF(S13>7,'Summary of Points'!N30,\"\")","v":"Hard to Hit (Athletics):"}]
["Extra General points?",null,null,null,null,null,"Outdoor Survival ",null,null,null,null,2,null,{"$f":"IF(S13>7,'Summary of Points'!N31,\"\")","v":"Hit Threshold = 4, not 3"}]
[null,null,null,null,null,null,"Paradox Prevention",null,null,null,null,1,null,{"$f":"IF(S14>7,'Summary of Points'!N32,\"\")","v":""}]
[null,null,{"$f":"Z12-AA12","v":0},null,null,null,"Science!",null,null,null,null,null,null,{"$f":"IF(S14>7,'Summary of Points'!N33,\"\")","v":""}]
[null,null,null,null,null,null,"Spying",null,null,null,null,null,null,{"$f":"IF(S16>7,'Summary of Points'!N34,\"\")","v":""}]
[null,null,null,null,null,null,null,null,null,null,null,null,null,{"$f":"IF(S16>7,'Summary of Points'!N35,\"\")","v":""}]
[null,null,null,null,null,null,null,null,null,null,null,null,null,{"$f":"IF(S18>7,'Summary of Points'!N36,\"\")","v":""}]
["Gear:",null,{"$f":"'Summary of Points'!C42","v":"Autochron (portable 1-man time machine)"},null,null,null,null,null,null,null,null,null,null,{"$f":"IF(S18>7,'Summary of Points'!N37,\"\")","v":""}]
[null,null,{"$f":"'Summary of Points'!C43","v":"Impersonator mesh (+3 Unobtrusiveness until drawing notice)"},null,null,null,null,null,null,null,null,null,null,{"$f":"IF(S19>7,'Summary of Points'!N38,\"\")","v":""}]
[null,null,{"$f":"'Summary of Points'!C44","v":"MedKit (lets you use Medic skill effectively)"},null,null,null,null,null,null,null,null,null,null,{"$f":"IF(S19>7,'Summary of Points'!N39,\"\")","v":""}]
[null,null,{"$f":"'Summary of Points'!C45","v":"MEM-tags (for memory modification of unconscious subjects)"},null,null,null,null,null,null,null,null,null,null,{"$f":"IF(S20>7,'Summary of Points'!N40,\"\")","v":""}]
[null,null,{"$f":"'Summary of Points'!C46","v":"PaciFist disruptor (Close range, Stun 5, subtle)"},null,null,null,null,null,null,null,null,null,null,{"$f":"IF(S20>7,'Summary of Points'!N41,\"\")","v":""}]
[null,null,{"$f":"'Summary of Points'!C47","v":"Tether (holographic PDA linked to subdermal earbud)"},null,null,null,null,null,null,null,null,null,null,{"$f":"IF(S21>7,'Summary of Points'!N42,\"\")","v":""}]
[null,null,{"$f":"'Summary of Points'!C48","v":"TimeWatch Uniform (chronomorphic, armor 1)"},null,null,null,null,null,null,null,null,null,null,{"$f":"IF(S21>7,'Summary of Points'!N43,\"\")","v":""}]
[null,null,{"$f":"'Summary of Points'!C49","v":"Translator (instant, 2-way, unnoticeable)"},null,null,null,null,null,null,null,null,null,null,{"$f":"IF(S22>7,'Summary of Points'!N44,\"\")","v":"Double Tap (Shooting):"}]
[null,null,null,null,null,null,null,null,null,null,null,null,null,{"$f":"IF(S22>7,'Summary of Points'!N45,\"\")","v":"Shoot 2nd foe at +2 Difficulty"}]
[null,null,null,null,null,null,null,null,null,null,null,null,null,{"$f":"IF(S23>7,'Summary of Points'!N46,\"\")","v":""}]
[null,null,null,null,null,null,null,null,null,null,null,null,null,{"$f":"IF(S23>7,'Summary of Points'!N47,\"\")","v":""}]
[null,null,null,null,null,null,null,null,null,null,null,null,null,{"$f":"IF(S24>7,'Summary of Points'!N48,\"\")","v":""}]
[null,null,null,null,null,null,null,null,null,null,null,null,null,{"$f":"IF(S24>7,'Summary of Points'!N49,\"\")","v":""}]
[null,null,null,null,null,null,null,null,null,null,null,null,null,{"$f":"IF(S25>7,'Summary of Points'!N50,\"\")","v":""}]
["* Start with 1 point free",null,null,null,null,null,"Each spent stitch refreshes 2 pts from 1 pool",null,null,null,null,null,null,{"$f":"IF(S25>7,'Summary of Points'!N51,\"\")","v":""}]
["** Start with 6 points free",null,null,null,null,null,"Do cool stuff, earn more stitches! (max 3)"]

{"sheet":"Gadgeteer template","index":8,"n_rows":52,"n_cols":27,"rows_kept":52,"cut":false,"hidden":false,"merged":[[48,2,48,12],[49,2,49,12],[40,2,40,12],[44,2,44,12],[45,2,45,12],[46,2,46,12],[43,2,43,12],[42,2,42,12],[41,2,41,12],[47,2,47,12],[36,2,36,12],[38,2,38,12],[39,2,39,12],[0,3,0,8],[2,3,2,8],[3,3,3,8],[4,3,4,8],[5,3,5,8],[6,3,6,8],[37,2,37,12],[35,13,35,18],[27,13,27,18],[0,15,0,18],[0,10,0,13],[10,0,10,11],[10,13,10,18],[29,13,29,18],[30,13,30,18],[31,13,31,18],[32,13,32,18],[33,13,33,18],[34,13,34,18],[47,13,47,18],[36,13,36,18],[37,13,37,18],[38,13,38,18],[39,13,39,18],[40,13,40,18],[41,13,41,18],[42,13,42,18],[43,13,43,18],[44,13,44,18],[45,13,45,18],[46,13,46,18],[48,13,48,18],[49,13,49,18],[50,13,50,18],[51,13,51,18],[52,13,52,18]]}
["Name:",null,null,"Gadgeteer",null,null,null,null,null,null,"Chronal Stability",null,null,null,null,"Health"]
[null,null,null,null,null,null,null,null,null,null,{"$f":"IF($N$9>=15,15,\"\")","v":""},{"$f":"IF($N$9>=14,14,\"\")","v":""},{"$f":"IF($N$9>=13,13,\"\")","v":""},{"$f":"IF($N$9>=12,12,\"\")","v":""},null,{"$f":"IF($S$9>=15,15,\"\")","v":""},{"$f":"IF($S$9>=14,14,\"\")","v":""},{"$f":"IF($S$9>=13,13,\"\")","v":""},{"$f":"IF($S$9>=12,12,\"\")","v":""}]
["Nationality:",null,null,null,null,null,null,null,null,null,{"$f":"IF($N$9>=11,11,\"\")","v":""},{"$f":"IF($N$9>=10,10,\"\")","v":""},{"$f":"IF($N$9>=9,9,\"\")","v":""},{"$f":"IF($N$9>=8,8,\"\")","v":""},null,{"$f":"IF($S$9>=11,11,\"\")","v":""},{"$f":"IF($S$9>=10,10,\"\")","v":""},{"$f":"IF($S$9>=9,9,\"\")","v":""},{"$f":"IF($S$9>=8,8,\"\")","v":""}]
["Origin Time:",null,null,null,null,null,null,null,null,null,{"$f":"IF($N$9>=7,7,\"\")","v":7},6,5,4,null,{"$f":"IF($S$9>=7,7,\"\")","v":7},6,5,4]
["Profession: ",null,null,"Gadgeteer",null,null,null,null,null,null,3,2,1,0,null,3,2,1,0]
["Age:",null,null,null,null,null,null,null,null,null,-1,-2,-3,-4,null,-1,-2,-3,-4]
["Drive:",null,null,null,null,null,null,null,null,null,-5,-6,-7,-8,null,-5,-6,-7,-8,null,null,null,null,null,"XP - "]
[null,null,null,null,null,null,null,null,null,null,-9,-10,-11,-12,null,-9,-10,-11,-12,null,null,null,null,null,"Extra"]
["Hit Threshold:",null,null,{"$f":"IF(S13>7,4,3)","v":3},null,"Armor:",null,{"$f":"IF(C43='Summary of Points'!C48,1,0)","v":1},null,null,"Max: ",null,null,{"$f":"S15","v":7},null,"Max: ",null,null,{"$f":"S17","v":7},null,null,null,null,null,"Points?"]
[]
["INVESTIGATIVE ABILITIES",null,null,null,null,null,null,null,null,null,null,null,null,"GENERAL ABILITIES",null,null,null,null,null,null,null,"Investigative:",null,null,0,{"$f":"'Summary of Points'!F4+Y11","v":16},{"$f":"SUM(E15:E24)+SUM(L14:L36)-1","v":14}]
[null,null,null,null,null,null,null,null,null,null,null,null,null,null,null,null,null,null,null,null,null,"General:",null,null,0,{"$f":"'Summary of Points'!E5+Y12","v":50},{"$f":"SUM(S12:S28)-12","v":50}]
["Academic Abilities",null,null,null,null,null,"Interpersonal Abilities ",null,null,null,null,null,null,"Athletics",null,null,null,null,3]
[null,null,null,null,null,null,null,null,null,null,null,null,null,"Burglary",null,null,null,null,4]
["Anthropology",null,null,null,null,null,"Authority",null,null,null,null,null,null,"Chronal Stability**",null,null,null,null,7]
["Architecture ",null,null,null,null,null,"Bureaucracy",null,null,null,null,null,null,"Disguise",null,null,null,null,3]
["History (Ancient)",null,null,null,null,null,"Charm",null,null,null,null,1,null,"Health**",null,null,null,null,7]
["History (Contemporary)",null,null,null,1,null,"Falsehood Detection",null,null,null,null,1,null,"Medic",null,null,null,null,2]
["History (Future)",null,null,null,null,null,"High Society ",null,null,null,null,null,null,"Preparedness",null,null,null,null,6]
["Military Tactics",null,null,null,1,null,"Intimidation",null,null,null,null,null,null,"Reality Anchor",null,null,null,null,3]
["Research",null,null,null,1,null,"Reassurance",null,null,null,null,1,null,"Scuffling",null,null,null,null,2]
["Timecraft*",null,null,null,1,null,"Streetwise ",null,null,null,null,null,null,"Shooting",null,null,null,null,6]
["Trivia",null,null,null,1,null,"Taunt",null,null,null,null,1,null,"Tinkering",null,null,null,null,8]
[null,null,null,null,null,null,null,null,null,null,null,null,null,"Unobtrusiveness",null,null,null,null,3]
[null,null,null,null,null,null,"Technical Abilities",null,null,null,null,null,null,"Vehicles",null,null,null,null,8]
[]
["Extra Investigative points?",null,null,null,null,null,"Forgery"]
[null,null,null,null,null,null,"Hacking",null,null,null,null,2,null,"Special Boosters:"]
[null,null,{"$f":"Z11-AA11","v":2},null,null,null,"Medical Expertise"]
[null,null,null,null,null,null,"Notice",null,null,null,null,1,null,{"$f":"IF(S13>7,'Summary of Points'!N30,\"\")","v":""}]
["Extra General points?",null,null,null,null,null,"Outdoor Survival ",null,null,null,null,null,null,{"$f":"IF(S13>7,'Summary of Points'!N31,\"\")","v":""}]
[null,null,null,null,null,null,"Paradox Prevention",null,null,null,null,1,null,{"$f":"IF(S14>7,'Summary of Points'!N32,\"\")","v":""}]
[null,null,{"$f":"Z12-AA12","v":0},null,null,null,"Science!",null,null,null,null,2,null,{"$f":"IF(S14>7,'Summary of Points'!N33,\"\")","v":""}]
[null,null,null,null,null,null,"Spying",null,null,null,null,null,null,{"$f":"IF(S16>7,'Summary of Points'!N34,\"\")","v":""}]
[null,null,null,null,null,null,null,null,null,null,null,null,null,{"$f":"IF(S16>7,'Summary of Points'!N35,\"\")","v":""}]
[null,null,null,null,null,null,null,null,null,null,null,null,null,{"$f":"IF(S18>7,'Summary of Points'!N36,\"\")","v":""}]
["Gear:",null,{"$f":"'Summary of Points'!C42","v":"Autochron (portable 1-man time machine)"},null,null,null,null,null,null,null,null,null,null,{"$f":"IF(S18>7,'Summary of Points'!N37,\"\")","v":""}]
[null,null,{"$f":"'Summary of Points'!C43","v":"Impersonator mesh (+3 Unobtrusiveness until drawing notice)"},null,null,null,null,null,null,null,null,null,null,{"$f":"IF(S19>7,'Summary of Points'!N38,\"\")","v":""}]
[null,null,{"$f":"'Summary of Points'!C44","v":"MedKit (lets you use Medic skill effectively)"},null,null,null,null,null,null,null,null,null,null,{"$f":"IF(S19>7,'Summary of Points'!N39,\"\")","v":""}]
[null,null,{"$f":"'Summary of Points'!C45","v":"MEM-tags (for memory modification of unconscious subjects)"},null,null,null,null,null,null,null,null,null,null,{"$f":"IF(S20>7,'Summary of Points'!N40,\"\")","v":""}]
[null,null,{"$f":"'Summary of Points'!C46","v":"PaciFist disruptor (Close range, Stun 5, subtle)"},null,null,null,null,null,null,null,null,null,null,{"$f":"IF(S20>7,'Summary of Points'!N41,\"\")","v":""}]
[null,null,{"$f":"'Summary of Points'!C47","v":"Tether (holographic PDA linked to subdermal earbud)"},null,null,null,null,null,null,null,null,null,null,{"$f":"IF(S21>7,'Summary of Points'!N42,\"\")","v":""}]
[null,null,{"$f":"'Summary of Points'!C48","v":"TimeWatch Uniform (chronomorphic, armor 1)"},null,null,null,null,null,null,null,null,null,null,{"$f":"IF(S21>7,'Summary of Points'!N43,\"\")","v":""}]
[null,null,{"$f":"'Summary of Points'!C49","v":"Translator (instant, 2-way, unnoticeable)"},null,null,null,null,null,null,null,null,null,null,{"$f":"IF(S22>7,'Summary of Points'!N44,\"\")","v":""}]
[null,null,null,null,null,null,null,null,null,null,null,null,null,{"$f":"IF(S22>7,'Summary of Points'!N45,\"\")","v":""}]
[null,null,null,null,null,null,null,null,null,null,null,null,null,{"$f":"IF(S23>7,'Summary of Points'!N46,\"\")","v":"Rapid Deployment (Tinkering):"}]
[null,null,null,null,null,null,null,null,null,null,null,null,null,{"$f":"IF(S23>7,'Summary of Points'!N47,\"\")","v":"Complete Tinkering tasks in 1/2 the time"}]
[null,null,null,null,null,null,null,null,null,null,null,null,null,{"$f":"IF(S24>7,'Summary of Points'!N48,\"\")","v":""}]
[null,null,null,null,null,null,null,null,null,null,null,null,null,{"$f":"IF(S24>7,'Summary of Points'!N49,\"\")","v":""}]
[null,null,null,null,null,null,null,null,null,null,null,null,null,{"$f":"IF(S25>7,'Summary of Points'!N50,\"\")","v":"Keep Up (Vehicles):"}]
["* Start with 1 point free",null,null,null,null,null,"Each spent stitch refreshes 2 pts from 1 pool",null,null,null,null,null,null,{"$f":"IF(S25>7,'Summary of Points'!N51,\"\")","v":"Improved piggyback of Vehicle tests"}]
["** Start with 6 points free",null,null,null,null,null,"Do cool stuff, earn more stitches! (max 3)"]

{"sheet":"Hacker template","index":9,"n_rows":52,"n_cols":27,"rows_kept":52,"cut":false,"hidden":false,"merged":[[49,13,49,18],[50,13,50,18],[51,13,51,18],[52,13,52,18],[45,13,45,18],[46,13,46,18],[47,13,47,18],[48,13,48,18],[41,13,41,18],[42,13,42,18],[43,13,43,18],[44,13,44,18],[37,13,37,18],[38,13,38,18],[39,13,39,18],[40,13,40,18],[33,13,33,18],[34,13,34,18],[35,13,35,18],[36,13,36,18],[29,13,29,18],[30,13,30,18],[31,13,31,18],[32,13,32,18],[27,13,27,18],[0,15,0,18],[0,10,0,13],[10,0,10,11],[10,13,10,18],[38,2,38,12],[39,2,39,12],[0,3,0,8],[2,3,2,8],[3,3,3,8],[4,3,4,8],[5,3,5,8],[6,3,6,8],[37,2,37,12],[36,2,36,12],[48,2,48,12],[49,2,49,12],[40,2,40,12],[44,2,44,12],[45,2,45,12],[46,2,46,12],[43,2,43,12],[42,2,42,12],[41,2,41,12],[47,2,47,12]]}
["Name:",null,null,"Hacker",null,null,null,null,null,null,"Chronal Stability",null,null,null,null,"Health"]
[null,null,null,null,null,null,null,null,null,null,{"$f":"IF($N$9>=15,15,\"\")","v":""},{"$f":"IF($N$9>=14,14,\"\")","v":""},{"$f":"IF($N$9>=13,13,\"\")","v":""},{"$f":"IF($N$9>=12,12,\"\")","v":""},null,{"$f":"IF($S$9>=15,15,\"\")","v":""},{"$f":"IF($S$9>=14,14,\"\")","v":""},{"$f":"IF($S$9>=13,13,\"\")","v":""},{"$f":"IF($S$9>=12,12,\"\")","v":""}]
["Nationality:",null,null,null,null,null,null,null,null,null,{"$f":"IF($N$9>=11,11,\"\")","v":""},{"$f":"IF($N$9>=10,10,\"\")","v":""},{"$f":"IF($N$9>=9,9,\"\")","v":""},{"$f":"IF($N$9>=8,8,\"\")","v":8},null,{"$f":"IF($S$9>=11,11,\"\")","v":""},{"$f":"IF($S$9>=10,10,\"\")","v":""},{"$f":"IF($S$9>=9,9,\"\")","v":9},{"$f":"IF($S$9>=8,8,\"\")","v":8}]
["Origin Time:",null,null,null,null,null,null,null,null,null,{"$f":"IF($N$9>=7,7,\"\")","v":7},6,5,4,null,{"$f":"IF($S$9>=7,7,\"\")","v":7},6,5,4]
["Profession: ",null,null,"Hacker",null,null,null,null,null,null,3,2,1,0,null,3,2,1,0]
["Age:",null,null,null,null,null,null,null,null,null,-1,-2,-3,-4,null,-1,-2,-3,-4]
["Drive:",null,null,null,null,null,null,null,null,null,-5,-6,-7,-8,null,-5,-6,-7,-8,null,null,null,null,null,"XP - "]
[null,null,null,null,null,null,null,null,null,null,-9,-10,-11,-12,null,-9,-10,-11,-12,null,null,null,null,null,"Extra"]
["Hit Threshold:",null,null,{"$f":"IF(S13>7,4,3)","v":3},null,"Armor:",null,{"$f":"IF(C43='Summary of Points'!C48,1,0)","v":1},null,null,"Max: ",null,null,{"$f":"S15","v":8},null,"Max: ",null,null,{"$f":"S17","v":9},null,null,null,null,null,"Points?"]
[]
["INVESTIGATIVE ABILITIES",null,null,null,null,null,null,null,null,null,null,null,null,"GENERAL ABILITIES",null,null,null,null,null,null,null,"Investigative:",null,null,0,{"$f":"'Summary of Points'!F4+Y11","v":16},{"$f":"SUM(E15:E24)+SUM(L14:L36)-1","v":14}]
[null,null,null,null,null,null,null,null,null,null,null,null,null,null,null,null,null,null,null,null,null,"General:",null,null,0,{"$f":"'Summary of Points'!E5+Y12","v":50},{"$f":"SUM(S12:S28)-12","v":50}]
["Academic Abilities",null,null,null,null,null,"Interpersonal Abilities ",null,null,null,null,null,null,"Athletics",null,null,null,null,4]
[null,null,null,null,null,null,null,null,null,null,null,null,null,"Burglary",null,null,null,null,4]
["Anthropology",null,null,null,null,null,"Authority",null,null,null,null,null,null,"Chronal Stability**",null,null,null,null,8]
["Architecture ",null,null,null,null,null,"Bureaucracy",null,null,null,null,1,null,"Disguise",null,null,null,null,3]
["History (Ancient)",null,null,null,null,null,"Charm",null,null,null,null,1,null,"Health**",null,null,null,null,9]
["History (Contemporary)",null,null,null,null,null,"Falsehood Detection",null,null,null,null,1,null,"Medic"]
["History (Future)",null,null,null,1,null,"High Society ",null,null,null,null,null,null,"Preparedness",null,null,null,null,6]
["Military Tactics",null,null,null,null,null,"Intimidation",null,null,null,null,1,null,"Reality Anchor",null,null,null,null,5]
["Research",null,null,null,1,null,"Reassurance",null,null,null,null,null,null,"Scuffling",null,null,null,null,3]
["Timecraft*",null,null,null,1,null,"Streetwise ",null,null,null,null,null,null,"Shooting",null,null,null,null,6]
["Trivia",null,null,null,null,null,"Taunt",null,null,null,null,1,null,"Tinkering",null,null,null,null,8]
[null,null,null,null,null,null,null,null,null,null,null,null,null,"Unobtrusiveness",null,null,null,null,3]
[null,null,null,null,null,null,"Technical Abilities",null,null,null,null,null,null,"Vehicles",null,null,null,null,3]
[]
["Extra Investigative points?",null,null,null,null,null,"Forgery",null,null,null,null,1]
[null,null,null,null,null,null,"Hacking",null,null,null,null,2,null,"Special Boosters:"]
[null,null,{"$f":"Z11-AA11","v":2},null,null,null,"Medical Expertise"]
[null,null,null,null,null,null,"Notice",null,null,null,null,1,null,{"$f":"IF(S13>7,'Summary of Points'!N30,\"\")","v":""}]
["Extra General points?",null,null,null,null,null,"Outdoor Survival ",null,null,null,null,null,null,{"$f":"IF(S13>7,'Summary of Points'!N31,\"\")","v":""}]
[null,null,null,null,null,null,"Paradox Prevention",null,null,null,null,1,null,{"$f":"IF(S14>7,'Summary of Points'!N32,\"\")","v":""}]
[null,null,{"$f":"Z12-AA12","v":0},null,null,null,"Science!",null,null,null,null,1,null,{"$f":"IF(S14>7,'Summary of Points'!N33,\"\")","v":""}]
[null,null,null,null,null,null,"Spying",null,null,null,null,1,null,{"$f":"IF(S16>7,'Summary of Points'!N34,\"\")","v":""}]
[null,null,null,null,null,null,null,null,null,null,null,null,null,{"$f":"IF(S16>7,'Summary of Points'!N35,\"\")","v":""}]
[null,null,null,null,null,null,null,null,null,null,null,null,null,{"$f":"IF(S18>7,'Summary of Points'!N36,\"\")","v":""}]
["Gear:",null,{"$f":"'Summary of Points'!C42","v":"Autochron (portable 1-man time machine)"},null,null,null,null,null,null,null,null,null,null,{"$f":"IF(S18>7,'Summary of Points'!N37,\"\")","v":""}]
[null,null,{"$f":"'Summary of Points'!C43","v":"Impersonator mesh (+3 Unobtrusiveness until drawing notice)"},null,null,null,null,null,null,null,null,null,null,{"$f":"IF(S19>7,'Summary of Points'!N38,\"\")","v":""}]
[null,null,{"$f":"'Summary of Points'!C44","v":"MedKit (lets you use Medic skill effectively)"},null,null,null,null,null,null,null,null,null,null,{"$f":"IF(S19>7,'Summary of Points'!N39,\"\")","v":""}]
[null,null,{"$f":"'Summary of Points'!C45","v":"MEM-tags (for memory modification of unconscious subjects)"},null,null,null,null,null,null,null,null,null,null,{"$f":"IF(S20>7,'Summary of Points'!N40,\"\")","v":""}]
[null,null,{"$f":"'Summary of Points'!C46","v":"PaciFist disruptor (Close range, Stun 5, subtle)"},null,null,null,null,null,null,null,null,null,null,{"$f":"IF(S20>7,'Summary of Points'!N41,\"\")","v":""}]
[null,null,{"$f":"'Summary of Points'!C47","v":"Tether (holographic PDA linked to subdermal earbud)"},null,null,null,null,null,null,null,null,null,null,{"$f":"IF(S21>7,'Summary of Points'!N42,\"\")","v":""}]
[null,null,{"$f":"'Summary of Points'!C48","v":"TimeWatch Uniform (chronomorphic, armor 1)"},null,null,null,null,null,null,null,null,null,null,{"$f":"IF(S21>7,'Summary of Points'!N43,\"\")","v":""}]
[null,null,{"$f":"'Summary of Points'!C49","v":"Translator (instant, 2-way, unnoticeable)"},null,null,null,null,null,null,null,null,null,null,{"$f":"IF(S22>7,'Summary of Points'!N44,\"\")","v":""}]
[null,null,null,null,null,null,null,null,null,null,null,null,null,{"$f":"IF(S22>7,'Summary of Points'!N45,\"\")","v":""}]
[null,null,null,null,null,null,null,null,null,null,null,null,null,{"$f":"IF(S23>7,'Summary of Points'!N46,\"\")","v":"Rapid Deployment (Tinkering):"}]
[null,null,null,null,null,null,null,null,null,null,null,null,null,{"$f":"IF(S23>7,'Summary of Points'!N47,\"\")","v":"Complete Tinkering tasks in 1/2 the time"}]
[null,null,null,null,null,null,null,null,null,null,null,null,null,{"$f":"IF(S24>7,'Summary of Points'!N48,\"\")","v":""}]
[null,null,null,null,null,null,null,null,null,null,null,null,null,{"$f":"IF(S24>7,'Summary of Points'!N49,\"\")","v":""}]
[null,null,null,null,null,null,null,null,null,null,null,null,null,{"$f":"IF(S25>7,'Summary of Points'!N50,\"\")","v":""}]
["* Start with 1 point free",null,null,null,null,null,"Each spent stitch refreshes 2 pts from 1 pool",null,null,null,null,null,null,{"$f":"IF(S25>7,'Summary of Points'!N51,\"\")","v":""}]
["** Start with 6 points free",null,null,null,null,null,"Do cool stuff, earn more stitches! (max 3)"]

{"sheet":"Historian template","index":10,"n_rows":52,"n_cols":27,"rows_kept":52,"cut":false,"hidden":false,"merged":[[48,2,48,12],[49,2,49,12],[40,2,40,12],[44,2,44,12],[45,2,45,12],[46,2,46,12],[43,2,43,12],[42,2,42,12],[41,2,41,12],[47,2,47,12],[36,2,36,12],[38,2,38,12],[39,2,39,12],[0,3,0,8],[2,3,2,8],[3,3,3,8],[4,3,4,8],[5,3,5,8],[6,3,6,8],[37,2,37,12],[35,13,35,18],[27,13,27,18],[0,15,0,18],[0,10,0,13],[10,0,10,11],[10,13,10,18],[29,13,29,18],[30,13,30,18],[31,13,31,18],[32,13,32,18],[33,13,33,18],[34,13,34,18],[47,13,47,18],[36,13,36,18],[37,13,37,18],[38,13,38,18],[39,13,39,18],[40,13,40,18],[41,13,41,18],[42,13,42,18],[43,13,43,18],[44,13,44,18],[45,13,45,18],[46,13,46,18],[48,13,48,18],[49,13,49,18],[50,13,50,18],[51,13,51,18],[52,13,52,18]]}
["Name:",null,null,"Historian",null,null,null,null,null,null,"Chronal Stability",null,null,null,null,"Health"]
[null,null,null,null,null,null,null,null,null,null,{"$f":"IF($N$9>=15,15,\"\")","v":""},{"$f":"IF($N$9>=14,14,\"\")","v":""},{"$f":"IF($N$9>=13,13,\"\")","v":""},{"$f":"IF($N$9>=12,12,\"\")","v":""},null,{"$f":"IF($S$9>=15,15,\"\")","v":""},{"$f":"IF($S$9>=14,14,\"\")","v":""},{"$f":"IF($S$9>=13,13,\"\")","v":""},{"$f":"IF($S$9>=12,12,\"\")","v":""}]
["Nationality:",null,null,null,null,null,null,null,null,null,{"$f":"IF($N$9>=11,11,\"\")","v":""},{"$f":"IF($N$9>=10,10,\"\")","v":""},{"$f":"IF($N$9>=9,9,\"\")","v":""},{"$f":"IF($N$9>=8,8,\"\")","v":8},null,{"$f":"IF($S$9>=11,11,\"\")","v":""},{"$f":"IF($S$9>=10,10,\"\")","v":""},{"$f":"IF($S$9>=9,9,\"\")","v":""},{"$f":"IF($S$9>=8,8,\"\")","v":8}]
["Origin Time:",null,null,null,null,null,null,null,null,null,{"$f":"IF($N$9>=7,7,\"\")","v":7},6,5,4,null,{"$f":"IF($S$9>=7,7,\"\")","v":7},6,5,4]
["Profession: ",null,null,"Historian",null,null,null,null,null,null,3,2,1,0,null,3,2,1,0]
["Age:",null,null,null,null,null,null,null,null,null,-1,-2,-3,-4,null,-1,-2,-3,-4]
["Drive:",null,null,null,null,null,null,null,null,null,-5,-6,-7,-8,null,-5,-6,-7,-8,null,null,null,null,null,"XP - "]
[null,null,null,null,null,null,null,null,null,null,-9,-10,-11,-12,null,-9,-10,-11,-12,null,null,null,null,null,"Extra"]
["Hit Threshold:",null,null,{"$f":"IF(S13>7,4,3)","v":3},null,"Armor:",null,{"$f":"IF(C43='Summary of Points'!C48,1,0)","v":1},null,null,"Max: ",null,null,{"$f":"S15","v":8},null,"Max: ",null,null,{"$f":"S17","v":8},null,null,null,null,null,"Points?"]
[]
["INVESTIGATIVE ABILITIES",null,null,null,null,null,null,null,null,null,null,null,null,"GENERAL ABILITIES",null,null,null,null,null,null,null,"Investigative:",null,null,0,{"$f":"'Summary of Points'!F4+Y11","v":16},{"$f":"SUM(E15:E24)+SUM(L14:L36)-1","v":14}]
[null,null,null,null,null,null,null,null,null,null,null,null,null,null,null,null,null,null,null,null,null,"General:",null,null,0,{"$f":"'Summary of Points'!E5+Y12","v":50},{"$f":"SUM(S12:S28)-12","v":50}]
["Academic Abilities",null,null,null,null,null,"Interpersonal Abilities ",null,null,null,null,null,null,"Athletics",null,null,null,null,4]
[null,null,null,null,null,null,null,null,null,null,null,null,null,"Burglary"]
["Anthropology",null,null,null,1,null,"Authority",null,null,null,null,null,null,"Chronal Stability**",null,null,null,null,8]
["Architecture ",null,null,null,1,null,"Bureaucracy",null,null,null,null,1,null,"Disguise",null,null,null,null,8]
["History (Ancient)",null,null,null,1,null,"Charm",null,null,null,null,null,null,"Health**",null,null,null,null,8]
["History (Contemporary)",null,null,null,1,null,"Falsehood Detection",null,null,null,null,1,null,"Medic",null,null,null,null,2]
["History (Future)",null,null,null,1,null,"High Society ",null,null,null,null,null,null,"Preparedness",null,null,null,null,8]
["Military Tactics",null,null,null,null,null,"Intimidation",null,null,null,null,null,null,"Reality Anchor",null,null,null,null,5]
["Research",null,null,null,1,null,"Reassurance",null,null,null,null,1,null,"Scuffling",null,null,null,null,4]
["Timecraft*",null,null,null,1,null,"Streetwise ",null,null,null,null,1,null,"Shooting",null,null,null,null,4]
["Trivia",null,null,null,1,null,"Taunt",null,null,null,null,null,null,"Tinkering"]
[null,null,null,null,null,null,null,null,null,null,null,null,null,"Unobtrusiveness",null,null,null,null,8]
[null,null,null,null,null,null,"Technical Abilities",null,null,null,null,null,null,"Vehicles",null,null,null,null,3]
[]
["Extra Investigative points?",null,null,null,null,null,"Forgery"]
[null,null,null,null,null,null,"Hacking",null,null,null,null,null,null,"Special Boosters:"]
[null,null,{"$f":"Z11-AA11","v":2},null,null,null,"Medical Expertise"]
[null,null,null,null,null,null,"Notice",null,null,null,null,1,null,{"$f":"IF(S13>7,'Summary of Points'!N30,\"\")","v":""}]
["Extra General points?",null,null,null,null,null,"Outdoor Survival ",null,null,null,null,null,null,{"$f":"IF(S13>7,'Summary of Points'!N31,\"\")","v":""}]
[null,null,null,null,null,null,"Paradox Prevention",null,null,null,null,2,null,{"$f":"IF(S14>7,'Summary of Points'!N32,\"\")","v":""}]
[null,null,{"$f":"Z12-AA12","v":0},null,null,null,"Science!",null,null,null,null,null,null,{"$f":"IF(S14>7,'Summary of Points'!N33,\"\")","v":""}]
[null,null,null,null,null,null,"Spying",null,null,null,null,null,null,{"$f":"IF(S16>7,'Summary of Points'!N34,\"\")","v":"Don't I Know You? (Disguise):"}]
[null,null,null,null,null,null,null,null,null,null,null,null,null,{"$f":"IF(S16>7,'Summary of Points'!N35,\"\")","v":"Fool someone into thinking you've met"}]
[null,null,null,null,null,null,null,null,null,null,null,null,null,{"$f":"IF(S18>7,'Summary of Points'!N36,\"\")","v":""}]
["Gear:",null,{"$f":"'Summary of Points'!C42","v":"Autochron (portable 1-man time machine)"},null,null,null,null,null,null,null,null,null,null,{"$f":"IF(S18>7,'Summary of Points'!N37,\"\")","v":""}]
[null,null,{"$f":"'Summary of Points'!C43","v":"Impersonator mesh (+3 Unobtrusiveness until drawing notice)"},null,null,null,null,null,null,null,null,null,null,{"$f":"IF(S19>7,'Summary of Points'!N38,\"\")","v":"Flashback (Preparedness):"}]
[null,null,{"$f":"'Summary of Points'!C44","v":"MedKit (lets you use Medic skill effectively)"},null,null,null,null,null,null,null,null,null,null,{"$f":"IF(S19>7,'Summary of Points'!N39,\"\")","v":"Retroactively prepare actions"}]
[null,null,{"$f":"'Summary of Points'!C45","v":"MEM-tags (for memory modification of unconscious subjects)"},null,null,null,null,null,null,null,null,null,null,{"$f":"IF(S20>7,'Summary of Points'!N40,\"\")","v":""}]
[null,null,{"$f":"'Summary of Points'!C46","v":"PaciFist disruptor (Close range, Stun 5, subtle)"},null,null,null,null,null,null,null,null,null,null,{"$f":"IF(S20>7,'Summary of Points'!N41,\"\")","v":""}]
[null,null,{"$f":"'Summary of Points'!C47","v":"Tether (holographic PDA linked to subdermal earbud)"},null,null,null,null,null,null,null,null,null,null,{"$f":"IF(S21>7,'Summary of Points'!N42,\"\")","v":""}]
[null,null,{"$f":"'Summary of Points'!C48","v":"TimeWatch Uniform (chronomorphic, armor 1)"},null,null,null,null,null,null,null,null,null,null,{"$f":"IF(S21>7,'Summary of Points'!N43,\"\")","v":""}]
[null,null,{"$f":"'Summary of Points'!C49","v":"Translator (instant, 2-way, unnoticeable)"},null,null,null,null,null,null,null,null,null,null,{"$f":"IF(S22>7,'Summary of Points'!N44,\"\")","v":""}]
[null,null,null,null,null,null,null,null,null,null,null,null,null,{"$f":"IF(S22>7,'Summary of Points'!N45,\"\")","v":""}]
[null,null,null,null,null,null,null,null,null,null,null,null,null,{"$f":"IF(S23>7,'Summary of Points'!N46,\"\")","v":""}]
[null,null,null,null,null,null,null,null,null,null,null,null,null,{"$f":"IF(S23>7,'Summary of Points'!N47,\"\")","v":""}]
[null,null,null,null,null,null,null,null,null,null,null,null,null,{"$f":"IF(S24>7,'Summary of Points'!N48,\"\")","v":"Nothing to See Here (Unobtr.):"}]
[null,null,null,null,null,null,null,null,null,null,null,null,null,{"$f":"IF(S24>7,'Summary of Points'!N49,\"\")","v":"Helps the whole group hide/sneak"}]
[null,null,null,null,null,null,null,null,null,null,null,null,null,{"$f":"IF(S25>7,'Summary of Points'!N50,\"\")","v":""}]
["* Start with 1 point free",null,null,null,null,null,"Each spent stitch refreshes 2 pts from 1 pool",null,null,null,null,null,null,{"$f":"IF(S25>7,'Summary of Points'!N51,\"\")","v":""}]
["** Start with 6 points free",null,null,null,null,null,"Do cool stuff, earn more stitches! (max 3)"]

{"sheet":"Marksman template","index":11,"n_rows":52,"n_cols":27,"rows_kept":52,"cut":false,"hidden":false,"merged":[[49,13,49,18],[50,13,50,18],[51,13,51,18],[52,13,52,18],[45,13,45,18],[46,13,46,18],[47,13,47,18],[48,13,48,18],[41,13,41,18],[42,13,42,18],[43,13,43,18],[44,13,44,18],[37,13,37,18],[38,13,38,18],[39,13,39,18],[40,13,40,18],[33,13,33,18],[34,13,34,18],[35,13,35,18],[36,13,36,18],[29,13,29,18],[30,13,30,18],[31,13,31,18],[32,13,32,18],[27,13,27,18],[0,15,0,18],[0,10,0,13],[10,0,10,11],[10,13,10,18],[38,2,38,12],[39,2,39,12],[0,3,0,8],[2,3,2,8],[3,3,3,8],[4,3,4,8],[5,3,5,8],[6,3,6,8],[37,2,37,12],[36,2,36,12],[48,2,48,12],[49,2,49,12],[40,2,40,12],[44,2,44,12],[45,2,45,12],[46,2,46,12],[43,2,43,12],[42,2,42,12],[41,2,41,12],[47,2,47,12]]}
["Name:",null,null,"Marksman",null,null,null,null,null,null,"Chronal Stability",null,null,null,null,"Health"]
[null,null,null,null,null,null,null,null,null,null,{"$f":"IF($N$9>=15,15,\"\")","v":""},{"$f":"IF($N$9>=14,14,\"\")","v":""},{"$f":"IF($N$9>=13,13,\"\")","v":""},{"$f":"IF($N$9>=12,12,\"\")","v":""},null,{"$f":"IF($S$9>=15,15,\"\")","v":""},{"$f":"IF($S$9>=14,14,\"\")","v":""},{"$f":"IF($S$9>=13,13,\"\")","v":""},{"$f":"IF($S$9>=12,12,\"\")","v":""}]
["Nationality:",null,null,null,null,null,null,null,null,null,{"$f":"IF($N$9>=11,11,\"\")","v":""},{"$f":"IF($N$9>=10,10,\"\")","v":""},{"$f":"IF($N$9>=9,9,\"\")","v":""},{"$f":"IF($N$9>=8,8,\"\")","v":8},null,{"$f":"IF($S$9>=11,11,\"\")","v":""},{"$f":"IF($S$9>=10,10,\"\")","v":""},{"$f":"IF($S$9>=9,9,\"\")","v":""},{"$f":"IF($S$9>=8,8,\"\")","v":8}]
["Origin Time:",null,null,null,null,null,null,null,null,null,{"$f":"IF($N$9>=7,7,\"\")","v":7},6,5,4,null,{"$f":"IF($S$9>=7,7,\"\")","v":7},6,5,4]
["Profession: ",null,null,"Marksman",null,null,null,null,null,null,3,2,1,0,null,3,2,1,0]
["Age:",null,null,null,null,null,null,null,null,null,-1,-2,-3,-4,null,-1,-2,-3,-4]
["Drive:",null,null,null,null,null,null,null,null,null,-5,-6,-7,-8,null,-5,-6,-7,-8,null,null,null,null,null,"XP - "]
[null,null,null,null,null,null,null,null,null,null,-9,-10,-11,-12,null,-9,-10,-11,-12,null,null,null,null,null,"Extra"]
["Hit Threshold:",null,null,{"$f":"IF(S13>7,4,3)","v":4},null,"Armor:",null,{"$f":"IF(C43='Summary of Points'!C48,1,0)","v":1},null,null,"Max: ",null,null,{"$f":"S15","v":8},null,"Max: ",null,null,{"$f":"S17","v":8},null,null,null,null,null,"Points?"]
[]
["INVESTIGATIVE ABILITIES",null,null,null,null,null,null,null,null,null,null,null,null,"GENERAL ABILITIES",null,null,null,null,null,null,null,"Investigative:",null,null,0,{"$f":"'Summary of Points'!F4+Y11","v":16},{"$f":"SUM(E15:E24)+SUM(L14:L36)-1","v":14}]
[null,null,null,null,null,null,null,null,null,null,null,null,null,null,null,null,null,null,null,null,null,"General:",null,null,0,{"$f":"'Summary of Points'!E5+Y12","v":50},{"$f":"SUM(S12:S28)-12","v":50}]
["Academic Abilities",null,null,null,null,null,"Interpersonal Abilities ",null,null,null,null,null,null,"Athletics",null,null,null,null,8]
[null,null,null,null,null,null,null,null,null,null,null,null,null,"Burglary",null,null,null,null,2]
["Anthropology",null,null,null,null,null,"Authority",null,null,null,null,1,null,"Chronal Stability**",null,null,null,null,8]
["Architecture ",null,null,null,1,null,"Bureaucracy",null,null,null,null,null,null,"Disguise",null,null,null,null,3]
["History (Ancient)",null,null,null,null,null,"Charm",null,null,null,null,1,null,"Health**",null,null,null,null,8]
["History (Contemporary)",null,null,null,1,null,"Falsehood Detection",null,null,null,null,1,null,"Medic",null,null,null,null,1]
["History (Future)",null,null,null,null,null,"High Society ",null,null,null,null,1,null,"Preparedness",null,null,null,null,8]
["Military Tactics",null,null,null,2,null,"Intimidation",null,null,null,null,1,null,"Reality Anchor",null,null,null,null,1]
["Research",null,null,null,1,null,"Reassurance",null,null,null,null,null,null,"Scuffling",null,null,null,null,3]
["Timecraft*",null,null,null,1,null,"Streetwise ",null,null,null,null,1,null,"Shooting",null,null,null,null,10]
["Trivia",null,null,null,null,null,"Taunt",null,null,null,null,null,null,"Tinkering",null,null,null,null,3]
[null,null,null,null,null,null,null,null,null,null,null,null,null,"Unobtrusiveness",null,null,null,null,4]
[null,null,null,null,null,null,"Technical Abilities",null,null,null,null,null,null,"Vehicles",null,null,null,null,3]
[]
["Extra Investigative points?",null,null,null,null,null,"Forgery"]
[null,null,null,null,null,null,"Hacking",null,null,null,null,null,null,"Special Boosters:"]
[null,null,{"$f":"Z11-AA11","v":2},null,null,null,"Medical Expertise"]
[null,null,null,null,null,null,"Notice",null,null,null,null,1,null,{"$f":"IF(S13>7,'Summary of Points'!N30,\"\")","v":"Hard to Hit (Athletics):"}]
["Extra General points?",null,null,null,null,null,"Outdoor Survival ",null,null,null,null,null,null,{"$f":"IF(S13>7,'Summary of Points'!N31,\"\")","v":"Hit Threshold = 4, not 3"}]
[null,null,null,null,null,null,"Paradox Prevention",null,null,null,null,null,null,{"$f":"IF(S14>7,'Summary of Points'!N32,\"\")","v":""}]
[null,null,{"$f":"Z12-AA12","v":0},null,null,null,"Science!",null,null,null,null,1,null,{"$f":"IF(S14>7,'Summary of Points'!N33,\"\")","v":""}]
[null,null,null,null,null,null,"Spying",null,null,null,null,1,null,{"$f":"IF(S16>7,'Summary of Points'!N34,\"\")","v":""}]
[null,null,null,null,null,null,null,null,null,null,null,null,null,{"$f":"IF(S16>7,'Summary of Points'!N35,\"\")","v":""}]
[null,null,null,null,null,null,null,null,null,null,null,null,null,{"$f":"IF(S18>7,'Summary of Points'!N36,\"\")","v":""}]
["Gear:",null,{"$f":"'Summary of Points'!C42","v":"Autochron (portable 1-man time machine)"},null,null,null,null,null,null,null,null,null,null,{"$f":"IF(S18>7,'Summary of Points'!N37,\"\")","v":""}]
[null,null,{"$f":"'Summary of Points'!C43","v":"Impersonator mesh (+3 Unobtrusiveness until drawing notice)"},null,null,null,null,null,null,null,null,null,null,{"$f":"IF(S19>7,'Summary of Points'!N38,\"\")","v":"Flashback (Preparedness):"}]
[null,null,{"$f":"'Summary of Points'!C44","v":"MedKit (lets you use Medic skill effectively)"},null,null,null,null,null,null,null,null,null,null,{"$f":"IF(S19>7,'Summary of Points'!N39,\"\")","v":"Retroactively prepare actions"}]
[null,null,{"$f":"'Summary of Points'!C45","v":"MEM-tags (for memory modification of unconscious subjects)"},null,null,null,null,null,null,null,null,null,null,{"$f":"IF(S20>7,'Summary of Points'!N40,\"\")","v":""}]
[null,null,{"$f":"'Summary of Points'!C46","v":"PaciFist disruptor (Close range, Stun 5, subtle)"},null,null,null,null,null,null,null,null,null,null,{"$f":"IF(S20>7,'Summary of Points'!N41,\"\")","v":""}]
[null,null,{"$f":"'Summary of Points'!C47","v":"Tether (holographic PDA linked to subdermal earbud)"},null,null,null,null,null,null,null,null,null,null,{"$f":"IF(S21>7,'Summary of Points'!N42,\"\")","v":""}]
[null,null,{"$f":"'Summary of Points'!C48","v":"TimeWatch Uniform (chronomorphic, armor 1)"},null,null,null,null,null,null,null,null,null,null,{"$f":"IF(S21>7,'Summary of Points'!N43,\"\")","v":""}]
[null,null,{"$f":"'Summary of Points'!C49","v":"Translator (instant, 2-way, unnoticeable)"},null,null,null,null,null,null,null,null,null,null,{"$f":"IF(S22>7,'Summary of Points'!N44,\"\")","v":"Double Tap (Shooting):"}]
[null,null,null,null,null,null,null,null,null,null,null,null,null,{"$f":"IF(S22>7,'Summary of Points'!N45,\"\")","v":"Shoot 2nd foe at +2 Difficulty"}]
[null,null,null,null,null,null,null,null,null,null,null,null,null,{"$f":"IF(S23>7,'Summary of Points'!N46,\"\")","v":""}]
[null,null,null,null,null,null,null,null,null,null,null,null,null,{"$f":"IF(S23>7,'Summary of Points'!N47,\"\")","v":""}]
[null,null,null,null,null,null,null,null,null,null,null,null,null,{"$f":"IF(S24>7,'Summary of Points'!N48,\"\")","v":""}]
[null,null,null,null,null,null,null,null,null,null,null,null,null,{"$f":"IF(S24>7,'Summary of Points'!N49,\"\")","v":""}]
[null,null,null,null,null,null,null,null,null,null,null,null,null,{"$f":"IF(S25>7,'Summary of Points'!N50,\"\")","v":""}]
["* Start with 1 point free",null,null,null,null,null,"Each spent stitch refreshes 2 pts from 1 pool",null,null,null,null,null,null,{"$f":"IF(S25>7,'Summary of Points'!N51,\"\")","v":""}]
["** Start with 6 points free",null,null,null,null,null,"Do cool stuff, earn more stitches! (max 3)"]

{"sheet":"Physician template","index":12,"n_rows":52,"n_cols":27,"rows_kept":52,"cut":false,"hidden":false,"merged":[[48,2,48,12],[49,2,49,12],[40,2,40,12],[44,2,44,12],[45,2,45,12],[46,2,46,12],[43,2,43,12],[42,2,42,12],[41,2,41,12],[47,2,47,12],[36,2,36,12],[38,2,38,12],[39,2,39,12],[0,3,0,8],[2,3,2,8],[3,3,3,8],[4,3,4,8],[5,3,5,8],[6,3,6,8],[37,2,37,12],[35,13,35,18],[27,13,27,18],[0,15,0,18],[0,10,0,13],[10,0,10,11],[10,13,10,18],[29,13,29,18],[30,13,30,18],[31,13,31,18],[32,13,32,18],[33,13,33,18],[34,13,34,18],[47,13,47,18],[36,13,36,18],[37,13,37,18],[38,13,38,18],[39,13,39,18],[40,13,40,18],[41,13,41,18],[42,13,42,18],[43,13,43,18],[44,13,44,18],[45,13,45,18],[46,13,46,18],[48,13,48,18],[49,13,49,18],[50,13,50,18],[51,13,51,18],[52,13,52,18]]}
["Name:",null,null,"Physician",null,null,null,null,null,null,"Chronal Stability",null,null,null,null,"Health"]
[null,null,null,null,null,null,null,null,null,null,{"$f":"IF($N$9>=15,15,\"\")","v":""},{"$f":"IF($N$9>=14,14,\"\")","v":""},{"$f":"IF($N$9>=13,13,\"\")","v":""},{"$f":"IF($N$9>=12,12,\"\")","v":""},null,{"$f":"IF($S$9>=15,15,\"\")","v":""},{"$f":"IF($S$9>=14,14,\"\")","v":""},{"$f":"IF($S$9>=13,13,\"\")","v":""},{"$f":"IF($S$9>=12,12,\"\")","v":""}]
["Nationality:",null,null,null,null,null,null,null,null,null,{"$f":"IF($N$9>=11,11,\"\")","v":""},{"$f":"IF($N$9>=10,10,\"\")","v":""},{"$f":"IF($N$9>=9,9,\"\")","v":""},{"$f":"IF($N$9>=8,8,\"\")","v":""},null,{"$f":"IF($S$9>=11,11,\"\")","v":""},{"$f":"IF($S$9>=10,10,\"\")","v":""},{"$f":"IF($S$9>=9,9,\"\")","v":""},{"$f":"IF($S$9>=8,8,\"\")","v":""}]
["Origin Time:",null,null,null,null,null,null,null,null,null,{"$f":"IF($N$9>=7,7,\"\")","v":""},6,5,4,null,{"$f":"IF($S$9>=7,7,\"\")","v":""},6,5,4]
["Profession: ",null,null,"Physician",null,null,null,null,null,null,3,2,1,0,null,3,2,1,0]
["Age:",null,null,null,null,null,null,null,null,null,-1,-2,-3,-4,null,-1,-2,-3,-4]
["Drive:",null,null,null,null,null,null,null,null,null,-5,-6,-7,-8,null,-5,-6,-7,-8,null,null,null,null,null,"XP - "]
[null,null,null,null,null,null,null,null,null,null,-9,-10,-11,-12,null,-9,-10,-11,-12,null,null,null,null,null,"Extra"]
["Hit Threshold:",null,null,{"$f":"IF(S13>7,4,3)","v":4},null,"Armor:",null,{"$f":"IF(C43='Summary of Points'!C48,1,0)","v":1},null,null,"Max: ",null,null,{"$f":"S15","v":6},null,"Max: ",null,null,{"$f":"S17","v":6},null,null,null,null,null,"Points?"]
[]
["INVESTIGATIVE ABILITIES",null,null,null,null,null,null,null,null,null,null,null,null,"GENERAL ABILITIES",null,null,null,null,null,null,null,"Investigative:",null,null,0,{"$f":"'Summary of Points'!F4+Y11","v":16},{"$f":"SUM(E15:E24)+SUM(L14:L36)-1","v":14}]
[null,null,null,null,null,null,null,null,null,null,null,null,null,null,null,null,null,null,null,null,null,"General:",null,null,0,{"$f":"'Summary of Points'!E5+Y12","v":50},{"$f":"SUM(S12:S28)-12","v":50}]
["Academic Abilities",null,null,null,null,null,"Interpersonal Abilities ",null,null,null,null,null,null,"Athletics",null,null,null,null,8]
[null,null,null,null,null,null,null,null,null,null,null,null,null,"Burglary",null,null,null,null,1]
["Anthropology",null,null,null,1,null,"Authority",null,null,null,null,null,null,"Chronal Stability**",null,null,null,null,6]
["Architecture ",null,null,null,null,null,"Bureaucracy",null,null,null,null,1,null,"Disguise",null,null,null,null,3]
["History (Ancient)",null,null,null,null,null,"Charm",null,null,null,null,1,null,"Health**",null,null,null,null,6]
["History (Contemporary)",null,null,null,1,null,"Falsehood Detection",null,null,null,null,1,null,"Medic",null,null,null,null,9]
["History (Future)",null,null,null,1,null,"High Society ",null,null,null,null,null,null,"Preparedness",null,null,null,null,6]
["Military Tactics",null,null,null,null,null,"Intimidation",null,null,null,null,null,null,"Reality Anchor",null,null,null,null,6]
["Research",null,null,null,1,null,"Reassurance",null,null,null,null,1,null,"Scuffling",null,null,null,null,3]
["Timecraft*",null,null,null,1,null,"Streetwise ",null,null,null,null,null,null,"Shooting",null,null,null,null,5]
["Trivia",null,null,null,1,null,"Taunt",null,null,null,null,null,null,"Tinkering",null,null,null,null,3]
[null,null,null,null,null,null,null,null,null,null,null,null,null,"Unobtrusiveness",null,null,null,null,3]
[null,null,null,null,null,null,"Technical Abilities",null,null,null,null,null,null,"Vehicles",null,null,null,null,3]
[]
["Extra Investigative points?",null,null,null,null,null,"Forgery"]
[null,null,null,null,null,null,"Hacking",null,null,null,null,null,null,"Special Boosters:"]
[null,null,{"$f":"Z11-AA11","v":2},null,null,null,"Medical Expertise",null,null,null,null,2]
[null,null,null,null,null,null,"Notice",null,null,null,null,1,null,{"$f":"IF(S13>7,'Summary of Points'!N30,\"\")","v":"Hard to Hit (Athletics):"}]
["Extra General points?",null,null,null,null,null,"Outdoor Survival ",null,null,null,null,null,null,{"$f":"IF(S13>7,'Summary of Points'!N31,\"\")","v":"Hit Threshold = 4, not 3"}]
[null,null,null,null,null,null,"Paradox Prevention",null,null,null,null,1,null,{"$f":"IF(S14>7,'Summary of Points'!N32,\"\")","v":""}]
[null,null,{"$f":"Z12-AA12","v":0},null,null,null,"Science!",null,null,null,null,1,null,{"$f":"IF(S14>7,'Summary of Points'!N33,\"\")","v":""}]
[null,null,null,null,null,null,"Spying",null,null,null,null,null,null,{"$f":"IF(S16>7,'Summary of Points'!N34,\"\")","v":""}]
[null,null,null,null,null,null,null,null,null,null,null,null,null,{"$f":"IF(S16>7,'Summary of Points'!N35,\"\")","v":""}]
[null,null,null,null,null,null,null,null,null,null,null,null,null,{"$f":"IF(S18>7,'Summary of Points'!N36,\"\")","v":"Heal Thyself (Medic):"}]
["Gear:",null,{"$f":"'Summary of Points'!C42","v":"Autochron (portable 1-man time machine)"},null,null,null,null,null,null,null,null,null,null,{"$f":"IF(S18>7,'Summary of Points'!N37,\"\")","v":"Heal yourself more efficiently"}]
[null,null,{"$f":"'Summary of Points'!C43","v":"Impersonator mesh (+3 Unobtrusiveness until drawing notice)"},null,null,null,null,null,null,null,null,null,null,{"$f":"IF(S19>7,'Summary of Points'!N38,\"\")","v":""}]
[null,null,{"$f":"'Summary of Points'!C44","v":"MedKit (lets you use Medic skill effectively)"},null,null,null,null,null,null,null,null,null,null,{"$f":"IF(S19>7,'Summary of Points'!N39,\"\")","v":""}]
[null,null,{"$f":"'Summary of Points'!C45","v":"MEM-tags (for memory modification of unconscious subjects)"},null,null,null,null,null,null,null,null,null,null,{"$f":"IF(S20>7,'Summary of Points'!N40,\"\")","v":""}]
[null,null,{"$f":"'Summary of Points'!C46","v":"PaciFist disruptor (Close range, Stun 5, subtle)"},null,null,null,null,null,null,null,null,null,null,{"$f":"IF(S20>7,'Summary of Points'!N41,\"\")","v":""}]
[null,null,{"$f":"'Summary of Points'!C47","v":"Tether (holographic PDA linked to subdermal earbud)"},null,null,null,null,null,null,null,null,null,null,{"$f":"IF(S21>7,'Summary of Points'!N42,\"\")","v":""}]
[null,null,{"$f":"'Summary of Points'!C48","v":"TimeWatch Uniform (chronomorphic, armor 1)"},null,null,null,null,null,null,null,null,null,null,{"$f":"IF(S21>7,'Summary of Points'!N43,\"\")","v":""}]
[null,null,{"$f":"'Summary of Points'!C49","v":"Translator (instant, 2-way, unnoticeable)"},null,null,null,null,null,null,null,null,null,null,{"$f":"IF(S22>7,'Summary of Points'!N44,\"\")","v":""}]
[null,null,null,null,null,null,null,null,null,null,null,null,null,{"$f":"IF(S22>7,'Summary of Points'!N45,\"\")","v":""}]
[null,null,null,null,null,null,null,null,null,null,null,null,null,{"$f":"IF(S23>7,'Summary of Points'!N46,\"\")","v":""}]
[null,null,null,null,null,null,null,null,null,null,null,null,null,{"$f":"IF(S23>7,'Summary of Points'!N47,\"\")","v":""}]
[null,null,null,null,null,null,null,null,null,null,null,null,null,{"$f":"IF(S24>7,'Summary of Points'!N48,\"\")","v":""}]
[null,null,null,null,null,null,null,null,null,null,null,null,null,{"$f":"IF(S24>7,'Summary of Points'!N49,\"\")","v":""}]
[null,null,null,null,null,null,null,null,null,null,null,null,null,{"$f":"IF(S25>7,'Summary of Points'!N50,\"\")","v":""}]
["* Start with 1 point free",null,null,null,null,null,"Each spent stitch refreshes 2 pts from 1 pool",null,null,null,null,null,null,{"$f":"IF(S25>7,'Summary of Points'!N51,\"\")","v":""}]
["** Start with 6 points free",null,null,null,null,null,"Do cool stuff, earn more stitches! (max 3)"]

{"sheet":"Pilot template","index":13,"n_rows":52,"n_cols":27,"rows_kept":52,"cut":false,"hidden":false,"merged":[[49,13,49,18],[50,13,50,18],[51,13,51,18],[52,13,52,18],[45,13,45,18],[46,13,46,18],[47,13,47,18],[48,13,48,18],[41,13,41,18],[42,13,42,18],[43,13,43,18],[44,13,44,18],[37,13,37,18],[38,13,38,18],[39,13,39,18],[40,13,40,18],[33,13,33,18],[34,13,34,18],[35,13,35,18],[36,13,36,18],[29,13,29,18],[30,13,30,18],[31,13,31,18],[32,13,32,18],[27,13,27,18],[0,15,0,18],[0,10,0,13],[10,0,10,11],[10,13,10,18],[38,2,38,12],[39,2,39,12],[0,3,0,8],[2,3,2,8],[3,3,3,8],[4,3,4,8],[5,3,5,8],[6,3,6,8],[37,2,37,12],[36,2,36,12],[48,2,48,12],[49,2,49,12],[40,2,40,12],[44,2,44,12],[45,2,45,12],[46,2,46,12],[43,2,43,12],[42,2,42,12],[41,2,41,12],[47,2,47,12]]}
["Name:",null,null,"Pilot",null,null,null,null,null,null,"Chronal Stability",null,null,null,null,"Health"]
[null,null,null,null,null,null,null,null,null,null,{"$f":"IF($N$9>=15,15,\"\")","v":""},{"$f":"IF($N$9>=14,14,\"\")","v":""},{"$f":"IF($N$9>=13,13,\"\")","v":""},{"$f":"IF($N$9>=12,12,\"\")","v":""},null,{"$f":"IF($S$9>=15,15,\"\")","v":""},{"$f":"IF($S$9>=14,14,\"\")","v":""},{"$f":"IF($S$9>=13,13,\"\")","v":""},{"$f":"IF($S$9>=12,12,\"\")","v":""}]
["Nationality:",null,null,null,null,null,null,null,null,null,{"$f":"IF($N$9>=11,11,\"\")","v":""},{"$f":"IF($N$9>=10,10,\"\")","v":""},{"$f":"IF($N$9>=9,9,\"\")","v":""},{"$f":"IF($N$9>=8,8,\"\")","v":""},null,{"$f":"IF($S$9>=11,11,\"\")","v":""},{"$f":"IF($S$9>=10,10,\"\")","v":""},{"$f":"IF($S$9>=9,9,\"\")","v":""},{"$f":"IF($S$9>=8,8,\"\")","v":8}]
["Origin Time:",null,null,null,null,null,null,null,null,null,{"$f":"IF($N$9>=7,7,\"\")","v":7},6,5,4,null,{"$f":"IF($S$9>=7,7,\"\")","v":7},6,5,4]
["Profession: ",null,null,"Pilot",null,null,null,null,null,null,3,2,1,0,null,3,2,1,0]
["Age:",null,null,null,null,null,null,null,null,null,-1,-2,-3,-4,null,-1,-2,-3,-4]
["Drive:",null,null,null,null,null,null,null,null,null,-5,-6,-7,-8,null,-5,-6,-7,-8,null,null,null,null,null,"XP - "]
[null,null,null,null,null,null,null,null,null,null,-9,-10,-11,-12,null,-9,-10,-11,-12,null,null,null,null,null,"Extra"]
["Hit Threshold:",null,null,{"$f":"IF(S13>7,4,3)","v":3},null,"Armor:",null,{"$f":"IF(C43='Summary of Points'!C48,1,0)","v":1},null,null,"Max: ",null,null,{"$f":"S15","v":7},null,"Max: ",null,null,{"$f":"S17","v":8},null,null,null,null,null,"Points?"]
[]
["INVESTIGATIVE ABILITIES",null,null,null,null,null,null,null,null,null,null,null,null,"GENERAL ABILITIES",null,null,null,null,null,null,null,"Investigative:",null,null,0,{"$f":"'Summary of Points'!F4+Y11","v":16},{"$f":"SUM(E15:E24)+SUM(L14:L36)-1","v":14}]
[null,null,null,null,null,null,null,null,null,null,null,null,null,null,null,null,null,null,null,null,null,"General:",null,null,0,{"$f":"'Summary of Points'!E5+Y12","v":50},{"$f":"SUM(S12:S28)-12","v":50}]
["Academic Abilities",null,null,null,null,null,"Interpersonal Abilities ",null,null,null,null,null,null,"Athletics",null,null,null,null,5]
[null,null,null,null,null,null,null,null,null,null,null,null,null,"Burglary"]
["Anthropology",null,null,null,null,null,"Authority",null,null,null,null,1,null,"Chronal Stability**",null,null,null,null,7]
["Architecture ",null,null,null,null,null,"Bureaucracy",null,null,null,null,null,null,"Disguise",null,null,null,null,3]
["History (Ancient)",null,null,null,null,null,"Charm",null,null,null,null,1,null,"Health**",null,null,null,null,8]
["History (Contemporary)",null,null,null,1,null,"Falsehood Detection",null,null,null,null,null,null,"Medic",null,null,null,null,3]
["History (Future)",null,null,null,null,null,"High Society ",null,null,null,null,null,null,"Preparedness",null,null,null,null,3]
["Military Tactics",null,null,null,1,null,"Intimidation",null,null,null,null,1,null,"Reality Anchor",null,null,null,null,5]
["Research",null,null,null,1,null,"Reassurance",null,null,null,null,1,null,"Scuffling",null,null,null,null,3]
["Timecraft*",null,null,null,1,null,"Streetwise ",null,null,null,null,1,null,"Shooting",null,null,null,null,6]
["Trivia",null,null,null,null,null,"Taunt",null,null,null,null,1,null,"Tinkering",null,null,null,null,8]
[null,null,null,null,null,null,null,null,null,null,null,null,null,"Unobtrusiveness",null,null,null,null,3]
[null,null,null,null,null,null,"Technical Abilities",null,null,null,null,null,null,"Vehicles",null,null,null,null,8]
[]
["Extra Investigative points?",null,null,null,null,null,"Forgery"]
[null,null,null,null,null,null,"Hacking",null,null,null,null,1,null,"Special Boosters:"]
[null,null,{"$f":"Z11-AA11","v":2},null,null,null,"Medical Expertise"]
[null,null,null,null,null,null,"Notice",null,null,null,null,1,null,{"$f":"IF(S13>7,'Summary of Points'!N30,\"\")","v":""}]
["Extra General points?",null,null,null,null,null,"Outdoor Survival ",null,null,null,null,null,null,{"$f":"IF(S13>7,'Summary of Points'!N31,\"\")","v":""}]
[null,null,null,null,null,null,"Paradox Prevention",null,null,null,null,2,null,{"$f":"IF(S14>7,'Summary of Points'!N32,\"\")","v":""}]
[null,null,{"$f":"Z12-AA12","v":0},null,null,null,"Science!",null,null,null,null,1,null,{"$f":"IF(S14>7,'Summary of Points'!N33,\"\")","v":""}]
[null,null,null,null,null,null,"Spying",null,null,null,null,null,null,{"$f":"IF(S16>7,'Summary of Points'!N34,\"\")","v":""}]
[null,null,null,null,null,null,null,null,null,null,null,null,null,{"$f":"IF(S16>7,'Summary of Points'!N35,\"\")","v":""}]
[null,null,null,null,null,null,null,null,null,null,null,null,null,{"$f":"IF(S18>7,'Summary of Points'!N36,\"\")","v":""}]
["Gear:",null,{"$f":"'Summary of Points'!C42","v":"Autochron (portable 1-man time machine)"},null,null,null,null,null,null,null,null,null,null,{"$f":"IF(S18>7,'Summary of Points'!N37,\"\")","v":""}]
[null,null,{"$f":"'Summary of Points'!C43","v":"Impersonator mesh (+3 Unobtrusiveness until drawing notice)"},null,null,null,null,null,null,null,null,null,null,{"$f":"IF(S19>7,'Summary of Points'!N38,\"\")","v":""}]
[null,null,{"$f":"'Summary of Points'!C44","v":"MedKit (lets you use Medic skill effectively)"},null,null,null,null,null,null,null,null,null,null,{"$f":"IF(S19>7,'Summary of Points'!N39,\"\")","v":""}]
[null,null,{"$f":"'Summary of Points'!C45","v":"MEM-tags (for memory modification of unconscious subjects)"},null,null,null,null,null,null,null,null,null,null,{"$f":"IF(S20>7,'Summary of Points'!N40,\"\")","v":""}]
[null,null,{"$f":"'Summary of Points'!C46","v":"PaciFist disruptor (Close range, Stun 5, subtle)"},null,null,null,null,null,null,null,null,null,null,{"$f":"IF(S20>7,'Summary of Points'!N41,\"\")","v":""}]
[null,null,{"$f":"'Summary of Points'!C47","v":"Tether (holographic PDA linked to subdermal earbud)"},null,null,null,null,null,null,null,null,null,null,{"$f":"IF(S21>7,'Summary of Points'!N42,\"\")","v":""}]
[null,null,{"$f":"'Summary of Points'!C48","v":"TimeWatch Uniform (chronomorphic, armor 1)"},null,null,null,null,null,null,null,null,null,null,{"$f":"IF(S21>7,'Summary of Points'!N43,\"\")","v":""}]
[null,null,{"$f":"'Summary of Points'!C49","v":"Translator (instant, 2-way, unnoticeable)"},null,null,null,null,null,null,null,null,null,null,{"$f":"IF(S22>7,'Summary of Points'!N44,\"\")","v":""}]
[null,null,null,null,null,null,null,null,null,null,null,null,null,{"$f":"IF(S22>7,'Summary of Points'!N45,\"\")","v":""}]
[null,null,null,null,null,null,null,null,null,null,null,null,null,{"$f":"IF(S23>7,'Summary of Points'!N46,\"\")","v":"Rapid Deployment (Tinkering):"}]
[null,null,null,null,null,null,null,null,null,null,null,null,null,{"$f":"IF(S23>7,'Summary of Points'!N47,\"\")","v":"Complete Tinkering tasks in 1/2 the time"}]
[null,null,null,null,null,null,null,null,null,null,null,null,null,{"$f":"IF(S24>7,'Summary of Points'!N48,\"\")","v":""}]
[null,null,null,null,null,null,null,null,null,null,null,null,null,{"$f":"IF(S24>7,'Summary of Points'!N49,\"\")","v":""}]
[null,null,null,null,null,null,null,null,null,null,null,null,null,{"$f":"IF(S25>7,'Summary of Points'!N50,\"\")","v":"Keep Up (Vehicles):"}]
["* Start with 1 point free",null,null,null,null,null,"Each spent stitch refreshes 2 pts from 1 pool",null,null,null,null,null,null,{"$f":"IF(S25>7,'Summary of Points'!N51,\"\")","v":"Improved piggyback of Vehicle tests"}]
["** Start with 6 points free",null,null,null,null,null,"Do cool stuff, earn more stitches! (max 3)"]

{"sheet":"Scientist template","index":14,"n_rows":52,"n_cols":27,"rows_kept":52,"cut":false,"hidden":false,"merged":[[48,2,48,12],[49,2,49,12],[40,2,40,12],[44,2,44,12],[45,2,45,12],[46,2,46,12],[43,2,43,12],[42,2,42,12],[41,2,41,12],[47,2,47,12],[36,2,36,12],[38,2,38,12],[39,2,39,12],[0,3,0,8],[2,3,2,8],[3,3,3,8],[4,3,4,8],[5,3,5,8],[6,3,6,8],[37,2,37,12],[35,13,35,18],[27,13,27,18],[0,15,0,18],[0,10,0,13],[10,0,10,11],[10,13,10,18],[29,13,29,18],[30,13,30,18],[31,13,31,18],[32,13,32,18],[33,13,33,18],[34,13,34,18],[47,13,47,18],[36,13,36,18],[37,13,37,18],[38,13,38,18],[39,13,39,18],[40,13,40,18],[41,13,41,18],[42,13,42,18],[43,13,43,18],[44,13,44,18],[45,13,45,18],[46,13,46,18],[48,13,48,18],[49,13,49,18],[50,13,50,18],[51,13,51,18],[52,13,52,18]]}
["Name:",null,null,"Scientist",null,null,null,null,null,null,"Chronal Stability",null,null,null,null,"Health"]
[null,null,null,null,null,null,null,null,null,null,{"$f":"IF($N$9>=15,15,\"\")","v":""},{"$f":"IF($N$9>=14,14,\"\")","v":""},{"$f":"IF($N$9>=13,13,\"\")","v":""},{"$f":"IF($N$9>=12,12,\"\")","v":""},null,{"$f":"IF($S$9>=15,15,\"\")","v":""},{"$f":"IF($S$9>=14,14,\"\")","v":""},{"$f":"IF($S$9>=13,13,\"\")","v":""},{"$f":"IF($S$9>=12,12,\"\")","v":""}]
["Nationality:",null,null,null,null,null,null,null,null,null,{"$f":"IF($N$9>=11,11,\"\")","v":""},{"$f":"IF($N$9>=10,10,\"\")","v":""},{"$f":"IF($N$9>=9,9,\"\")","v":""},{"$f":"IF($N$9>=8,8,\"\")","v":8},null,{"$f":"IF($S$9>=11,11,\"\")","v":""},{"$f":"IF($S$9>=10,10,\"\")","v":""},{"$f":"IF($S$9>=9,9,\"\")","v":""},{"$f":"IF($S$9>=8,8,\"\")","v":8}]
["Origin Time:",null,null,null,null,null,null,null,null,null,{"$f":"IF($N$9>=7,7,\"\")","v":7},6,5,4,null,{"$f":"IF($S$9>=7,7,\"\")","v":7},6,5,4]
["Profession: ",null,null,"Scientist",null,null,null,null,null,null,3,2,1,0,null,3,2,1,0]
["Age:",null,null,null,null,null,null,null,null,null,-1,-2,-3,-4,null,-1,-2,-3,-4]
["Drive:",null,null,null,null,null,null,null,null,null,-5,-6,-7,-8,null,-5,-6,-7,-8,null,null,null,null,null,"XP - "]
[null,null,null,null,null,null,null,null,null,null,-9,-10,-11,-12,null,-9,-10,-11,-12,null,null,null,null,null,"Extra"]
["Hit Threshold:",null,null,{"$f":"IF(S13>7,4,3)","v":4},null,"Armor:",null,{"$f":"IF(C43='Summary of Points'!C48,1,0)","v":1},null,null,"Max: ",null,null,{"$f":"S15","v":8},null,"Max: ",null,null,{"$f":"S17","v":8},null,null,null,null,null,"Points?"]
[]
["INVESTIGATIVE ABILITIES",null,null,null,null,null,null,null,null,null,null,null,null,"GENERAL ABILITIES",null,null,null,null,null,null,null,"Investigative:",null,null,0,{"$f":"'Summary of Points'!F4+Y11","v":16},{"$f":"SUM(E15:E24)+SUM(L14:L36)-1","v":14}]
[null,null,null,null,null,null,null,null,null,null,null,null,null,null,null,null,null,null,null,null,null,"General:",null,null,0,{"$f":"'Summary of Points'!E5+Y12","v":50},{"$f":"SUM(S12:S28)-12","v":50}]
["Academic Abilities",null,null,null,null,null,"Interpersonal Abilities ",null,null,null,null,null,null,"Athletics",null,null,null,null,8]
[null,null,null,null,null,null,null,null,null,null,null,null,null,"Burglary",null,null,null,null,0]
["Anthropology",null,null,null,null,null,"Authority",null,null,null,null,1,null,"Chronal Stability**",null,null,null,null,8]
["Architecture ",null,null,null,null,null,"Bureaucracy",null,null,null,null,1,null,"Disguise",null,null,null,null,3]
["History (Ancient)",null,null,null,null,null,"Charm",null,null,null,null,null,null,"Health**",null,null,null,null,8]
["History (Contemporary)",null,null,null,1,null,"Falsehood Detection",null,null,null,null,1,null,"Medic",null,null,null,null,3]
["History (Future)",null,null,null,1,null,"High Society ",null,null,null,null,null,null,"Preparedness",null,null,null,null,3]
["Military Tactics",null,null,null,null,null,"Intimidation",null,null,null,null,null,null,"Reality Anchor",null,null,null,null,3]
["Research",null,null,null,2,null,"Reassurance",null,null,null,null,1,null,"Scuffling",null,null,null,null,1]
["Timecraft*",null,null,null,1,null,"Streetwise ",null,null,null,null,null,null,"Shooting",null,null,null,null,6]
["Trivia",null,null,null,null,null,"Taunt",null,null,null,null,null,null,"Tinkering",null,null,null,null,10]
[null,null,null,null,null,null,null,null,null,null,null,null,null,"Unobtrusiveness",null,null,null,null,4]
[null,null,null,null,null,null,"Technical Abilities",null,null,null,null,null,null,"Vehicles",null,null,null,null,5]
[]
["Extra Investigative points?",null,null,null,null,null,"Forgery"]
[null,null,null,null,null,null,"Hacking",null,null,null,null,1,null,"Special Boosters:"]
[null,null,{"$f":"Z11-AA11","v":2},null,null,null,"Medical Expertise",null,null,null,null,1]
[null,null,null,null,null,null,"Notice",null,null,null,null,1,null,{"$f":"IF(S13>7,'Summary of Points'!N30,\"\")","v":"Hard to Hit (Athletics):"}]
["Extra General points?",null,null,null,null,null,"Outdoor Survival ",null,null,null,null,null,null,{"$f":"IF(S13>7,'Summary of Points'!N31,\"\")","v":"Hit Threshold = 4, not 3"}]
[null,null,null,null,null,null,"Paradox Prevention",null,null,null,null,1,null,{"$f":"IF(S14>7,'Summary of Points'!N32,\"\")","v":""}]
[null,null,{"$f":"Z12-AA12","v":0},null,null,null,"Science!",null,null,null,null,2,null,{"$f":"IF(S14>7,'Summary of Points'!N33,\"\")","v":""}]
[null,null,null,null,null,null,"Spying",null,null,null,null,null,null,{"$f":"IF(S16>7,'Summary of Points'!N34,\"\")","v":""}]
[null,null,null,null,null,null,null,null,null,null,null,null,null,{"$f":"IF(S16>7,'Summary of Points'!N35,\"\")","v":""}]
[null,null,null,null,null,null,null,null,null,null,null,null,null,{"$f":"IF(S18>7,'Summary of Points'!N36,\"\")","v":""}]
["Gear:",null,{"$f":"'Summary of Points'!C42","v":"Autochron (portable 1-man time machine)"},null,null,null,null,null,null,null,null,null,null,{"$f":"IF(S18>7,'Summary of Points'!N37,\"\")","v":""}]
[null,null,{"$f":"'Summary of Points'!C43","v":"Impersonator mesh (+3 Unobtrusiveness until drawing notice)"},null,null,null,null,null,null,null,null,null,null,{"$f":"IF(S19>7,'Summary of Points'!N38,\"\")","v":""}]
[null,null,{"$f":"'Summary of Points'!C44","v":"MedKit (lets you use Medic skill effectively)"},null,null,null,null,null,null,null,null,null,null,{"$f":"IF(S19>7,'Summary of Points'!N39,\"\")","v":""}]
[null,null,{"$f":"'Summary of Points'!C45","v":"MEM-tags (for memory modification of unconscious subjects)"},null,null,null,null,null,null,null,null,null,null,{"$f":"IF(S20>7,'Summary of Points'!N40,\"\")","v":""}]
[null,null,{"$f":"'Summary of Points'!C46","v":"PaciFist disruptor (Close range, Stun 5, subtle)"},null,null,null,null,null,null,null,null,null,null,{"$f":"IF(S20>7,'Summary of Points'!N41,\"\")","v":""}]
[null,null,{"$f":"'Summary of Points'!C47","v":"Tether (holographic PDA linked to subdermal earbud)"},null,null,null,null,null,null,null,null,null,null,{"$f":"IF(S21>7,'Summary of Points'!N42,\"\")","v":""}]
[null,null,{"$f":"'Summary of Points'!C48","v":"TimeWatch Uniform (chronomorphic, armor 1)"},null,null,null,null,null,null,null,null,null,null,{"$f":"IF(S21>7,'Summary of Points'!N43,\"\")","v":""}]
[null,null,{"$f":"'Summary of Points'!C49","v":"Translator (instant, 2-way, unnoticeable)"},null,null,null,null,null,null,null,null,null,null,{"$f":"IF(S22>7,'Summary of Points'!N44,\"\")","v":""}]
[null,null,null,null,null,null,null,null,null,null,null,null,null,{"$f":"IF(S22>7,'Summary of Points'!N45,\"\")","v":""}]
[null,null,null,null,null,null,null,null,null,null,null,null,null,{"$f":"IF(S23>7,'Summary of Points'!N46,\"\")","v":"Rapid Deployment (Tinkering):"}]
[null,null,null,null,null,null,null,null,null,null,null,null,null,{"$f":"IF(S23>7,'Summary of Points'!N47,\"\")","v":"Complete Tinkering tasks in 1/2 the time"}]
[null,null,null,null,null,null,null,null,null,null,null,null,null,{"$f":"IF(S24>7,'Summary of Points'!N48,\"\")","v":""}]
[null,null,null,null,null,null,null,null,null,null,null,null,null,{"$f":"IF(S24>7,'Summary of Points'!N49,\"\")","v":""}]
[null,null,null,null,null,null,null,null,null,null,null,null,null,{"$f":"IF(S25>7,'Summary of Points'!N50,\"\")","v":""}]
["* Start with 1 point free",null,null,null,null,null,"Each spent stitch refreshes 2 pts from 1 pool",null,null,null,null,null,null,{"$f":"IF(S25>7,'Summary of Points'!N51,\"\")","v":""}]
["** Start with 6 points free",null,null,null,null,null,"Do cool stuff, earn more stitches! (max 3)"]

{"sheet":"Soldier template","index":15,"n_rows":52,"n_cols":27,"rows_kept":52,"cut":false,"hidden":false,"merged":[[48,2,48,12],[49,2,49,12],[40,2,40,12],[44,2,44,12],[45,2,45,12],[46,2,46,12],[43,2,43,12],[42,2,42,12],[41,2,41,12],[47,2,47,12],[36,2,36,12],[38,2,38,12],[39,2,39,12],[0,3,0,8],[2,3,2,8],[3,3,3,8],[4,3,4,8],[5,3,5,8],[6,3,6,8],[37,2,37,12],[35,13,35,18],[27,13,27,18],[0,15,0,18],[0,10,0,13],[10,0,10,11],[10,13,10,18],[29,13,29,18],[30,13,30,18],[31,13,31,18],[32,13,32,18],[33,13,33,18],[34,13,34,18],[47,13,47,18],[36,13,36,18],[37,13,37,18],[38,13,38,18],[39,13,39,18],[40,13,40,18],[41,13,41,18],[42,13,42,18],[43,13,43,18],[44,13,44,18],[45,13,45,18],[46,13,46,18],[48,13,48,18],[49,13,49,18],[50,13,50,18],[51,13,51,18],[52,13,52,18]]}
["Name:",null,null,"Soldier",null,null,null,null,null,null,"Chronal Stability",null,null,null,null,"Health"]
[null,null,null,null,null,null,null,null,null,null,{"$f":"IF($N$9>=15,15,\"\")","v":""},{"$f":"IF($N$9>=14,14,\"\")","v":""},{"$f":"IF($N$9>=13,13,\"\")","v":""},{"$f":"IF($N$9>=12,12,\"\")","v":""},null,{"$f":"IF($S$9>=15,15,\"\")","v":""},{"$f":"IF($S$9>=14,14,\"\")","v":""},{"$f":"IF($S$9>=13,13,\"\")","v":""},{"$f":"IF($S$9>=12,12,\"\")","v":""}]
["Nationality:",null,null,null,null,null,null,null,null,null,{"$f":"IF($N$9>=11,11,\"\")","v":""},{"$f":"IF($N$9>=10,10,\"\")","v":""},{"$f":"IF($N$9>=9,9,\"\")","v":""},{"$f":"IF($N$9>=8,8,\"\")","v":8},null,{"$f":"IF($S$9>=11,11,\"\")","v":""},{"$f":"IF($S$9>=10,10,\"\")","v":10},{"$f":"IF($S$9>=9,9,\"\")","v":9},{"$f":"IF($S$9>=8,8,\"\")","v":8}]
["Origin Time:",null,null,null,null,null,null,null,null,null,{"$f":"IF($N$9>=7,7,\"\")","v":7},6,5,4,null,{"$f":"IF($S$9>=7,7,\"\")","v":7},6,5,4]
["Profession: ",null,null,"Soldier",null,null,null,null,null,null,3,2,1,0,null,3,2,1,0]
["Age:",null,null,null,null,null,null,null,null,null,-1,-2,-3,-4,null,-1,-2,-3,-4]
["Drive:",null,null,null,null,null,null,null,null,null,-5,-6,-7,-8,null,-5,-6,-7,-8,null,null,null,null,null,"XP - "]
[null,null,null,null,null,null,null,null,null,null,-9,-10,-11,-12,null,-9,-10,-11,-12,null,null,null,null,null,"Extra"]
["Hit Threshold:",null,null,{"$f":"IF(S13>7,4,3)","v":4},null,"Armor:",null,{"$f":"IF(C43='Summary of Points'!C48,1,0)","v":1},null,null,"Max: ",null,null,{"$f":"S15","v":8},null,"Max: ",null,null,{"$f":"S17","v":10},null,null,null,null,null,"Points?"]
[]
["INVESTIGATIVE ABILITIES",null,null,null,null,null,null,null,null,null,null,null,null,"GENERAL ABILITIES",null,null,null,null,null,null,null,"Investigative:",null,null,0,{"$f":"'Summary of Points'!F4+Y11","v":16},{"$f":"SUM(E15:E24)+SUM(L14:L36)-1","v":14}]
[null,null,null,null,null,null,null,null,null,null,null,null,null,null,null,null,null,null,null,null,null,"General:",null,null,0,{"$f":"'Summary of Points'!E5+Y12","v":50},{"$f":"SUM(S12:S28)-12","v":50}]
["Academic Abilities",null,null,null,null,null,"Interpersonal Abilities ",null,null,null,null,null,null,"Athletics",null,null,null,null,8]
[null,null,null,null,null,null,null,null,null,null,null,null,null,"Burglary"]
["Anthropology",null,null,null,null,null,"Authority",null,null,null,null,1,null,"Chronal Stability**",null,null,null,null,8]
["Architecture ",null,null,null,null,null,"Bureaucracy",null,null,null,null,1,null,"Disguise",null,null,null,null,3]
["History (Ancient)",null,null,null,1,null,"Charm",null,null,null,null,null,null,"Health**",null,null,null,null,10]
["History (Contemporary)",null,null,null,1,null,"Falsehood Detection",null,null,null,null,1,null,"Medic",null,null,null,null,3]
["History (Future)",null,null,null,null,null,"High Society ",null,null,null,null,null,null,"Preparedness",null,null,null,null,5]
["Military Tactics",null,null,null,2,null,"Intimidation",null,null,null,null,1,null,"Reality Anchor",null,null,null,null,4]
["Research",null,null,null,null,null,"Reassurance",null,null,null,null,null,null,"Scuffling",null,null,null,null,6]
["Timecraft*",null,null,null,1,null,"Streetwise ",null,null,null,null,1,null,"Shooting",null,null,null,null,8]
["Trivia",null,null,null,null,null,"Taunt",null,null,null,null,1,null,"Tinkering",null,null,null,null,1]
[null,null,null,null,null,null,null,null,null,null,null,null,null,"Unobtrusiveness",null,null,null,null,3]
[null,null,null,null,null,null,"Technical Abilities",null,null,null,null,null,null,"Vehicles",null,null,null,null,3]
[]
["Extra Investigative points?",null,null,null,null,null,"Forgery"]
[null,null,null,null,null,null,"Hacking",null,null,null,null,null,null,"Special Boosters:"]
[null,null,{"$f":"Z11-AA11","v":2},null,null,null,"Medical Expertise"]
[null,null,null,null,null,null,"Notice",null,null,null,null,1,null,{"$f":"IF(S13>7,'Summary of Points'!N30,\"\")","v":"Hard to Hit (Athletics):"}]
["Extra General points?",null,null,null,null,null,"Outdoor Survival ",null,null,null,null,1,null,{"$f":"IF(S13>7,'Summary of Points'!N31,\"\")","v":"Hit Threshold = 4, not 3"}]
[null,null,null,null,null,null,"Paradox Prevention",null,null,null,null,1,null,{"$f":"IF(S14>7,'Summary of Points'!N32,\"\")","v":""}]
[null,null,{"$f":"Z12-AA12","v":0},null,null,null,"Science!",null,null,null,null,null,null,{"$f":"IF(S14>7,'Summary of Points'!N33,\"\")","v":""}]
[null,null,null,null,null,null,"Spying",null,null,null,null,1,null,{"$f":"IF(S16>7,'Summary of Points'!N34,\"\")","v":""}]
[null,null,null,null,null,null,null,null,null,null,null,null,null,{"$f":"IF(S16>7,'Summary of Points'!N35,\"\")","v":""}]
[null,null,null,null,null,null,null,null,null,null,null,null,null,{"$f":"IF(S18>7,'Summary of Points'!N36,\"\")","v":""}]
["Gear:",null,{"$f":"'Summary of Points'!C42","v":"Autochron (portable 1-man time machine)"},null,null,null,null,null,null,null,null,null,null,{"$f":"IF(S18>7,'Summary of Points'!N37,\"\")","v":""}]
[null,null,{"$f":"'Summary of Points'!C43","v":"Impersonator mesh (+3 Unobtrusiveness until drawing notice)"},null,null,null,null,null,null,null,null,null,null,{"$f":"IF(S19>7,'Summary of Points'!N38,\"\")","v":""}]
[null,null,{"$f":"'Summary of Points'!C44","v":"MedKit (lets you use Medic skill effectively)"},null,null,null,null,null,null,null,null,null,null,{"$f":"IF(S19>7,'Summary of Points'!N39,\"\")","v":""}]
[null,null,{"$f":"'Summary of Points'!C45","v":"MEM-tags (for memory modification of unconscious subjects)"},null,null,null,null,null,null,null,null,null,null,{"$f":"IF(S20>7,'Summary of Points'!N40,\"\")","v":""}]
[null,null,{"$f":"'Summary of Points'!C46","v":"PaciFist disruptor (Close range, Stun 5, subtle)"},null,null,null,null,null,null,null,null,null,null,{"$f":"IF(S20>7,'Summary of Points'!N41,\"\")","v":""}]
[null,null,{"$f":"'Summary of Points'!C47","v":"Tether (holographic PDA linked to subdermal earbud)"},null,null,null,null,null,null,null,null,null,null,{"$f":"IF(S21>7,'Summary of Points'!N42,\"\")","v":""}]
[null,null,{"$f":"'Summary of Points'!C48","v":"TimeWatch Uniform (chronomorphic, armor 1)"},null,null,null,null,null,null,null,null,null,null,{"$f":"IF(S21>7,'Summary of Points'!N43,\"\")","v":""}]
[null,null,{"$f":"'Summary of Points'!C49","v":"Translator (instant, 2-way, unnoticeable)"},null,null,null,null,null,null,null,null,null,null,{"$f":"IF(S22>7,'Summary of Points'!N44,\"\")","v":"Double Tap (Shooting):"}]
[null,null,null,null,null,null,null,null,null,null,null,null,null,{"$f":"IF(S22>7,'Summary of Points'!N45,\"\")","v":"Shoot 2nd foe at +2 Difficulty"}]
[null,null,null,null,null,null,null,null,null,null,null,null,null,{"$f":"IF(S23>7,'Summary of Points'!N46,\"\")","v":""}]
[null,null,null,null,null,null,null,null,null,null,null,null,null,{"$f":"IF(S23>7,'Summary of Points'!N47,\"\")","v":""}]
[null,null,null,null,null,null,null,null,null,null,null,null,null,{"$f":"IF(S24>7,'Summary of Points'!N48,\"\")","v":""}]
[null,null,null,null,null,null,null,null,null,null,null,null,null,{"$f":"IF(S24>7,'Summary of Points'!N49,\"\")","v":""}]
[null,null,null,null,null,null,null,null,null,null,null,null,null,{"$f":"IF(S25>7,'Summary of Points'!N50,\"\")","v":""}]
["* Start with 1 point free",null,null,null,null,null,"Each spent stitch refreshes 2 pts from 1 pool",null,null,null,null,null,null,{"$f":"IF(S25>7,'Summary of Points'!N51,\"\")","v":""}]
["** Start with 6 points free",null,null,null,null,null,"Do cool stuff, earn more stitches! (max 3)"]

{"sheet":"Spy Template","index":16,"n_rows":52,"n_cols":27,"rows_kept":52,"cut":false,"hidden":false,"merged":[[49,13,49,18],[50,13,50,18],[51,13,51,18],[52,13,52,18],[45,13,45,18],[46,13,46,18],[47,13,47,18],[48,13,48,18],[41,13,41,18],[42,13,42,18],[43,13,43,18],[44,13,44,18],[37,13,37,18],[38,13,38,18],[39,13,39,18],[40,13,40,18],[33,13,33,18],[34,13,34,18],[35,13,35,18],[36,13,36,18],[29,13,29,18],[30,13,30,18],[31,13,31,18],[32,13,32,18],[27,13,27,18],[0,15,0,18],[0,10,0,13],[10,0,10,11],[10,13,10,18],[38,2,38,12],[39,2,39,12],[0,3,0,8],[2,3,2,8],[3,3,3,8],[4,3,4,8],[5,3,5,8],[6,3,6,8],[37,2,37,12],[36,2,36,12],[48,2,48,12],[49,2,49,12],[40,2,40,12],[44,2,44,12],[45,2,45,12],[46,2,46,12],[43,2,43,12],[42,2,42,12],[41,2,41,12],[47,2,47,12]]}
["Name:",null,null,"Spy",null,null,null,null,null,null,"Chronal Stability",null,null,null,null,"Health"]
[null,null,null,null,null,null,null,null,null,null,{"$f":"IF($N$9>=15,15,\"\")","v":""},{"$f":"IF($N$9>=14,14,\"\")","v":""},{"$f":"IF($N$9>=13,13,\"\")","v":""},{"$f":"IF($N$9>=12,12,\"\")","v":""},null,{"$f":"IF($S$9>=15,15,\"\")","v":""},{"$f":"IF($S$9>=14,14,\"\")","v":""},{"$f":"IF($S$9>=13,13,\"\")","v":""},{"$f":"IF($S$9>=12,12,\"\")","v":""}]
["Nationality:",null,null,null,null,null,null,null,null,null,{"$f":"IF($N$9>=11,11,\"\")","v":""},{"$f":"IF($N$9>=10,10,\"\")","v":""},{"$f":"IF($N$9>=9,9,\"\")","v":""},{"$f":"IF($N$9>=8,8,\"\")","v":""},null,{"$f":"IF($S$9>=11,11,\"\")","v":""},{"$f":"IF($S$9>=10,10,\"\")","v":""},{"$f":"IF($S$9>=9,9,\"\")","v":""},{"$f":"IF($S$9>=8,8,\"\")","v":""}]
["Origin Time:",null,null,null,null,null,null,null,null,null,{"$f":"IF($N$9>=7,7,\"\")","v":7},6,5,4,null,{"$f":"IF($S$9>=7,7,\"\")","v":""},6,5,4]
["Profession: ",null,null,"Spy",null,null,null,null,null,null,3,2,1,0,null,3,2,1,0]
["Age:",null,null,null,null,null,null,null,null,null,-1,-2,-3,-4,null,-1,-2,-3,-4]
["Drive:",null,null,null,null,null,null,null,null,null,-5,-6,-7,-8,null,-5,-6,-7,-8,null,null,null,null,null,"XP - "]
[null,null,null,null,null,null,null,null,null,null,-9,-10,-11,-12,null,-9,-10,-11,-12,null,null,null,null,null,"Extra"]
["Hit Threshold:",null,null,{"$f":"IF(S13>7,4,3)","v":4},null,"Armor:",null,{"$f":"IF(C43='Summary of Points'!C48,1,0)","v":1},null,null,"Max: ",null,null,{"$f":"S15","v":7},null,"Max: ",null,null,{"$f":"S17","v":6},null,null,null,null,null,"Points?"]
[]
["INVESTIGATIVE ABILITIES",null,null,null,null,null,null,null,null,null,null,null,null,"GENERAL ABILITIES",null,null,null,null,null,null,null,"Investigative:",null,null,0,{"$f":"'Summary of Points'!F4+Y11","v":16},{"$f":"SUM(E15:E24)+SUM(L14:L36)-1","v":14}]
[null,null,null,null,null,null,null,null,null,null,null,null,null,null,null,null,null,null,null,null,null,"General:",null,null,0,{"$f":"'Summary of Points'!E5+Y12","v":50},{"$f":"SUM(S12:S28)-12","v":50}]
["Academic Abilities",null,null,null,null,null,"Interpersonal Abilities ",null,null,null,null,null,null,"Athletics",null,null,null,null,8]
[null,null,null,null,null,null,null,null,null,null,null,null,null,"Burglary",null,null,null,null,6]
["Anthropology",null,null,null,null,null,"Authority",null,null,null,null,null,null,"Chronal Stability**",null,null,null,null,7]
["Architecture ",null,null,null,1,null,"Bureaucracy",null,null,null,null,null,null,"Disguise",null,null,null,null,4]
["History (Ancient)",null,null,null,null,null,"Charm",null,null,null,null,1,null,"Health**",null,null,null,null,6]
["History (Contemporary)",null,null,null,1,null,"Falsehood Detection",null,null,null,null,1,null,"Medic"]
["History (Future)",null,null,null,null,null,"High Society ",null,null,null,null,1,null,"Preparedness",null,null,null,null,4]
["Military Tactics",null,null,null,null,null,"Intimidation",null,null,null,null,null,null,"Reality Anchor",null,null,null,null,3]
["Research",null,null,null,null,null,"Reassurance",null,null,null,null,1,null,"Scuffling",null,null,null,null,3]
["Timecraft*",null,null,null,1,null,"Streetwise ",null,null,null,null,1,null,"Shooting",null,null,null,null,8]
["Trivia",null,null,null,1,null,"Taunt",null,null,null,null,null,null,"Tinkering",null,null,null,null,4]
[null,null,null,null,null,null,null,null,null,null,null,null,null,"Unobtrusiveness",null,null,null,null,6]
[null,null,null,null,null,null,"Technical Abilities",null,null,null,null,null,null,"Vehicles",null,null,null,null,3]
[]
["Extra Investigative points?",null,null,null,null,null,"Forgery",null,null,null,null,1]
[null,null,null,null,null,null,"Hacking",null,null,null,null,1,null,"Special Boosters:"]
[null,null,{"$f":"Z11-AA11","v":2},null,null,null,"Medical Expertise"]
[null,null,null,null,null,null,"Notice",null,null,null,null,1,null,{"$f":"IF(S13>7,'Summary of Points'!N30,\"\")","v":"Hard to Hit (Athletics):"}]
["Extra General points?",null,null,null,null,null,"Outdoor Survival ",null,null,null,null,null,null,{"$f":"IF(S13>7,'Summary of Points'!N31,\"\")","v":"Hit Threshold = 4, not 3"}]
[null,null,null,null,null,null,"Paradox Prevention",null,null,null,null,1,null,{"$f":"IF(S14>7,'Summary of Points'!N32,\"\")","v":""}]
[null,null,{"$f":"Z12-AA12","v":0},null,null,null,"Science!",null,null,null,null,null,null,{"$f":"IF(S14>7,'Summary of Points'!N33,\"\")","v":""}]
[null,null,null,null,null,null,"Spying",null,null,null,null,2,null,{"$f":"IF(S16>7,'Summary of Points'!N34,\"\")","v":""}]
[null,null,null,null,null,null,null,null,null,null,null,null,null,{"$f":"IF(S16>7,'Summary of Points'!N35,\"\")","v":""}]
[null,null,null,null,null,null,null,null,null,null,null,null,null,{"$f":"IF(S18>7,'Summary of Points'!N36,\"\")","v":""}]
["Gear:",null,{"$f":"'Summary of Points'!C42","v":"Autochron (portable 1-man time machine)"},null,null,null,null,null,null,null,null,null,null,{"$f":"IF(S18>7,'Summary of Points'!N37,\"\")","v":""}]
[null,null,{"$f":"'Summary of Points'!C43","v":"Impersonator mesh (+3 Unobtrusiveness until drawing notice)"},null,null,null,null,null,null,null,null,null,null,{"$f":"IF(S19>7,'Summary of Points'!N38,\"\")","v":""}]
[null,null,{"$f":"'Summary of Points'!C44","v":"MedKit (lets you use Medic skill effectively)"},null,null,null,null,null,null,null,null,null,null,{"$f":"IF(S19>7,'Summary of Points'!N39,\"\")","v":""}]
[null,null,{"$f":"'Summary of Points'!C45","v":"MEM-tags (for memory modification of unconscious subjects)"},null,null,null,null,null,null,null,null,null,null,{"$f":"IF(S20>7,'Summary of Points'!N40,\"\")","v":""}]
[null,null,{"$f":"'Summary of Points'!C46","v":"PaciFist disruptor (Close range, Stun 5, subtle)"},null,null,null,null,null,null,null,null,null,null,{"$f":"IF(S20>7,'Summary of Points'!N41,\"\")","v":""}]
[null,null,{"$f":"'Summary of Points'!C47","v":"Tether (holographic PDA linked to subdermal earbud)"},null,null,null,null,null,null,null,null,null,null,{"$f":"IF(S21>7,'Summary of Points'!N42,\"\")","v":""}]
[null,null,{"$f":"'Summary of Points'!C48","v":"TimeWatch Uniform (chronomorphic, armor 1)"},null,null,null,null,null,null,null,null,null,null,{"$f":"IF(S21>7,'Summary of Points'!N43,\"\")","v":""}]
[null,null,{"$f":"'Summary of Points'!C49","v":"Translator (instant, 2-way, unnoticeable)"},null,null,null,null,null,null,null,null,null,null,{"$f":"IF(S22>7,'Summary of Points'!N44,\"\")","v":"Double Tap (Shooting):"}]
[null,null,null,null,null,null,null,null,null,null,null,null,null,{"$f":"IF(S22>7,'Summary of Points'!N45,\"\")","v":"Shoot 2nd foe at +2 Difficulty"}]
[null,null,null,null,null,null,null,null,null,null,null,null,null,{"$f":"IF(S23>7,'Summary of Points'!N46,\"\")","v":""}]
[null,null,null,null,null,null,null,null,null,null,null,null,null,{"$f":"IF(S23>7,'Summary of Points'!N47,\"\")","v":""}]
[null,null,null,null,null,null,null,null,null,null,null,null,null,{"$f":"IF(S24>7,'Summary of Points'!N48,\"\")","v":""}]
[null,null,null,null,null,null,null,null,null,null,null,null,null,{"$f":"IF(S24>7,'Summary of Points'!N49,\"\")","v":""}]
[null,null,null,null,null,null,null,null,null,null,null,null,null,{"$f":"IF(S25>7,'Summary of Points'!N50,\"\")","v":""}]
["* Start with 1 point free",null,null,null,null,null,"Each spent stitch refreshes 2 pts from 1 pool",null,null,null,null,null,null,{"$f":"IF(S25>7,'Summary of Points'!N51,\"\")","v":""}]
["** Start with 6 points free",null,null,null,null,null,"Do cool stuff, earn more stitches! (max 3)"]

{"sheet":"Thief template","index":17,"n_rows":52,"n_cols":27,"rows_kept":52,"cut":false,"hidden":false,"merged":[[49,13,49,18],[50,13,50,18],[51,13,51,18],[52,13,52,18],[45,13,45,18],[46,13,46,18],[47,13,47,18],[48,13,48,18],[41,13,41,18],[42,13,42,18],[43,13,43,18],[44,13,44,18],[37,13,37,18],[38,13,38,18],[39,13,39,18],[40,13,40,18],[33,13,33,18],[34,13,34,18],[35,13,35,18],[36,13,36,18],[29,13,29,18],[30,13,30,18],[31,13,31,18],[32,13,32,18],[27,13,27,18],[0,15,0,18],[0,10,0,13],[10,0,10,11],[10,13,10,18],[38,2,38,12],[39,2,39,12],[0,3,0,8],[2,3,2,8],[3,3,3,8],[4,3,4,8],[5,3,5,8],[6,3,6,8],[37,2,37,12],[36,2,36,12],[48,2,48,12],[49,2,49,12],[40,2,40,12],[44,2,44,12],[45,2,45,12],[46,2,46,12],[43,2,43,12],[42,2,42,12],[41,2,41,12],[47,2,47,12]]}
["Name:",null,null,"Thief",null,null,null,null,null,null,"Chronal Stability",null,null,null,null,"Health"]
[null,null,null,null,null,null,null,null,null,null,{"$f":"IF($N$9>=15,15,\"\")","v":""},{"$f":"IF($N$9>=14,14,\"\")","v":""},{"$f":"IF($N$9>=13,13,\"\")","v":""},{"$f":"IF($N$9>=12,12,\"\")","v":""},null,{"$f":"IF($S$9>=15,15,\"\")","v":""},{"$f":"IF($S$9>=14,14,\"\")","v":""},{"$f":"IF($S$9>=13,13,\"\")","v":""},{"$f":"IF($S$9>=12,12,\"\")","v":""}]
["Nationality:",null,null,null,null,null,null,null,null,null,{"$f":"IF($N$9>=11,11,\"\")","v":""},{"$f":"IF($N$9>=10,10,\"\")","v":""},{"$f":"IF($N$9>=9,9,\"\")","v":""},{"$f":"IF($N$9>=8,8,\"\")","v":""},null,{"$f":"IF($S$9>=11,11,\"\")","v":""},{"$f":"IF($S$9>=10,10,\"\")","v":""},{"$f":"IF($S$9>=9,9,\"\")","v":""},{"$f":"IF($S$9>=8,8,\"\")","v":8}]
["Origin Time:",null,null,null,null,null,null,null,null,null,{"$f":"IF($N$9>=7,7,\"\")","v":7},6,5,4,null,{"$f":"IF($S$9>=7,7,\"\")","v":7},6,5,4]
["Profession: ",null,null,"Thief",null,null,null,null,null,null,3,2,1,0,null,3,2,1,0]
["Age:",null,null,null,null,null,null,null,null,null,-1,-2,-3,-4,null,-1,-2,-3,-4]
["Drive:",null,null,null,null,null,null,null,null,null,-5,-6,-7,-8,null,-5,-6,-7,-8,null,null,null,null,null,"XP - "]
[null,null,null,null,null,null,null,null,null,null,-9,-10,-11,-12,null,-9,-10,-11,-12,null,null,null,null,null,"Extra"]
["Hit Threshold:",null,null,{"$f":"IF(S13>7,4,3)","v":4},null,"Armor:",null,{"$f":"IF(C43='Summary of Points'!C48,1,0)","v":1},null,null,"Max: ",null,null,{"$f":"S15","v":7},null,"Max: ",null,null,{"$f":"S17","v":8},null,null,null,null,null,"Points?"]
[]
["INVESTIGATIVE ABILITIES",null,null,null,null,null,null,null,null,null,null,null,null,"GENERAL ABILITIES",null,null,null,null,null,null,null,"Investigative:",null,null,0,{"$f":"'Summary of Points'!F4+Y11","v":16},{"$f":"SUM(E15:E24)+SUM(L14:L36)-1","v":5}]
[null,null,null,null,null,null,null,null,null,null,null,null,null,null,null,null,null,null,null,null,null,"General:",null,null,0,{"$f":"'Summary of Points'!E5+Y12","v":50},{"$f":"SUM(S12:S28)-12","v":50}]
["Academic Abilities",null,null,null,null,null,"Interpersonal Abilities ",null,null,null,null,null,null,"Athletics",null,null,null,null,8]
[null,null,null,null,null,null,null,null,null,null,null,null,null,"Burglary",null,null,null,null,8]
["Anthropology",null,null,null,null,null,"Authority",null,null,null,null,null,null,"Chronal Stability**",null,null,null,null,7]
["Architecture ",null,null,null,null,null,"Bureaucracy",null,null,null,null,null,null,"Disguise",null,null,null,null,4]
["History (Ancient)",null,null,null,null,null,"Charm",null,null,null,null,null,null,"Health**",null,null,null,null,8]
["History (Contemporary)",null,null,null,null,null,"Falsehood Detection",null,null,null,null,1,null,"Medic"]
["History (Future)",null,null,null,null,null,"High Society ",null,null,null,null,null,null,"Preparedness",null,null,null,null,4]
["Military Tactics",null,null,null,null,null,"Intimidation",null,null,null,null,null,null,"Reality Anchor"]
["Research",null,null,null,null,null,"Reassurance",null,null,null,null,null,null,"Scuffling",null,null,null,null,3]
["Timecraft*",null,null,null,1,null,"Streetwise ",null,null,null,null,1,null,"Shooting",null,null,null,null,6]
["Trivia",null,null,null,null,null,"Taunt",null,null,null,null,1,null,"Tinkering",null,null,null,null,2]
[null,null,null,null,null,null,null,null,null,null,null,null,null,"Unobtrusiveness",null,null,null,null,8]
[null,null,null,null,null,null,"Technical Abilities",null,null,null,null,null,null,"Vehicles",null,null,null,null,4]
[]
["Extra Investigative points?",null,null,null,null,null,"Forgery"]
[null,null,null,null,null,null,"Hacking",null,null,null,null,null,null,"Special Boosters:"]
[null,null,{"$f":"Z11-AA11","v":11},null,null,null,"Medical Expertise"]
[null,null,null,null,null,null,"Notice",null,null,null,null,1,null,{"$f":"IF(S13>7,'Summary of Points'!N30,\"\")","v":"Hard to Hit (Athletics):"}]
["Extra General points?",null,null,null,null,null,"Outdoor Survival ",null,null,null,null,null,null,{"$f":"IF(S13>7,'Summary of Points'!N31,\"\")","v":"Hit Threshold = 4, not 3"}]
[null,null,null,null,null,null,"Paradox Prevention",null,null,null,null,null,null,{"$f":"IF(S14>7,'Summary of Points'!N32,\"\")","v":"Open Sesame (Burglary):"}]
[null,null,{"$f":"Z12-AA12","v":0},null,null,null,"Science!",null,null,null,null,null,null,{"$f":"IF(S14>7,'Summary of Points'!N33,\"\")","v":"Easily open simple locks"}]
[null,null,null,null,null,null,"Spying",null,null,null,null,1,null,{"$f":"IF(S16>7,'Summary of Points'!N34,\"\")","v":""}]
[null,null,null,null,null,null,null,null,null,null,null,null,null,{"$f":"IF(S16>7,'Summary of Points'!N35,\"\")","v":""}]
[null,null,null,null,null,null,null,null,null,null,null,null,null,{"$f":"IF(S18>7,'Summary of Points'!N36,\"\")","v":""}]
["Gear:",null,{"$f":"'Summary of Points'!C42","v":"Autochron (portable 1-man time machine)"},null,null,null,null,null,null,null,null,null,null,{"$f":"IF(S18>7,'Summary of Points'!N37,\"\")","v":""}]
[null,null,{"$f":"'Summary of Points'!C43","v":"Impersonator mesh (+3 Unobtrusiveness until drawing notice)"},null,null,null,null,null,null,null,null,null,null,{"$f":"IF(S19>7,'Summary of Points'!N38,\"\")","v":""}]
[null,null,{"$f":"'Summary of Points'!C44","v":"MedKit (lets you use Medic skill effectively)"},null,null,null,null,null,null,null,null,null,null,{"$f":"IF(S19>7,'Summary of Points'!N39,\"\")","v":""}]
[null,null,{"$f":"'Summary of Points'!C45","v":"MEM-tags (for memory modification of unconscious subjects)"},null,null,null,null,null,null,null,null,null,null,{"$f":"IF(S20>7,'Summary of Points'!N40,\"\")","v":""}]
[null,null,{"$f":"'Summary of Points'!C46","v":"PaciFist disruptor (Close range, Stun 5, subtle)"},null,null,null,null,null,null,null,null,null,null,{"$f":"IF(S20>7,'Summary of Points'!N41,\"\")","v":""}]
[null,null,{"$f":"'Summary of Points'!C47","v":"Tether (holographic PDA linked to subdermal earbud)"},null,null,null,null,null,null,null,null,null,null,{"$f":"IF(S21>7,'Summary of Points'!N42,\"\")","v":""}]
[null,null,{"$f":"'Summary of Points'!C48","v":"TimeWatch Uniform (chronomorphic, armor 1)"},null,null,null,null,null,null,null,null,null,null,{"$f":"IF(S21>7,'Summary of Points'!N43,\"\")","v":""}]
[null,null,{"$f":"'Summary of Points'!C49","v":"Translator (instant, 2-way, unnoticeable)"},null,null,null,null,null,null,null,null,null,null,{"$f":"IF(S22>7,'Summary of Points'!N44,\"\")","v":""}]
[null,null,null,null,null,null,null,null,null,null,null,null,null,{"$f":"IF(S22>7,'Summary of Points'!N45,\"\")","v":""}]
[null,null,null,null,null,null,null,null,null,null,null,null,null,{"$f":"IF(S23>7,'Summary of Points'!N46,\"\")","v":""}]
[null,null,null,null,null,null,null,null,null,null,null,null,null,{"$f":"IF(S23>7,'Summary of Points'!N47,\"\")","v":""}]
[null,null,null,null,null,null,null,null,null,null,null,null,null,{"$f":"IF(S24>7,'Summary of Points'!N48,\"\")","v":"Nothing to See Here (Unobtr.):"}]
[null,null,null,null,null,null,null,null,null,null,null,null,null,{"$f":"IF(S24>7,'Summary of Points'!N49,\"\")","v":"Helps the whole group hide/sneak"}]
[null,null,null,null,null,null,null,null,null,null,null,null,null,{"$f":"IF(S25>7,'Summary of Points'!N50,\"\")","v":""}]
["* Start with 1 point free",null,null,null,null,null,"Each spent stitch refreshes 2 pts from 1 pool",null,null,null,null,null,null,{"$f":"IF(S25>7,'Summary of Points'!N51,\"\")","v":""}]
["** Start with 6 points free",null,null,null,null,null,"Do cool stuff, earn more stitches! (max 3)"]

{"sheet":"Thug template","index":18,"n_rows":52,"n_cols":27,"rows_kept":52,"cut":false,"hidden":false,"merged":[[48,2,48,12],[49,2,49,12],[40,2,40,12],[44,2,44,12],[45,2,45,12],[46,2,46,12],[43,2,43,12],[42,2,42,12],[41,2,41,12],[47,2,47,12],[36,2,36,12],[38,2,38,12],[39,2,39,12],[0,3,0,8],[2,3,2,8],[3,3,3,8],[4,3,4,8],[5,3,5,8],[6,3,6,8],[37,2,37,12],[35,13,35,18],[27,13,27,18],[0,15,0,18],[0,10,0,13],[10,0,10,11],[10,13,10,18],[29,13,29,18],[30,13,30,18],[31,13,31,18],[32,13,32,18],[33,13,33,18],[34,13,34,18],[47,13,47,18],[36,13,36,18],[37,13,37,18],[38,13,38,18],[39,13,39,18],[40,13,40,18],[41,13,41,18],[42,13,42,18],[43,13,43,18],[44,13,44,18],[45,13,45,18],[46,13,46,18],[48,13,48,18],[49,13,49,18],[50,13,50,18],[51,13,51,18],[52,13,52,18]]}
["Name:",null,null,"Thug",null,null,null,null,null,null,"Chronal Stability",null,null,null,null,"Health"]
[null,null,null,null,null,null,null,null,null,null,{"$f":"IF($N$9>=15,15,\"\")","v":""},{"$f":"IF($N$9>=14,14,\"\")","v":""},{"$f":"IF($N$9>=13,13,\"\")","v":""},{"$f":"IF($N$9>=12,12,\"\")","v":""},null,{"$f":"IF($S$9>=15,15,\"\")","v":""},{"$f":"IF($S$9>=14,14,\"\")","v":""},{"$f":"IF($S$9>=13,13,\"\")","v":""},{"$f":"IF($S$9>=12,12,\"\")","v":""}]
["Nationality:",null,null,null,null,null,null,null,null,null,{"$f":"IF($N$9>=11,11,\"\")","v":""},{"$f":"IF($N$9>=10,10,\"\")","v":""},{"$f":"IF($N$9>=9,9,\"\")","v":""},{"$f":"IF($N$9>=8,8,\"\")","v":""},null,{"$f":"IF($S$9>=11,11,\"\")","v":""},{"$f":"IF($S$9>=10,10,\"\")","v":10},{"$f":"IF($S$9>=9,9,\"\")","v":9},{"$f":"IF($S$9>=8,8,\"\")","v":8}]
["Origin Time:",null,null,null,null,null,null,null,null,null,{"$f":"IF($N$9>=7,7,\"\")","v":7},6,5,4,null,{"$f":"IF($S$9>=7,7,\"\")","v":7},6,5,4]
["Profession: ",null,null,"Thug",null,null,null,null,null,null,3,2,1,0,null,3,2,1,0]
["Age:",null,null,null,null,null,null,null,null,null,-1,-2,-3,-4,null,-1,-2,-3,-4]
["Drive:",null,null,null,null,null,null,null,null,null,-5,-6,-7,-8,null,-5,-6,-7,-8,null,null,null,null,null,"XP - "]
[null,null,null,null,null,null,null,null,null,null,-9,-10,-11,-12,null,-9,-10,-11,-12,null,null,null,null,null,"Extra"]
["Hit Threshold:",null,null,{"$f":"IF(S13>7,4,3)","v":4},null,"Armor:",null,{"$f":"IF(C43='Summary of Points'!C48,1,0)","v":1},null,null,"Max: ",null,null,{"$f":"S15","v":7},null,"Max: ",null,null,{"$f":"S17","v":10},null,null,null,null,null,"Points?"]
[]
["INVESTIGATIVE ABILITIES",null,null,null,null,null,null,null,null,null,null,null,null,"GENERAL ABILITIES",null,null,null,null,null,null,null,"Investigative:",null,null,0,{"$f":"'Summary of Points'!F4+Y11","v":16},{"$f":"SUM(E15:E24)+SUM(L14:L36)-1","v":14}]
[null,null,null,null,null,null,null,null,null,null,null,null,null,null,null,null,null,null,null,null,null,"General:",null,null,0,{"$f":"'Summary of Points'!E5+Y12","v":50},{"$f":"SUM(S12:S28)-12","v":50}]
["Academic Abilities",null,null,null,null,null,"Interpersonal Abilities ",null,null,null,null,null,null,"Athletics",null,null,null,null,8]
[null,null,null,null,null,null,null,null,null,null,null,null,null,"Burglary",null,null,null,null,3]
["Anthropology",null,null,null,null,null,"Authority",null,null,null,null,1,null,"Chronal Stability**",null,null,null,null,7]
["Architecture ",null,null,null,1,null,"Bureaucracy",null,null,null,null,null,null,"Disguise",null,null,null,null,3]
["History (Ancient)",null,null,null,null,null,"Charm",null,null,null,null,null,null,"Health**",null,null,null,null,10]
["History (Contemporary)",null,null,null,1,null,"Falsehood Detection",null,null,null,null,1,null,"Medic",null,null,null,null,2]
["History (Future)",null,null,null,null,null,"High Society ",null,null,null,null,null,null,"Preparedness",null,null,null,null,4]
["Military Tactics",null,null,null,1,null,"Intimidation",null,null,null,null,2,null,"Reality Anchor",null,null,null,null,4]
["Research",null,null,null,null,null,"Reassurance",null,null,null,null,null,null,"Scuffling",null,null,null,null,10]
["Timecraft*",null,null,null,1,null,"Streetwise ",null,null,null,null,1,null,"Shooting",null,null,null,null,4]
["Trivia",null,null,null,null,null,"Taunt",null,null,null,null,2,null,"Tinkering"]
[null,null,null,null,null,null,null,null,null,null,null,null,null,"Unobtrusiveness",null,null,null,null,3]
[null,null,null,null,null,null,"Technical Abilities",null,null,null,null,null,null,"Vehicles",null,null,null,null,4]
[]
["Extra Investigative points?",null,null,null,null,null,"Forgery"]
[null,null,null,null,null,null,"Hacking",null,null,null,null,null,null,"Special Boosters:"]
[null,null,{"$f":"Z11-AA11","v":2},null,null,null,"Medical Expertise",null,null,null,null,1]
[null,null,null,null,null,null,"Notice",null,null,null,null,1,null,{"$f":"IF(S13>7,'Summary of Points'!N30,\"\")","v":"Hard to Hit (Athletics):"}]
["Extra General points?",null,null,null,null,null,"Outdoor Survival ",null,null,null,null,null,null,{"$f":"IF(S13>7,'Summary of Points'!N31,\"\")","v":"Hit Threshold = 4, not 3"}]
[null,null,null,null,null,null,"Paradox Prevention",null,null,null,null,1,null,{"$f":"IF(S14>7,'Summary of Points'!N32,\"\")","v":""}]
[null,null,{"$f":"Z12-AA12","v":0},null,null,null,"Science!",null,null,null,null,null,null,{"$f":"IF(S14>7,'Summary of Points'!N33,\"\")","v":""}]
[null,null,null,null,null,null,"Spying",null,null,null,null,1,null,{"$f":"IF(S16>7,'Summary of Points'!N34,\"\")","v":""}]
[null,null,null,null,null,null,null,null,null,null,null,null,null,{"$f":"IF(S16>7,'Summary of Points'!N35,\"\")","v":""}]
[null,null,null,null,null,null,null,null,null,null,null,null,null,{"$f":"IF(S18>7,'Summary of Points'!N36,\"\")","v":""}]
["Gear:",null,{"$f":"'Summary of Points'!C42","v":"Autochron (portable 1-man time machine)"},null,null,null,null,null,null,null,null,null,null,{"$f":"IF(S18>7,'Summary of Points'!N37,\"\")","v":""}]
[null,null,{"$f":"'Summary of Points'!C43","v":"Impersonator mesh (+3 Unobtrusiveness until drawing notice)"},null,null,null,null,null,null,null,null,null,null,{"$f":"IF(S19>7,'Summary of Points'!N38,\"\")","v":""}]
[null,null,{"$f":"'Summary of Points'!C44","v":"MedKit (lets you use Medic skill effectively)"},null,null,null,null,null,null,null,null,null,null,{"$f":"IF(S19>7,'Summary of Points'!N39,\"\")","v":""}]
[null,null,{"$f":"'Summary of Points'!C45","v":"MEM-tags (for memory modification of unconscious subjects)"},null,null,null,null,null,null,null,null,null,null,{"$f":"IF(S20>7,'Summary of Points'!N40,\"\")","v":""}]
[null,null,{"$f":"'Summary of Points'!C46","v":"PaciFist disruptor (Close range, Stun 5, subtle)"},null,null,null,null,null,null,null,null,null,null,{"$f":"IF(S20>7,'Summary of Points'!N41,\"\")","v":""}]
[null,null,{"$f":"'Summary of Points'!C47","v":"Tether (holographic PDA linked to subdermal earbud)"},null,null,null,null,null,null,null,null,null,null,{"$f":"IF(S21>7,'Summary of Points'!N42,\"\")","v":"That's Gotta Hurt (Scuffling):"}]
[null,null,{"$f":"'Summary of Points'!C48","v":"TimeWatch Uniform (chronomorphic, armor 1)"},null,null,null,null,null,null,null,null,null,null,{"$f":"IF(S21>7,'Summary of Points'!N43,\"\")","v":"Scuffling Pool spend = min base dmg"}]
[null,null,{"$f":"'Summary of Points'!C49","v":"Translator (instant, 2-way, unnoticeable)"},null,null,null,null,null,null,null,null,null,null,{"$f":"IF(S22>7,'Summary of Points'!N44,\"\")","v":""}]
[null,null,null,null,null,null,null,null,null,null,null,null,null,{"$f":"IF(S22>7,'Summary of Points'!N45,\"\")","v":""}]
[null,null,null,null,null,null,null,null,null,null,null,null,null,{"$f":"IF(S23>7,'Summary of Points'!N46,\"\")","v":""}]
[null,null,null,null,null,null,null,null,null,null,null,null,null,{"$f":"IF(S23>7,'Summary of Points'!N47,\"\")","v":""}]
[null,null,null,null,null,null,null,null,null,null,null,null,null,{"$f":"IF(S24>7,'Summary of Points'!N48,\"\")","v":""}]
[null,null,null,null,null,null,null,null,null,null,null,null,null,{"$f":"IF(S24>7,'Summary of Points'!N49,\"\")","v":""}]
[null,null,null,null,null,null,null,null,null,null,null,null,null,{"$f":"IF(S25>7,'Summary of Points'!N50,\"\")","v":""}]
["* Start with 1 point free",null,null,null,null,null,"Each spent stitch refreshes 2 pts from 1 pool",null,null,null,null,null,null,{"$f":"IF(S25>7,'Summary of Points'!N51,\"\")","v":""}]
["** Start with 6 points free",null,null,null,null,null,"Do cool stuff, earn more stitches! (max 3)"]

{"sheet":"Iconic - Mace Hunter","index":19,"n_rows":98,"n_cols":27,"rows_kept":98,"cut":false,"hidden":false,"merged":[[48,2,48,12],[49,2,49,12],[40,2,40,12],[44,2,44,12],[45,2,45,12],[46,2,46,12],[43,2,43,12],[42,2,42,12],[41,2,41,12],[47,2,47,12],[36,2,36,12],[38,2,38,12],[39,2,39,12],[0,3,0,8],[2,3,2,8],[3,3,3,8],[4,3,4,8],[5,3,5,8],[6,3,6,8],[37,2,37,12],[35,13,35,18],[27,13,27,18],[0,15,0,18],[0,10,0,13],[10,0,10,11],[10,13,10,18],[29,13,29,18],[30,13,30,18],[31,13,31,18],[32,13,32,18],[33,13,33,18],[34,13,34,18],[47,13,47,18],[36,13,36,18],[37,13,37,18],[38,13,38,18],[39,13,39,18],[40,13,40,18],[41,13,41,18],[42,13,42,18],[43,13,43,18],[44,13,44,18],[45,13,45,18],[46,13,46,18],[48,13,48,18],[49,13,49,18],[50,13,50,18],[51,13,51,18],[52,13,52,18]]}
["Name:",null,null,"Mace Hunter",null,null,null,null,null,null,"Chronal Stability",null,null,null,null,"Health"]
[null,null,null,null,null,null,null,null,null,null,{"$f":"IF($N$9>=15,15,\"\")","v":""},{"$f":"IF($N$9>=14,14,\"\")","v":""},{"$f":"IF($N$9>=13,13,\"\")","v":""},{"$f":"IF($N$9>=12,12,\"\")","v":""},null,{"$f":"IF($S$9>=15,15,\"\")","v":""},{"$f":"IF($S$9>=14,14,\"\")","v":""},{"$f":"IF($S$9>=13,13,\"\")","v":""},{"$f":"IF($S$9>=12,12,\"\")","v":""}]
["Nationality:",null,null,"British",null,null,null,null,null,null,{"$f":"IF($N$9>=11,11,\"\")","v":""},{"$f":"IF($N$9>=10,10,\"\")","v":""},{"$f":"IF($N$9>=9,9,\"\")","v":""},{"$f":"IF($N$9>=8,8,\"\")","v":""},null,{"$f":"IF($S$9>=11,11,\"\")","v":""},{"$f":"IF($S$9>=10,10,\"\")","v":""},{"$f":"IF($S$9>=9,9,\"\")","v":""},{"$f":"IF($S$9>=8,8,\"\")","v":8}]
["Origin Time:",null,null,1843,null,null,null,null,null,null,{"$f":"IF($N$9>=7,7,\"\")","v":""},6,5,4,null,{"$f":"IF($S$9>=7,7,\"\")","v":7},6,5,4]
["Profession: ",null,null,"Big Game Hunter",null,null,null,null,null,null,3,2,1,0,null,3,2,1,0]
["Age:",null,null,42,null,null,null,null,null,null,-1,-2,-3,-4,null,-1,-2,-3,-4]
["Drive:",null,null,"Exploration",null,null,null,null,null,null,-5,-6,-7,-8,null,-5,-6,-7,-8,null,null,null,null,null,"XP - "]
[null,null,null,null,null,null,null,null,null,null,-9,-10,-11,-12,null,-9,-10,-11,-12,null,null,null,null,null,"Extra"]
["Hit Threshold:",null,null,{"$f":"IF(S13>7,4,3)","v":4},null,"Armor:",null,{"$f":"IF(C43='Summary of Points'!C48,1,0)","v":1},null,null,"Max: ",null,null,{"$f":"S15","v":6},null,"Max: ",null,null,{"$f":"S17","v":8},null,null,null,null,null,"Points?"]
[]
["INVESTIGATIVE ABILITIES",null,null,null,null,null,null,null,null,null,null,null,null,"GENERAL ABILITIES",null,null,null,null,null,null,null,"Investigative:",null,null,0,{"$f":"'Summary of Points'!F4+Y11","v":16},{"$f":"SUM(E15:E24)+SUM(L14:L36)-1","v":16}]
[null,null,null,null,null,null,null,null,null,null,null,null,null,null,null,null,null,null,null,null,null,"General:",null,null,0,{"$f":"'Summary of Points'!E5+Y12","v":50},{"$f":"SUM(S12:S28)-12","v":50}]
["Academic Abilities",null,null,null,null,null,"Interpersonal Abilities ",null,null,null,null,null,null,"Athletics",null,null,null,null,8]
[null,null,null,null,null,null,null,null,null,null,null,null,null,"Burglary",null,null,null,null,1]
["Anthropology",null,null,null,1,null,"Authority",null,null,null,null,1,null,"Chronal Stability**",null,null,null,null,6]
["Architecture ",null,null,null,null,null,"Bureaucracy",null,null,null,null,null,null,"Disguise",null,null,null,null,3]
["History (Ancient)",null,null,null,1,null,"Charm",null,null,null,null,1,null,"Health**",null,null,null,null,8]
["History (Contemporary)",null,null,null,1,null,"Falsehood Detection",null,null,null,null,1,null,"Medic",null,null,null,null,0]
["History (Future)",null,null,null,null,null,"High Society ",null,null,null,null,null,null,"Preparedness",null,null,null,null,5]
["Military Tactics",null,null,null,1,null,"Intimidation",null,null,null,null,1,null,"Reality Anchor",null,null,null,null,2]
["Research",null,null,null,1,null,"Reassurance",null,null,null,null,1,null,"Scuffling",null,null,null,null,8]
["Timecraft*",null,null,null,1,null,"Streetwise ",null,null,null,null,null,null,"Shooting",null,null,null,null,8]
["Trivia",null,null,null,null,null,"Taunt",null,null,null,null,1,null,"Tinkering",null,null,null,null,3]
[null,null,null,null,null,null,null,null,null,null,null,null,null,"Unobtrusiveness",null,null,null,null,8]
[null,null,null,null,null,null,"Technical Abilities",null,null,null,null,null,null,"Vehicles",null,null,null,null,2]
[]
["Extra Investigative points?",null,null,null,null,null,"Forgery"]
[null,null,null,null,null,null,"Hacking",null,null,null,null,null,null,"Special Boosters:"]
[null,null,{"$f":"Z11-AA11","v":0},null,null,null,"Medical Expertise"]
[null,null,null,null,null,null,"Notice",null,null,null,null,1,null,{"$f":"IF(S13>7,'Summary of Points'!N30,\"\")","v":"Hard to Hit (Athletics):"}]
["Extra General points?",null,null,null,null,null,"Outdoor Survival ",null,null,null,null,2,null,{"$f":"IF(S13>7,'Summary of Points'!N31,\"\")","v":"Hit Threshold = 4, not 3"}]
[null,null,null,null,null,null,"Paradox Prevention",null,null,null,null,1,null,{"$f":"IF(S14>7,'Summary of Points'!N32,\"\")","v":""}]
[null,null,{"$f":"Z12-AA12","v":0},null,null,null,"Science!",null,null,null,null,null,null,{"$f":"IF(S14>7,'Summary of Points'!N33,\"\")","v":""}]
[null,null,null,null,null,null,"Spying",null,null,null,null,1,null,{"$f":"IF(S16>7,'Summary of Points'!N34,\"\")","v":""}]
[null,null,null,null,null,null,null,null,null,null,null,null,null,{"$f":"IF(S16>7,'Summary of Points'!N35,\"\")","v":""}]
[null,null,null,null,null,null,null,null,null,null,null,null,null,{"$f":"IF(S18>7,'Summary of Points'!N36,\"\")","v":""}]
["Gear:",null,{"$f":"'Summary of Points'!C42","v":"Autochron (portable 1-man time machine)"},null,null,null,null,null,null,null,null,null,null,{"$f":"IF(S18>7,'Summary of Points'!N37,\"\")","v":""}]
[null,null,{"$f":"'Summary of Points'!C43","v":"Impersonator mesh (+3 Unobtrusiveness until drawing notice)"},null,null,null,null,null,null,null,null,null,null,{"$f":"IF(S19>7,'Summary of Points'!N38,\"\")","v":""}]
[null,null,{"$f":"'Summary of Points'!C44","v":"MedKit (lets you use Medic skill effectively)"},null,null,null,null,null,null,null,null,null,null,{"$f":"IF(S19>7,'Summary of Points'!N39,\"\")","v":""}]
[null,null,{"$f":"'Summary of Points'!C45","v":"MEM-tags (for memory modification of unconscious subjects)"},null,null,null,null,null,null,null,null,null,null,{"$f":"IF(S20>7,'Summary of Points'!N40,\"\")","v":""}]
[null,null,{"$f":"'Summary of Points'!C46","v":"PaciFist disruptor (Close range, Stun 5, subtle)"},null,null,null,null,null,null,null,null,null,null,{"$f":"IF(S20>7,'Summary of Points'!N41,\"\")","v":""}]
[null,null,{"$f":"'Summary of Points'!C47","v":"Tether (holographic PDA linked to subdermal earbud)"},null,null,null,null,null,null,null,null,null,null,{"$f":"IF(S21>7,'Summary of Points'!N42,\"\")","v":"That's Gotta Hurt (Scuffling):"}]
[null,null,{"$f":"'Summary of Points'!C48","v":"TimeWatch Uniform (chronomorphic, armor 1)"},null,null,null,null,null,null,null,null,null,null,{"$f":"IF(S21>7,'Summary of Points'!N43,\"\")","v":"Scuffling Pool spend = min base dmg"}]
[null,null,{"$f":"'Summary of Points'!C49","v":"Translator (instant, 2-way, unnoticeable)"},null,null,null,null,null,null,null,null,null,null,{"$f":"IF(S22>7,'Summary of Points'!N44,\"\")","v":"Double Tap (Shooting):"}]
[null,null,null,null,null,null,null,null,null,null,null,null,null,{"$f":"IF(S22>7,'Summary of Points'!N45,\"\")","v":"Shoot 2nd foe at +2 Difficulty"}]
[null,null,null,null,null,null,null,null,null,null,null,null,null,{"$f":"IF(S23>7,'Summary of Points'!N46,\"\")","v":""}]
[null,null,null,null,null,null,null,null,null,null,null,null,null,{"$f":"IF(S23>7,'Summary of Points'!N47,\"\")","v":""}]
[null,null,null,null,null,null,null,null,null,null,null,null,null,{"$f":"IF(S24>7,'Summary of Points'!N48,\"\")","v":"Nothing to See Here (Unobtr.):"}]
[null,null,null,null,null,null,null,null,null,null,null,null,null,{"$f":"IF(S24>7,'Summary of Points'!N49,\"\")","v":"Helps the whole group hide/sneak"}]
[null,null,null,null,null,null,null,null,null,null,null,null,null,{"$f":"IF(S25>7,'Summary of Points'!N50,\"\")","v":""}]
["* Start with 1 point free",null,null,null,null,null,"Each spent stitch refreshes 2 pts from 1 pool",null,null,null,null,null,null,{"$f":"IF(S25>7,'Summary of Points'!N51,\"\")","v":""}]
["** Start with 6 points free",null,null,null,null,null,"Do cool stuff, earn more stitches! (max 3)"]
[]
[]
[]
[]
["Personality",null,null,"Bold. Risk-taker. Hunter. Brutally honest. Gambler. Womanizer. Lovelorn."]
[]
[]
["Background 1",null,null,"You're a man of passion and action, a risk-taker and a gambler. A failed army career (thanks to drunken carousing with your Captain's wife, especially after you won the resulting duel) drove you to a life of exile and exploration on the unexplored African continent. More interesting than your occasional bouts with inebriation were your treks up-river into the wild unknown. You survived disease, depredation, dehydration, starvation, native attack, wild animal attack, and near drowning... only to foolishly drink yourself unconscious near a man who hated you. When Cardoso quite literally stabbed you in the back and left you for dead (again, there was a girl involved), it was only the timely intervention of TimeWatch that saved you."]
[]
[]
[]
[]
[]
["Background 2",null,null,"You've put your past behind you and are careening into the future. You're a good fit for TimeWatch. You're a stealthy hunter, knowledgeable and deadly. Your one main weakness is emotional. You tend to fall in love with smart competent women, but you aren't so good with commitment. Will you ever find the right one -- and will she be from a time period you can actually stay in?"]
[]
[null,null,null,"Your other possible weakness -- Ha! More like a strength! -- is that you believe that anything worth doing is worth doing with style. You've been known to ignore simple plans in favor of more challenging, more flashy solutions.   "]
[]
[]
[]
[]
[]
[]
[]
[]
[]
["Secrets",null,null,"You currently have an all-consuming crush on one of the members of your TimeWatch team (you choose), but you worry that revealing it explicitly would complicate the team's dynamics. How, and when, will you reveal the truth?"]
[]
[]
[]
[]
[]
[]
[]
[]
["Notes"]
[]
[]
[]
[]
[]
[]
[]
[]
[]
[]
["Character Interactions 2"]

{"sheet":"Iconic - Uurrk","index":20,"n_rows":98,"n_cols":27,"rows_kept":98,"cut":false,"hidden":false,"merged":[[48,2,48,12],[49,2,49,12],[40,2,40,12],[44,2,44,12],[45,2,45,12],[46,2,46,12],[43,2,43,12],[42,2,42,12],[41,2,41,12],[47,2,47,12],[36,2,36,12],[38,2,38,12],[39,2,39,12],[0,3,0,8],[2,3,2,8],[3,3,3,8],[4,3,4,8],[5,3,5,8],[6,3,6,8],[37,2,37,12],[35,13,35,18],[27,13,27,18],[0,15,0,18],[0,10,0,13],[10,0,10,11],[10,13,10,18],[29,13,29,18],[30,13,30,18],[31,13,31,18],[32,13,32,18],[33,13,33,18],[34,13,34,18],[47,13,47,18],[36,13,36,18],[37,13,37,18],[38,13,38,18],[39,13,39,18],[40,13,40,18],[41,13,41,18],[42,13,42,18],[43,13,43,18],[44,13,44,18],[45,13,45,18],[46,13,46,18],[48,13,48,18],[49,13,49,18],[50,13,50,18],[51,13,51,18],[52,13,52,18]]}
["Name:",null,null,"Uurrk",null,null,null,null,null,null,"Chronal Stability",null,null,null,null,"Health"]
[null,null,null,null,null,null,null,null,null,null,{"$f":"IF($N$9>=15,15,\"\")","v":""},{"$f":"IF($N$9>=14,14,\"\")","v":""},{"$f":"IF($N$9>=13,13,\"\")","v":""},{"$f":"IF($N$9>=12,12,\"\")","v":""},null,{"$f":"IF($S$9>=15,15,\"\")","v":""},{"$f":"IF($S$9>=14,14,\"\")","v":""},{"$f":"IF($S$9>=13,13,\"\")","v":""},{"$f":"IF($S$9>=12,12,\"\")","v":""}]
["Nationality:",null,null,null,null,null,null,null,null,null,{"$f":"IF($N$9>=11,11,\"\")","v":""},{"$f":"IF($N$9>=10,10,\"\")","v":""},{"$f":"IF($N$9>=9,9,\"\")","v":""},{"$f":"IF($N$9>=8,8,\"\")","v":8},null,{"$f":"IF($S$9>=11,11,\"\")","v":""},{"$f":"IF($S$9>=10,10,\"\")","v":10},{"$f":"IF($S$9>=9,9,\"\")","v":9},{"$f":"IF($S$9>=8,8,\"\")","v":8}]
["Origin Time:",null,null,"33,000 BCE",null,null,null,null,null,null,{"$f":"IF($N$9>=7,7,\"\")","v":7},6,5,4,null,{"$f":"IF($S$9>=7,7,\"\")","v":7},6,5,4]
["Profession: ",null,null,"Hunter",null,null,null,null,null,null,3,2,1,0,null,3,2,1,0]
["Age:",null,null,19,null,null,null,null,null,null,-1,-2,-3,-4,null,-1,-2,-3,-4]
["Drive:",null,null,"Curiosity",null,null,null,null,null,null,-5,-6,-7,-8,null,-5,-6,-7,-8,null,null,null,null,null,"XP - "]
[null,null,null,null,null,null,null,null,null,null,-9,-10,-11,-12,null,-9,-10,-11,-12,null,null,null,null,null,"Extra"]
["Hit Threshold:",null,null,{"$f":"IF(S13>7,4,3)","v":4},null,"Armor:",null,{"$f":"IF(C43='Summary of Points'!C48,1,0)","v":1},null,null,"Max: ",null,null,{"$f":"S15","v":8},null,"Max: ",null,null,{"$f":"S17","v":10},null,null,null,null,null,"Points?"]
[]
["INVESTIGATIVE ABILITIES",null,null,null,null,null,null,null,null,null,null,null,null,"GENERAL ABILITIES",null,null,null,null,null,null,null,"Investigative:",null,null,0,{"$f":"'Summary of Points'!F4+Y11","v":16},{"$f":"SUM(E15:E24)+SUM(L14:L36)-1","v":11}]
[null,null,null,null,null,null,null,null,null,null,null,null,null,null,null,null,null,null,null,null,null,"General:",null,null,0,{"$f":"'Summary of Points'!E5+Y12","v":50},{"$f":"SUM(S12:S28)-12","v":50}]
["Academic Abilities",null,null,null,null,null,"Interpersonal Abilities ",null,null,null,null,null,null,"Athletics",null,null,null,null,10]
[null,null,null,null,null,null,null,null,null,null,null,null,null,"Burglary",null,null,null,null,0]
["Anthropology",null,null,null,1,null,"Authority",null,null,null,null,null,null,"Chronal Stability**",null,null,null,null,8]
["Architecture ",null,null,null,null,null,"Bureaucracy",null,null,null,null,null,null,"Disguise",null,null,null,null,8]
["History (Ancient)",null,null,null,1,null,"Charm",null,null,null,null,null,null,"Health**",null,null,null,null,10]
["History (Contemporary)",null,null,null,null,null,"Falsehood Detection",null,null,null,null,null,null,"Medic",null,null,null,null,0]
["History (Future)",null,null,null,null,null,"High Society ",null,null,null,null,null,null,"Preparedness",null,null,null,null,5]
["Military Tactics",null,null,null,null,null,"Intimidation",null,null,null,null,1,null,"Reality Anchor",null,null,null,null,4]
["Research",null,null,null,null,null,"Reassurance",null,null,null,null,1,null,"Scuffling",null,null,null,null,10]
["Timecraft*",null,null,null,1,null,"Streetwise ",null,null,null,null,1,null,"Shooting",null,null,null,null,1]
["Trivia",null,null,null,null,null,"Taunt",null,null,null,null,1,null,"Tinkering",null,null,null,null,0]
[null,null,null,null,null,null,null,null,null,null,null,null,null,"Unobtrusiveness",null,null,null,null,3]
[null,null,null,null,null,null,"Technical Abilities",null,null,null,null,null,null,"Vehicles",null,null,null,null,3]
[]
["Extra Investigative points?",null,null,null,null,null,"Forgery"]
[null,null,null,null,null,null,"Hacking",null,null,null,null,null,null,"Special Boosters:"]
[null,null,{"$f":"Z11-AA11","v":5},null,null,null,"Medical Expertise"]
[null,null,null,null,null,null,"Notice",null,null,null,null,1,null,{"$f":"IF(S13>7,'Summary of Points'!N30,\"\")","v":"Hard to Hit (Athletics):"}]
["Extra General points?",null,null,null,null,null,"Outdoor Survival ",null,null,null,null,2,null,{"$f":"IF(S13>7,'Summary of Points'!N31,\"\")","v":"Hit Threshold = 4, not 3"}]
[null,null,null,null,null,null,"Paradox Prevention",null,null,null,null,1,null,{"$f":"IF(S14>7,'Summary of Points'!N32,\"\")","v":""}]
[null,null,{"$f":"Z12-AA12","v":0},null,null,null,"Science!",null,null,null,null,null,null,{"$f":"IF(S14>7,'Summary of Points'!N33,\"\")","v":""}]
[null,null,null,null,null,null,"Spying",null,null,null,null,1,null,{"$f":"IF(S16>7,'Summary of Points'!N34,\"\")","v":"Don't I Know You? (Disguise):"}]
[null,null,null,null,null,null,null,null,null,null,null,null,null,{"$f":"IF(S16>7,'Summary of Points'!N35,\"\")","v":"Fool someone into thinking you've met"}]
[null,null,null,null,null,null,null,null,null,null,null,null,null,{"$f":"IF(S18>7,'Summary of Points'!N36,\"\")","v":""}]
["Gear:",null,{"$f":"'Summary of Points'!C42","v":"Autochron (portable 1-man time machine)"},null,null,null,null,null,null,null,null,null,null,{"$f":"IF(S18>7,'Summary of Points'!N37,\"\")","v":""}]
[null,null,{"$f":"'Summary of Points'!C43","v":"Impersonator mesh (+3 Unobtrusiveness until drawing notice)"},null,null,null,null,null,null,null,null,null,null,{"$f":"IF(S19>7,'Summary of Points'!N38,\"\")","v":""}]
[null,null,{"$f":"'Summary of Points'!C44","v":"MedKit (lets you use Medic skill effectively)"},null,null,null,null,null,null,null,null,null,null,{"$f":"IF(S19>7,'Summary of Points'!N39,\"\")","v":""}]
[null,null,{"$f":"'Summary of Points'!C45","v":"MEM-tags (for memory modification of unconscious subjects)"},null,null,null,null,null,null,null,null,null,null,{"$f":"IF(S20>7,'Summary of Points'!N40,\"\")","v":""}]
[null,null,{"$f":"'Summary of Points'!C46","v":"PaciFist disruptor (Close range, Stun 5, subtle)"},null,null,null,null,null,null,null,null,null,null,{"$f":"IF(S20>7,'Summary of Points'!N41,\"\")","v":""}]
[null,null,{"$f":"'Summary of Points'!C47","v":"Tether (holographic PDA linked to subdermal earbud)"},null,null,null,null,null,null,null,null,null,null,{"$f":"IF(S21>7,'Summary of Points'!N42,\"\")","v":"That's Gotta Hurt (Scuffling):"}]
[null,null,{"$f":"'Summary of Points'!C48","v":"TimeWatch Uniform (chronomorphic, armor 1)"},null,null,null,null,null,null,null,null,null,null,{"$f":"IF(S21>7,'Summary of Points'!N43,\"\")","v":"Scuffling Pool spend = min base dmg"}]
[null,null,{"$f":"'Summary of Points'!C49","v":"Translator (instant, 2-way, unnoticeable)"},null,null,null,null,null,null,null,null,null,null,{"$f":"IF(S22>7,'Summary of Points'!N44,\"\")","v":""}]
[null,null,null,null,null,null,null,null,null,null,null,null,null,{"$f":"IF(S22>7,'Summary of Points'!N45,\"\")","v":""}]
[null,null,null,null,null,null,null,null,null,null,null,null,null,{"$f":"IF(S23>7,'Summary of Points'!N46,\"\")","v":""}]
[null,null,null,null,null,null,null,null,null,null,null,null,null,{"$f":"IF(S23>7,'Summary of Points'!N47,\"\")","v":""}]
[null,null,null,null,null,null,null,null,null,null,null,null,null,{"$f":"IF(S24>7,'Summary of Points'!N48,\"\")","v":""}]
[null,null,null,null,null,null,null,null,null,null,null,null,null,{"$f":"IF(S24>7,'Summary of Points'!N49,\"\")","v":""}]
[null,null,null,null,null,null,null,null,null,null,null,null,null,{"$f":"IF(S25>7,'Summary of Points'!N50,\"\")","v":""}]
["* Start with 1 point free",null,null,null,null,null,"Each spent stitch refreshes 2 pts from 1 pool",null,null,null,null,null,null,{"$f":"IF(S25>7,'Summary of Points'!N51,\"\")","v":""}]
["** Start with 6 points free",null,null,null,null,null,"Do cool stuff, earn more stitches! (max 3)"]
[]
[]
[]
[]
["Personality",null,null,"Powerful. Blunt. Curious. Intimidating. Intelligent. Naive."]
[]
[]
["Background 1",null,null,"You join \"TimeWatch\" because you clever. You spend days on metal machines, they give you big smarts and new memories and big knowledge. You always understand other peoples' talk-talk, but only know twelve words yourself:  (Pick 12 words, one of which has to be exceptionally and unaccountably multi-syllabic. Use only these while speaking. Grunt a lot.) "]
[]
[]
[]
[]
[]
["Background 2",null,null,"TimeWatch give you new good tribe, has you find and stop bad people who dry up river of time. You like this job. This second mission; first mission involve thunder-lizards, big meteor, bird-flying in blackness. Fun."]
[]
[]
[]
[]
[]
[]
[]
[]
[]
[]
[]
["Secrets",null,null,"The problem of being the only one of your kind is that you are incredibly lonely. You are prone to sudden friendships and excessive trust with people you've just met. "]
[]
[]
[]
[]
[]
[]
[]
[]
["Notes",null,null,"The mnemomatic TimeWatch learning transfers are still kicking in, so you currently have 5 extra investigative points that remain unspent. That gives you huge flexibility. At any time you decide your new neurological programming has unlocked, you may assign 1 or more points to any Investigative ability you choose. When you do, add one word to your vocabulary list and briefly (for a sentence or two) become exceptionally erudite. "]
[]
[null,null,null,"Example: \"Go find big fire pain!\" (assigns a point into Science.) \"I said, old boys, if we don't find that nuclear warhead quickly this entire peninsula is going to be destroyed!\" (enjoy dumbfounded looks from other players)"]
[]
[null,null,null,"(Note: You're an incredibly clever and gifted individual, canny and intuitive even if all the book learning memories haven't settled in yet, so the flexibility of assigning your points throughout play should help balance out the social stigma of being a caveman. This is supposed to be fun, but if it's a pain in the ass please feel free to minimize or ignore the speech restriction.)"]
[]
[null,null,null,"(Other note: if you like the idea of playing a caveman with a (very) limited vocabulary, you should also check out Firefly Games' \"Og!: Unearthed Edition, by Robin D. Laws. It's hilarious.) "]
[]
[]
[]
[]
["Character Interactions 2"]

{"sheet":"Iconic - Vid","index":21,"n_rows":98,"n_cols":27,"rows_kept":98,"cut":false,"hidden":false,"merged":[[48,2,48,12],[49,2,49,12],[40,2,40,12],[44,2,44,12],[45,2,45,12],[46,2,46,12],[43,2,43,12],[42,2,42,12],[41,2,41,12],[47,2,47,12],[36,2,36,12],[38,2,38,12],[39,2,39,12],[0,3,0,8],[2,3,2,8],[3,3,3,8],[4,3,4,8],[5,3,5,8],[6,3,6,8],[37,2,37,12],[35,13,35,18],[27,13,27,18],[0,15,0,18],[0,10,0,13],[10,0,10,11],[10,13,10,18],[29,13,29,18],[30,13,30,18],[31,13,31,18],[32,13,32,18],[33,13,33,18],[34,13,34,18],[47,13,47,18],[36,13,36,18],[37,13,37,18],[38,13,38,18],[39,13,39,18],[40,13,40,18],[41,13,41,18],[42,13,42,18],[43,13,43,18],[44,13,44,18],[45,13,45,18],[46,13,46,18],[48,13,48,18],[49,13,49,18],[50,13,50,18],[51,13,51,18],[52,13,52,18]]}
["Name:",null,null,"Vidvhansaka-5",null,null,null,null,null,null,"Chronal Stability",null,null,null,null,"Health"]
[null,null,null,null,null,null,null,null,null,null,{"$f":"IF($N$9>=15,15,\"\")","v":""},{"$f":"IF($N$9>=14,14,\"\")","v":""},{"$f":"IF($N$9>=13,13,\"\")","v":""},{"$f":"IF($N$9>=12,12,\"\")","v":""},null,{"$f":"IF($S$9>=15,15,\"\")","v":""},{"$f":"IF($S$9>=14,14,\"\")","v":""},{"$f":"IF($S$9>=13,13,\"\")","v":""},{"$f":"IF($S$9>=12,12,\"\")","v":12}]
["Nationality:",null,null,"Punjabi",null,null,null,null,null,null,{"$f":"IF($N$9>=11,11,\"\")","v":""},{"$f":"IF($N$9>=10,10,\"\")","v":""},{"$f":"IF($N$9>=9,9,\"\")","v":""},{"$f":"IF($N$9>=8,8,\"\")","v":""},null,{"$f":"IF($S$9>=11,11,\"\")","v":11},{"$f":"IF($S$9>=10,10,\"\")","v":10},{"$f":"IF($S$9>=9,9,\"\")","v":9},{"$f":"IF($S$9>=8,8,\"\")","v":8}]
["Origin Time:",null,null,2047,null,null,null,null,null,null,{"$f":"IF($N$9>=7,7,\"\")","v":""},6,5,4,null,{"$f":"IF($S$9>=7,7,\"\")","v":7},6,5,4]
["Profession: ",null,null,"T-1000",null,null,null,null,null,null,3,2,1,0,null,3,2,1,0]
["Age:",null,null,"4 (physical age 27)",null,null,null,null,null,null,-1,-2,-3,-4,null,-1,-2,-3,-4]
["Drive:",null,null,"Duty",null,null,null,null,null,null,-5,-6,-7,-8,null,-5,-6,-7,-8,null,null,null,null,null,"XP - "]
[null,null,null,null,null,null,null,null,null,null,-9,-10,-11,-12,null,-9,-10,-11,-12,null,null,null,null,null,"Extra"]
["Hit Threshold:",null,null,{"$f":"IF(S13>7,4,3)","v":4},null,"Armor:",null,{"$f":"IF(C43='Summary of Points'!C48,1,0)","v":1},null,null,"Max: ",null,null,{"$f":"S15","v":6},null,"Max: ",null,null,{"$f":"S17","v":12},null,null,null,null,null,"Points?"]
[]
["INVESTIGATIVE ABILITIES",null,null,null,null,null,null,null,null,null,null,null,null,"GENERAL ABILITIES",null,null,null,null,null,null,null,"Investigative:",null,null,0,{"$f":"'Summary of Points'!F4+Y11","v":16},{"$f":"SUM(E15:E24)+SUM(L14:L36)-1","v":16}]
[null,null,null,null,null,null,null,null,null,null,null,null,null,null,null,null,null,null,null,null,null,"General:",null,null,0,{"$f":"'Summary of Points'!E5+Y12","v":50},{"$f":"SUM(S12:S28)-12","v":50}]
["Academic Abilities",null,null,null,null,null,"Interpersonal Abilities ",null,null,null,null,null,null,"Athletics",null,null,null,null,8]
[null,null,null,null,null,null,null,null,null,null,null,null,null,"Burglary",null,null,null,null,3]
["Anthropology",null,null,null,null,null,"Authority",null,null,null,null,1,null,"Chronal Stability**",null,null,null,null,6]
["Architecture ",null,null,null,null,null,"Bureaucracy",null,null,null,null,null,null,"Disguise",null,null,null,null,3]
["History (Ancient)",null,null,null,null,null,"Charm",null,null,null,null,null,null,"Health**",null,null,null,null,12]
["History (Contemporary)",null,null,null,1,null,"Falsehood Detection",null,null,null,null,1,null,"Medic",null,null,null,null,4]
["History (Future)",null,null,null,1,null,"High Society ",null,null,null,null,null,null,"Preparedness",null,null,null,null,5]
["Military Tactics",null,null,null,1,null,"Intimidation",null,null,null,null,1,null,"Reality Anchor",null,null,null,null,0]
["Research",null,null,null,1,null,"Reassurance",null,null,null,null,null,null,"Scuffling",null,null,null,null,8]
["Timecraft*",null,null,null,1,null,"Streetwise ",null,null,null,null,1,null,"Shooting",null,null,null,null,4]
["Trivia",null,null,null,1,null,"Taunt",null,null,null,null,null,null,"Tinkering",null,null,null,null,3]
[null,null,null,null,null,null,null,null,null,null,null,null,null,"Unobtrusiveness",null,null,null,null,3]
[null,null,null,null,null,null,"Technical Abilities",null,null,null,null,null,null,"Vehicles",null,null,null,null,3]
[]
["Extra Investigative points?",null,null,null,null,null,"Forgery",null,null,null,null,1]
[null,null,null,null,null,null,"Hacking",null,null,null,null,2,null,"Special Boosters:"]
[null,null,{"$f":"Z11-AA11","v":0},null,null,null,"Medical Expertise"]
[null,null,null,null,null,null,"Notice",null,null,null,null,1,null,{"$f":"IF(S13>7,'Summary of Points'!N30,\"\")","v":"Hard to Hit (Athletics):"}]
["Extra General points?",null,null,null,null,null,"Outdoor Survival ",null,null,null,null,null,null,{"$f":"IF(S13>7,'Summary of Points'!N31,\"\")","v":"Hit Threshold = 4, not 3"}]
[null,null,null,null,null,null,"Paradox Prevention",null,null,null,null,1,null,{"$f":"IF(S14>7,'Summary of Points'!N32,\"\")","v":""}]
[null,null,{"$f":"Z12-AA12","v":0},null,null,null,"Science!",null,null,null,null,1,null,{"$f":"IF(S14>7,'Summary of Points'!N33,\"\")","v":""}]
[null,null,null,null,null,null,"Spying",null,null,null,null,1,null,{"$f":"IF(S16>7,'Summary of Points'!N34,\"\")","v":""}]
[null,null,null,null,null,null,null,null,null,null,null,null,null,{"$f":"IF(S16>7,'Summary of Points'!N35,\"\")","v":""}]
[null,null,null,null,null,null,null,null,null,null,null,null,null,{"$f":"IF(S18>7,'Summary of Points'!N36,\"\")","v":""}]
["Gear:",null,{"$f":"'Summary of Points'!C42","v":"Autochron (portable 1-man time machine)"},null,null,null,null,null,null,null,null,null,null,{"$f":"IF(S18>7,'Summary of Points'!N37,\"\")","v":""}]
[null,null,{"$f":"'Summary of Points'!C43","v":"Impersonator mesh (+3 Unobtrusiveness until drawing notice)"},null,null,null,null,null,null,null,null,null,null,{"$f":"IF(S19>7,'Summary of Points'!N38,\"\")","v":""}]
[null,null,{"$f":"'Summary of Points'!C44","v":"MedKit (lets you use Medic skill effectively)"},null,null,null,null,null,null,null,null,null,null,{"$f":"IF(S19>7,'Summary of Points'!N39,\"\")","v":""}]
[null,null,{"$f":"'Summary of Points'!C45","v":"MEM-tags (for memory modification of unconscious subjects)"},null,null,null,null,null,null,null,null,null,null,{"$f":"IF(S20>7,'Summary of Points'!N40,\"\")","v":""}]
[null,null,{"$f":"'Summary of Points'!C46","v":"PaciFist disruptor (Close range, Stun 5, subtle)"},null,null,null,null,null,null,null,null,null,null,{"$f":"IF(S20>7,'Summary of Points'!N41,\"\")","v":""}]
[null,null,{"$f":"'Summary of Points'!C47","v":"Tether (holographic PDA linked to subdermal earbud)"},null,null,null,null,null,null,null,null,null,null,{"$f":"IF(S21>7,'Summary of Points'!N42,\"\")","v":"That's Gotta Hurt (Scuffling):"}]
[null,null,{"$f":"'Summary of Points'!C48","v":"TimeWatch Uniform (chronomorphic, armor 1)"},null,null,null,null,null,null,null,null,null,null,{"$f":"IF(S21>7,'Summary of Points'!N43,\"\")","v":"Scuffling Pool spend = min base dmg"}]
[null,null,{"$f":"'Summary of Points'!C49","v":"Translator (instant, 2-way, unnoticeable)"},null,null,null,null,null,null,null,null,null,null,{"$f":"IF(S22>7,'Summary of Points'!N44,\"\")","v":""}]
[null,null,null,null,null,null,null,null,null,null,null,null,null,{"$f":"IF(S22>7,'Summary of Points'!N45,\"\")","v":""}]
[null,null,null,null,null,null,null,null,null,null,null,null,null,{"$f":"IF(S23>7,'Summary of Points'!N46,\"\")","v":""}]
[null,null,null,null,null,null,null,null,null,null,null,null,null,{"$f":"IF(S23>7,'Summary of Points'!N47,\"\")","v":""}]
[null,null,null,null,null,null,null,null,null,null,null,null,null,{"$f":"IF(S24>7,'Summary of Points'!N48,\"\")","v":""}]
[null,null,null,null,null,null,null,null,null,null,null,null,null,{"$f":"IF(S24>7,'Summary of Points'!N49,\"\")","v":""}]
[null,null,null,null,null,null,null,null,null,null,null,null,null,{"$f":"IF(S25>7,'Summary of Points'!N50,\"\")","v":""}]
["* Start with 1 point free",null,null,null,null,null,"Each spent stitch refreshes 2 pts from 1 pool",null,null,null,null,null,null,{"$f":"IF(S25>7,'Summary of Points'!N51,\"\")","v":""}]
["** Start with 6 points free",null,null,null,null,null,"Do cool stuff, earn more stitches! (max 3)"]
[]
[]
[]
[]
["Personality",null,null,"Focused. Precise. Literal. Effective. Naive. Secretive. Curious. "]
[]
[]
["Background 1",null,null,"Your name is Hindi for \"Destroyer.\" You are a shape-shifting assassination cyborg created by India for use in the Pakistan Nuclear Dead Zone of 2043. The first of your kind to achieve sentience and question your programming, you were recruited by TimeWatch and reprogrammed with greater free will. You have few memories of that time. You now serve to maintain the time stream against all who would destroy or damage it, and you revel in the sentience that allows you to accomplish this. You no longer feel allegiance or loyalty to the military consortium that created you, and your skill in assassination is no longer as useful; killing people in the past or future runs contrary to your new programming."]
[]
[]
[]
[]
[]
["Background 2",null,null,"You are constructed from intelligent liquid metal that allows you impersonate others (Disguise), bypass barriers (Burglary), Hide by flattening yourself out (Unobtrusiveness), run quickly (Vehicles - your legs count as a vehicle), and heal yourself (Medic.) You can shapeshift your limbs into useful tools and simple weapons like swords (Preparedness.)"]
[]
[]
[]
[]
[]
[]
[]
[]
[]
[]
[]
["Secrets",null,null,"You have kept your mechanical nature secret from the rest of your team, under the reasonable assumption that they will no longer trust you. This is bound to come out at some point. "]
[]
[]
[]
[]
[]
[]
[]
[]
["Notes",null,null,"Special rule: unlike other characters, you may not use your Medic skill to help others. Each point of Medic spent on yourself restores 2 Health points."]
[]
[]
[]
[]
[]
[]
[]
[]
[]
[]
["Character Interactions 2"]

{"sheet":"Iconic - Dr Leah Breen","index":22,"n_rows":98,"n_cols":27,"rows_kept":98,"cut":false,"hidden":false,"merged":[[48,2,48,12],[49,2,49,12],[40,2,40,12],[44,2,44,12],[45,2,45,12],[46,2,46,12],[43,2,43,12],[42,2,42,12],[41,2,41,12],[47,2,47,12],[36,2,36,12],[38,2,38,12],[39,2,39,12],[0,3,0,8],[2,3,2,8],[3,3,3,8],[4,3,4,8],[5,3,5,8],[6,3,6,8],[37,2,37,12],[35,13,35,18],[27,13,27,18],[0,15,0,18],[0,10,0,13],[10,0,10,11],[10,13,10,18],[29,13,29,18],[30,13,30,18],[31,13,31,18],[32,13,32,18],[33,13,33,18],[34,13,34,18],[47,13,47,18],[36,13,36,18],[37,13,37,18],[38,13,38,18],[39,13,39,18],[40,13,40,18],[41,13,41,18],[42,13,42,18],[43,13,43,18],[44,13,44,18],[45,13,45,18],[46,13,46,18],[48,13,48,18],[49,13,49,18],[50,13,50,18],[51,13,51,18],[52,13,52,18]]}
["Name:",null,null,"Dr. Leah Breen",null,null,null,null,null,null,"Chronal Stability",null,null,null,null,"Health"]
[null,null,null,null,null,null,null,null,null,null,{"$f":"IF($N$9>=15,15,\"\")","v":""},{"$f":"IF($N$9>=14,14,\"\")","v":""},{"$f":"IF($N$9>=13,13,\"\")","v":""},{"$f":"IF($N$9>=12,12,\"\")","v":""},null,{"$f":"IF($S$9>=15,15,\"\")","v":""},{"$f":"IF($S$9>=14,14,\"\")","v":""},{"$f":"IF($S$9>=13,13,\"\")","v":""},{"$f":"IF($S$9>=12,12,\"\")","v":""}]
["Nationality:",null,null,"New Zealand",null,null,null,null,null,null,{"$f":"IF($N$9>=11,11,\"\")","v":""},{"$f":"IF($N$9>=10,10,\"\")","v":""},{"$f":"IF($N$9>=9,9,\"\")","v":9},{"$f":"IF($N$9>=8,8,\"\")","v":8},null,{"$f":"IF($S$9>=11,11,\"\")","v":""},{"$f":"IF($S$9>=10,10,\"\")","v":""},{"$f":"IF($S$9>=9,9,\"\")","v":""},{"$f":"IF($S$9>=8,8,\"\")","v":""}]
["Origin Time:",null,null,null,null,null,null,null,null,null,{"$f":"IF($N$9>=7,7,\"\")","v":7},6,5,4,null,{"$f":"IF($S$9>=7,7,\"\")","v":7},6,5,4]
["Profession: ",null,null,"Chrono-Scientist",null,null,null,null,null,null,3,2,1,0,null,3,2,1,0]
["Age:",null,null,54,null,null,null,null,null,null,-1,-2,-3,-4,null,-1,-2,-3,-4]
["Drive:",null,null,"Hubris",null,null,null,null,null,null,-5,-6,-7,-8,null,-5,-6,-7,-8,null,null,null,null,null,"XP - "]
[null,null,null,null,null,null,null,null,null,null,-9,-10,-11,-12,null,-9,-10,-11,-12,null,null,null,null,null,"Extra"]
["Hit Threshold:",null,null,{"$f":"IF(S13>7,4,3)","v":3},null,"Armor:",null,{"$f":"IF(C43='Summary of Points'!C48,1,0)","v":1},null,null,"Max: ",null,null,{"$f":"S15","v":9},null,"Max: ",null,null,{"$f":"S17","v":7},null,null,null,null,null,"Points?"]
[]
["INVESTIGATIVE ABILITIES",null,null,null,null,null,null,null,null,null,null,null,null,"GENERAL ABILITIES",null,null,null,null,null,null,null,"Investigative:",null,null,0,{"$f":"'Summary of Points'!F4+Y11","v":16},{"$f":"SUM(E15:E24)+SUM(L14:L36)-1","v":16}]
[null,null,null,null,null,null,null,null,null,null,null,null,null,null,null,null,null,null,null,null,null,"General:",null,null,0,{"$f":"'Summary of Points'!E5+Y12","v":50},{"$f":"SUM(S12:S28)-12","v":50}]
["Academic Abilities",null,null,null,null,null,"Interpersonal Abilities ",null,null,null,null,null,null,"Athletics",null,null,null,null,3]
[null,null,null,null,null,null,null,null,null,null,null,null,null,"Burglary",null,null,null,null,3]
["Anthropology",null,null,null,null,null,"Authority",null,null,null,null,1,null,"Chronal Stability**",null,null,null,null,9]
["Architecture ",null,null,null,null,null,"Bureaucracy",null,null,null,null,1,null,"Disguise",null,null,null,null,3]
["History (Ancient)",null,null,null,null,null,"Charm",null,null,null,null,null,null,"Health**",null,null,null,null,7]
["History (Contemporary)",null,null,null,1,null,"Falsehood Detection",null,null,null,null,null,null,"Medic",null,null,null,null,6]
["History (Future)",null,null,null,1,null,"High Society ",null,null,null,null,null,null,"Preparedness",null,null,null,null,1]
["Military Tactics",null,null,null,null,null,"Intimidation",null,null,null,null,1,null,"Reality Anchor",null,null,null,null,6]
["Research",null,null,null,1,null,"Reassurance",null,null,null,null,1,null,"Scuffling",null,null,null,null,2]
["Timecraft*",null,null,null,2,null,"Streetwise ",null,null,null,null,null,null,"Shooting",null,null,null,null,5]
["Trivia",null,null,null,null,null,"Taunt",null,null,null,null,1,null,"Tinkering",null,null,null,null,8]
[null,null,null,null,null,null,null,null,null,null,null,null,null,"Unobtrusiveness",null,null,null,null,4]
[null,null,null,null,null,null,"Technical Abilities",null,null,null,null,null,null,"Vehicles",null,null,null,null,5]
[]
["Extra Investigative points?",null,null,null,null,null,"Forgery"]
[null,null,null,null,null,null,"Hacking",null,null,null,null,1,null,"Special Boosters:"]
[null,null,{"$f":"Z11-AA11","v":0},null,null,null,"Medical Expertise",null,null,null,null,1]
[null,null,null,null,null,null,"Notice",null,null,null,null,1,null,{"$f":"IF(S13>7,'Summary of Points'!N30,\"\")","v":""}]
["Extra General points?",null,null,null,null,null,"Outdoor Survival ",null,null,null,null,null,null,{"$f":"IF(S13>7,'Summary of Points'!N31,\"\")","v":""}]
[null,null,null,null,null,null,"Paradox Prevention",null,null,null,null,1,null,{"$f":"IF(S14>7,'Summary of Points'!N32,\"\")","v":""}]
[null,null,{"$f":"Z12-AA12","v":0},null,null,null,"Science!",null,null,null,null,3,null,{"$f":"IF(S14>7,'Summary of Points'!N33,\"\")","v":""}]
[null,null,null,null,null,null,"Spying",null,null,null,null,null,null,{"$f":"IF(S16>7,'Summary of Points'!N34,\"\")","v":""}]
[null,null,null,null,null,null,null,null,null,null,null,null,null,{"$f":"IF(S16>7,'Summary of Points'!N35,\"\")","v":""}]
[null,null,null,null,null,null,null,null,null,null,null,null,null,{"$f":"IF(S18>7,'Summary of Points'!N36,\"\")","v":""}]
["Gear:",null,{"$f":"'Summary of Points'!C42","v":"Autochron (portable 1-man time machine)"},null,null,null,null,null,null,null,null,null,null,{"$f":"IF(S18>7,'Summary of Points'!N37,\"\")","v":""}]
[null,null,{"$f":"'Summary of Points'!C43","v":"Impersonator mesh (+3 Unobtrusiveness until drawing notice)"},null,null,null,null,null,null,null,null,null,null,{"$f":"IF(S19>7,'Summary of Points'!N38,\"\")","v":""}]
[null,null,{"$f":"'Summary of Points'!C44","v":"MedKit (lets you use Medic skill effectively)"},null,null,null,null,null,null,null,null,null,null,{"$f":"IF(S19>7,'Summary of Points'!N39,\"\")","v":""}]
[null,null,{"$f":"'Summary of Points'!C45","v":"MEM-tags (for memory modification of unconscious subjects)"},null,null,null,null,null,null,null,null,null,null,{"$f":"IF(S20>7,'Summary of Points'!N40,\"\")","v":""}]
[null,null,{"$f":"'Summary of Points'!C46","v":"PaciFist disruptor (Close range, Stun 5, subtle)"},null,null,null,null,null,null,null,null,null,null,{"$f":"IF(S20>7,'Summary of Points'!N41,\"\")","v":""}]
[null,null,{"$f":"'Summary of Points'!C47","v":"Tether (holographic PDA linked to subdermal earbud)"},null,null,null,null,null,null,null,null,null,null,{"$f":"IF(S21>7,'Summary of Points'!N42,\"\")","v":""}]
[null,null,{"$f":"'Summary of Points'!C48","v":"TimeWatch Uniform (chronomorphic, armor 1)"},null,null,null,null,null,null,null,null,null,null,{"$f":"IF(S21>7,'Summary of Points'!N43,\"\")","v":""}]
[null,null,{"$f":"'Summary of Points'!C49","v":"Translator (instant, 2-way, unnoticeable)"},null,null,null,null,null,null,null,null,null,null,{"$f":"IF(S22>7,'Summary of Points'!N44,\"\")","v":""}]
[null,null,null,null,null,null,null,null,null,null,null,null,null,{"$f":"IF(S22>7,'Summary of Points'!N45,\"\")","v":""}]
[null,null,null,null,null,null,null,null,null,null,null,null,null,{"$f":"IF(S23>7,'Summary of Points'!N46,\"\")","v":"Rapid Deployment (Tinkering):"}]
[null,null,null,null,null,null,null,null,null,null,null,null,null,{"$f":"IF(S23>7,'Summary of Points'!N47,\"\")","v":"Complete Tinkering tasks in 1/2 the time"}]
[null,null,null,null,null,null,null,null,null,null,null,null,null,{"$f":"IF(S24>7,'Summary of Points'!N48,\"\")","v":""}]
[null,null,null,null,null,null,null,null,null,null,null,null,null,{"$f":"IF(S24>7,'Summary of Points'!N49,\"\")","v":""}]
[null,null,null,null,null,null,null,null,null,null,null,null,null,{"$f":"IF(S25>7,'Summary of Points'!N50,\"\")","v":""}]
["* Start with 1 point free",null,null,null,null,null,"Each spent stitch refreshes 2 pts from 1 pool",null,null,null,null,null,null,{"$f":"IF(S25>7,'Summary of Points'!N51,\"\")","v":""}]
["** Start with 6 points free",null,null,null,null,null,"Do cool stuff, earn more stitches! (max 3)"]
[]
[]
[]
[]
["Personality",null,null,"Self-involved. Brilliant. Amoral. Creative. Lonely. Vindictive. "]
[]
[]
["Background 1",null,null,"Some ignorant cretins used to call you mad. You, mad? Ha ha ha ha ha! Hardly. They just said that because you don't often brush your hair or pay attention to ethics or talk in terms that the uneducated can understand. Or perhaps it's that you're a great inventor who happens to produce extraordinary inventions on a whim. Mad? Hardly. You are not mad. You are a genius, and you're helping save the world.  "]
[]
[null,null,null,"There's a very good chance you invented time travel. You were one of the inventors, at least, and you were in the process of sabotaging other peoples' experiments to make sure you were the only inventor when you were stopped by TimeWatch. "]
[]
[]
[]
["Background 2",null,null,"Since there was clearly a great deal you didn't know, you jumped at the opportunity to become a TimeWatch agent and fix tears in the continuity of the space-time continuum. It's been tremendously satisfying. You love your job as a time agent, and the experiences you gather help satisfy your boundless curiosity. You like to interview other agents from varying times, finding out how they're fitting in and offering to experiment on them. History fascinates you, and you miss the days when you could change it on a whim to see what happened."]
[]
[null,null,null,"It's a lonely life, though. Some day you hope to settle down. You'll have to find the right person first. Someone who can stand up to you. Someone bright, and strong of will."]
[]
[]
[]
[]
[]
[]
[]
[]
[]
["Secrets",null,null,"Back when you were busy sabotaging other inventors' time machines, you may have slightly flung a few scientists randomly through the time stream. You worry a bit that this might have made things more difficult for TimeWatch, and always wonder if that's going to come back to bite you. "]
[]
[]
[]
[]
[]
[]
[]
[]
["Notes"]
[]
[]
[]
[]
[]
[]
[]
[]
[]
[]
["Character Interactions 2"]

{"sheet":"Iconic - Altani","index":23,"n_rows":98,"n_cols":27,"rows_kept":98,"cut":false,"hidden":false,"merged":[[48,2,48,12],[49,2,49,12],[40,2,40,12],[44,2,44,12],[45,2,45,12],[46,2,46,12],[43,2,43,12],[42,2,42,12],[41,2,41,12],[47,2,47,12],[36,2,36,12],[38,2,38,12],[39,2,39,12],[0,3,0,8],[2,3,2,8],[3,3,3,8],[4,3,4,8],[5,3,5,8],[6,3,6,8],[37,2,37,12],[35,13,35,18],[27,13,27,18],[0,15,0,18],[0,10,0,13],[10,0,10,11],[10,13,10,18],[29,13,29,18],[30,13,30,18],[31,13,31,18],[32,13,32,18],[33,13,33,18],[34,13,34,18],[47,13,47,18],[36,13,36,18],[37,13,37,18],[38,13,38,18],[39,13,39,18],[40,13,40,18],[41,13,41,18],[42,13,42,18],[43,13,43,18],[44,13,44,18],[45,13,45,18],[46,13,46,18],[48,13,48,18],[49,13,49,18],[50,13,50,18],[51,13,51,18],[52,13,52,18]]}
["Name:",null,null,"Altani",null,null,null,null,null,null,"Chronal Stability",null,null,null,null,"Health"]
[null,null,null,null,null,null,null,null,null,null,{"$f":"IF($N$9>=15,15,\"\")","v":""},{"$f":"IF($N$9>=14,14,\"\")","v":""},{"$f":"IF($N$9>=13,13,\"\")","v":""},{"$f":"IF($N$9>=12,12,\"\")","v":""},null,{"$f":"IF($S$9>=15,15,\"\")","v":""},{"$f":"IF($S$9>=14,14,\"\")","v":""},{"$f":"IF($S$9>=13,13,\"\")","v":""},{"$f":"IF($S$9>=12,12,\"\")","v":""}]
["Nationality:",null,null,"Mongolian",null,null,null,null,null,null,{"$f":"IF($N$9>=11,11,\"\")","v":""},{"$f":"IF($N$9>=10,10,\"\")","v":""},{"$f":"IF($N$9>=9,9,\"\")","v":""},{"$f":"IF($N$9>=8,8,\"\")","v":""},null,{"$f":"IF($S$9>=11,11,\"\")","v":""},{"$f":"IF($S$9>=10,10,\"\")","v":10},{"$f":"IF($S$9>=9,9,\"\")","v":9},{"$f":"IF($S$9>=8,8,\"\")","v":8}]
["Origin Time:",null,null,"13th century",null,null,null,null,null,null,{"$f":"IF($N$9>=7,7,\"\")","v":7},6,5,4,null,{"$f":"IF($S$9>=7,7,\"\")","v":7},6,5,4]
["Profession: ",null,null,"Mongol warrior/princess",null,null,null,null,null,null,3,2,1,0,null,3,2,1,0]
["Age:",null,null,29,null,null,null,null,null,null,-1,-2,-3,-4,null,-1,-2,-3,-4]
["Drive:",null,null,"Risk-taker",null,null,null,null,null,null,-5,-6,-7,-8,null,-5,-6,-7,-8,null,null,null,null,null,"XP - "]
[null,null,null,null,null,null,null,null,null,null,-9,-10,-11,-12,null,-9,-10,-11,-12,null,null,null,null,null,"Extra"]
["Hit Threshold:",null,null,{"$f":"IF(S13>7,4,3)","v":4},null,"Armor:",null,{"$f":"IF(C43='Summary of Points'!C48,1,0)","v":1},null,null,"Max: ",null,null,{"$f":"S15","v":7},null,"Max: ",null,null,{"$f":"S17","v":10},null,null,null,null,null,"Points?"]
[]
["INVESTIGATIVE ABILITIES",null,null,null,null,null,null,null,null,null,null,null,null,"GENERAL ABILITIES",null,null,null,null,null,null,null,"Investigative:",null,null,0,{"$f":"'Summary of Points'!F4+Y11","v":16},{"$f":"SUM(E15:E24)+SUM(L14:L36)-1","v":16}]
[null,null,null,null,null,null,null,null,null,null,null,null,null,null,null,null,null,null,null,null,null,"General:",null,null,0,{"$f":"'Summary of Points'!E5+Y12","v":50},{"$f":"SUM(S12:S28)-12","v":50}]
["Academic Abilities",null,null,null,null,null,"Interpersonal Abilities ",null,null,null,null,null,null,"Athletics",null,null,null,null,8]
[null,null,null,null,null,null,null,null,null,null,null,null,null,"Burglary",null,null,null,null,0]
["Anthropology",null,null,null,1,null,"Authority",null,null,null,null,1,null,"Chronal Stability**",null,null,null,null,7]
["Architecture ",null,null,null,null,null,"Bureaucracy",null,null,null,null,null,null,"Disguise",null,null,null,null,3]
["History (Ancient)",null,null,null,1,null,"Charm",null,null,null,null,1,null,"Health**",null,null,null,null,10]
["History (Contemporary)",null,null,null,1,null,"Falsehood Detection",null,null,null,null,1,null,"Medic",null,null,null,null,3]
["History (Future)",null,null,null,null,null,"High Society ",null,null,null,null,1,null,"Preparedness",null,null,null,null,4]
["Military Tactics",null,null,null,2,null,"Intimidation",null,null,null,null,1,null,"Reality Anchor",null,null,null,null,3]
["Research",null,null,null,null,null,"Reassurance",null,null,null,null,null,null,"Scuffling",null,null,null,null,8]
["Timecraft*",null,null,null,1,null,"Streetwise ",null,null,null,null,1,null,"Shooting",null,null,null,null,8]
["Trivia",null,null,null,null,null,"Taunt",null,null,null,null,1,null,"Tinkering",null,null,null,null,0]
[null,null,null,null,null,null,null,null,null,null,null,null,null,"Unobtrusiveness",null,null,null,null,3]
[null,null,null,null,null,null,"Technical Abilities",null,null,null,null,null,null,"Vehicles",null,null,null,null,5]
[]
["Extra Investigative points?",null,null,null,null,null,"Forgery"]
[null,null,null,null,null,null,"Hacking",null,null,null,null,null,null,"Special Boosters:"]
[null,null,{"$f":"Z11-AA11","v":0},null,null,null,"Medical Expertise"]
[null,null,null,null,null,null,"Notice",null,null,null,null,1,null,{"$f":"IF(S13>7,'Summary of Points'!N30,\"\")","v":"Hard to Hit (Athletics):"}]
["Extra General points?",null,null,null,null,null,"Outdoor Survival ",null,null,null,null,1,null,{"$f":"IF(S13>7,'Summary of Points'!N31,\"\")","v":"Hit Threshold = 4, not 3"}]
[null,null,null,null,null,null,"Paradox Prevention",null,null,null,null,1,null,{"$f":"IF(S14>7,'Summary of Points'!N32,\"\")","v":""}]
[null,null,{"$f":"Z12-AA12","v":0},null,null,null,"Science!",null,null,null,null,null,null,{"$f":"IF(S14>7,'Summary of Points'!N33,\"\")","v":""}]
[null,null,null,null,null,null,"Spying",null,null,null,null,1,null,{"$f":"IF(S16>7,'Summary of Points'!N34,\"\")","v":""}]
[null,null,null,null,null,null,null,null,null,null,null,null,null,{"$f":"IF(S16>7,'Summary of Points'!N35,\"\")","v":""}]
[null,null,null,null,null,null,null,null,null,null,null,null,null,{"$f":"IF(S18>7,'Summary of Points'!N36,\"\")","v":""}]
["Gear:",null,{"$f":"'Summary of Points'!C42","v":"Autochron (portable 1-man time machine)"},null,null,null,null,null,null,null,null,null,null,{"$f":"IF(S18>7,'Summary of Points'!N37,\"\")","v":""}]
[null,null,{"$f":"'Summary of Points'!C43","v":"Impersonator mesh (+3 Unobtrusiveness until drawing notice)"},null,null,null,null,null,null,null,null,null,null,{"$f":"IF(S19>7,'Summary of Points'!N38,\"\")","v":""}]
[null,null,{"$f":"'Summary of Points'!C44","v":"MedKit (lets you use Medic skill effectively)"},null,null,null,null,null,null,null,null,null,null,{"$f":"IF(S19>7,'Summary of Points'!N39,\"\")","v":""}]
[null,null,{"$f":"'Summary of Points'!C45","v":"MEM-tags (for memory modification of unconscious subjects)"},null,null,null,null,null,null,null,null,null,null,{"$f":"IF(S20>7,'Summary of Points'!N40,\"\")","v":""}]
[null,null,{"$f":"'Summary of Points'!C46","v":"PaciFist disruptor (Close range, Stun 5, subtle)"},null,null,null,null,null,null,null,null,null,null,{"$f":"IF(S20>7,'Summary of Points'!N41,\"\")","v":""}]
[null,null,{"$f":"'Summary of Points'!C47","v":"Tether (holographic PDA linked to subdermal earbud)"},null,null,null,null,null,null,null,null,null,null,{"$f":"IF(S21>7,'Summary of Points'!N42,\"\")","v":"That's Gotta Hurt (Scuffling):"}]
[null,null,{"$f":"'Summary of Points'!C48","v":"TimeWatch Uniform (chronomorphic, armor 1)"},null,null,null,null,null,null,null,null,null,null,{"$f":"IF(S21>7,'Summary of Points'!N43,\"\")","v":"Scuffling Pool spend = min base dmg"}]
[null,null,{"$f":"'Summary of Points'!C49","v":"Translator (instant, 2-way, unnoticeable)"},null,null,null,null,null,null,null,null,null,null,{"$f":"IF(S22>7,'Summary of Points'!N44,\"\")","v":"Double Tap (Shooting):"}]
[null,null,null,null,null,null,null,null,null,null,null,null,null,{"$f":"IF(S22>7,'Summary of Points'!N45,\"\")","v":"Shoot 2nd foe at +2 Difficulty"}]
[null,null,null,null,null,null,null,null,null,null,null,null,null,{"$f":"IF(S23>7,'Summary of Points'!N46,\"\")","v":""}]
[null,null,null,null,null,null,null,null,null,null,null,null,null,{"$f":"IF(S23>7,'Summary of Points'!N47,\"\")","v":""}]
[null,null,null,null,null,null,null,null,null,null,null,null,null,{"$f":"IF(S24>7,'Summary of Points'!N48,\"\")","v":""}]
[null,null,null,null,null,null,null,null,null,null,null,null,null,{"$f":"IF(S24>7,'Summary of Points'!N49,\"\")","v":""}]
[null,null,null,null,null,null,null,null,null,null,null,null,null,{"$f":"IF(S25>7,'Summary of Points'!N50,\"\")","v":""}]
["* Start with 1 point free",null,null,null,null,null,"Each spent stitch refreshes 2 pts from 1 pool",null,null,null,null,null,null,{"$f":"IF(S25>7,'Summary of Points'!N51,\"\")","v":""}]
["** Start with 6 points free",null,null,null,null,null,"Do cool stuff, earn more stitches! (max 3)"]
[]
[]
[]
[]
["Personality",null,null,"Leader. Independent. Competitive.  Bloodthirsty. Creative. Monastic. Homesick. "]
[]
[]
["Background 1",null,null,"You are a daughter of Genghis Khan, celebrated for identifying and stopping an assassin while you were still a girl. You always knew that you were destined to be more than a herdsman's wife. Now you ride an autochron instead of a horse, and wield beam weapons instead of bows and arrows—but really, you love a good horseback archery contest now and then. No one else ever wins. "]
[]
[]
[]
[]
[]
["Background 2",null,null,"You grew up trained as a tactician and a warrior. Regardless, you can play the part of a lady when the occasion demands it. Your current life is so strange compared to the simplicity and harshness of the steppe. And seriously, why does no one else in TimeWatch understand that you kill your foes, not knock them out? A surviving foe returns to fight again. A beheaded foe, whose allies are crushed with overwhelming and unstoppable force, becomes a lesson to your enemies that you are not to be trifled with. TimeWatch agents could learn from this."]
[]
[]
[]
[]
[]
[]
[]
[]
[]
[]
[]
["Secrets",null,null,"It is shameful, but sometimes? Sometimes you enjoy sybaritic comfort, warm baths and fluffy towels and a lack of hardship. You fear that admitting this weakness will make you look vulnerable to your foes and friends alike."]
[]
[]
[]
[]
[]
[]
[]
[]
["Notes"]
[]
[]
[]
[]
[]
[]
[]
[]
[]
[]
["Character Interactions 2"]

{"sheet":"Iconic - Skegg","index":24,"n_rows":98,"n_cols":27,"rows_kept":98,"cut":false,"hidden":false,"merged":[[48,2,48,12],[49,2,49,12],[40,2,40,12],[44,2,44,12],[45,2,45,12],[46,2,46,12],[43,2,43,12],[42,2,42,12],[41,2,41,12],[47,2,47,12],[36,2,36,12],[38,2,38,12],[39,2,39,12],[0,3,0,8],[2,3,2,8],[3,3,3,8],[4,3,4,8],[5,3,5,8],[6,3,6,8],[37,2,37,12],[35,13,35,18],[27,13,27,18],[0,15,0,18],[0,10,0,13],[10,0,10,11],[10,13,10,18],[29,13,29,18],[30,13,30,18],[31,13,31,18],[32,13,32,18],[33,13,33,18],[34,13,34,18],[47,13,47,18],[36,13,36,18],[37,13,37,18],[38,13,38,18],[39,13,39,18],[40,13,40,18],[41,13,41,18],[42,13,42,18],[43,13,43,18],[44,13,44,18],[45,13,45,18],[46,13,46,18],[48,13,48,18],[49,13,49,18],[50,13,50,18],[51,13,51,18],[52,13,52,18]]}
["Name:",null,null,"Skegg",null,null,null,null,null,null,"Chronal Stability",null,null,null,null,"Health"]
[null,null,null,null,null,null,null,null,null,null,{"$f":"IF($N$9>=15,15,\"\")","v":""},{"$f":"IF($N$9>=14,14,\"\")","v":""},{"$f":"IF($N$9>=13,13,\"\")","v":""},{"$f":"IF($N$9>=12,12,\"\")","v":""},null,{"$f":"IF($S$9>=15,15,\"\")","v":""},{"$f":"IF($S$9>=14,14,\"\")","v":""},{"$f":"IF($S$9>=13,13,\"\")","v":""},{"$f":"IF($S$9>=12,12,\"\")","v":""}]
["Nationality:",null,null,null,null,null,null,null,null,null,{"$f":"IF($N$9>=11,11,\"\")","v":""},{"$f":"IF($N$9>=10,10,\"\")","v":""},{"$f":"IF($N$9>=9,9,\"\")","v":""},{"$f":"IF($N$9>=8,8,\"\")","v":8},null,{"$f":"IF($S$9>=11,11,\"\")","v":""},{"$f":"IF($S$9>=10,10,\"\")","v":10},{"$f":"IF($S$9>=9,9,\"\")","v":9},{"$f":"IF($S$9>=8,8,\"\")","v":8}]
["Origin Time:",null,null,null,null,null,null,null,null,null,{"$f":"IF($N$9>=7,7,\"\")","v":7},6,5,4,null,{"$f":"IF($S$9>=7,7,\"\")","v":7},6,5,4]
["Profession: ",null,null,"Psychic velociraptor",null,null,null,null,null,null,3,2,1,0,null,3,2,1,0]
["Age:",null,null,5,null,null,null,null,null,null,-1,-2,-3,-4,null,-1,-2,-3,-4]
["Drive:",null,null,"Former Enemy",null,null,null,null,null,null,-5,-6,-7,-8,null,-5,-6,-7,-8,null,null,null,null,null,"XP - "]
[null,null,null,null,null,null,null,null,null,null,-9,-10,-11,-12,null,-9,-10,-11,-12,null,null,null,null,null,"Extra"]
["Hit Threshold:",null,null,{"$f":"IF(S13>7,4,3)","v":4},null,"Armor:",null,{"$f":"IF(C43='Summary of Points'!C48,1,0)","v":1},null,null,"Max: ",null,null,{"$f":"S15","v":8},null,"Max: ",null,null,{"$f":"S17","v":10},null,null,null,null,null,"Points?"]
[]
["INVESTIGATIVE ABILITIES",null,null,null,null,null,null,null,null,null,null,null,null,"GENERAL ABILITIES",null,null,null,null,null,null,null,"Investigative:",null,null,0,{"$f":"'Summary of Points'!F4+Y11","v":16},{"$f":"SUM(E15:E24)+SUM(L14:L36)-1","v":16}]
[null,null,null,null,null,null,null,null,null,null,null,null,null,null,null,null,null,null,null,null,null,"General:",null,null,0,{"$f":"'Summary of Points'!E5+Y12","v":50},{"$f":"SUM(S12:S28)-12","v":50}]
["Academic Abilities",null,null,null,null,null,"Interpersonal Abilities ",null,null,null,null,null,null,"Athletics",null,null,null,null,8]
[null,null,null,null,null,null,null,null,null,null,null,null,null,"Burglary",null,null,null,null,1]
["Anthropology",null,null,null,1,null,"Authority",null,null,null,null,1,null,"Chronal Stability**",null,null,null,null,8]
["Architecture ",null,null,null,null,null,"Bureaucracy",null,null,null,null,null,null,"Disguise",null,null,null,null,6]
["History (Ancient)",null,null,null,1,null,"Charm",null,null,null,null,null,null,"Health**",null,null,null,null,10]
["History (Contemporary)",null,null,null,null,null,"Falsehood Detection",null,null,null,null,1,null,"Medic",null,null,null,null,1]
["History (Future)",null,null,null,null,null,"High Society ",null,null,null,null,1,null,"Preparedness",null,null,null,null,4]
["Military Tactics",null,null,null,1,null,"Intimidation",null,null,null,null,1,null,"Reality Anchor",null,null,null,null,3]
["Research",null,null,null,1,null,"Reassurance",null,null,null,null,null,null,"Scuffling",null,null,null,null,8]
["Timecraft*",null,null,null,1,null,"Streetwise ",null,null,null,null,null,null,"Shooting",null,null,null,null,6]
["Trivia",null,null,null,null,null,"Taunt",null,null,null,null,1,null,"Tinkering",null,null,null,null,1]
[null,null,null,null,null,null,null,null,null,null,null,null,null,"Unobtrusiveness",null,null,null,null,5]
[null,null,null,null,null,null,"Technical Abilities",null,null,null,null,null,null,"Vehicles",null,null,null,null,1]
[]
["Extra Investigative points?",null,null,null,null,null,"Forgery"]
[null,null,null,null,null,null,"Hacking",null,null,null,null,null,null,"Special Boosters:"]
[null,null,{"$f":"Z11-AA11","v":0},null,null,null,"Medical Expertise"]
[null,null,null,null,null,null,"Notice",null,null,null,null,2,null,{"$f":"IF(S13>7,'Summary of Points'!N30,\"\")","v":"Hard to Hit (Athletics):"}]
["Extra General points?",null,null,null,null,null,"Outdoor Survival ",null,null,null,null,1,null,{"$f":"IF(S13>7,'Summary of Points'!N31,\"\")","v":"Hit Threshold = 4, not 3"}]
[null,null,null,null,null,null,"Paradox Prevention",null,null,null,null,2,null,{"$f":"IF(S14>7,'Summary of Points'!N32,\"\")","v":""}]
[null,null,{"$f":"Z12-AA12","v":0},null,null,null,"Science!",null,null,null,null,1,null,{"$f":"IF(S14>7,'Summary of Points'!N33,\"\")","v":""}]
[null,null,null,null,null,null,"Spying",null,null,null,null,1,null,{"$f":"IF(S16>7,'Summary of Points'!N34,\"\")","v":""}]
[null,null,null,null,null,null,null,null,null,null,null,null,null,{"$f":"IF(S16>7,'Summary of Points'!N35,\"\")","v":""}]
[null,null,null,null,null,null,null,null,null,null,null,null,null,{"$f":"IF(S18>7,'Summary of Points'!N36,\"\")","v":""}]
["Gear:",null,{"$f":"'Summary of Points'!C42","v":"Autochron (portable 1-man time machine)"},null,null,null,null,null,null,null,null,null,null,{"$f":"IF(S18>7,'Summary of Points'!N37,\"\")","v":""}]
[null,null,{"$f":"'Summary of Points'!C43","v":"Impersonator mesh (+3 Unobtrusiveness until drawing notice)"},null,null,null,null,null,null,null,null,null,null,{"$f":"IF(S19>7,'Summary of Points'!N38,\"\")","v":""}]
[null,null,{"$f":"'Summary of Points'!C44","v":"MedKit (lets you use Medic skill effectively)"},null,null,null,null,null,null,null,null,null,null,{"$f":"IF(S19>7,'Summary of Points'!N39,\"\")","v":""}]
[null,null,{"$f":"'Summary of Points'!C45","v":"MEM-tags (for memory modification of unconscious subjects)"},null,null,null,null,null,null,null,null,null,null,{"$f":"IF(S20>7,'Summary of Points'!N40,\"\")","v":""}]
[null,null,{"$f":"'Summary of Points'!C46","v":"PaciFist disruptor (Close range, Stun 5, subtle)"},null,null,null,null,null,null,null,null,null,null,{"$f":"IF(S20>7,'Summary of Points'!N41,\"\")","v":""}]
[null,null,{"$f":"'Summary of Points'!C47","v":"Tether (holographic PDA linked to subdermal earbud)"},null,null,null,null,null,null,null,null,null,null,{"$f":"IF(S21>7,'Summary of Points'!N42,\"\")","v":"That's Gotta Hurt (Scuffling):"}]
[null,null,{"$f":"'Summary of Points'!C48","v":"TimeWatch Uniform (chronomorphic, armor 1)"},null,null,null,null,null,null,null,null,null,null,{"$f":"IF(S21>7,'Summary of Points'!N43,\"\")","v":"Scuffling Pool spend = min base dmg"}]
[null,null,{"$f":"'Summary of Points'!C49","v":"Translator (instant, 2-way, unnoticeable)"},null,null,null,null,null,null,null,null,null,null,{"$f":"IF(S22>7,'Summary of Points'!N44,\"\")","v":""}]
[null,null,null,null,null,null,null,null,null,null,null,null,null,{"$f":"IF(S22>7,'Summary of Points'!N45,\"\")","v":""}]
[null,null,null,null,null,null,null,null,null,null,null,null,null,{"$f":"IF(S23>7,'Summary of Points'!N46,\"\")","v":""}]
[null,null,null,null,null,null,null,null,null,null,null,null,null,{"$f":"IF(S23>7,'Summary of Points'!N47,\"\")","v":""}]
[null,null,null,null,null,null,null,null,null,null,null,null,null,{"$f":"IF(S24>7,'Summary of Points'!N48,\"\")","v":""}]
[null,null,null,null,null,null,null,null,null,null,null,null,null,{"$f":"IF(S24>7,'Summary of Points'!N49,\"\")","v":""}]
[null,null,null,null,null,null,null,null,null,null,null,null,null,{"$f":"IF(S25>7,'Summary of Points'!N50,\"\")","v":""}]
["* Start with 1 point free",null,null,null,null,null,"Each spent stitch refreshes 2 pts from 1 pool",null,null,null,null,null,null,{"$f":"IF(S25>7,'Summary of Points'!N51,\"\")","v":""}]
["** Start with 6 points free",null,null,null,null,null,"Do cool stuff, earn more stitches! (max 3)"]
[]
[]
[]
[]
["Personality",null,null,"Brilliant. Deadly. Receptive. Cautious. Regretful. Inquisitive. Funny."]
[]
[]
["Background 1",null,null,"You are what TimeWatch calls a sophosaur, a psychic dinosaur (like a large velociraptor) from an alternate reality where no meteor hit the Earth and your ancestors never perished. In this reality, your people evolved and learned, developing vast psychic powers in lieu of mechanical tinkering. They developed time travel before your universe was wiped out by TimeWatch, and many of your fellows have fled into time and have sworn to bring back the world that has been destroyed. "]
[]
[null,null,null,"You, however, joined TimeWatch. "]
[]
[]
[]
["Background 2",null,null,"This has made your mate a mortal enemy of yours, as he informed you in a near-deadly attack before you parted, but you understand that your very existence is a fluke of some saboteur's action. You refuse to disappear into the void, and that means fighting to keep it safe. By your actions, perhaps your people will be judged more fairly."]
[]
[null,null,null,"It is tricky being a dinosaur in a world made for humans. You have had to rely on a holograph generator for your disguise, and you can not easily handle all human weapons. You are educated and spry, however, and you hope that you prove to be an asset to your fellow agents."]
[]
[]
[]
[]
[]
[]
[]
[]
[]
["Secrets",null,null,"Mace Hunter (as do other TimeWatch hunters) fancies himself a big game hunter, a professional killer of deadly animals. You sometimes wonder how he would fare if the two of you faced off against one another. Dare you suggest it?"]
[]
[]
[]
[]
[]
[]
[]
[]
["Notes"]
[]
[]
[]
[]
[]
[]
[]
[]
[]
[]
["Character Interactions 2"]

{"sheet":"Iconic - Kelfala","index":25,"n_rows":98,"n_cols":27,"rows_kept":98,"cut":false,"hidden":false,"merged":[[48,2,48,12],[49,2,49,12],[40,2,40,12],[44,2,44,12],[45,2,45,12],[46,2,46,12],[43,2,43,12],[42,2,42,12],[41,2,41,12],[47,2,47,12],[36,2,36,12],[38,2,38,12],[39,2,39,12],[0,3,0,8],[2,3,2,8],[3,3,3,8],[4,3,4,8],[5,3,5,8],[6,3,6,8],[37,2,37,12],[35,13,35,18],[27,13,27,18],[0,15,0,18],[0,10,0,13],[10,0,10,11],[10,13,10,18],[29,13,29,18],[30,13,30,18],[31,13,31,18],[32,13,32,18],[33,13,33,18],[34,13,34,18],[47,13,47,18],[36,13,36,18],[37,13,37,18],[38,13,38,18],[39,13,39,18],[40,13,40,18],[41,13,41,18],[42,13,42,18],[43,13,43,18],[44,13,44,18],[45,13,45,18],[46,13,46,18],[48,13,48,18],[49,13,49,18],[50,13,50,18],[51,13,51,18],[52,13,52,18]]}
["Name:",null,null,"Kelfala",null,null,null,null,null,null,"Chronal Stability",null,null,null,null,"Health"]
[null,null,null,null,null,null,null,null,null,null,{"$f":"IF($N$9>=15,15,\"\")","v":""},{"$f":"IF($N$9>=14,14,\"\")","v":""},{"$f":"IF($N$9>=13,13,\"\")","v":""},{"$f":"IF($N$9>=12,12,\"\")","v":""},null,{"$f":"IF($S$9>=15,15,\"\")","v":""},{"$f":"IF($S$9>=14,14,\"\")","v":""},{"$f":"IF($S$9>=13,13,\"\")","v":""},{"$f":"IF($S$9>=12,12,\"\")","v":""}]
["Nationality:",null,null,"Sierra Leone",null,null,null,null,null,null,{"$f":"IF($N$9>=11,11,\"\")","v":""},{"$f":"IF($N$9>=10,10,\"\")","v":""},{"$f":"IF($N$9>=9,9,\"\")","v":""},{"$f":"IF($N$9>=8,8,\"\")","v":""},null,{"$f":"IF($S$9>=11,11,\"\")","v":""},{"$f":"IF($S$9>=10,10,\"\")","v":""},{"$f":"IF($S$9>=9,9,\"\")","v":""},{"$f":"IF($S$9>=8,8,\"\")","v":8}]
["Origin Time:",null,null,2312,null,null,null,null,null,null,{"$f":"IF($N$9>=7,7,\"\")","v":7},6,5,4,null,{"$f":"IF($S$9>=7,7,\"\")","v":7},6,5,4]
["Profession: ",null,null,"Starship pilot",null,null,null,null,null,null,3,2,1,0,null,3,2,1,0]
["Age:",null,null,28,null,null,null,null,null,null,-1,-2,-3,-4,null,-1,-2,-3,-4]
["Drive:",null,null,"Exploration",null,null,null,null,null,null,-5,-6,-7,-8,null,-5,-6,-7,-8,null,null,null,null,null,"XP - "]
[null,null,null,null,null,null,null,null,null,null,-9,-10,-11,-12,null,-9,-10,-11,-12,null,null,null,null,null,"Extra"]
["Hit Threshold:",null,null,{"$f":"IF(S13>7,4,3)","v":4},null,"Armor:",null,{"$f":"IF(C43='Summary of Points'!C48,1,0)","v":1},null,null,"Max: ",null,null,{"$f":"S15","v":7},null,"Max: ",null,null,{"$f":"S17","v":8},null,null,null,null,null,"Points?"]
[]
["INVESTIGATIVE ABILITIES",null,null,null,null,null,null,null,null,null,null,null,null,"GENERAL ABILITIES",null,null,null,null,null,null,null,"Investigative:",null,null,0,{"$f":"'Summary of Points'!F4+Y11","v":16},{"$f":"SUM(E15:E24)+SUM(L14:L36)-1","v":16}]
[null,null,null,null,null,null,null,null,null,null,null,null,null,null,null,null,null,null,null,null,null,"General:",null,null,0,{"$f":"'Summary of Points'!E5+Y12","v":50},{"$f":"SUM(S12:S28)-12","v":50}]
["Academic Abilities",null,null,null,null,null,"Interpersonal Abilities ",null,null,null,null,null,null,"Athletics",null,null,null,null,8]
[null,null,null,null,null,null,null,null,null,null,null,null,null,"Burglary"]
["Anthropology",null,null,null,null,null,"Authority",null,null,null,null,1,null,"Chronal Stability**",null,null,null,null,7]
["Architecture ",null,null,null,1,null,"Bureaucracy",null,null,null,null,1,null,"Disguise",null,null,null,null,3]
["History (Ancient)",null,null,null,null,null,"Charm",null,null,null,null,1,null,"Health**",null,null,null,null,8]
["History (Contemporary)",null,null,null,1,null,"Falsehood Detection",null,null,null,null,1,null,"Medic"]
["History (Future)",null,null,null,1,null,"High Society ",null,null,null,null,1,null,"Preparedness",null,null,null,null,8]
["Military Tactics",null,null,null,1,null,"Intimidation",null,null,null,null,null,null,"Reality Anchor",null,null,null,null,3]
["Research",null,null,null,1,null,"Reassurance",null,null,null,null,1,null,"Scuffling",null,null,null,null,3]
["Timecraft*",null,null,null,1,null,"Streetwise ",null,null,null,null,null,null,"Shooting",null,null,null,null,8]
["Trivia",null,null,null,1,null,"Taunt",null,null,null,null,null,null,"Tinkering",null,null,null,null,3]
[null,null,null,null,null,null,null,null,null,null,null,null,null,"Unobtrusiveness",null,null,null,null,3]
[null,null,null,null,null,null,"Technical Abilities",null,null,null,null,null,null,"Vehicles",null,null,null,null,8]
[]
["Extra Investigative points?",null,null,null,null,null,"Forgery"]
[null,null,null,null,null,null,"Hacking",null,null,null,null,1,null,"Special Boosters:"]
[null,null,{"$f":"Z11-AA11","v":0},null,null,null,"Medical Expertise"]
[null,null,null,null,null,null,"Notice",null,null,null,null,1,null,{"$f":"IF(S13>7,'Summary of Points'!N30,\"\")","v":"Hard to Hit (Athletics):"}]
["Extra General points?",null,null,null,null,null,"Outdoor Survival ",null,null,null,null,null,null,{"$f":"IF(S13>7,'Summary of Points'!N31,\"\")","v":"Hit Threshold = 4, not 3"}]
[null,null,null,null,null,null,"Paradox Prevention",null,null,null,null,1,null,{"$f":"IF(S14>7,'Summary of Points'!N32,\"\")","v":""}]
[null,null,{"$f":"Z12-AA12","v":0},null,null,null,"Science!",null,null,null,null,1,null,{"$f":"IF(S14>7,'Summary of Points'!N33,\"\")","v":""}]
[null,null,null,null,null,null,"Spying",null,null,null,null,null,null,{"$f":"IF(S16>7,'Summary of Points'!N34,\"\")","v":""}]
[null,null,null,null,null,null,null,null,null,null,null,null,null,{"$f":"IF(S16>7,'Summary of Points'!N35,\"\")","v":""}]
[null,null,null,null,null,null,null,null,null,null,null,null,null,{"$f":"IF(S18>7,'Summary of Points'!N36,\"\")","v":""}]
["Gear:",null,{"$f":"'Summary of Points'!C42","v":"Autochron (portable 1-man time machine)"},null,null,null,null,null,null,null,null,null,null,{"$f":"IF(S18>7,'Summary of Points'!N37,\"\")","v":""}]
[null,null,{"$f":"'Summary of Points'!C43","v":"Impersonator mesh (+3 Unobtrusiveness until drawing notice)"},null,null,null,null,null,null,null,null,null,null,{"$f":"IF(S19>7,'Summary of Points'!N38,\"\")","v":"Flashback (Preparedness):"}]
[null,null,{"$f":"'Summary of Points'!C44","v":"MedKit (lets you use Medic skill effectively)"},null,null,null,null,null,null,null,null,null,null,{"$f":"IF(S19>7,'Summary of Points'!N39,\"\")","v":"Retroactively prepare actions"}]
[null,null,{"$f":"'Summary of Points'!C45","v":"MEM-tags (for memory modification of unconscious subjects)"},null,null,null,null,null,null,null,null,null,null,{"$f":"IF(S20>7,'Summary of Points'!N40,\"\")","v":""}]
[null,null,{"$f":"'Summary of Points'!C46","v":"PaciFist disruptor (Close range, Stun 5, subtle)"},null,null,null,null,null,null,null,null,null,null,{"$f":"IF(S20>7,'Summary of Points'!N41,\"\")","v":""}]
[null,null,{"$f":"'Summary of Points'!C47","v":"Tether (holographic PDA linked to subdermal earbud)"},null,null,null,null,null,null,null,null,null,null,{"$f":"IF(S21>7,'Summary of Points'!N42,\"\")","v":""}]
[null,null,{"$f":"'Summary of Points'!C48","v":"TimeWatch Uniform (chronomorphic, armor 1)"},null,null,null,null,null,null,null,null,null,null,{"$f":"IF(S21>7,'Summary of Points'!N43,\"\")","v":""}]
[null,null,{"$f":"'Summary of Points'!C49","v":"Translator (instant, 2-way, unnoticeable)"},null,null,null,null,null,null,null,null,null,null,{"$f":"IF(S22>7,'Summary of Points'!N44,\"\")","v":"Double Tap (Shooting):"}]
[null,null,null,null,null,null,null,null,null,null,null,null,null,{"$f":"IF(S22>7,'Summary of Points'!N45,\"\")","v":"Shoot 2nd foe at +2 Difficulty"}]
[null,null,null,null,null,null,null,null,null,null,null,null,null,{"$f":"IF(S23>7,'Summary of Points'!N46,\"\")","v":""}]
[null,null,null,null,null,null,null,null,null,null,null,null,null,{"$f":"IF(S23>7,'Summary of Points'!N47,\"\")","v":""}]
[null,null,null,null,null,null,null,null,null,null,null,null,null,{"$f":"IF(S24>7,'Summary of Points'!N48,\"\")","v":""}]
[null,null,null,null,null,null,null,null,null,null,null,null,null,{"$f":"IF(S24>7,'Summary of Points'!N49,\"\")","v":""}]
[null,null,null,null,null,null,null,null,null,null,null,null,null,{"$f":"IF(S25>7,'Summary of Points'!N50,\"\")","v":"Keep Up (Vehicles):"}]
["* Start with 1 point free",null,null,null,null,null,"Each spent stitch refreshes 2 pts from 1 pool",null,null,null,null,null,null,{"$f":"IF(S25>7,'Summary of Points'!N51,\"\")","v":"Improved piggyback of Vehicle tests"}]
["** Start with 6 points free",null,null,null,null,null,"Do cool stuff, earn more stitches! (max 3)"]
[]
[]
[]
[]
["Personality",null,null,"Heroic. Precise. Agile. Philosophical. Thoughtful. Explorer. Speed demon. "]
[]
[]
["Background 1",null,null,"Originally from 24th century West Africa, you're trained as a science officer and starship pilot. Recruited by TimeWatch from your escape pod after an alien ambush crippled your ship, you jumped at the chance to explore Earth back when it was fresh and young. You're something of a philosopher and enlightened thinker, tending to consider first and act second. The one exception to that is in a race, when you are willing to try almost any dirty trick to win. You feel bad afterwards, but nothing's more fun than speed."]
[]
[null,null,null,"You try to fight smart; using pure brute force seems like taking the easy route to you. "]
[]
[]
[]
["Background 2",null,null,"When you aren't adequately prepared, you like to use time travel to solve your lack of foresight; when things go wrong, you're willing to trust your future self to help fix the problem. This probably annoys some of your team, but you're handsome and charming enough that they've let you get away with it so far. "]
[]
[null,null,null,"You've done some work studying the concept of Platonic rulership, an unachievably ideal government set up to be as productive, efficient and kind to its people as possible. You haven't found an example yet, either in space travel or time travel, but hey - there's lots left to see! Discussing this sort of philosophy isn't to everyone's taste; your friends are trying to ground you a little, you think. You aren't quite sure if that's a fantastic idea or a horrible one."]
[]
[]
[]
[]
[]
[]
[]
[]
[]
["Secrets",null,null,"It's difficult, sometimes, not to apply your knowledge and philosophical ideals to the messed-up governments you often venture into on TimeWatch missions. Yes, yes, you know that's not your job, and interfering would be both unprofessional and suicidal -- but it's tempting to test your theories all the same."]
[]
[]
[]
[]
[]
[]
[]
[]
["Notes"]
[]
[]
[]
[]
[]
[]
[]
[]
[]
[]
["Character Interactions 2"]

{"sheet":"History - Rasputin","index":26,"n_rows":52,"n_cols":27,"rows_kept":52,"cut":false,"hidden":false,"merged":[[48,2,48,12],[49,2,49,12],[40,2,40,12],[44,2,44,12],[45,2,45,12],[46,2,46,12],[43,2,43,12],[42,2,42,12],[41,2,41,12],[47,2,47,12],[36,2,36,12],[38,2,38,12],[39,2,39,12],[0,3,0,8],[2,3,2,8],[3,3,3,8],[4,3,4,8],[5,3,5,8],[6,3,6,8],[37,2,37,12],[35,13,35,18],[27,13,27,18],[0,15,0,18],[0,10,0,13],[10,0,10,11],[10,13,10,18],[29,13,29,18],[30,13,30,18],[31,13,31,18],[32,13,32,18],[33,13,33,18],[34,13,34,18],[47,13,47,18],[36,13,36,18],[37,13,37,18],[38,13,38,18],[39,13,39,18],[40,13,40,18],[41,13,41,18],[42,13,42,18],[43,13,43,18],[44,13,44,18],[45,13,45,18],[46,13,46,18],[48,13,48,18],[49,13,49,18],[50,13,50,18],[51,13,51,18],[52,13,52,18]]}
["Name:",null,null,"Grigori Rasputin",null,null,null,null,null,null,"Chronal Stability",null,null,null,null,"Health"]
[null,null,null,null,null,null,null,null,null,null,{"$f":"IF($N$9>=15,15,\"\")","v":""},{"$f":"IF($N$9>=14,14,\"\")","v":""},{"$f":"IF($N$9>=13,13,\"\")","v":""},{"$f":"IF($N$9>=12,12,\"\")","v":""},null,{"$f":"IF($S$9>=15,15,\"\")","v":15},{"$f":"IF($S$9>=14,14,\"\")","v":14},{"$f":"IF($S$9>=13,13,\"\")","v":13},{"$f":"IF($S$9>=12,12,\"\")","v":12}]
["Nationality:",null,null,"Russian",null,null,null,null,null,null,{"$f":"IF($N$9>=11,11,\"\")","v":""},{"$f":"IF($N$9>=10,10,\"\")","v":""},{"$f":"IF($N$9>=9,9,\"\")","v":""},{"$f":"IF($N$9>=8,8,\"\")","v":8},null,{"$f":"IF($S$9>=11,11,\"\")","v":11},{"$f":"IF($S$9>=10,10,\"\")","v":10},{"$f":"IF($S$9>=9,9,\"\")","v":9},{"$f":"IF($S$9>=8,8,\"\")","v":8}]
["Origin Time:",null,null,1916,null,null,null,null,null,null,{"$f":"IF($N$9>=7,7,\"\")","v":7},6,5,4,null,{"$f":"IF($S$9>=7,7,\"\")","v":7},6,5,4]
["Profession: ",null,null,"Healer and Advisor",null,null,null,null,null,null,3,2,1,0,null,3,2,1,0]
["Age:",null,null,47,null,null,null,null,null,null,-1,-2,-3,-4,null,-1,-2,-3,-4]
["Drive:",null,null,"Power Behind the Throne",null,null,null,null,null,null,-5,-6,-7,-8,null,-5,-6,-7,-8,null,null,null,null,null,"XP - "]
[null,null,null,null,null,null,null,null,null,null,-9,-10,-11,-12,null,-9,-10,-11,-12,null,null,null,null,null,"Extra"]
["Hit Threshold:",null,null,{"$f":"IF(S13>7,4,3)","v":4},null,"Armor:",null,{"$f":"IF(C43='Summary of Points'!C48,1,0)","v":1},null,null,"Max: ",null,null,{"$f":"S15","v":8},null,"Max: ",null,null,{"$f":"S17","v":15},null,null,null,null,null,"Points?"]
[]
["INVESTIGATIVE ABILITIES",null,null,null,null,null,null,null,null,null,null,null,null,"GENERAL ABILITIES",null,null,null,null,null,null,null,"Investigative:",null,null,0,{"$f":"'Summary of Points'!F4+Y11","v":16},{"$f":"SUM(E15:E24)+SUM(L14:L36)-1","v":16}]
[null,null,null,null,null,null,null,null,null,null,null,null,null,null,null,null,null,null,null,null,null,"General:",null,null,0,{"$f":"'Summary of Points'!E5+Y12","v":50},{"$f":"SUM(S12:S28)-12","v":50}]
["Academic Abilities",null,null,null,null,null,"Interpersonal Abilities ",null,null,null,null,null,null,"Athletics",null,null,null,null,8]
[null,null,null,null,null,null,null,null,null,null,null,null,null,"Burglary",null,null,null,null,1]
["Anthropology",null,null,null,null,null,"Authority",null,null,null,null,1,null,"Chronal Stability**",null,null,null,null,8]
["Architecture ",null,null,null,null,null,"Bureaucracy",null,null,null,null,1,null,"Disguise",null,null,null,null,3]
["History (Ancient)",null,null,null,1,null,"Charm",null,null,null,null,2,null,"Health**",null,null,null,null,15]
["History (Contemporary)",null,null,null,1,null,"Falsehood Detection",null,null,null,null,1,null,"Medic",null,null,null,null,8]
["History (Future)",null,null,null,null,null,"High Society ",null,null,null,null,1,null,"Preparedness",null,null,null,null,4]
["Military Tactics",null,null,null,null,null,"Intimidation",null,null,null,null,null,null,"Reality Anchor",null,null,null,null,3]
["Research",null,null,null,null,null,"Reassurance",null,null,null,null,1,null,"Scuffling",null,null,null,null,5]
["Timecraft*",null,null,null,1,null,"Streetwise ",null,null,null,null,1,null,"Shooting",null,null,null,null,1]
["Trivia",null,null,null,1,null,"Taunt",null,null,null,null,null,null,"Tinkering",null,null,null,null,1]
[null,null,null,null,null,null,null,null,null,null,null,null,null,"Unobtrusiveness",null,null,null,null,4]
[null,null,null,null,null,null,"Technical Abilities",null,null,null,null,null,null,"Vehicles",null,null,null,null,1]
[]
["Extra Investigative points?",null,null,null,null,null,"Forgery"]
[null,null,null,null,null,null,"Hacking",null,null,null,null,null,null,"Special Boosters:"]
[null,null,{"$f":"Z11-AA11","v":0},null,null,null,"Medical Expertise",null,null,null,null,2]
[null,null,null,null,null,null,"Notice",null,null,null,null,1,null,{"$f":"IF(S13>7,'Summary of Points'!N30,\"\")","v":"Hard to Hit (Athletics):"}]
["Extra General points?",null,null,null,null,null,"Outdoor Survival ",null,null,null,null,null,null,{"$f":"IF(S13>7,'Summary of Points'!N31,\"\")","v":"Hit Threshold = 4, not 3"}]
[null,null,null,null,null,null,"Paradox Prevention",null,null,null,null,1,null,{"$f":"IF(S14>7,'Summary of Points'!N32,\"\")","v":""}]
[null,null,{"$f":"Z12-AA12","v":0},null,null,null,"Science!",null,null,null,null,null,null,{"$f":"IF(S14>7,'Summary of Points'!N33,\"\")","v":""}]
[null,null,null,null,null,null,"Spying",null,null,null,null,1,null,{"$f":"IF(S16>7,'Summary of Points'!N34,\"\")","v":""}]
[null,null,null,null,null,null,null,null,null,null,null,null,null,{"$f":"IF(S16>7,'Summary of Points'!N35,\"\")","v":""}]
[null,null,null,null,null,null,null,null,null,null,null,null,null,{"$f":"IF(S18>7,'Summary of Points'!N36,\"\")","v":"Heal Thyself (Medic):"}]
["Gear:",null,{"$f":"'Summary of Points'!C42","v":"Autochron (portable 1-man time machine)"},null,null,null,null,null,null,null,null,null,null,{"$f":"IF(S18>7,'Summary of Points'!N37,\"\")","v":"Heal yourself more efficiently"}]
[null,null,{"$f":"'Summary of Points'!C43","v":"Impersonator mesh (+3 Unobtrusiveness until drawing notice)"},null,null,null,null,null,null,null,null,null,null,{"$f":"IF(S19>7,'Summary of Points'!N38,\"\")","v":""}]
[null,null,{"$f":"'Summary of Points'!C44","v":"MedKit (lets you use Medic skill effectively)"},null,null,null,null,null,null,null,null,null,null,{"$f":"IF(S19>7,'Summary of Points'!N39,\"\")","v":""}]
[null,null,{"$f":"'Summary of Points'!C45","v":"MEM-tags (for memory modification of unconscious subjects)"},null,null,null,null,null,null,null,null,null,null,{"$f":"IF(S20>7,'Summary of Points'!N40,\"\")","v":""}]
[null,null,{"$f":"'Summary of Points'!C46","v":"PaciFist disruptor (Close range, Stun 5, subtle)"},null,null,null,null,null,null,null,null,null,null,{"$f":"IF(S20>7,'Summary of Points'!N41,\"\")","v":""}]
[null,null,{"$f":"'Summary of Points'!C47","v":"Tether (holographic PDA linked to subdermal earbud)"},null,null,null,null,null,null,null,null,null,null,{"$f":"IF(S21>7,'Summary of Points'!N42,\"\")","v":""}]
[null,null,{"$f":"'Summary of Points'!C48","v":"TimeWatch Uniform (chronomorphic, armor 1)"},null,null,null,null,null,null,null,null,null,null,{"$f":"IF(S21>7,'Summary of Points'!N43,\"\")","v":""}]
[null,null,{"$f":"'Summary of Points'!C49","v":"Translator (instant, 2-way, unnoticeable)"},null,null,null,null,null,null,null,null,null,null,{"$f":"IF(S22>7,'Summary of Points'!N44,\"\")","v":""}]
[null,null,null,null,null,null,null,null,null,null,null,null,null,{"$f":"IF(S22>7,'Summary of Points'!N45,\"\")","v":""}]
[null,null,null,null,null,null,null,null,null,null,null,null,null,{"$f":"IF(S23>7,'Summary of Points'!N46,\"\")","v":""}]
[null,null,null,null,null,null,null,null,null,null,null,null,null,{"$f":"IF(S23>7,'Summary of Points'!N47,\"\")","v":""}]
[null,null,null,null,null,null,null,null,null,null,null,null,null,{"$f":"IF(S24>7,'Summary of Points'!N48,\"\")","v":""}]
[null,null,null,null,null,null,null,null,null,null,null,null,null,{"$f":"IF(S24>7,'Summary of Points'!N49,\"\")","v":""}]
[null,null,null,null,null,null,null,null,null,null,null,null,null,{"$f":"IF(S25>7,'Summary of Points'!N50,\"\")","v":""}]
["* Start with 1 point free",null,null,null,null,null,"Each spent stitch refreshes 2 pts from 1 pool",null,null,null,null,null,null,{"$f":"IF(S25>7,'Summary of Points'!N51,\"\")","v":""}]
["** Start with 6 points free",null,null,null,null,null,"Do cool stuff, earn more stitches! (max 3)"]

{"sheet":"History - Henry Hudson","index":27,"n_rows":52,"n_cols":27,"rows_kept":52,"cut":false,"hidden":false,"merged":[[49,13,49,18],[50,13,50,18],[51,13,51,18],[52,13,52,18],[45,13,45,18],[46,13,46,18],[47,13,47,18],[48,13,48,18],[41,13,41,18],[42,13,42,18],[43,13,43,18],[44,13,44,18],[37,13,37,18],[38,13,38,18],[39,13,39,18],[40,13,40,18],[33,13,33,18],[34,13,34,18],[35,13,35,18],[36,13,36,18],[29,13,29,18],[30,13,30,18],[31,13,31,18],[32,13,32,18],[27,13,27,18],[0,15,0,18],[0,10,0,13],[10,0,10,11],[10,13,10,18],[38,2,38,12],[39,2,39,12],[0,3,0,8],[2,3,2,8],[3,3,3,8],[4,3,4,8],[5,3,5,8],[6,3,6,8],[37,2,37,12],[36,2,36,12],[48,2,48,12],[49,2,49,12],[40,2,40,12],[44,2,44,12],[45,2,45,12],[46,2,46,12],[43,2,43,12],[42,2,42,12],[41,2,41,12],[47,2,47,12]]}
["Name:",null,null,"Henry Hudson",null,null,null,null,null,null,"Chronal Stability",null,null,null,null,"Health"]
[null,null,null,null,null,null,null,null,null,null,{"$f":"IF($N$9>=15,15,\"\")","v":""},{"$f":"IF($N$9>=14,14,\"\")","v":""},{"$f":"IF($N$9>=13,13,\"\")","v":""},{"$f":"IF($N$9>=12,12,\"\")","v":""},null,{"$f":"IF($S$9>=15,15,\"\")","v":""},{"$f":"IF($S$9>=14,14,\"\")","v":""},{"$f":"IF($S$9>=13,13,\"\")","v":""},{"$f":"IF($S$9>=12,12,\"\")","v":""}]
["Nationality:",null,null,"British",null,null,null,null,null,null,{"$f":"IF($N$9>=11,11,\"\")","v":""},{"$f":"IF($N$9>=10,10,\"\")","v":""},{"$f":"IF($N$9>=9,9,\"\")","v":""},{"$f":"IF($N$9>=8,8,\"\")","v":""},null,{"$f":"IF($S$9>=11,11,\"\")","v":""},{"$f":"IF($S$9>=10,10,\"\")","v":""},{"$f":"IF($S$9>=9,9,\"\")","v":""},{"$f":"IF($S$9>=8,8,\"\")","v":8}]
["Origin Time:",null,null,1611,null,null,null,null,null,null,{"$f":"IF($N$9>=7,7,\"\")","v":7},6,5,4,null,{"$f":"IF($S$9>=7,7,\"\")","v":7},6,5,4]
["Profession: ",null,null,"Explorer and Navigator",null,null,null,null,null,null,3,2,1,0,null,3,2,1,0]
["Age:",null,null,44,null,null,null,null,null,null,-1,-2,-3,-4,null,-1,-2,-3,-4]
["Drive:",null,null,"Exploration",null,null,null,null,null,null,-5,-6,-7,-8,null,-5,-6,-7,-8,null,null,null,null,null,"XP - "]
[null,null,null,null,null,null,null,null,null,null,-9,-10,-11,-12,null,-9,-10,-11,-12,null,null,null,null,null,"Extra"]
["Hit Threshold:",null,null,{"$f":"IF(S13>7,4,3)","v":3},null,"Armor:",null,{"$f":"IF(C43='Summary of Points'!C48,1,0)","v":1},null,null,"Max: ",null,null,{"$f":"S15","v":7},null,"Max: ",null,null,{"$f":"S17","v":8},null,null,null,null,null,"Points?"]
[]
["INVESTIGATIVE ABILITIES",null,null,null,null,null,null,null,null,null,null,null,null,"GENERAL ABILITIES",null,null,null,null,null,null,null,"Investigative:",null,null,0,{"$f":"'Summary of Points'!F4+Y11","v":16},{"$f":"SUM(E15:E24)+SUM(L14:L36)-1","v":16}]
[null,null,null,null,null,null,null,null,null,null,null,null,null,null,null,null,null,null,null,null,null,"General:",null,null,0,{"$f":"'Summary of Points'!E5+Y12","v":50},{"$f":"SUM(S12:S28)-12","v":50}]
["Academic Abilities",null,null,null,null,null,"Interpersonal Abilities ",null,null,null,null,null,null,"Athletics",null,null,null,null,5]
[null,null,null,null,null,null,null,null,null,null,null,null,null,"Burglary"]
["Anthropology",null,null,null,null,null,"Authority",null,null,null,null,2,null,"Chronal Stability**",null,null,null,null,7]
["Architecture ",null,null,null,null,null,"Bureaucracy",null,null,null,null,null,null,"Disguise",null,null,null,null,3]
["History (Ancient)",null,null,null,1,null,"Charm",null,null,null,null,null,null,"Health**",null,null,null,null,8]
["History (Contemporary)",null,null,null,1,null,"Falsehood Detection",null,null,null,null,1,null,"Medic",null,null,null,null,1]
["History (Future)",null,null,null,1,null,"High Society ",null,null,null,null,null,null,"Preparedness",null,null,null,null,6]
["Military Tactics",null,null,null,null,null,"Intimidation",null,null,null,null,1,null,"Reality Anchor",null,null,null,null,2]
["Research",null,null,null,1,null,"Reassurance",null,null,null,null,null,null,"Scuffling",null,null,null,null,4]
["Timecraft*",null,null,null,1,null,"Streetwise ",null,null,null,null,1,null,"Shooting",null,null,null,null,6]
["Trivia",null,null,null,1,null,"Taunt",null,null,null,null,1,null,"Tinkering",null,null,null,null,8]
[null,null,null,null,null,null,null,null,null,null,null,null,null,"Unobtrusiveness",null,null,null,null,3]
[null,null,null,null,null,null,"Technical Abilities",null,null,null,null,null,null,"Vehicles",null,null,null,null,9]
[]
["Extra Investigative points?",null,null,null,null,null,"Forgery"]
[null,null,null,null,null,null,"Hacking",null,null,null,null,null,null,"Special Boosters:"]
[null,null,{"$f":"Z11-AA11","v":0},null,null,null,"Medical Expertise"]
[null,null,null,null,null,null,"Notice",null,null,null,null,1,null,{"$f":"IF(S13>7,'Summary of Points'!N30,\"\")","v":""}]
["Extra General points?",null,null,null,null,null,"Outdoor Survival ",null,null,null,null,2,null,{"$f":"IF(S13>7,'Summary of Points'!N31,\"\")","v":""}]
[null,null,null,null,null,null,"Paradox Prevention",null,null,null,null,1,null,{"$f":"IF(S14>7,'Summary of Points'!N32,\"\")","v":""}]
[null,null,{"$f":"Z12-AA12","v":0},null,null,null,"Science!",null,null,null,null,1,null,{"$f":"IF(S14>7,'Summary of Points'!N33,\"\")","v":""}]
[null,null,null,null,null,null,"Spying",null,null,null,null,null,null,{"$f":"IF(S16>7,'Summary of Points'!N34,\"\")","v":""}]
[null,null,null,null,null,null,null,null,null,null,null,null,null,{"$f":"IF(S16>7,'Summary of Points'!N35,\"\")","v":""}]
[null,null,null,null,null,null,null,null,null,null,null,null,null,{"$f":"IF(S18>7,'Summary of Points'!N36,\"\")","v":""}]
["Gear:",null,{"$f":"'Summary of Points'!C42","v":"Autochron (portable 1-man time machine)"},null,null,null,null,null,null,null,null,null,null,{"$f":"IF(S18>7,'Summary of Points'!N37,\"\")","v":""}]
[null,null,{"$f":"'Summary of Points'!C43","v":"Impersonator mesh (+3 Unobtrusiveness until drawing notice)"},null,null,null,null,null,null,null,null,null,null,{"$f":"IF(S19>7,'Summary of Points'!N38,\"\")","v":""}]
[null,null,{"$f":"'Summary of Points'!C44","v":"MedKit (lets you use Medic skill effectively)"},null,null,null,null,null,null,null,null,null,null,{"$f":"IF(S19>7,'Summary of Points'!N39,\"\")","v":""}]
[null,null,{"$f":"'Summary of Points'!C45","v":"MEM-tags (for memory modification of unconscious subjects)"},null,null,null,null,null,null,null,null,null,null,{"$f":"IF(S20>7,'Summary of Points'!N40,\"\")","v":""}]
[null,null,{"$f":"'Summary of Points'!C46","v":"PaciFist disruptor (Close range, Stun 5, subtle)"},null,null,null,null,null,null,null,null,null,null,{"$f":"IF(S20>7,'Summary of Points'!N41,\"\")","v":""}]
[null,null,{"$f":"'Summary of Points'!C47","v":"Tether (holographic PDA linked to subdermal earbud)"},null,null,null,null,null,null,null,null,null,null,{"$f":"IF(S21>7,'Summary of Points'!N42,\"\")","v":""}]
[null,null,{"$f":"'Summary of Points'!C48","v":"TimeWatch Uniform (chronomorphic, armor 1)"},null,null,null,null,null,null,null,null,null,null,{"$f":"IF(S21>7,'Summary of Points'!N43,\"\")","v":""}]
[null,null,{"$f":"'Summary of Points'!C49","v":"Translator (instant, 2-way, unnoticeable)"},null,null,null,null,null,null,null,null,null,null,{"$f":"IF(S22>7,'Summary of Points'!N44,\"\")","v":""}]
[null,null,null,null,null,null,null,null,null,null,null,null,null,{"$f":"IF(S22>7,'Summary of Points'!N45,\"\")","v":""}]
[null,null,null,null,null,null,null,null,null,null,null,null,null,{"$f":"IF(S23>7,'Summary of Points'!N46,\"\")","v":"Rapid Deployment (Tinkering):"}]
[null,null,null,null,null,null,null,null,null,null,null,null,null,{"$f":"IF(S23>7,'Summary of Points'!N47,\"\")","v":"Complete Tinkering tasks in 1/2 the time"}]
[null,null,null,null,null,null,null,null,null,null,null,null,null,{"$f":"IF(S24>7,'Summary of Points'!N48,\"\")","v":""}]
[null,null,null,null,null,null,null,null,null,null,null,null,null,{"$f":"IF(S24>7,'Summary of Points'!N49,\"\")","v":""}]
[null,null,null,null,null,null,null,null,null,null,null,null,null,{"$f":"IF(S25>7,'Summary of Points'!N50,\"\")","v":"Keep Up (Vehicles):"}]
["* Start with 1 point free",null,null,null,null,null,"Each spent stitch refreshes 2 pts from 1 pool",null,null,null,null,null,null,{"$f":"IF(S25>7,'Summary of Points'!N51,\"\")","v":"Improved piggyback of Vehicle tests"}]
["** Start with 6 points free",null,null,null,null,null,"Do cool stuff, earn more stitches! (max 3)"]

{"sheet":"History - Amelia Earhart","index":28,"n_rows":52,"n_cols":27,"rows_kept":52,"cut":false,"hidden":false,"merged":[[48,2,48,12],[49,2,49,12],[40,2,40,12],[44,2,44,12],[45,2,45,12],[46,2,46,12],[43,2,43,12],[42,2,42,12],[41,2,41,12],[47,2,47,12],[36,2,36,12],[38,2,38,12],[39,2,39,12],[0,3,0,8],[2,3,2,8],[3,3,3,8],[4,3,4,8],[5,3,5,8],[6,3,6,8],[37,2,37,12],[35,13,35,18],[27,13,27,18],[0,15,0,18],[0,10,0,13],[10,0,10,11],[10,13,10,18],[29,13,29,18],[30,13,30,18],[31,13,31,18],[32,13,32,18],[33,13,33,18],[34,13,34,18],[47,13,47,18],[36,13,36,18],[37,13,37,18],[38,13,38,18],[39,13,39,18],[40,13,40,18],[41,13,41,18],[42,13,42,18],[43,13,43,18],[44,13,44,18],[45,13,45,18],[46,13,46,18],[48,13,48,18],[49,13,49,18],[50,13,50,18],[51,13,51,18],[52,13,52,18]]}
["Name:",null,null,"Amelia Earhart",null,null,null,null,null,null,"Chronal Stability",null,null,null,null,"Health"]
[null,null,null,null,null,null,null,null,null,null,{"$f":"IF($N$9>=15,15,\"\")","v":""},{"$f":"IF($N$9>=14,14,\"\")","v":""},{"$f":"IF($N$9>=13,13,\"\")","v":""},{"$f":"IF($N$9>=12,12,\"\")","v":""},null,{"$f":"IF($S$9>=15,15,\"\")","v":""},{"$f":"IF($S$9>=14,14,\"\")","v":""},{"$f":"IF($S$9>=13,13,\"\")","v":""},{"$f":"IF($S$9>=12,12,\"\")","v":""}]
["Nationality:",null,null,"USA",null,null,null,null,null,null,{"$f":"IF($N$9>=11,11,\"\")","v":""},{"$f":"IF($N$9>=10,10,\"\")","v":""},{"$f":"IF($N$9>=9,9,\"\")","v":""},{"$f":"IF($N$9>=8,8,\"\")","v":8},null,{"$f":"IF($S$9>=11,11,\"\")","v":""},{"$f":"IF($S$9>=10,10,\"\")","v":""},{"$f":"IF($S$9>=9,9,\"\")","v":""},{"$f":"IF($S$9>=8,8,\"\")","v":8}]
["Origin Time:",null,null,null,null,null,null,null,null,null,{"$f":"IF($N$9>=7,7,\"\")","v":7},6,5,4,null,{"$f":"IF($S$9>=7,7,\"\")","v":7},6,5,4]
["Profession: ",null,null,"Aviatrix",null,null,null,null,null,null,3,2,1,0,null,3,2,1,0]
["Age:",null,null,null,null,null,null,null,null,null,-1,-2,-3,-4,null,-1,-2,-3,-4]
["Drive:",null,null,"Thrill-Seeker",null,null,null,null,null,null,-5,-6,-7,-8,null,-5,-6,-7,-8,null,null,null,null,null,"XP - "]
[null,null,null,null,null,null,null,null,null,null,-9,-10,-11,-12,null,-9,-10,-11,-12,null,null,null,null,null,"Extra"]
["Hit Threshold:",null,null,{"$f":"IF(S13>7,4,3)","v":3},null,"Armor:",null,{"$f":"IF(C43='Summary of Points'!C48,1,0)","v":1},null,null,"Max: ",null,null,{"$f":"S15","v":8},null,"Max: ",null,null,{"$f":"S17","v":8},null,null,null,null,null,"Points?"]
[]
["INVESTIGATIVE ABILITIES",null,null,null,null,null,null,null,null,null,null,null,null,"GENERAL ABILITIES",null,null,null,null,null,null,null,"Investigative:",null,null,0,{"$f":"'Summary of Points'!F4+Y11","v":16},{"$f":"SUM(E15:E24)+SUM(L14:L36)-1","v":16}]
[null,null,null,null,null,null,null,null,null,null,null,null,null,null,null,null,null,null,null,null,null,"General:",null,null,0,{"$f":"'Summary of Points'!E5+Y12","v":50},{"$f":"SUM(S12:S28)-12","v":50}]
["Academic Abilities",null,null,null,null,null,"Interpersonal Abilities ",null,null,null,null,null,null,"Athletics",null,null,null,null,5]
[null,null,null,null,null,null,null,null,null,null,null,null,null,"Burglary"]
["Anthropology",null,null,null,1,null,"Authority",null,null,null,null,1,null,"Chronal Stability**",null,null,null,null,8]
["Architecture ",null,null,null,null,null,"Bureaucracy",null,null,null,null,null,null,"Disguise",null,null,null,null,3]
["History (Ancient)",null,null,null,1,null,"Charm",null,null,null,null,2,null,"Health**",null,null,null,null,8]
["History (Contemporary)",null,null,null,1,null,"Falsehood Detection",null,null,null,null,1,null,"Medic",null,null,null,null,2]
["History (Future)",null,null,null,null,null,"High Society ",null,null,null,null,1,null,"Preparedness",null,null,null,null,5]
["Military Tactics",null,null,null,null,null,"Intimidation",null,null,null,null,null,null,"Reality Anchor",null,null,null,null,1]
["Research",null,null,null,1,null,"Reassurance",null,null,null,null,1,null,"Scuffling",null,null,null,null,4]
["Timecraft*",null,null,null,1,null,"Streetwise ",null,null,null,null,null,null,"Shooting",null,null,null,null,8]
["Trivia",null,null,null,null,null,"Taunt",null,null,null,null,1,null,"Tinkering",null,null,null,null,8]
[null,null,null,null,null,null,null,null,null,null,null,null,null,"Unobtrusiveness"]
[null,null,null,null,null,null,"Technical Abilities",null,null,null,null,null,null,"Vehicles",null,null,null,null,10]
[]
["Extra Investigative points?",null,null,null,null,null,"Forgery"]
[null,null,null,null,null,null,"Hacking",null,null,null,null,null,null,"Special Boosters:"]
[null,null,{"$f":"Z11-AA11","v":0},null,null,null,"Medical Expertise"]
[null,null,null,null,null,null,"Notice",null,null,null,null,1,null,{"$f":"IF(S13>7,'Summary of Points'!N30,\"\")","v":""}]
["Extra General points?",null,null,null,null,null,"Outdoor Survival ",null,null,null,null,1,null,{"$f":"IF(S13>7,'Summary of Points'!N31,\"\")","v":""}]
[null,null,null,null,null,null,"Paradox Prevention",null,null,null,null,2,null,{"$f":"IF(S14>7,'Summary of Points'!N32,\"\")","v":""}]
[null,null,{"$f":"Z12-AA12","v":0},null,null,null,"Science!",null,null,null,null,1,null,{"$f":"IF(S14>7,'Summary of Points'!N33,\"\")","v":""}]
[null,null,null,null,null,null,"Spying",null,null,null,null,null,null,{"$f":"IF(S16>7,'Summary of Points'!N34,\"\")","v":""}]
[null,null,null,null,null,null,null,null,null,null,null,null,null,{"$f":"IF(S16>7,'Summary of Points'!N35,\"\")","v":""}]
[null,null,null,null,null,null,null,null,null,null,null,null,null,{"$f":"IF(S18>7,'Summary of Points'!N36,\"\")","v":""}]
["Gear:",null,{"$f":"'Summary of Points'!C42","v":"Autochron (portable 1-man time machine)"},null,null,null,null,null,null,null,null,null,null,{"$f":"IF(S18>7,'Summary of Points'!N37,\"\")","v":""}]
[null,null,{"$f":"'Summary of Points'!C43","v":"Impersonator mesh (+3 Unobtrusiveness until drawing notice)"},null,null,null,null,null,null,null,null,null,null,{"$f":"IF(S19>7,'Summary of Points'!N38,\"\")","v":""}]
[null,null,{"$f":"'Summary of Points'!C44","v":"MedKit (lets you use Medic skill effectively)"},null,null,null,null,null,null,null,null,null,null,{"$f":"IF(S19>7,'Summary of Points'!N39,\"\")","v":""}]
[null,null,{"$f":"'Summary of Points'!C45","v":"MEM-tags (for memory modification of unconscious subjects)"},null,null,null,null,null,null,null,null,null,null,{"$f":"IF(S20>7,'Summary of Points'!N40,\"\")","v":""}]
[null,null,{"$f":"'Summary of Points'!C46","v":"PaciFist disruptor (Close range, Stun 5, subtle)"},null,null,null,null,null,null,null,null,null,null,{"$f":"IF(S20>7,'Summary of Points'!N41,\"\")","v":""}]
[null,null,{"$f":"'Summary of Points'!C47","v":"Tether (holographic PDA linked to subdermal earbud)"},null,null,null,null,null,null,null,null,null,null,{"$f":"IF(S21>7,'Summary of Points'!N42,\"\")","v":""}]
[null,null,{"$f":"'Summary of Points'!C48","v":"TimeWatch Uniform (chronomorphic, armor 1)"},null,null,null,null,null,null,null,null,null,null,{"$f":"IF(S21>7,'Summary of Points'!N43,\"\")","v":""}]
[null,null,{"$f":"'Summary of Points'!C49","v":"Translator (instant, 2-way, unnoticeable)"},null,null,null,null,null,null,null,null,null,null,{"$f":"IF(S22>7,'Summary of Points'!N44,\"\")","v":"Double Tap (Shooting):"}]
[null,null,null,null,null,null,null,null,null,null,null,null,null,{"$f":"IF(S22>7,'Summary of Points'!N45,\"\")","v":"Shoot 2nd foe at +2 Difficulty"}]
[null,null,null,null,null,null,null,null,null,null,null,null,null,{"$f":"IF(S23>7,'Summary of Points'!N46,\"\")","v":"Rapid Deployment (Tinkering):"}]
[null,null,null,null,null,null,null,null,null,null,null,null,null,{"$f":"IF(S23>7,'Summary of Points'!N47,\"\")","v":"Complete Tinkering tasks in 1/2 the time"}]
[null,null,null,null,null,null,null,null,null,null,null,null,null,{"$f":"IF(S24>7,'Summary of Points'!N48,\"\")","v":""}]
[null,null,null,null,null,null,null,null,null,null,null,null,null,{"$f":"IF(S24>7,'Summary of Points'!N49,\"\")","v":""}]
[null,null,null,null,null,null,null,null,null,null,null,null,null,{"$f":"IF(S25>7,'Summary of Points'!N50,\"\")","v":"Keep Up (Vehicles):"}]
["* Start with 1 point free",null,null,null,null,null,"Each spent stitch refreshes 2 pts from 1 pool",null,null,null,null,null,null,{"$f":"IF(S25>7,'Summary of Points'!N51,\"\")","v":"Improved piggyback of Vehicle tests"}]
["** Start with 6 points free",null,null,null,null,null,"Do cool stuff, earn more stitches! (max 3)"]

{"sheet":"History - Lucrezia Borgia","index":29,"n_rows":52,"n_cols":27,"rows_kept":52,"cut":false,"hidden":false,"merged":[[49,13,49,18],[50,13,50,18],[51,13,51,18],[52,13,52,18],[45,13,45,18],[46,13,46,18],[47,13,47,18],[48,13,48,18],[41,13,41,18],[42,13,42,18],[43,13,43,18],[44,13,44,18],[37,13,37,18],[38,13,38,18],[39,13,39,18],[40,13,40,18],[33,13,33,18],[34,13,34,18],[35,13,35,18],[36,13,36,18],[29,13,29,18],[30,13,30,18],[31,13,31,18],[32,13,32,18],[27,13,27,18],[0,15,0,18],[0,10,0,13],[10,0,10,11],[10,13,10,18],[38,2,38,12],[39,2,39,12],[0,3,0,8],[2,3,2,8],[3,3,3,8],[4,3,4,8],[5,3,5,8],[6,3,6,8],[37,2,37,12],[36,2,36,12],[48,2,48,12],[49,2,49,12],[40,2,40,12],[44,2,44,12],[45,2,45,12],[46,2,46,12],[43,2,43,12],[42,2,42,12],[41,2,41,12],[47,2,47,12]]}
["Name:",null,null,"Lucrezia Borgia",null,null,null,null,null,null,"Chronal Stability",null,null,null,null,"Health"]
[null,null,null,null,null,null,null,null,null,null,{"$f":"IF($N$9>=15,15,\"\")","v":""},{"$f":"IF($N$9>=14,14,\"\")","v":""},{"$f":"IF($N$9>=13,13,\"\")","v":""},{"$f":"IF($N$9>=12,12,\"\")","v":""},null,{"$f":"IF($S$9>=15,15,\"\")","v":""},{"$f":"IF($S$9>=14,14,\"\")","v":""},{"$f":"IF($S$9>=13,13,\"\")","v":""},{"$f":"IF($S$9>=12,12,\"\")","v":""}]
["Nationality:",null,null,"Italian",null,null,null,null,null,null,{"$f":"IF($N$9>=11,11,\"\")","v":""},{"$f":"IF($N$9>=10,10,\"\")","v":""},{"$f":"IF($N$9>=9,9,\"\")","v":""},{"$f":"IF($N$9>=8,8,\"\")","v":""},null,{"$f":"IF($S$9>=11,11,\"\")","v":""},{"$f":"IF($S$9>=10,10,\"\")","v":""},{"$f":"IF($S$9>=9,9,\"\")","v":""},{"$f":"IF($S$9>=8,8,\"\")","v":""}]
["Origin Time:",null,null,1519,null,null,null,null,null,null,{"$f":"IF($N$9>=7,7,\"\")","v":7},6,5,4,null,{"$f":"IF($S$9>=7,7,\"\")","v":7},6,5,4]
["Profession: ",null,null,"Schemer and assassin",null,null,null,null,null,null,3,2,1,0,null,3,2,1,0]
["Age:",null,null,39,null,null,null,null,null,null,-1,-2,-3,-4,null,-1,-2,-3,-4]
["Drive:",null,null,"Vengeance",null,null,null,null,null,null,-5,-6,-7,-8,null,-5,-6,-7,-8,null,null,null,null,null,"XP - "]
[null,null,null,null,null,null,null,null,null,null,-9,-10,-11,-12,null,-9,-10,-11,-12,null,null,null,null,null,"Extra"]
["Hit Threshold:",null,null,{"$f":"IF(S13>7,4,3)","v":3},null,"Armor:",null,{"$f":"IF(C43='Summary of Points'!C48,1,0)","v":1},null,null,"Max: ",null,null,{"$f":"S15","v":7},null,"Max: ",null,null,{"$f":"S17","v":7},null,null,null,null,null,"Points?"]
[]
["INVESTIGATIVE ABILITIES",null,null,null,null,null,null,null,null,null,null,null,null,"GENERAL ABILITIES",null,null,null,null,null,null,null,"Investigative:",null,null,0,{"$f":"'Summary of Points'!F4+Y11","v":16},{"$f":"SUM(E15:E24)+SUM(L14:L36)-1","v":16}]
[null,null,null,null,null,null,null,null,null,null,null,null,null,null,null,null,null,null,null,null,null,"General:",null,null,0,{"$f":"'Summary of Points'!E5+Y12","v":50},{"$f":"SUM(S12:S28)-12","v":50}]
["Academic Abilities",null,null,null,null,null,"Interpersonal Abilities ",null,null,null,null,null,null,"Athletics",null,null,null,null,4]
[null,null,null,null,null,null,null,null,null,null,null,null,null,"Burglary",null,null,null,null,8]
["Anthropology",null,null,null,null,null,"Authority",null,null,null,null,null,null,"Chronal Stability**",null,null,null,null,7]
["Architecture ",null,null,null,1,null,"Bureaucracy",null,null,null,null,null,null,"Disguise",null,null,null,null,8]
["History (Ancient)",null,null,null,1,null,"Charm",null,null,null,null,2,null,"Health**",null,null,null,null,7]
["History (Contemporary)",null,null,null,1,null,"Falsehood Detection",null,null,null,null,1,null,"Medic",null,null,null,null,2]
["History (Future)",null,null,null,null,null,"High Society ",null,null,null,null,1,null,"Preparedness",null,null,null,null,5]
["Military Tactics",null,null,null,null,null,"Intimidation",null,null,null,null,null,null,"Reality Anchor",null,null,null,null,3]
["Research",null,null,null,null,null,"Reassurance",null,null,null,null,1,null,"Scuffling",null,null,null,null,3]
["Timecraft*",null,null,null,1,null,"Streetwise ",null,null,null,null,1,null,"Shooting",null,null,null,null,6]
["Trivia",null,null,null,null,null,"Taunt",null,null,null,null,1,null,"Tinkering",null,null,null,null,2]
[null,null,null,null,null,null,null,null,null,null,null,null,null,"Unobtrusiveness",null,null,null,null,6]
[null,null,null,null,null,null,"Technical Abilities",null,null,null,null,null,null,"Vehicles",null,null,null,null,1]
[]
["Extra Investigative points?",null,null,null,null,null,"Forgery",null,null,null,null,1]
[null,null,null,null,null,null,"Hacking",null,null,null,null,null,null,"Special Boosters:"]
[null,null,{"$f":"Z11-AA11","v":0},null,null,null,"Medical Expertise"]
[null,null,null,null,null,null,"Notice",null,null,null,null,1,null,{"$f":"IF(S13>7,'Summary of Points'!N30,\"\")","v":""}]
["Extra General points?",null,null,null,null,null,"Outdoor Survival ",null,null,null,null,null,null,{"$f":"IF(S13>7,'Summary of Points'!N31,\"\")","v":""}]
[null,null,null,null,null,null,"Paradox Prevention",null,null,null,null,1,null,{"$f":"IF(S14>7,'Summary of Points'!N32,\"\")","v":"Open Sesame (Burglary):"}]
[null,null,{"$f":"Z12-AA12","v":0},null,null,null,"Science!",null,null,null,null,1,null,{"$f":"IF(S14>7,'Summary of Points'!N33,\"\")","v":"Easily open simple locks"}]
[null,null,null,null,null,null,"Spying",null,null,null,null,2,null,{"$f":"IF(S16>7,'Summary of Points'!N34,\"\")","v":"Don't I Know You? (Disguise):"}]
[null,null,null,null,null,null,null,null,null,null,null,null,null,{"$f":"IF(S16>7,'Summary of Points'!N35,\"\")","v":"Fool someone into thinking you've met"}]
[null,null,null,null,null,null,null,null,null,null,null,null,null,{"$f":"IF(S18>7,'Summary of Points'!N36,\"\")","v":""}]
["Gear:",null,{"$f":"'Summary of Points'!C42","v":"Autochron (portable 1-man time machine)"},null,null,null,null,null,null,null,null,null,null,{"$f":"IF(S18>7,'Summary of Points'!N37,\"\")","v":""}]
[null,null,{"$f":"'Summary of Points'!C43","v":"Impersonator mesh (+3 Unobtrusiveness until drawing notice)"},null,null,null,null,null,null,null,null,null,null,{"$f":"IF(S19>7,'Summary of Points'!N38,\"\")","v":""}]
[null,null,{"$f":"'Summary of Points'!C44","v":"MedKit (lets you use Medic skill effectively)"},null,null,null,null,null,null,null,null,null,null,{"$f":"IF(S19>7,'Summary of Points'!N39,\"\")","v":""}]
[null,null,{"$f":"'Summary of Points'!C45","v":"MEM-tags (for memory modification of unconscious subjects)"},null,null,null,null,null,null,null,null,null,null,{"$f":"IF(S20>7,'Summary of Points'!N40,\"\")","v":""}]
[null,null,{"$f":"'Summary of Points'!C46","v":"PaciFist disruptor (Close range, Stun 5, subtle)"},null,null,null,null,null,null,null,null,null,null,{"$f":"IF(S20>7,'Summary of Points'!N41,\"\")","v":""}]
[null,null,{"$f":"'Summary of Points'!C47","v":"Tether (holographic PDA linked to subdermal earbud)"},null,null,null,null,null,null,null,null,null,null,{"$f":"IF(S21>7,'Summary of Points'!N42,\"\")","v":""}]
[null,null,{"$f":"'Summary of Points'!C48","v":"TimeWatch Uniform (chronomorphic, armor 1)"},null,null,null,null,null,null,null,null,null,null,{"$f":"IF(S21>7,'Summary of Points'!N43,\"\")","v":""}]
[null,null,{"$f":"'Summary of Points'!C49","v":"Translator (instant, 2-way, unnoticeable)"},null,null,null,null,null,null,null,null,null,null,{"$f":"IF(S22>7,'Summary of Points'!N44,\"\")","v":""}]
[null,null,null,null,null,null,null,null,null,null,null,null,null,{"$f":"IF(S22>7,'Summary of Points'!N45,\"\")","v":""}]
[null,null,null,null,null,null,null,null,null,null,null,null,null,{"$f":"IF(S23>7,'Summary of Points'!N46,\"\")","v":""}]
[null,null,null,null,null,null,null,null,null,null,null,null,null,{"$f":"IF(S23>7,'Summary of Points'!N47,\"\")","v":""}]
[null,null,null,null,null,null,null,null,null,null,null,null,null,{"$f":"IF(S24>7,'Summary of Points'!N48,\"\")","v":""}]
[null,null,null,null,null,null,null,null,null,null,null,null,null,{"$f":"IF(S24>7,'Summary of Points'!N49,\"\")","v":""}]
[null,null,null,null,null,null,null,null,null,null,null,null,null,{"$f":"IF(S25>7,'Summary of Points'!N50,\"\")","v":""}]
["* Start with 1 point free",null,null,null,null,null,"Each spent stitch refreshes 2 pts from 1 pool",null,null,null,null,null,null,{"$f":"IF(S25>7,'Summary of Points'!N51,\"\")","v":""}]
["** Start with 6 points free",null,null,null,null,null,"Do cool stuff, earn more stitches! (max 3)"]

{"sheet":"History - Garnissa","index":30,"n_rows":52,"n_cols":27,"rows_kept":52,"cut":false,"hidden":false,"merged":[[48,2,48,12],[49,2,49,12],[40,2,40,12],[44,2,44,12],[45,2,45,12],[46,2,46,12],[43,2,43,12],[42,2,42,12],[41,2,41,12],[47,2,47,12],[36,2,36,12],[38,2,38,12],[39,2,39,12],[0,3,0,8],[2,3,2,8],[3,3,3,8],[4,3,4,8],[5,3,5,8],[6,3,6,8],[37,2,37,12],[35,13,35,18],[27,13,27,18],[0,15,0,18],[0,10,0,13],[10,0,10,11],[10,13,10,18],[29,13,29,18],[30,13,30,18],[31,13,31,18],[32,13,32,18],[33,13,33,18],[34,13,34,18],[47,13,47,18],[36,13,36,18],[37,13,37,18],[38,13,38,18],[39,13,39,18],[40,13,40,18],[41,13,41,18],[42,13,42,18],[43,13,43,18],[44,13,44,18],[45,13,45,18],[46,13,46,18],[48,13,48,18],[49,13,49,18],[50,13,50,18],[51,13,51,18],[52,13,52,18]]}
["Name:",null,null,"Garnissa",null,null,null,null,null,null,"Chronal Stability",null,null,null,null,"Health"]
[null,null,null,null,null,null,null,null,null,null,{"$f":"IF($N$9>=15,15,\"\")","v":""},{"$f":"IF($N$9>=14,14,\"\")","v":""},{"$f":"IF($N$9>=13,13,\"\")","v":""},{"$f":"IF($N$9>=12,12,\"\")","v":""},null,{"$f":"IF($S$9>=15,15,\"\")","v":""},{"$f":"IF($S$9>=14,14,\"\")","v":""},{"$f":"IF($S$9>=13,13,\"\")","v":""},{"$f":"IF($S$9>=12,12,\"\")","v":""}]
["Nationality:",null,null,"Norse",null,null,null,null,null,null,{"$f":"IF($N$9>=11,11,\"\")","v":""},{"$f":"IF($N$9>=10,10,\"\")","v":""},{"$f":"IF($N$9>=9,9,\"\")","v":""},{"$f":"IF($N$9>=8,8,\"\")","v":8},null,{"$f":"IF($S$9>=11,11,\"\")","v":""},{"$f":"IF($S$9>=10,10,\"\")","v":""},{"$f":"IF($S$9>=9,9,\"\")","v":""},{"$f":"IF($S$9>=8,8,\"\")","v":8}]
["Origin Time:",null,null,1003,null,null,null,null,null,null,{"$f":"IF($N$9>=7,7,\"\")","v":7},6,5,4,null,{"$f":"IF($S$9>=7,7,\"\")","v":7},6,5,4]
["Profession: ",null,null,"Merchant",null,null,null,null,null,null,3,2,1,0,null,3,2,1,0]
["Age:",null,null,28,null,null,null,null,null,null,-1,-2,-3,-4,null,-1,-2,-3,-4]
["Drive:",null,null,"Curiosity",null,null,null,null,null,null,-5,-6,-7,-8,null,-5,-6,-7,-8,null,null,null,null,null,"XP - "]
[null,null,null,null,null,null,null,null,null,null,-9,-10,-11,-12,null,-9,-10,-11,-12,null,null,null,null,null,"Extra"]
["Hit Threshold:",null,null,{"$f":"IF(S13>7,4,3)","v":4},null,"Armor:",null,{"$f":"IF(C43='Summary of Points'!C48,1,0)","v":1},null,null,"Max: ",null,null,{"$f":"S15","v":8},null,"Max: ",null,null,{"$f":"S17","v":8},null,null,null,null,null,"Points?"]
[]
["INVESTIGATIVE ABILITIES",null,null,null,null,null,null,null,null,null,null,null,null,"GENERAL ABILITIES",null,null,null,null,null,null,null,"Investigative:",null,null,0,{"$f":"'Summary of Points'!F4+Y11","v":16},{"$f":"SUM(E15:E24)+SUM(L14:L36)-1","v":14}]
[null,null,null,null,null,null,null,null,null,null,null,null,null,null,null,null,null,null,null,null,null,"General:",null,null,0,{"$f":"'Summary of Points'!E5+Y12","v":50},{"$f":"SUM(S12:S28)-12","v":50}]
["Academic Abilities",null,null,null,null,null,"Interpersonal Abilities ",null,null,null,null,null,null,"Athletics",null,null,null,null,8]
[null,null,null,null,null,null,null,null,null,null,null,null,null,"Burglary",null,null,null,null,1]
["Anthropology",null,null,null,1,null,"Authority",null,null,null,null,1,null,"Chronal Stability**",null,null,null,null,8]
["Architecture ",null,null,null,null,null,"Bureaucracy",null,null,null,null,null,null,"Disguise",null,null,null,null,3]
["History (Ancient)",null,null,null,1,null,"Charm",null,null,null,null,1,null,"Health**",null,null,null,null,8]
["History (Contemporary)",null,null,null,null,null,"Falsehood Detection",null,null,null,null,1,null,"Medic",null,null,null,null,3]
["History (Future)",null,null,null,null,null,"High Society ",null,null,null,null,null,null,"Preparedness",null,null,null,null,8]
["Military Tactics",null,null,null,1,null,"Intimidation",null,null,null,null,1,null,"Reality Anchor",null,null,null,null,4]
["Research",null,null,null,null,null,"Reassurance",null,null,null,null,null,null,"Scuffling",null,null,null,null,8]
["Timecraft*",null,null,null,1,null,"Streetwise ",null,null,null,null,1,null,"Shooting",null,null,null,null,1]
["Trivia",null,null,null,null,null,"Taunt",null,null,null,null,1,null,"Tinkering",null,null,null,null,1]
[null,null,null,null,null,null,null,null,null,null,null,null,null,"Unobtrusiveness",null,null,null,null,4]
[null,null,null,null,null,null,"Technical Abilities",null,null,null,null,null,null,"Vehicles",null,null,null,null,5]
[]
["Extra Investigative points?",null,null,null,null,null,"Forgery",null,null,null,null,1]
[null,null,null,null,null,null,"Hacking",null,null,null,null,null,null,"Special Boosters:"]
[null,null,{"$f":"Z11-AA11","v":2},null,null,null,"Medical Expertise",null,null,null,null,1]
[null,null,null,null,null,null,"Notice",null,null,null,null,null,null,{"$f":"IF(S13>7,'Summary of Points'!N30,\"\")","v":"Hard to Hit (Athletics):"}]
["Extra General points?",null,null,null,null,null,"Outdoor Survival ",null,null,null,null,1,null,{"$f":"IF(S13>7,'Summary of Points'!N31,\"\")","v":"Hit Threshold = 4, not 3"}]
[null,null,null,null,null,null,"Paradox Prevention",null,null,null,null,1,null,{"$f":"IF(S14>7,'Summary of Points'!N32,\"\")","v":""}]
[null,null,{"$f":"Z12-AA12","v":0},null,null,null,"Science!",null,null,null,null,1,null,{"$f":"IF(S14>7,'Summary of Points'!N33,\"\")","v":""}]
[null,null,null,null,null,null,"Spying",null,null,null,null,null,null,{"$f":"IF(S16>7,'Summary of Points'!N34,\"\")","v":""}]
[null,null,null,null,null,null,null,null,null,null,null,null,null,{"$f":"IF(S16>7,'Summary of Points'!N35,\"\")","v":""}]
[null,null,null,null,null,null,null,null,null,null,null,null,null,{"$f":"IF(S18>7,'Summary of Points'!N36,\"\")","v":""}]
["Gear:",null,{"$f":"'Summary of Points'!C42","v":"Autochron (portable 1-man time machine)"},null,null,null,null,null,null,null,null,null,null,{"$f":"IF(S18>7,'Summary of Points'!N37,\"\")","v":""}]
[null,null,{"$f":"'Summary of Points'!C43","v":"Impersonator mesh (+3 Unobtrusiveness until drawing notice)"},null,null,null,null,null,null,null,null,null,null,{"$f":"IF(S19>7,'Summary of Points'!N38,\"\")","v":"Flashback (Preparedness):"}]
[null,null,{"$f":"'Summary of Points'!C44","v":"MedKit (lets you use Medic skill effectively)"},null,null,null,null,null,null,null,null,null,null,{"$f":"IF(S19>7,'Summary of Points'!N39,\"\")","v":"Retroactively prepare actions"}]
[null,null,{"$f":"'Summary of Points'!C45","v":"MEM-tags (for memory modification of unconscious subjects)"},null,null,null,null,null,null,null,null,null,null,{"$f":"IF(S20>7,'Summary of Points'!N40,\"\")","v":""}]
[null,null,{"$f":"'Summary of Points'!C46","v":"PaciFist disruptor (Close range, Stun 5, subtle)"},null,null,null,null,null,null,null,null,null,null,{"$f":"IF(S20>7,'Summary of Points'!N41,\"\")","v":""}]
[null,null,{"$f":"'Summary of Points'!C47","v":"Tether (holographic PDA linked to subdermal earbud)"},null,null,null,null,null,null,null,null,null,null,{"$f":"IF(S21>7,'Summary of Points'!N42,\"\")","v":"That's Gotta Hurt (Scuffling):"}]
[null,null,{"$f":"'Summary of Points'!C48","v":"TimeWatch Uniform (chronomorphic, armor 1)"},null,null,null,null,null,null,null,null,null,null,{"$f":"IF(S21>7,'Summary of Points'!N43,\"\")","v":"Scuffling Pool spend = min base dmg"}]
[null,null,{"$f":"'Summary of Points'!C49","v":"Translator (instant, 2-way, unnoticeable)"},null,null,null,null,null,null,null,null,null,null,{"$f":"IF(S22>7,'Summary of Points'!N44,\"\")","v":""}]
[null,null,null,null,null,null,null,null,null,null,null,null,null,{"$f":"IF(S22>7,'Summary of Points'!N45,\"\")","v":""}]
[null,null,null,null,null,null,null,null,null,null,null,null,null,{"$f":"IF(S23>7,'Summary of Points'!N46,\"\")","v":""}]
[null,null,null,null,null,null,null,null,null,null,null,null,null,{"$f":"IF(S23>7,'Summary of Points'!N47,\"\")","v":""}]
[null,null,null,null,null,null,null,null,null,null,null,null,null,{"$f":"IF(S24>7,'Summary of Points'!N48,\"\")","v":""}]
[null,null,null,null,null,null,null,null,null,null,null,null,null,{"$f":"IF(S24>7,'Summary of Points'!N49,\"\")","v":""}]
[null,null,null,null,null,null,null,null,null,null,null,null,null,{"$f":"IF(S25>7,'Summary of Points'!N50,\"\")","v":""}]
["* Start with 1 point free",null,null,null,null,null,"Each spent stitch refreshes 2 pts from 1 pool",null,null,null,null,null,null,{"$f":"IF(S25>7,'Summary of Points'!N51,\"\")","v":""}]
["** Start with 6 points free",null,null,null,null,null,"Do cool stuff, earn more stitches! (max 3)"]

{"sheet":"History - Spartacus","index":31,"n_rows":52,"n_cols":27,"rows_kept":52,"cut":false,"hidden":false,"merged":[[49,13,49,18],[50,13,50,18],[51,13,51,18],[52,13,52,18],[45,13,45,18],[46,13,46,18],[47,13,47,18],[48,13,48,18],[41,13,41,18],[42,13,42,18],[43,13,43,18],[44,13,44,18],[37,13,37,18],[38,13,38,18],[39,13,39,18],[40,13,40,18],[33,13,33,18],[34,13,34,18],[35,13,35,18],[36,13,36,18],[29,13,29,18],[30,13,30,18],[31,13,31,18],[32,13,32,18],[27,13,27,18],[0,15,0,18],[0,10,0,13],[10,0,10,11],[10,13,10,18],[38,2,38,12],[39,2,39,12],[0,3,0,8],[2,3,2,8],[3,3,3,8],[4,3,4,8],[5,3,5,8],[6,3,6,8],[37,2,37,12],[36,2,36,12],[48,2,48,12],[49,2,49,12],[40,2,40,12],[44,2,44,12],[45,2,45,12],[46,2,46,12],[43,2,43,12],[42,2,42,12],[41,2,41,12],[47,2,47,12]]}
["Name:",null,null,"Spartacus",null,null,null,null,null,null,"Chronal Stability",null,null,null,null,"Health"]
[null,null,null,null,null,null,null,null,null,null,{"$f":"IF($N$9>=15,15,\"\")","v":""},{"$f":"IF($N$9>=14,14,\"\")","v":""},{"$f":"IF($N$9>=13,13,\"\")","v":""},{"$f":"IF($N$9>=12,12,\"\")","v":""},null,{"$f":"IF($S$9>=15,15,\"\")","v":""},{"$f":"IF($S$9>=14,14,\"\")","v":""},{"$f":"IF($S$9>=13,13,\"\")","v":""},{"$f":"IF($S$9>=12,12,\"\")","v":12}]
["Nationality:",null,null,"Thracian",null,null,null,null,null,null,{"$f":"IF($N$9>=11,11,\"\")","v":""},{"$f":"IF($N$9>=10,10,\"\")","v":""},{"$f":"IF($N$9>=9,9,\"\")","v":""},{"$f":"IF($N$9>=8,8,\"\")","v":8},null,{"$f":"IF($S$9>=11,11,\"\")","v":11},{"$f":"IF($S$9>=10,10,\"\")","v":10},{"$f":"IF($S$9>=9,9,\"\")","v":9},{"$f":"IF($S$9>=8,8,\"\")","v":8}]
["Origin Time:",null,null,"71 BCE",null,null,null,null,null,null,{"$f":"IF($N$9>=7,7,\"\")","v":7},6,5,4,null,{"$f":"IF($S$9>=7,7,\"\")","v":7},6,5,4]
["Profession: ",null,null,"Gladiator",null,null,null,null,null,null,3,2,1,0,null,3,2,1,0]
["Age:",null,null,38,null,null,null,null,null,null,-1,-2,-3,-4,null,-1,-2,-3,-4]
["Drive:",null,null,"Altruism",null,null,null,null,null,null,-5,-6,-7,-8,null,-5,-6,-7,-8,null,null,null,null,null,"XP - "]
[null,null,null,null,null,null,null,null,null,null,-9,-10,-11,-12,null,-9,-10,-11,-12,null,null,null,null,null,"Extra"]
["Hit Threshold:",null,null,{"$f":"IF(S13>7,4,3)","v":4},null,"Armor:",null,{"$f":"IF(C43='Summary of Points'!C48,1,0)","v":1},null,null,"Max: ",null,null,{"$f":"S15","v":8},null,"Max: ",null,null,{"$f":"S17","v":12},null,null,null,null,null,"Points?"]
[]
["INVESTIGATIVE ABILITIES",null,null,null,null,null,null,null,null,null,null,null,null,"GENERAL ABILITIES",null,null,null,null,null,null,null,"Investigative:",null,null,0,{"$f":"'Summary of Points'!F4+Y11","v":16},{"$f":"SUM(E15:E24)+SUM(L14:L36)-1","v":16}]
[null,null,null,null,null,null,null,null,null,null,null,null,null,null,null,null,null,null,null,null,null,"General:",null,null,0,{"$f":"'Summary of Points'!E5+Y12","v":50},{"$f":"SUM(S12:S28)-12","v":50}]
["Academic Abilities",null,null,null,null,null,"Interpersonal Abilities ",null,null,null,null,null,null,"Athletics",null,null,null,null,8]
[null,null,null,null,null,null,null,null,null,null,null,null,null,"Burglary",null,null,null,null,4]
["Anthropology",null,null,null,null,null,"Authority",null,null,null,null,1,null,"Chronal Stability**",null,null,null,null,8]
["Architecture ",null,null,null,null,null,"Bureaucracy",null,null,null,null,null,null,"Disguise",null,null,null,null,3]
["History (Ancient)",null,null,null,1,null,"Charm",null,null,null,null,1,null,"Health**",null,null,null,null,12]
["History (Contemporary)",null,null,null,null,null,"Falsehood Detection",null,null,null,null,1,null,"Medic",null,null,null,null,2]
["History (Future)",null,null,null,1,null,"High Society ",null,null,null,null,null,null,"Preparedness",null,null,null,null,4]
["Military Tactics",null,null,null,2,null,"Intimidation",null,null,null,null,2,null,"Reality Anchor",null,null,null,null,1]
["Research",null,null,null,null,null,"Reassurance",null,null,null,null,null,null,"Scuffling",null,null,null,null,10]
["Timecraft*",null,null,null,1,null,"Streetwise ",null,null,null,null,1,null,"Shooting",null,null,null,null,4]
["Trivia",null,null,null,null,null,"Taunt",null,null,null,null,2,null,"Tinkering"]
[null,null,null,null,null,null,null,null,null,null,null,null,null,"Unobtrusiveness",null,null,null,null,3]
[null,null,null,null,null,null,"Technical Abilities",null,null,null,null,null,null,"Vehicles",null,null,null,null,3]
[]
["Extra Investigative points?",null,null,null,null,null,"Forgery"]
[null,null,null,null,null,null,"Hacking",null,null,null,null,null,null,"Special Boosters:"]
[null,null,{"$f":"Z11-AA11","v":0},null,null,null,"Medical Expertise"]
[null,null,null,null,null,null,"Notice",null,null,null,null,1,null,{"$f":"IF(S13>7,'Summary of Points'!N30,\"\")","v":"Hard to Hit (Athletics):"}]
["Extra General points?",null,null,null,null,null,"Outdoor Survival ",null,null,null,null,1,null,{"$f":"IF(S13>7,'Summary of Points'!N31,\"\")","v":"Hit Threshold = 4, not 3"}]
[null,null,null,null,null,null,"Paradox Prevention",null,null,null,null,1,null,{"$f":"IF(S14>7,'Summary of Points'!N32,\"\")","v":""}]
[null,null,{"$f":"Z12-AA12","v":0},null,null,null,"Science!",null,null,null,null,null,null,{"$f":"IF(S14>7,'Summary of Points'!N33,\"\")","v":""}]
[null,null,null,null,null,null,"Spying",null,null,null,null,1,null,{"$f":"IF(S16>7,'Summary of Points'!N34,\"\")","v":""}]
[null,null,null,null,null,null,null,null,null,null,null,null,null,{"$f":"IF(S16>7,'Summary of Points'!N35,\"\")","v":""}]
[null,null,null,null,null,null,null,null,null,null,null,null,null,{"$f":"IF(S18>7,'Summary of Points'!N36,\"\")","v":""}]
["Gear:",null,{"$f":"'Summary of Points'!C42","v":"Autochron (portable 1-man time machine)"},null,null,null,null,null,null,null,null,null,null,{"$f":"IF(S18>7,'Summary of Points'!N37,\"\")","v":""}]
[null,null,{"$f":"'Summary of Points'!C43","v":"Impersonator mesh (+3 Unobtrusiveness until drawing notice)"},null,null,null,null,null,null,null,null,null,null,{"$f":"IF(S19>7,'Summary of Points'!N38,\"\")","v":""}]
[null,null,{"$f":"'Summary of Points'!C44","v":"MedKit (lets you use Medic skill effectively)"},null,null,null,null,null,null,null,null,null,null,{"$f":"IF(S19>7,'Summary of Points'!N39,\"\")","v":""}]
[null,null,{"$f":"'Summary of Points'!C45","v":"MEM-tags (for memory modification of unconscious subjects)"},null,null,null,null,null,null,null,null,null,null,{"$f":"IF(S20>7,'Summary of Points'!N40,\"\")","v":""}]
[null,null,{"$f":"'Summary of Points'!C46","v":"PaciFist disruptor (Close range, Stun 5, subtle)"},null,null,null,null,null,null,null,null,null,null,{"$f":"IF(S20>7,'Summary of Points'!N41,\"\")","v":""}]
[null,null,{"$f":"'Summary of Points'!C47","v":"Tether (holographic PDA linked to subdermal earbud)"},null,null,null,null,null,null,null,null,null,null,{"$f":"IF(S21>7,'Summary of Points'!N42,\"\")","v":"That's Gotta Hurt (Scuffling):"}]
[null,null,{"$f":"'Summary of Points'!C48","v":"TimeWatch Uniform (chronomorphic, armor 1)"},null,null,null,null,null,null,null,null,null,null,{"$f":"IF(S21>7,'Summary of Points'!N43,\"\")","v":"Scuffling Pool spend = min base dmg"}]
[null,null,{"$f":"'Summary of Points'!C49","v":"Translator (instant, 2-way, unnoticeable)"},null,null,null,null,null,null,null,null,null,null,{"$f":"IF(S22>7,'Summary of Points'!N44,\"\")","v":""}]
[null,null,null,null,null,null,null,null,null,null,null,null,null,{"$f":"IF(S22>7,'Summary of Points'!N45,\"\")","v":""}]
[null,null,null,null,null,null,null,null,null,null,null,null,null,{"$f":"IF(S23>7,'Summary of Points'!N46,\"\")","v":""}]
[null,null,null,null,null,null,null,null,null,null,null,null,null,{"$f":"IF(S23>7,'Summary of Points'!N47,\"\")","v":""}]
[null,null,null,null,null,null,null,null,null,null,null,null,null,{"$f":"IF(S24>7,'Summary of Points'!N48,\"\")","v":""}]
[null,null,null,null,null,null,null,null,null,null,null,null,null,{"$f":"IF(S24>7,'Summary of Points'!N49,\"\")","v":""}]
[null,null,null,null,null,null,null,null,null,null,null,null,null,{"$f":"IF(S25>7,'Summary of Points'!N50,\"\")","v":""}]
["* Start with 1 point free",null,null,null,null,null,"Each spent stitch refreshes 2 pts from 1 pool",null,null,null,null,null,null,{"$f":"IF(S25>7,'Summary of Points'!N51,\"\")","v":""}]
["** Start with 6 points free",null,null,null,null,null,"Do cool stuff, earn more stitches! (max 3)"]

{"sheet":"History - Julia Aggripina","index":32,"n_rows":52,"n_cols":27,"rows_kept":52,"cut":false,"hidden":false,"merged":[[48,2,48,12],[49,2,49,12],[40,2,40,12],[44,2,44,12],[45,2,45,12],[46,2,46,12],[43,2,43,12],[42,2,42,12],[41,2,41,12],[47,2,47,12],[36,2,36,12],[38,2,38,12],[39,2,39,12],[0,3,0,8],[2,3,2,8],[3,3,3,8],[4,3,4,8],[5,3,5,8],[6,3,6,8],[37,2,37,12],[35,13,35,18],[27,13,27,18],[0,15,0,18],[0,10,0,13],[10,0,10,11],[10,13,10,18],[29,13,29,18],[30,13,30,18],[31,13,31,18],[32,13,32,18],[33,13,33,18],[34,13,34,18],[47,13,47,18],[36,13,36,18],[37,13,37,18],[38,13,38,18],[39,13,39,18],[40,13,40,18],[41,13,41,18],[42,13,42,18],[43,13,43,18],[44,13,44,18],[45,13,45,18],[46,13,46,18],[48,13,48,18],[49,13,49,18],[50,13,50,18],[51,13,51,18],[52,13,52,18]]}
["Name:",null,null,"Julia Aggrapina the Younger",null,null,null,null,null,null,"Chronal Stability",null,null,null,null,"Health"]
[null,null,null,null,null,null,null,null,null,null,{"$f":"IF($N$9>=15,15,\"\")","v":""},{"$f":"IF($N$9>=14,14,\"\")","v":""},{"$f":"IF($N$9>=13,13,\"\")","v":""},{"$f":"IF($N$9>=12,12,\"\")","v":""},null,{"$f":"IF($S$9>=15,15,\"\")","v":""},{"$f":"IF($S$9>=14,14,\"\")","v":""},{"$f":"IF($S$9>=13,13,\"\")","v":""},{"$f":"IF($S$9>=12,12,\"\")","v":""}]
["Nationality:",null,null,"Roman",null,null,null,null,null,null,{"$f":"IF($N$9>=11,11,\"\")","v":""},{"$f":"IF($N$9>=10,10,\"\")","v":""},{"$f":"IF($N$9>=9,9,\"\")","v":""},{"$f":"IF($N$9>=8,8,\"\")","v":8},null,{"$f":"IF($S$9>=11,11,\"\")","v":""},{"$f":"IF($S$9>=10,10,\"\")","v":""},{"$f":"IF($S$9>=9,9,\"\")","v":""},{"$f":"IF($S$9>=8,8,\"\")","v":8}]
["Origin Time:",null,null,"54 AD",null,null,null,null,null,null,{"$f":"IF($N$9>=7,7,\"\")","v":7},6,5,4,null,{"$f":"IF($S$9>=7,7,\"\")","v":7},6,5,4]
["Profession: ",null,null,"Empress Consort, schemer",null,null,null,null,null,null,3,2,1,0,null,3,2,1,0]
["Age:",null,null,43,null,null,null,null,null,null,-1,-2,-3,-4,null,-1,-2,-3,-4]
["Drive:",null,null,"Hubris",null,null,null,null,null,null,-5,-6,-7,-8,null,-5,-6,-7,-8,null,null,null,null,null,"XP - "]
[null,null,null,null,null,null,null,null,null,null,-9,-10,-11,-12,null,-9,-10,-11,-12,null,null,null,null,null,"Extra"]
["Hit Threshold:",null,null,{"$f":"IF(S13>7,4,3)","v":3},null,"Armor:",null,{"$f":"IF(C43='Summary of Points'!C48,1,0)","v":1},null,null,"Max: ",null,null,{"$f":"S15","v":8},null,"Max: ",null,null,{"$f":"S17","v":8},null,null,null,null,null,"Points?"]
[]
["INVESTIGATIVE ABILITIES",null,null,null,null,null,null,null,null,null,null,null,null,"GENERAL ABILITIES",null,null,null,null,null,null,null,"Investigative:",null,null,0,{"$f":"'Summary of Points'!F4+Y11","v":16},{"$f":"SUM(E15:E24)+SUM(L14:L36)-1","v":16}]
[null,null,null,null,null,null,null,null,null,null,null,null,null,null,null,null,null,null,null,null,null,"General:",null,null,0,{"$f":"'Summary of Points'!E5+Y12","v":50},{"$f":"SUM(S12:S28)-12","v":50}]
["Academic Abilities",null,null,null,null,null,"Interpersonal Abilities ",null,null,null,null,null,null,"Athletics",null,null,null,null,3]
[null,null,null,null,null,null,null,null,null,null,null,null,null,"Burglary",null,null,null,null,5]
["Anthropology",null,null,null,null,null,"Authority",null,null,null,null,1,null,"Chronal Stability**",null,null,null,null,8]
["Architecture ",null,null,null,1,null,"Bureaucracy",null,null,null,null,1,null,"Disguise",null,null,null,null,6]
["History (Ancient)",null,null,null,1,null,"Charm",null,null,null,null,1,null,"Health**",null,null,null,null,8]
["History (Contemporary)",null,null,null,null,null,"Falsehood Detection",null,null,null,null,1,null,"Medic",null,null,null,null,3]
["History (Future)",null,null,null,null,null,"High Society ",null,null,null,null,1,null,"Preparedness",null,null,null,null,8]
["Military Tactics",null,null,null,1,null,"Intimidation",null,null,null,null,1,null,"Reality Anchor",null,null,null,null,3]
["Research",null,null,null,null,null,"Reassurance",null,null,null,null,1,null,"Scuffling",null,null,null,null,4]
["Timecraft*",null,null,null,1,null,"Streetwise ",null,null,null,null,null,null,"Shooting",null,null,null,null,4]
["Trivia",null,null,null,null,null,"Taunt",null,null,null,null,1,null,"Tinkering",null,null,null,null,1]
[null,null,null,null,null,null,null,null,null,null,null,null,null,"Unobtrusiveness",null,null,null,null,8]
[null,null,null,null,null,null,"Technical Abilities",null,null,null,null,null,null,"Vehicles",null,null,null,null,1]
[]
["Extra Investigative points?",null,null,null,null,null,"Forgery",null,null,null,null,1]
[null,null,null,null,null,null,"Hacking",null,null,null,null,null,null,"Special Boosters:"]
[null,null,{"$f":"Z11-AA11","v":0},null,null,null,"Medical Expertise",null,null,null,null,1]
[null,null,null,null,null,null,"Notice",null,null,null,null,1,null,{"$f":"IF(S13>7,'Summary of Points'!N30,\"\")","v":""}]
["Extra General points?",null,null,null,null,null,"Outdoor Survival ",null,null,null,null,null,null,{"$f":"IF(S13>7,'Summary of Points'!N31,\"\")","v":""}]
[null,null,null,null,null,null,"Paradox Prevention",null,null,null,null,1,null,{"$f":"IF(S14>7,'Summary of Points'!N32,\"\")","v":""}]
[null,null,{"$f":"Z12-AA12","v":0},null,null,null,"Science!",null,null,null,null,null,null,{"$f":"IF(S14>7,'Summary of Points'!N33,\"\")","v":""}]
[null,null,null,null,null,null,"Spying",null,null,null,null,1,null,{"$f":"IF(S16>7,'Summary of Points'!N34,\"\")","v":""}]
[null,null,null,null,null,null,null,null,null,null,null,null,null,{"$f":"IF(S16>7,'Summary of Points'!N35,\"\")","v":""}]
[null,null,null,null,null,null,null,null,null,null,null,null,null,{"$f":"IF(S18>7,'Summary of Points'!N36,\"\")","v":""}]
["Gear:",null,{"$f":"'Summary of Points'!C42","v":"Autochron (portable 1-man time machine)"},null,null,null,null,null,null,null,null,null,null,{"$f":"IF(S18>7,'Summary of Points'!N37,\"\")","v":""}]
[null,null,{"$f":"'Summary of Points'!C43","v":"Impersonator mesh (+3 Unobtrusiveness until drawing notice)"},null,null,null,null,null,null,null,null,null,null,{"$f":"IF(S19>7,'Summary of Points'!N38,\"\")","v":"Flashback (Preparedness):"}]
[null,null,{"$f":"'Summary of Points'!C44","v":"MedKit (lets you use Medic skill effectively)"},null,null,null,null,null,null,null,null,null,null,{"$f":"IF(S19>7,'Summary of Points'!N39,\"\")","v":"Retroactively prepare actions"}]
[null,null,{"$f":"'Summary of Points'!C45","v":"MEM-tags (for memory modification of unconscious subjects)"},null,null,null,null,null,null,null,null,null,null,{"$f":"IF(S20>7,'Summary of Points'!N40,\"\")","v":""}]
[null,null,{"$f":"'Summary of Points'!C46","v":"PaciFist disruptor (Close range, Stun 5, subtle)"},null,null,null,null,null,null,null,null,null,null,{"$f":"IF(S20>7,'Summary of Points'!N41,\"\")","v":""}]
[null,null,{"$f":"'Summary of Points'!C47","v":"Tether (holographic PDA linked to subdermal earbud)"},null,null,null,null,null,null,null,null,null,null,{"$f":"IF(S21>7,'Summary of Points'!N42,\"\")","v":""}]
[null,null,{"$f":"'Summary of Points'!C48","v":"TimeWatch Uniform (chronomorphic, armor 1)"},null,null,null,null,null,null,null,null,null,null,{"$f":"IF(S21>7,'Summary of Points'!N43,\"\")","v":""}]
[null,null,{"$f":"'Summary of Points'!C49","v":"Translator (instant, 2-way, unnoticeable)"},null,null,null,null,null,null,null,null,null,null,{"$f":"IF(S22>7,'Summary of Points'!N44,\"\")","v":""}]
[null,null,null,null,null,null,null,null,null,null,null,null,null,{"$f":"IF(S22>7,'Summary of Points'!N45,\"\")","v":""}]
[null,null,null,null,null,null,null,null,null,null,null,null,null,{"$f":"IF(S23>7,'Summary of Points'!N46,\"\")","v":""}]
[null,null,null,null,null,null,null,null,null,null,null,null,null,{"$f":"IF(S23>7,'Summary of Points'!N47,\"\")","v":""}]
[null,null,null,null,null,null,null,null,null,null,null,null,null,{"$f":"IF(S24>7,'Summary of Points'!N48,\"\")","v":"Nothing to See Here (Unobtr.):"}]
[null,null,null,null,null,null,null,null,null,null,null,null,null,{"$f":"IF(S24>7,'Summary of Points'!N49,\"\")","v":"Helps the whole group hide/sneak"}]
[null,null,null,null,null,null,null,null,null,null,null,null,null,{"$f":"IF(S25>7,'Summary of Points'!N50,\"\")","v":""}]
["* Start with 1 point free",null,null,null,null,null,"Each spent stitch refreshes 2 pts from 1 pool",null,null,null,null,null,null,{"$f":"IF(S25>7,'Summary of Points'!N51,\"\")","v":""}]
["** Start with 6 points free",null,null,null,null,null,"Do cool stuff, earn more stitches! (max 3)"]

{"sheet":"History - King Edward V","index":33,"n_rows":52,"n_cols":27,"rows_kept":52,"cut":false,"hidden":false,"merged":[[49,13,49,18],[50,13,50,18],[51,13,51,18],[52,13,52,18],[45,13,45,18],[46,13,46,18],[47,13,47,18],[48,13,48,18],[41,13,41,18],[42,13,42,18],[43,13,43,18],[44,13,44,18],[37,13,37,18],[38,13,38,18],[39,13,39,18],[40,13,40,18],[33,13,33,18],[34,13,34,18],[35,13,35,18],[36,13,36,18],[29,13,29,18],[30,13,30,18],[31,13,31,18],[32,13,32,18],[27,13,27,18],[0,15,0,18],[0,10,0,13],[10,0,10,11],[10,13,10,18],[38,2,38,12],[39,2,39,12],[0,3,0,8],[2,3,2,8],[3,3,3,8],[4,3,4,8],[5,3,5,8],[6,3,6,8],[37,2,37,12],[36,2,36,12],[48,2,48,12],[49,2,49,12],[40,2,40,12],[44,2,44,12],[45,2,45,12],[46,2,46,12],[43,2,43,12],[42,2,42,12],[41,2,41,12],[47,2,47,12]]}
["Name:",null,null,"King Edward V",null,null,null,null,null,null,"Chronal Stability",null,null,null,null,"Health"]
[null,null,null,null,null,null,null,null,null,null,{"$f":"IF($N$9>=15,15,\"\")","v":""},{"$f":"IF($N$9>=14,14,\"\")","v":""},{"$f":"IF($N$9>=13,13,\"\")","v":""},{"$f":"IF($N$9>=12,12,\"\")","v":""},null,{"$f":"IF($S$9>=15,15,\"\")","v":""},{"$f":"IF($S$9>=14,14,\"\")","v":""},{"$f":"IF($S$9>=13,13,\"\")","v":""},{"$f":"IF($S$9>=12,12,\"\")","v":""}]
["Nationality:",null,null,"British",null,null,null,null,null,null,{"$f":"IF($N$9>=11,11,\"\")","v":""},{"$f":"IF($N$9>=10,10,\"\")","v":""},{"$f":"IF($N$9>=9,9,\"\")","v":""},{"$f":"IF($N$9>=8,8,\"\")","v":8},null,{"$f":"IF($S$9>=11,11,\"\")","v":""},{"$f":"IF($S$9>=10,10,\"\")","v":""},{"$f":"IF($S$9>=9,9,\"\")","v":9},{"$f":"IF($S$9>=8,8,\"\")","v":8}]
["Origin Time:",null,null,1483,null,null,null,null,null,null,{"$f":"IF($N$9>=7,7,\"\")","v":7},6,5,4,null,{"$f":"IF($S$9>=7,7,\"\")","v":7},6,5,4]
["Profession: ",null,null,"Heir to the throne of England",null,null,null,null,null,null,3,2,1,0,null,3,2,1,0]
["Age:",null,null,23,null,null,null,null,null,null,-1,-2,-3,-4,null,-1,-2,-3,-4]
["Drive:",null,null,"Nowhere Else to Go",null,null,null,null,null,null,-5,-6,-7,-8,null,-5,-6,-7,-8,null,null,null,null,null,"XP - "]
[null,null,null,null,null,null,null,null,null,null,-9,-10,-11,-12,null,-9,-10,-11,-12,null,null,null,null,null,"Extra"]
["Hit Threshold:",null,null,{"$f":"IF(S13>7,4,3)","v":4},null,"Armor:",null,{"$f":"IF(C43='Summary of Points'!C48,1,0)","v":1},null,null,"Max: ",null,null,{"$f":"S15","v":8},null,"Max: ",null,null,{"$f":"S17","v":9},null,null,null,null,null,"Points?"]
[]
["INVESTIGATIVE ABILITIES",null,null,null,null,null,null,null,null,null,null,null,null,"GENERAL ABILITIES",null,null,null,null,null,null,null,"Investigative:",null,null,0,{"$f":"'Summary of Points'!F4+Y11","v":16},{"$f":"SUM(E15:E24)+SUM(L14:L36)-1","v":16}]
[null,null,null,null,null,null,null,null,null,null,null,null,null,null,null,null,null,null,null,null,null,"General:",null,null,0,{"$f":"'Summary of Points'!E5+Y12","v":50},{"$f":"SUM(S12:S28)-12","v":50}]
["Academic Abilities",null,null,null,null,null,"Interpersonal Abilities ",null,null,null,null,null,null,"Athletics",null,null,null,null,8]
[null,null,null,null,null,null,null,null,null,null,null,null,null,"Burglary",null,null,null,null,3]
["Anthropology",null,null,null,null,null,"Authority",null,null,null,null,2,null,"Chronal Stability**",null,null,null,null,8]
["Architecture ",null,null,null,1,null,"Bureaucracy",null,null,null,null,1,null,"Disguise",null,null,null,null,3]
["History (Ancient)",null,null,null,1,null,"Charm",null,null,null,null,1,null,"Health**",null,null,null,null,9]
["History (Contemporary)",null,null,null,1,null,"Falsehood Detection",null,null,null,null,null,null,"Medic",null,null,null,null,1]
["History (Future)",null,null,null,null,null,"High Society ",null,null,null,null,2,null,"Preparedness",null,null,null,null,6]
["Military Tactics",null,null,null,1,null,"Intimidation",null,null,null,null,null,null,"Reality Anchor",null,null,null,null,3]
["Research",null,null,null,1,null,"Reassurance",null,null,null,null,1,null,"Scuffling",null,null,null,null,8]
["Timecraft*",null,null,null,1,null,"Streetwise ",null,null,null,null,null,null,"Shooting",null,null,null,null,2]
["Trivia",null,null,null,1,null,"Taunt",null,null,null,null,null,null,"Tinkering",null,null,null,null,3]
[null,null,null,null,null,null,null,null,null,null,null,null,null,"Unobtrusiveness",null,null,null,null,5]
[null,null,null,null,null,null,"Technical Abilities",null,null,null,null,null,null,"Vehicles",null,null,null,null,3]
[]
["Extra Investigative points?",null,null,null,null,null,"Forgery"]
[null,null,null,null,null,null,"Hacking",null,null,null,null,null,null,"Special Boosters:"]
[null,null,{"$f":"Z11-AA11","v":0},null,null,null,"Medical Expertise"]
[null,null,null,null,null,null,"Notice",null,null,null,null,1,null,{"$f":"IF(S13>7,'Summary of Points'!N30,\"\")","v":"Hard to Hit (Athletics):"}]
["Extra General points?",null,null,null,null,null,"Outdoor Survival ",null,null,null,null,null,null,{"$f":"IF(S13>7,'Summary of Points'!N31,\"\")","v":"Hit Threshold = 4, not 3"}]
[null,null,null,null,null,null,"Paradox Prevention",null,null,null,null,1,null,{"$f":"IF(S14>7,'Summary of Points'!N32,\"\")","v":""}]
[null,null,{"$f":"Z12-AA12","v":0},null,null,null,"Science!",null,null,null,null,null,null,{"$f":"IF(S14>7,'Summary of Points'!N33,\"\")","v":""}]
[null,null,null,null,null,null,"Spying",null,null,null,null,1,null,{"$f":"IF(S16>7,'Summary of Points'!N34,\"\")","v":""}]
[null,null,null,null,null,null,null,null,null,null,null,null,null,{"$f":"IF(S16>7,'Summary of Points'!N35,\"\")","v":""}]
[null,null,null,null,null,null,null,null,null,null,null,null,null,{"$f":"IF(S18>7,'Summary of Points'!N36,\"\")","v":""}]
["Gear:",null,{"$f":"'Summary of Points'!C42","v":"Autochron (portable 1-man time machine)"},null,null,null,null,null,null,null,null,null,null,{"$f":"IF(S18>7,'Summary of Points'!N37,\"\")","v":""}]
[null,null,{"$f":"'Summary of Points'!C43","v":"Impersonator mesh (+3 Unobtrusiveness until drawing notice)"},null,null,null,null,null,null,null,null,null,null,{"$f":"IF(S19>7,'Summary of Points'!N38,\"\")","v":""}]
[null,null,{"$f":"'Summary of Points'!C44","v":"MedKit (lets you use Medic skill effectively)"},null,null,null,null,null,null,null,null,null,null,{"$f":"IF(S19>7,'Summary of Points'!N39,\"\")","v":""}]
[null,null,{"$f":"'Summary of Points'!C45","v":"MEM-tags (for memory modification of unconscious subjects)"},null,null,null,null,null,null,null,null,null,null,{"$f":"IF(S20>7,'Summary of Points'!N40,\"\")","v":""}]
[null,null,{"$f":"'Summary of Points'!C46","v":"PaciFist disruptor (Close range, Stun 5, subtle)"},null,null,null,null,null,null,null,null,null,null,{"$f":"IF(S20>7,'Summary of Points'!N41,\"\")","v":""}]
[null,null,{"$f":"'Summary of Points'!C47","v":"Tether (holographic PDA linked to subdermal earbud)"},null,null,null,null,null,null,null,null,null,null,{"$f":"IF(S21>7,'Summary of Points'!N42,\"\")","v":"That's Gotta Hurt (Scuffling):"}]
[null,null,{"$f":"'Summary of Points'!C48","v":"TimeWatch Uniform (chronomorphic, armor 1)"},null,null,null,null,null,null,null,null,null,null,{"$f":"IF(S21>7,'Summary of Points'!N43,\"\")","v":"Scuffling Pool spend = min base dmg"}]
[null,null,{"$f":"'Summary of Points'!C49","v":"Translator (instant, 2-way, unnoticeable)"},null,null,null,null,null,null,null,null,null,null,{"$f":"IF(S22>7,'Summary of Points'!N44,\"\")","v":""}]
[null,null,null,null,null,null,null,null,null,null,null,null,null,{"$f":"IF(S22>7,'Summary of Points'!N45,\"\")","v":""}]
[null,null,null,null,null,null,null,null,null,null,null,null,null,{"$f":"IF(S23>7,'Summary of Points'!N46,\"\")","v":""}]
[null,null,null,null,null,null,null,null,null,null,null,null,null,{"$f":"IF(S23>7,'Summary of Points'!N47,\"\")","v":""}]
[null,null,null,null,null,null,null,null,null,null,null,null,null,{"$f":"IF(S24>7,'Summary of Points'!N48,\"\")","v":""}]
[null,null,null,null,null,null,null,null,null,null,null,null,null,{"$f":"IF(S24>7,'Summary of Points'!N49,\"\")","v":""}]
[null,null,null,null,null,null,null,null,null,null,null,null,null,{"$f":"IF(S25>7,'Summary of Points'!N50,\"\")","v":""}]
["* Start with 1 point free",null,null,null,null,null,"Each spent stitch refreshes 2 pts from 1 pool",null,null,null,null,null,null,{"$f":"IF(S25>7,'Summary of Points'!N51,\"\")","v":""}]
["** Start with 6 points free",null,null,null,null,null,"Do cool stuff, earn more stitches! (max 3)"]

{"sheet":"History - Juan Ponce de Leon","index":34,"n_rows":52,"n_cols":27,"rows_kept":52,"cut":false,"hidden":false,"merged":[[48,2,48,12],[49,2,49,12],[40,2,40,12],[44,2,44,12],[45,2,45,12],[46,2,46,12],[43,2,43,12],[42,2,42,12],[41,2,41,12],[47,2,47,12],[36,2,36,12],[38,2,38,12],[39,2,39,12],[0,3,0,8],[2,3,2,8],[3,3,3,8],[4,3,4,8],[5,3,5,8],[6,3,6,8],[37,2,37,12],[35,13,35,18],[27,13,27,18],[0,15,0,18],[0,10,0,13],[10,0,10,11],[10,13,10,18],[29,13,29,18],[30,13,30,18],[31,13,31,18],[32,13,32,18],[33,13,33,18],[34,13,34,18],[47,13,47,18],[36,13,36,18],[37,13,37,18],[38,13,38,18],[39,13,39,18],[40,13,40,18],[41,13,41,18],[42,13,42,18],[43,13,43,18],[44,13,44,18],[45,13,45,18],[46,13,46,18],[48,13,48,18],[49,13,49,18],[50,13,50,18],[51,13,51,18],[52,13,52,18]]}
["Name:",null,null,"Johnny Leone",null,null,null,null,null,null,"Chronal Stability",null,null,null,null,"Health"]
[null,null,null,null,null," (Juan Ponce de León)",null,null,null,null,{"$f":"IF($N$9>=15,15,\"\")","v":""},{"$f":"IF($N$9>=14,14,\"\")","v":""},{"$f":"IF($N$9>=13,13,\"\")","v":""},{"$f":"IF($N$9>=12,12,\"\")","v":""},null,{"$f":"IF($S$9>=15,15,\"\")","v":""},{"$f":"IF($S$9>=14,14,\"\")","v":""},{"$f":"IF($S$9>=13,13,\"\")","v":""},{"$f":"IF($S$9>=12,12,\"\")","v":""}]
["Nationality:",null,null,null,null,null,null,null,null,null,{"$f":"IF($N$9>=11,11,\"\")","v":""},{"$f":"IF($N$9>=10,10,\"\")","v":""},{"$f":"IF($N$9>=9,9,\"\")","v":""},{"$f":"IF($N$9>=8,8,\"\")","v":8},null,{"$f":"IF($S$9>=11,11,\"\")","v":""},{"$f":"IF($S$9>=10,10,\"\")","v":""},{"$f":"IF($S$9>=9,9,\"\")","v":""},{"$f":"IF($S$9>=8,8,\"\")","v":8}]
["Origin Time:",null,null,"Spanish",null,null,null,null,null,null,{"$f":"IF($N$9>=7,7,\"\")","v":7},6,5,4,null,{"$f":"IF($S$9>=7,7,\"\")","v":7},6,5,4]
["Profession: ",null,null,"2011 (originally 1521)",null,null,null,null,null,null,3,2,1,0,null,3,2,1,0]
["Age:",null,null,"537 (appears 47)",null,null,null,null,null,null,-1,-2,-3,-4,null,-1,-2,-3,-4]
["Drive:",null,null,"Exploration",null,null,null,null,null,null,-5,-6,-7,-8,null,-5,-6,-7,-8,null,null,null,null,null,"XP - "]
[null,null,null,null,null,null,null,null,null,null,-9,-10,-11,-12,null,-9,-10,-11,-12,null,null,null,null,null,"Extra"]
["Hit Threshold:",null,null,{"$f":"IF(S13>7,4,3)","v":4},null,"Armor:",null,{"$f":"IF(C43='Summary of Points'!C48,1,0)","v":1},null,null,"Max: ",null,null,{"$f":"S15","v":8},null,"Max: ",null,null,{"$f":"S17","v":8},null,null,null,null,null,"Points?"]
[]
["INVESTIGATIVE ABILITIES",null,null,null,null,null,null,null,null,null,null,null,null,"GENERAL ABILITIES",null,null,null,null,null,null,null,"Investigative:",null,null,0,{"$f":"'Summary of Points'!F4+Y11","v":16},{"$f":"SUM(E15:E24)+SUM(L14:L36)-1","v":16}]
[null,null,null,null,null,null,null,null,null,null,null,null,null,null,null,null,null,null,null,null,null,"General:",null,null,0,{"$f":"'Summary of Points'!E5+Y12","v":50},{"$f":"SUM(S12:S28)-12","v":50}]
["Academic Abilities",null,null,null,null,null,"Interpersonal Abilities ",null,null,null,null,null,null,"Athletics",null,null,null,null,8]
[null,null,null,null,null,null,null,null,null,null,null,null,null,"Burglary"]
["Anthropology",null,null,null,1,null,"Authority",null,null,null,null,1,null,"Chronal Stability**",null,null,null,null,8]
["Architecture ",null,null,null,null,null,"Bureaucracy",null,null,null,null,null,null,"Disguise",null,null,null,null,3]
["History (Ancient)",null,null,null,1,null,"Charm",null,null,null,null,1,null,"Health**",null,null,null,null,8]
["History (Contemporary)",null,null,null,1,null,"Falsehood Detection",null,null,null,null,1,null,"Medic"]
["History (Future)",null,null,null,null,null,"High Society ",null,null,null,null,1,null,"Preparedness",null,null,null,null,8]
["Military Tactics",null,null,null,1,null,"Intimidation",null,null,null,null,null,null,"Reality Anchor",null,null,null,null,2]
["Research",null,null,null,1,null,"Reassurance",null,null,null,null,1,null,"Scuffling",null,null,null,null,5]
["Timecraft*",null,null,null,1,null,"Streetwise ",null,null,null,null,1,null,"Shooting",null,null,null,null,3]
["Trivia",null,null,null,null,null,"Taunt",null,null,null,null,null,null,"Tinkering",null,null,null,null,3]
[null,null,null,null,null,null,null,null,null,null,null,null,null,"Unobtrusiveness",null,null,null,null,6]
[null,null,null,null,null,null,"Technical Abilities",null,null,null,null,null,null,"Vehicles",null,null,null,null,8]
[]
["Extra Investigative points?",null,null,null,null,null,"Forgery",null,null,null,null,1]
[null,null,null,null,null,null,"Hacking",null,null,null,null,null,null,"Special Boosters:"]
[null,null,{"$f":"Z11-AA11","v":0},null,null,null,"Medical Expertise"]
[null,null,null,null,null,null,"Notice",null,null,null,null,null,null,{"$f":"IF(S13>7,'Summary of Points'!N30,\"\")","v":"Hard to Hit (Athletics):"}]
["Extra General points?",null,null,null,null,null,"Outdoor Survival ",null,null,null,null,1,null,{"$f":"IF(S13>7,'Summary of Points'!N31,\"\")","v":"Hit Threshold = 4, not 3"}]
[null,null,null,null,null,null,"Paradox Prevention",null,null,null,null,1,null,{"$f":"IF(S14>7,'Summary of Points'!N32,\"\")","v":""}]
[null,null,{"$f":"Z12-AA12","v":0},null,null,null,"Science!",null,null,null,null,1,null,{"$f":"IF(S14>7,'Summary of Points'!N33,\"\")","v":""}]
[null,null,null,null,null,null,"Spying",null,null,null,null,1,null,{"$f":"IF(S16>7,'Summary of Points'!N34,\"\")","v":""}]
[null,null,null,null,null,null,null,null,null,null,null,null,null,{"$f":"IF(S16>7,'Summary of Points'!N35,\"\")","v":""}]
[null,null,null,null,null,null,null,null,null,null,null,null,null,{"$f":"IF(S18>7,'Summary of Points'!N36,\"\")","v":""}]
["Gear:",null,{"$f":"'Summary of Points'!C42","v":"Autochron (portable 1-man time machine)"},null,null,null,null,null,null,null,null,null,null,{"$f":"IF(S18>7,'Summary of Points'!N37,\"\")","v":""}]
[null,null,{"$f":"'Summary of Points'!C43","v":"Impersonator mesh (+3 Unobtrusiveness until drawing notice)"},null,null,null,null,null,null,null,null,null,null,{"$f":"IF(S19>7,'Summary of Points'!N38,\"\")","v":"Flashback (Preparedness):"}]
[null,null,{"$f":"'Summary of Points'!C44","v":"MedKit (lets you use Medic skill effectively)"},null,null,null,null,null,null,null,null,null,null,{"$f":"IF(S19>7,'Summary of Points'!N39,\"\")","v":"Retroactively prepare actions"}]
[null,null,{"$f":"'Summary of Points'!C45","v":"MEM-tags (for memory modification of unconscious subjects)"},null,null,null,null,null,null,null,null,null,null,{"$f":"IF(S20>7,'Summary of Points'!N40,\"\")","v":""}]
[null,null,{"$f":"'Summary of Points'!C46","v":"PaciFist disruptor (Close range, Stun 5, subtle)"},null,null,null,null,null,null,null,null,null,null,{"$f":"IF(S20>7,'Summary of Points'!N41,\"\")","v":""}]
[null,null,{"$f":"'Summary of Points'!C47","v":"Tether (holographic PDA linked to subdermal earbud)"},null,null,null,null,null,null,null,null,null,null,{"$f":"IF(S21>7,'Summary of Points'!N42,\"\")","v":""}]
[null,null,{"$f":"'Summary of Points'!C48","v":"TimeWatch Uniform (chronomorphic, armor 1)"},null,null,null,null,null,null,null,null,null,null,{"$f":"IF(S21>7,'Summary of Points'!N43,\"\")","v":""}]
[null,null,{"$f":"'Summary of Points'!C49","v":"Translator (instant, 2-way, unnoticeable)"},null,null,null,null,null,null,null,null,null,null,{"$f":"IF(S22>7,'Summary of Points'!N44,\"\")","v":""}]
[null,null,null,null,null,null,null,null,null,null,null,null,null,{"$f":"IF(S22>7,'Summary of Points'!N45,\"\")","v":""}]
[null,null,null,null,null,null,null,null,null,null,null,null,null,{"$f":"IF(S23>7,'Summary of Points'!N46,\"\")","v":""}]
[null,null,null,null,null,null,null,null,null,null,null,null,null,{"$f":"IF(S23>7,'Summary of Points'!N47,\"\")","v":""}]
[null,null,null,null,null,null,null,null,null,null,null,null,null,{"$f":"IF(S24>7,'Summary of Points'!N48,\"\")","v":""}]
[null,null,null,null,null,null,null,null,null,null,null,null,null,{"$f":"IF(S24>7,'Summary of Points'!N49,\"\")","v":""}]
[null,null,null,null,null,null,null,null,null,null,null,null,null,{"$f":"IF(S25>7,'Summary of Points'!N50,\"\")","v":"Keep Up (Vehicles):"}]
["* Start with 1 point free",null,null,null,null,null,"Each spent stitch refreshes 2 pts from 1 pool",null,null,null,null,null,null,{"$f":"IF(S25>7,'Summary of Points'!N51,\"\")","v":"Improved piggyback of Vehicle tests"}]
["** Start with 6 points free",null,null,null,null,null,"Do cool stuff, earn more stitches! (max 3)"]

{"sheet":"History - Pine Leaf of the Crow","index":35,"n_rows":52,"n_cols":27,"rows_kept":52,"cut":false,"hidden":false,"merged":[[49,13,49,18],[50,13,50,18],[51,13,51,18],[52,13,52,18],[45,13,45,18],[46,13,46,18],[47,13,47,18],[48,13,48,18],[41,13,41,18],[42,13,42,18],[43,13,43,18],[44,13,44,18],[37,13,37,18],[38,13,38,18],[39,13,39,18],[40,13,40,18],[33,13,33,18],[34,13,34,18],[35,13,35,18],[36,13,36,18],[29,13,29,18],[30,13,30,18],[31,13,31,18],[32,13,32,18],[27,13,27,18],[0,15,0,18],[0,10,0,13],[10,0,10,11],[10,13,10,18],[38,2,38,12],[39,2,39,12],[0,3,0,8],[2,3,2,8],[3,3,3,8],[4,3,4,8],[5,3,5,8],[6,3,6,8],[37,2,37,12],[36,2,36,12],[48,2,48,12],[49,2,49,12],[40,2,40,12],[44,2,44,12],[45,2,45,12],[46,2,46,12],[43,2,43,12],[42,2,42,12],[41,2,41,12],[47,2,47,12]]}
["Name:",null,null,"Pine Leaf, Chief of the Crow Tribe",null,null,null,null,null,null,"Chronal Stability",null,null,null,null,"Health"]
[null,null,null,null,null,null,null,null,null,null,{"$f":"IF($N$9>=15,15,\"\")","v":""},{"$f":"IF($N$9>=14,14,\"\")","v":""},{"$f":"IF($N$9>=13,13,\"\")","v":""},{"$f":"IF($N$9>=12,12,\"\")","v":""},null,{"$f":"IF($S$9>=15,15,\"\")","v":""},{"$f":"IF($S$9>=14,14,\"\")","v":""},{"$f":"IF($S$9>=13,13,\"\")","v":""},{"$f":"IF($S$9>=12,12,\"\")","v":""}]
["Nationality:",null,null,"Crow Tribe",null,null,null,null,null,null,{"$f":"IF($N$9>=11,11,\"\")","v":""},{"$f":"IF($N$9>=10,10,\"\")","v":""},{"$f":"IF($N$9>=9,9,\"\")","v":""},{"$f":"IF($N$9>=8,8,\"\")","v":""},null,{"$f":"IF($S$9>=11,11,\"\")","v":""},{"$f":"IF($S$9>=10,10,\"\")","v":""},{"$f":"IF($S$9>=9,9,\"\")","v":9},{"$f":"IF($S$9>=8,8,\"\")","v":8}]
["Origin Time:",null,null,1854,null,null,null,null,null,null,{"$f":"IF($N$9>=7,7,\"\")","v":7},6,5,4,null,{"$f":"IF($S$9>=7,7,\"\")","v":7},6,5,4]
["Profession: ",null,null,"Warrior",null,null,null,null,null,null,3,2,1,0,null,3,2,1,0]
["Age:",null,null,54,null,null,null,null,null,null,-1,-2,-3,-4,null,-1,-2,-3,-4]
["Drive:",null,null,"Ambition",null,null,null,null,null,null,-5,-6,-7,-8,null,-5,-6,-7,-8,null,null,null,null,null,"XP - "]
[null,null,null,null,null,null,null,null,null,null,-9,-10,-11,-12,null,-9,-10,-11,-12,null,null,null,null,null,"Extra"]
["Hit Threshold:",null,null,{"$f":"IF(S13>7,4,3)","v":4},null,"Armor:",null,{"$f":"IF(C43='Summary of Points'!C48,1,0)","v":1},null,null,"Max: ",null,null,{"$f":"S15","v":7},null,"Max: ",null,null,{"$f":"S17","v":9},null,null,null,null,null,"Points?"]
[]
["INVESTIGATIVE ABILITIES",null,null,null,null,null,null,null,null,null,null,null,null,"GENERAL ABILITIES",null,null,null,null,null,null,null,"Investigative:",null,null,0,{"$f":"'Summary of Points'!F4+Y11","v":16},{"$f":"SUM(E15:E24)+SUM(L14:L36)-1","v":16}]
[null,null,null,null,null,null,null,null,null,null,null,null,null,null,null,null,null,null,null,null,null,"General:",null,null,0,{"$f":"'Summary of Points'!E5+Y12","v":50},{"$f":"SUM(S12:S28)-12","v":50}]
["Academic Abilities",null,null,null,null,null,"Interpersonal Abilities ",null,null,null,null,null,null,"Athletics",null,null,null,null,10]
[null,null,null,null,null,null,null,null,null,null,null,null,null,"Burglary"]
["Anthropology",null,null,null,1,null,"Authority",null,null,null,null,1,null,"Chronal Stability**",null,null,null,null,7]
["Architecture ",null,null,null,null,null,"Bureaucracy",null,null,null,null,null,null,"Disguise",null,null,null,null,3]
["History (Ancient)",null,null,null,null,null,"Charm",null,null,null,null,1,null,"Health**",null,null,null,null,9]
["History (Contemporary)",null,null,null,1,null,"Falsehood Detection",null,null,null,null,1,null,"Medic",null,null,null,null,3]
["History (Future)",null,null,null,null,null,"High Society ",null,null,null,null,null,null,"Preparedness",null,null,null,null,4]
["Military Tactics",null,null,null,2,null,"Intimidation",null,null,null,null,2,null,"Reality Anchor",null,null,null,null,3]
["Research",null,null,null,null,null,"Reassurance",null,null,null,null,null,null,"Scuffling",null,null,null,null,8]
["Timecraft*",null,null,null,1,null,"Streetwise ",null,null,null,null,1,null,"Shooting",null,null,null,null,8]
["Trivia",null,null,null,null,null,"Taunt",null,null,null,null,2,null,"Tinkering",null,null,null,null,1]
[null,null,null,null,null,null,null,null,null,null,null,null,null,"Unobtrusiveness",null,null,null,null,5]
[null,null,null,null,null,null,"Technical Abilities",null,null,null,null,null,null,"Vehicles",null,null,null,null,1]
[]
["Extra Investigative points?",null,null,null,null,null,"Forgery"]
[null,null,null,null,null,null,"Hacking",null,null,null,null,null,null,"Special Boosters:"]
[null,null,{"$f":"Z11-AA11","v":0},null,null,null,"Medical Expertise"]
[null,null,null,null,null,null,"Notice",null,null,null,null,1,null,{"$f":"IF(S13>7,'Summary of Points'!N30,\"\")","v":"Hard to Hit (Athletics):"}]
["Extra General points?",null,null,null,null,null,"Outdoor Survival ",null,null,null,null,1,null,{"$f":"IF(S13>7,'Summary of Points'!N31,\"\")","v":"Hit Threshold = 4, not 3"}]
[null,null,null,null,null,null,"Paradox Prevention",null,null,null,null,1,null,{"$f":"IF(S14>7,'Summary of Points'!N32,\"\")","v":""}]
[null,null,{"$f":"Z12-AA12","v":0},null,null,null,"Science!",null,null,null,null,null,null,{"$f":"IF(S14>7,'Summary of Points'!N33,\"\")","v":""}]
[null,null,null,null,null,null,"Spying",null,null,null,null,1,null,{"$f":"IF(S16>7,'Summary of Points'!N34,\"\")","v":""}]
[null,null,null,null,null,null,null,null,null,null,null,null,null,{"$f":"IF(S16>7,'Summary of Points'!N35,\"\")","v":""}]
[null,null,null,null,null,null,null,null,null,null,null,null,null,{"$f":"IF(S18>7,'Summary of Points'!N36,\"\")","v":""}]
["Gear:",null,{"$f":"'Summary of Points'!C42","v":"Autochron (portable 1-man time machine)"},null,null,null,null,null,null,null,null,null,null,{"$f":"IF(S18>7,'Summary of Points'!N37,\"\")","v":""}]
[null,null,{"$f":"'Summary of Points'!C43","v":"Impersonator mesh (+3 Unobtrusiveness until drawing notice)"},null,null,null,null,null,null,null,null,null,null,{"$f":"IF(S19>7,'Summary of Points'!N38,\"\")","v":""}]
[null,null,{"$f":"'Summary of Points'!C44","v":"MedKit (lets you use Medic skill effectively)"},null,null,null,null,null,null,null,null,null,null,{"$f":"IF(S19>7,'Summary of Points'!N39,\"\")","v":""}]
[null,null,{"$f":"'Summary of Points'!C45","v":"MEM-tags (for memory modification of unconscious subjects)"},null,null,null,null,null,null,null,null,null,null,{"$f":"IF(S20>7,'Summary of Points'!N40,\"\")","v":""}]
[null,null,{"$f":"'Summary of Points'!C46","v":"PaciFist disruptor (Close range, Stun 5, subtle)"},null,null,null,null,null,null,null,null,null,null,{"$f":"IF(S20>7,'Summary of Points'!N41,\"\")","v":""}]
[null,null,{"$f":"'Summary of Points'!C47","v":"Tether (holographic PDA linked to subdermal earbud)"},null,null,null,null,null,null,null,null,null,null,{"$f":"IF(S21>7,'Summary of Points'!N42,\"\")","v":"That's Gotta Hurt (Scuffling):"}]
[null,null,{"$f":"'Summary of Points'!C48","v":"TimeWatch Uniform (chronomorphic, armor 1)"},null,null,null,null,null,null,null,null,null,null,{"$f":"IF(S21>7,'Summary of Points'!N43,\"\")","v":"Scuffling Pool spend = min base dmg"}]
[null,null,{"$f":"'Summary of Points'!C49","v":"Translator (instant, 2-way, unnoticeable)"},null,null,null,null,null,null,null,null,null,null,{"$f":"IF(S22>7,'Summary of Points'!N44,\"\")","v":"Double Tap (Shooting):"}]
[null,null,null,null,null,null,null,null,null,null,null,null,null,{"$f":"IF(S22>7,'Summary of Points'!N45,\"\")","v":"Shoot 2nd foe at +2 Difficulty"}]
[null,null,null,null,null,null,null,null,null,null,null,null,null,{"$f":"IF(S23>7,'Summary of Points'!N46,\"\")","v":""}]
[null,null,null,null,null,null,null,null,null,null,null,null,null,{"$f":"IF(S23>7,'Summary of Points'!N47,\"\")","v":""}]
[null,null,null,null,null,null,null,null,null,null,null,null,null,{"$f":"IF(S24>7,'Summary of Points'!N48,\"\")","v":""}]
[null,null,null,null,null,null,null,null,null,null,null,null,null,{"$f":"IF(S24>7,'Summary of Points'!N49,\"\")","v":""}]
[null,null,null,null,null,null,null,null,null,null,null,null,null,{"$f":"IF(S25>7,'Summary of Points'!N50,\"\")","v":""}]
["* Start with 1 point free",null,null,null,null,null,"Each spent stitch refreshes 2 pts from 1 pool",null,null,null,null,null,null,{"$f":"IF(S25>7,'Summary of Points'!N51,\"\")","v":""}]
["** Start with 6 points free",null,null,null,null,null,"Do cool stuff, earn more stitches! (max 3)"]

{"sheet":"blank character sheet (12)","index":36,"n_rows":52,"n_cols":27,"rows_kept":52,"cut":false,"hidden":false,"merged":[[48,2,48,12],[49,2,49,12],[40,2,40,12],[44,2,44,12],[45,2,45,12],[46,2,46,12],[43,2,43,12],[42,2,42,12],[41,2,41,12],[47,2,47,12],[36,2,36,12],[38,2,38,12],[39,2,39,12],[0,3,0,8],[2,3,2,8],[3,3,3,8],[4,3,4,8],[5,3,5,8],[6,3,6,8],[37,2,37,12],[35,13,35,18],[27,13,27,18],[0,15,0,18],[0,10,0,13],[10,0,10,11],[10,13,10,18],[29,13,29,18],[30,13,30,18],[31,13,31,18],[32,13,32,18],[33,13,33,18],[34,13,34,18],[47,13,47,18],[36,13,36,18],[37,13,37,18],[38,13,38,18],[39,13,39,18],[40,13,40,18],[41,13,41,18],[42,13,42,18],[43,13,43,18],[44,13,44,18],[45,13,45,18],[46,13,46,18],[48,13,48,18],[49,13,49,18],[50,13,50,18],[51,13,51,18],[52,13,52,18]]}
["Name:",null,null,null,null,null,null,null,null,null,"Chronal Stability",null,null,null,null,"Health"]
[null,null,null,null,null,null,null,null,null,null,{"$f":"IF($N$9>=15,15,\"\")","v":""},{"$f":"IF($N$9>=14,14,\"\")","v":""},{"$f":"IF($N$9>=13,13,\"\")","v":""},{"$f":"IF($N$9>=12,12,\"\")","v":""},null,{"$f":"IF($S$9>=15,15,\"\")","v":""},{"$f":"IF($S$9>=14,14,\"\")","v":""},{"$f":"IF($S$9>=13,13,\"\")","v":""},{"$f":"IF($S$9>=12,12,\"\")","v":""}]
["Nationality:",null,null,null,null,null,null,null,null,null,{"$f":"IF($N$9>=11,11,\"\")","v":""},{"$f":"IF($N$9>=10,10,\"\")","v":""},{"$f":"IF($N$9>=9,9,\"\")","v":""},{"$f":"IF($N$9>=8,8,\"\")","v":""},null,{"$f":"IF($S$9>=11,11,\"\")","v":""},{"$f":"IF($S$9>=10,10,\"\")","v":""},{"$f":"IF($S$9>=9,9,\"\")","v":""},{"$f":"IF($S$9>=8,8,\"\")","v":""}]
["Origin Time:",null,null,null,null,null,null,null,null,null,{"$f":"IF($N$9>=7,7,\"\")","v":""},6,5,4,null,{"$f":"IF($S$9>=7,7,\"\")","v":""},6,5,4]
["Profession: ",null,null,null,null,null,null,null,null,null,3,2,1,0,null,3,2,1,0]
["Age:",null,null,null,null,null,null,null,null,null,-1,-2,-3,-4,null,-1,-2,-3,-4]
["Drive:",null,null,null,null,null,null,null,null,null,-5,-6,-7,-8,null,-5,-6,-7,-8,null,null,null,null,null,"XP - "]
[null,null,null,null,null,null,null,null,null,null,-9,-10,-11,-12,null,-9,-10,-11,-12,null,null,null,null,null,"Extra"]
["Hit Threshold:",null,null,{"$f":"IF(S13>7,4,3)","v":3},null,"Armor:",null,{"$f":"IF(C43='Summary of Points'!C48,1,0)","v":1},null,null,"Max: ",null,null,{"$f":"S15","v":6},null,"Max: ",null,null,{"$f":"S17","v":6},null,null,null,null,null,"Points?"]
[]
["INVESTIGATIVE ABILITIES",null,null,null,null,null,null,null,null,null,null,null,null,"GENERAL ABILITIES",null,null,null,null,null,null,null,"Investigative:",null,null,0,{"$f":"'Summary of Points'!F4+Y11","v":16},{"$f":"SUM(E15:E24)+SUM(L14:L36)-1","v":0}]
[null,null,null,null,null,null,null,null,null,null,null,null,null,null,null,null,null,null,null,null,null,"General:",null,null,0,{"$f":"'Summary of Points'!E5+Y12","v":50},{"$f":"SUM(S12:S28)-12","v":0}]
["Academic Abilities",null,null,null,null,null,"Interpersonal Abilities ",null,null,null,null,null,null,"Athletics"]
[null,null,null,null,null,null,null,null,null,null,null,null,null,"Burglary"]
["Anthropology",null,null,null,null,null,"Authority",null,null,null,null,null,null,"Chronal Stability**",null,null,null,null,6]
["Architecture ",null,null,null,null,null,"Bureaucracy",null,null,null,null,null,null,"Disguise"]
["History (Ancient)",null,null,null,null,null,"Charm",null,null,null,null,null,null,"Health**",null,null,null,null,6]
["History (Contemporary)",null,null,null,null,null,"Falsehood Detection",null,null,null,null,null,null,"Medic"]
["History (Future)",null,null,null,null,null,"High Society ",null,null,null,null,null,null,"Preparedness"]
["Military Tactics",null,null,null,null,null,"Intimidation",null,null,null,null,null,null,"Reality Anchor"]
["Research",null,null,null,null,null,"Reassurance",null,null,null,null,null,null,"Scuffling"]
["Timecraft*",null,null,null,1,null,"Streetwise ",null,null,null,null,null,null,"Shooting"]
["Trivia",null,null,null,null,null,"Taunt",null,null,null,null,null,null,"Tinkering"]
[null,null,null,null,null,null,null,null,null,null,null,null,null,"Unobtrusiveness"]
[null,null,null,null,null,null,"Technical Abilities",null,null,null,null,null,null,"Vehicles"]
[]
["Extra Investigative points?",null,null,null,null,null,"Forgery"]
[null,null,null,null,null,null,"Hacking",null,null,null,null,null,null,"Special Boosters:"]
[null,null,{"$f":"Z11-AA11","v":16},null,null,null,"Medical Expertise"]
[null,null,null,null,null,null,"Notice",null,null,null,null,null,null,{"$f":"IF(S13>7,'Summary of Points'!N30,\"\")","v":""}]
["Extra General points?",null,null,null,null,null,"Outdoor Survival ",null,null,null,null,null,null,{"$f":"IF(S13>7,'Summary of Points'!N31,\"\")","v":""}]
[null,null,null,null,null,null,"Paradox Prevention",null,null,null,null,null,null,{"$f":"IF(S14>7,'Summary of Points'!N32,\"\")","v":""}]
[null,null,{"$f":"Z12-AA12","v":50},null,null,null,"Science!",null,null,null,null,null,null,{"$f":"IF(S14>7,'Summary of Points'!N33,\"\")","v":""}]
[null,null,null,null,null,null,"Spying",null,null,null,null,null,null,{"$f":"IF(S16>7,'Summary of Points'!N34,\"\")","v":""}]
[null,null,null,null,null,null,null,null,null,null,null,null,null,{"$f":"IF(S16>7,'Summary of Points'!N35,\"\")","v":""}]
[null,null,null,null,null,null,null,null,null,null,null,null,null,{"$f":"IF(S18>7,'Summary of Points'!N36,\"\")","v":""}]
["Gear:",null,{"$f":"'Summary of Points'!C42","v":"Autochron (portable 1-man time machine)"},null,null,null,null,null,null,null,null,null,null,{"$f":"IF(S18>7,'Summary of Points'!N37,\"\")","v":""}]
[null,null,{"$f":"'Summary of Points'!C43","v":"Impersonator mesh (+3 Unobtrusiveness until drawing notice)"},null,null,null,null,null,null,null,null,null,null,{"$f":"IF(S19>7,'Summary of Points'!N38,\"\")","v":""}]
[null,null,{"$f":"'Summary of Points'!C44","v":"MedKit (lets you use Medic skill effectively)"},null,null,null,null,null,null,null,null,null,null,{"$f":"IF(S19>7,'Summary of Points'!N39,\"\")","v":""}]
[null,null,{"$f":"'Summary of Points'!C45","v":"MEM-tags (for memory modification of unconscious subjects)"},null,null,null,null,null,null,null,null,null,null,{"$f":"IF(S20>7,'Summary of Points'!N40,\"\")","v":""}]
[null,null,{"$f":"'Summary of Points'!C46","v":"PaciFist disruptor (Close range, Stun 5, subtle)"},null,null,null,null,null,null,null,null,null,null,{"$f":"IF(S20>7,'Summary of Points'!N41,\"\")","v":""}]
[null,null,{"$f":"'Summary of Points'!C47","v":"Tether (holographic PDA linked to subdermal earbud)"},null,null,null,null,null,null,null,null,null,null,{"$f":"IF(S21>7,'Summary of Points'!N42,\"\")","v":""}]
[null,null,{"$f":"'Summary of Points'!C48","v":"TimeWatch Uniform (chronomorphic, armor 1)"},null,null,null,null,null,null,null,null,null,null,{"$f":"IF(S21>7,'Summary of Points'!N43,\"\")","v":""}]
[null,null,{"$f":"'Summary of Points'!C49","v":"Translator (instant, 2-way, unnoticeable)"},null,null,null,null,null,null,null,null,null,null,{"$f":"IF(S22>7,'Summary of Points'!N44,\"\")","v":""}]
[null,null,null,null,null,null,null,null,null,null,null,null,null,{"$f":"IF(S22>7,'Summary of Points'!N45,\"\")","v":""}]
[null,null,null,null,null,null,null,null,null,null,null,null,null,{"$f":"IF(S23>7,'Summary of Points'!N46,\"\")","v":""}]
[null,null,null,null,null,null,null,null,null,null,null,null,null,{"$f":"IF(S23>7,'Summary of Points'!N47,\"\")","v":""}]
[null,null,null,null,null,null,null,null,null,null,null,null,null,{"$f":"IF(S24>7,'Summary of Points'!N48,\"\")","v":""}]
[null,null,null,null,null,null,null,null,null,null,null,null,null,{"$f":"IF(S24>7,'Summary of Points'!N49,\"\")","v":""}]
[null,null,null,null,null,null,null,null,null,null,null,null,null,{"$f":"IF(S25>7,'Summary of Points'!N50,\"\")","v":""}]
["* Start with 1 point free",null,null,null,null,null,"Each spent stitch refreshes 2 pts from 1 pool",null,null,null,null,null,null,{"$f":"IF(S25>7,'Summary of Points'!N51,\"\")","v":""}]
["** Start with 6 points free",null,null,null,null,null,"Do cool stuff, earn more stitches! (max 3)"]